Workbook

Sheet メインメニュー (hidden)
B1: アグリナゼロ注文書 | L1: ご注文点数合計 | N1: =F45 -> 0 | O1: 点
D3: ３Dシミュレーターでデザインを作成されている場合は、デザインURLを注文書に記入していただきますので、デザインURLがご不明の場合は３Dシミュレーターでご確認ください。
B4: ① | D4: ご注文者様の情報をご記入ください
D6: ご注文者様情報
D8: ●[必須] | E8: チーム名
D9: ●[必須] | E9: 注文日 | H9: 日付を記入してください
D10: ●[必須] | E10: 新規/追加 | F10: ※お選びください | H10: リストからお選びください
D11: ●[必須] | E11: お名前 | I11: 全角
D12: ●[必須] | E12: フリガナ | I12: 全角カタカナ
D13: ●[必須] | E13: 郵便番号 | H13: 半角
D14: ●[必須] | E14: 住所
D15: ●[必須] | E15: 電話番号 | H15: 半角
D16: ●[任意] | E16: FAX番号 | H16: 半角
D17: ●[必須] | E17: メールアドレス | L17: 半角
D19: 発送先情報
D21: ●[必須] | E21: 発送先 | F21: ※お選びください | L21: リストからお選びください
D22: ●[必須] | E22: お名前 | I22: 全角
D23: ●[必須] | E23: 郵便番号 | H23: 半角
D24: ●[必須] | E24: 住所
D25: ●[必須] | E25: 電話番号 | H25: 半角
B28: ② | D28: ご希望のカスタムウェアを選択して、情報をご記入ください
E31: 注文点数 | F31: =作業用!C5 -> 0 | G31: 金額 | H31: =作業用!D5 -> 0 | K31: 注文点数 | L31: =作業用!C6 -> 0 | M31: 金額 | N31: =作業用!D6 -> 0
E33: 注文点数 | F33: =SUM(練習着!F52:Q52) -> 0 | G33: 金額 | H33: =練習着!E61 -> 0
E35: 注文点数 | F35: =作業用!C7 -> 0 | G35: 金額 | H35: =作業用!D7 -> 0 | K35: 注文点数 | L35: =作業用!C8 -> 0 | M35: 金額 | N35: =作業用!D8 -> 0
E37: 注文点数 | F37: =作業用!C9 -> 0 | G37: 金額 | H37: =作業用!D9 -> 0 | K37: 注文点数 | L37: =作業用!C16 -> 0 | M37: 金額 | N37: =作業用!D16 -> 0
E39: 注文点数 | F39: =作業用!C10 -> 0 | G39: 金額 | H39: =作業用!D10 -> 0 | K39: 注文点数 | L39: =作業用!C13 -> 0 | M39: 金額 | N39: =作業用!D13 -> 0
E41: 注文点数 | F41: =作業用!C12 -> 0 | G41: 金額 | H41: =作業用!D12 -> 0 | K41: 注文点数 | L41: =作業用!C11 -> 0 | M41: 金額 | N41: =作業用!D11 -> 0
E43: 注文点数 | F43: =作業用!C14 -> 0 | G43: 金額 | H43: =作業用!D14 -> 0 | K43: 注文点数 | L43: =作業用!C15 -> 0 | M43: 金額 | N43: =作業用!D15 -> 0
D45: ご注文 合計 | E45: 注文点数 | F45: =F31+L31+F35+L35+F37+L37+F39+L39+F41+L41+F43+L43 -> 0 | G45: 金額 | H45: =H31+N31+H35+N35+H37+N37+H39+N39+H41+N41+H43+N43 -> 0 | J45: =IF(COUNTIF(作業用!E5:E16,"?*")>0,"ご注文に注意点がございます。" & "注文シートのご確認をお願いいたします。","") -> 
B47: ③ | D47: ご注文情報を記入後、この注文書ファイルを取扱店舗へ送付してください。
D49: 以下はお客様が記入していただく必要はありません。
D50: 取扱店舗情報
D52: 店舗名 | M52: 自動入力
D53: 担当者名 | I53: 全角 | M53: 森田卓志
D54: 電話番号 | H54: 半角 | M54: 加藤貴行
D55: FAX番号 | H55: 半角 | M55: 小原秀一
D56: メールアドレス | L56: 半角
D60: ＷP

Sheet 作業用 (hidden)
B2: アグリナ注文書 作業用シート | G2: カラー番号設定（トムス用） | L2: 担当者設定
B4: シート | C4: 受注数 | D4: 受注金額 | E4: 注意点表示 | G4: プラシャツ | H4: ポロシャツ | I4: パンツ | J4: ソックス | L4: 担当者 | M4: 店舗名 | N4: 電話番号 | O4: FAX番号 | P4: メールアドレス
B5: セミオーダーユニ | C5: =セミオーダーユニ!D59 -> 0 | D5: =セミオーダーユニ!E63 -> 0 | E5: =セミオーダーユニ!B71 ->  | G5: 011ホワイト | H5: 011ホワイト | I5: 013Mグレー | J5: 011ホワイト | L5: 森田卓志 | M5: ボアスコンプラス | N5: 049-293-2822 | O5: 049-293-3443 | P5: t-morita@s-contigo.com
B6: フルオーダーユニ | C6: =フルオーダーユニ!D60 -> 0 | D6: =フルオーダーユニ!E64 -> 0 | E6: =フルオーダーユニ!B72 ->  | G6: 015ブラック | H6: 015ブラック | I6: 015ブラック | J6: 015ブラック | L6: 加藤貴行 | M6: ボアスコンプラス | N6: 049-293-2822 | O6: 049-293-3443 | P6: t-kato@s-contigo.com
B7: 練習着 | C7: =練習着!D58 -> 0 | D7: =練習着!E62 -> 0 | E7: =練習着!B69 ->  | G7: 020レッド | H7: 020レッド | I7: 041ネイビー | J7: 041ネイビー | L7: 小原秀一 | M7: ボアスコンプラス | N7: 049-293-2822 | O7: 049-293-3443 | P7: s-kohara@s-contigo.com
B8: ジャージ | C8: =ジャージ!D56 -> 0 | D8: =ジャージ!E60 -> 0 | E8: =ジャージ!B68 ->  | G8: 035ケリーグリーン | H8: 035ケリーグリーン
B9: ピステ | C9: =ピステ!D57 -> 0 | D9: =ピステ!E61 -> 0 | E9: =ピステ!B69 ->  | G9: 041ネイビー | H9: 041ネイビー | L9: ※ 担当者の登録は４人まで
B10: ウインドブレーカー | C10: =ウインドブレーカー!D56 -> 0 | D10: =ウインドブレーカー!E60 -> 0 | E10: =ウインドブレーカー!B68 ->  | G10: 042コバルトブルー | H10: 042コバルトブルー
B11: プラシャツ | C11: =プラシャツ!D60 -> 0 | D11: =プラシャツ!E64 -> 0 | E11: =プラシャツ!B71 ->  | G11: 044Kサックス | H11: 044Kサックス
B12: インナー | C12: =インナー!D53 -> 0 | D12: =インナー!E57 -> 0 | E12: =インナー!B65 ->  | G12: 057蛍光イエロー | H12: 057蛍光イエロー
B13: ビブス | C13: =SUM(ビブス!F19:K19) -> 0 | D13: =ビブス!E29 -> 0 | E13: =ビブス!B37 ->  | G13: 059蛍光ピンク | H13: 059蛍光ピンク
B14: ポロシャツ | C14: =ポロシャツ!D55 -> 0 | D14: =ポロシャツ!E59 -> 0 | E14: =ポロシャツ!B66 ->  | G14: 156ホットピンク | H14: 156ホットピンク
B15: ノースリーブ | C15: =ノースリーブ!D54 -> 0 | D15: =ノースリーブ!E58 -> 0 | E15: =ノースリーブ!B65 -> 
B16: ベンチコート | C16: =ベンチコート!D51 -> 0 | D16: =ベンチコート!E55 -> 0 | E16: =ベンチコート!B63 -> 
B17: 作業用 | C17: 0 | D17: 0
B18: 準備中 | C18: 0 | D18: 0
B19: 読込中 | C19: 0 | D19: 0
B20: お願い | C20: 0 | D20: 0
B21: デザインURL説明 | C21: 0 | D21: 0
B22: プラシャツ(未使用) | C22: 0 | D22: 0

Sheet セミオーダーユニ (hidden)
A2: お客様記入→ | B2: agrina セミオーダーユニフォーム 注文書 | E2: 種 別 | F2: FP-Home | J2: FP-Away | N2: GK-Home | T2: GK-Away | Z2: メモ欄
E3: 画 像
B4: =IF(ご注文者様チーム名="","「メインメニュー」のご注文者様情報をご記入ください。",ご注文者様チーム名) -> 「メインメニュー」のご注文者様情報をご記入ください。 | E4: 名 称 | F4: 半袖シャツ | G4: 長袖シャツ | H4: パンツ | I4: ソックス | J4: 半袖シャツ | K4: 長袖シャツ | L4: パンツ | M4: ソックス | N4: 半袖シャツ | O4: 長袖シャツ | P4: パッド付 長袖シャツ | Q4: パンツ | R4: パッド付 パンツ | S4: ソックス | T4: 半袖 シャツ | U4: 長袖シャツ | V4: パッド付 長袖シャツ | W4: パンツ | X4: パッド付 パンツ | Y4: ソックス | Z4: ３Dシミュレーターの「デザインを保存 する」ボタンをクリックして表示される ☜「デザインURL」を貼り付けて下さい。
B5: ユニフォームタイプ
A6: 非表示 | E6: 商品コード | F6: =IF(F53>0,IF(F51="","追加商品コード未記入",F50&F51),"") ->  | G6: =IF(G53>0,IF(G51="","追加商品コード未記入",G50&G51),"") ->  | H6: =IF(H53>0,IF(H51="","追加商品コード未記入",H50&H51),"") -> 
A7: ➡ | B7: 選択して下さい | E7: デザイン URL | F7: 入力してください | J7: 入力してください | N7: 入力してください | T7: 入力してください
B8: # | C8: 注文者氏名 | D8: マーキング名 | E8: 背番号 | F8: サイズ | J8: サイズ | N8: サイズ | T8: サイズ | Z8: 個人別価格 | AA8: 備考(お客様使用)
B9: 例 | C9: 加藤貴行 | D9: T.KATO | E9: 10 | F9: M | G9: M | H9: L | I9: 25x27 | J9: M | K9: M | L9: L | M9: 25x27
A10: ➡ | B10: 1 | Z10: =SUMIF(F10:Y10,"<>",$F$55:$Y$55)+IF($D10<>"",COUNTIFS(F10:Y10,"<>",$F$49:$Y$49,">0")*$M$66,0) -> 0
B11: 2 | Z11: =SUMIF(F11:Y11,"<>",$F$55:$Y$55)+IF($D11<>"",COUNTIFS(F11:Y11,"<>",$F$49:$Y$49,">0")*$M$66,0) -> 0
B12: 3 | Z12: 0
B13: 4 | Z13: 0
B14: 5 | Z14: 0
B15: 6 | Z15: 0
B16: 7 | Z16: 0
B17: 8 | Z17: 0
B18: 9 | Z18: 0
B19: 10 | Z19: 0
B20: 11 | Z20: 0
B21: 12 | Z21: 0
B22: 13 | Z22: 0
B23: 14 | Z23: 0
B24: 15 | Z24: 0
B25: 16 | Z25: 0
B26: 17 | Z26: 0
B27: 18 | Z27: 0
B28: 19 | Z28: 0
B29: 20 | Z29: 0
F30: =IF(AND((I53+M53+S53+Y53)>0,(I53+M53+S53+Y53)<5)," ※ソックスは5点以上でご注文をお願いいたします。"&"（最低注文数まであと"& 5-(I53+M53+S53+Y53) & "点）","") & IF(AND(OR(B7="選択して下さい",B7=""),(SUM(F53:H53)+SUM(J53:L53)+SUM(N53:R53)+SUM(T53:X53))>0)," ※ユニフォームタイプを選択して下さい。","") ->  | Z30: =IF(E61>0,"※ 個人別価格に送料は含まれていません。","") -> 
B31: 注 文 集 計 | E31: 100 | F31: =COUNTIF(F$10:F$29,$E31) -> 0 | G31: 0 | H31: 0 | J31: =COUNTIF(J$10:J$29,$E31) -> 0 | K31: 0 | L31: 0 | N31: =COUNTIF(N$10:N$29,$E31) -> 0 | O31: 0 | P31: 0 | Q31: 0 | R31: 0 | T31: =COUNTIF(T$10:T$29,$E31) -> 0 | U31: 0 | V31: 0 | W31: 0 | X31: 0
E32: 110 | F32: 0 | G32: 0 | H32: 0 | J32: 0 | K32: 0 | L32: 0 | N32: 0 | O32: 0 | P32: 0 | Q32: 0 | R32: 0 | T32: 0 | U32: 0 | V32: 0 | W32: 0 | X32: 0
E33: 120 | F33: 0 | G33: 0 | H33: 0 | J33: 0 | K33: 0 | L33: 0 | N33: 0 | O33: 0 | P33: 0 | Q33: 0 | R33: 0 | T33: 0 | U33: 0 | V33: 0 | W33: 0 | X33: 0
E34: 130 | F34: 0 | G34: 0 | H34: 0 | J34: 0 | K34: 0 | L34: 0 | N34: 0 | O34: 0 | P34: 0 | Q34: 0 | R34: 0 | T34: 0 | U34: 0 | V34: 0 | W34: 0 | X34: 0
E35: 140 | F35: 0 | G35: 0 | H35: 0 | J35: 0 | K35: 0 | L35: 0 | N35: 0 | O35: 0 | P35: 0 | Q35: 0 | R35: 0 | T35: 0 | U35: 0 | V35: 0 | W35: 0 | X35: 0
E36: 150 | F36: 0 | G36: 0 | H36: 0 | J36: 0 | K36: 0 | L36: 0 | N36: 0 | O36: 0 | P36: 0 | Q36: 0 | R36: 0 | T36: 0 | U36: 0 | V36: 0 | W36: 0 | X36: 0
E37: 160 | F37: 0 | G37: 0 | H37: 0 | J37: 0 | K37: 0 | L37: 0 | N37: 0 | O37: 0 | P37: 0 | Q37: 0 | R37: 0 | T37: 0 | U37: 0 | V37: 0 | W37: 0 | X37: 0
E38: S | F38: 0 | G38: 0 | H38: 0 | J38: 0 | K38: 0 | L38: 0 | N38: 0 | O38: 0 | P38: 0 | Q38: 0 | R38: 0 | T38: 0 | U38: 0 | V38: 0 | W38: 0 | X38: 0
E39: M | F39: 0 | G39: 0 | H39: 0 | J39: 0 | K39: 0 | L39: 0 | N39: 0 | O39: 0 | P39: 0 | Q39: 0 | R39: 0 | T39: 0 | U39: 0 | V39: 0 | W39: 0 | X39: 0
E40: L | F40: 0 | G40: 0 | H40: 0 | J40: 0 | K40: 0 | L40: 0 | N40: 0 | O40: 0 | P40: 0 | Q40: 0 | R40: 0 | T40: 0 | U40: 0 | V40: 0 | W40: 0 | X40: 0
E41: XL | F41: 0 | G41: 0 | H41: 0 | J41: 0 | K41: 0 | L41: 0 | N41: 0 | O41: 0 | P41: 0 | Q41: 0 | R41: 0 | T41: 0 | U41: 0 | V41: 0 | W41: 0 | X41: 0
E42: 3L | F42: 0 | G42: 0 | H42: 0 | J42: 0 | K42: 0 | L42: 0 | N42: 0 | O42: 0 | P42: 0 | Q42: 0 | R42: 0 | T42: 0 | U42: 0 | V42: 0 | W42: 0 | X42: 0
E43: 4L | F43: 0 | G43: 0 | H43: 0 | J43: 0 | K43: 0 | L43: 0 | N43: 0 | O43: 0 | P43: 0 | Q43: 0 | R43: 0 | T43: 0 | U43: 0 | V43: 0 | W43: 0 | X43: 0
E44: 5L | F44: 0 | G44: 0 | H44: 0 | J44: 0 | K44: 0 | L44: 0 | N44: 0 | O44: 0 | P44: 0 | Q44: 0 | R44: 0 | T44: 0 | U44: 0 | V44: 0 | W44: 0 | X44: 0
E45: 19x21 | I45: =COUNTIF(I$10:I$29,$E45) -> 0 | M45: =COUNTIF(M$10:M$29,$E45) -> 0 | S45: =COUNTIF(S$10:S$29,$E45) -> 0 | Y45: =COUNTIF(Y$10:Y$29,$E45) -> 0
E46: 22x24 | I46: =COUNTIF(I$10:I$29,$E46) -> 0 | M46: =COUNTIF(M$10:M$29,$E46) -> 0 | S46: =COUNTIF(S$10:S$29,$E46) -> 0 | Y46: =COUNTIF(Y$10:Y$29,$E46) -> 0
E47: 25x27 | I47: =COUNTIF(I$10:I$29,$E47) -> 0 | M47: =COUNTIF(M$10:M$29,$E47) -> 0 | S47: =COUNTIF(S$10:S$29,$E47) -> 0 | Y47: =COUNTIF(Y$10:Y$29,$E47) -> 0
E48: 27x29 | I48: =COUNTIF(I$10:I$29,$E48) -> 0 | M48: =COUNTIF(M$10:M$29,$E48) -> 0 | S48: =COUNTIF(S$10:S$29,$E48) -> 0 | Y48: =COUNTIF(Y$10:Y$29,$E48) -> 0
B49: マーキング | E49: 個人名 | F49: =COUNTIFS($D$10:$D$29,"<>",F$10:F$29,"<>") -> 0 | G49: =COUNTIFS($D$10:$D$29,"<>",G$10:G$29,"<>") -> 0 | J49: =COUNTIFS($D$10:$D$29,"<>",J$10:J$29,"<>") -> 0 | K49: =COUNTIFS($D$10:$D$29,"<>",K$10:K$29,"<>") -> 0 | N49: =COUNTIFS($D$10:$D$29,"<>",N$10:N$29,"<>") -> 0 | O49: =COUNTIFS($D$10:$D$29,"<>",O$10:O$29,"<>") -> 0 | P49: =COUNTIFS($D$10:$D$29,"<>",P$10:P$29,"<>") -> 0 | T49: =COUNTIFS($D$10:$D$29,"<>",T$10:T$29,"<>") -> 0 | U49: =COUNTIFS($D$10:$D$29,"<>",U$10:U$29,"<>") -> 0 | V49: =COUNTIFS($D$10:$D$29,"<>",V$10:V$29,"<>") -> 0
B50: 代表商品コード | E50: =$J$66 -> ag-name1000 | F50: =$J$60 -> ag-cs | G50: =$J$61 -> ag-cl | H50: =$J$62 -> ag-cp | I50: =$J$63 -> ag-st | J50: =$J$60 -> ag-cs | K50: =$J$61 -> ag-cl | L50: =$J$62 -> ag-cp | M50: =$J$63 -> ag-st | N50: =$J$60 -> ag-cs | O50: =$J$61 -> ag-cl | P50: =$J$64 -> ag-clp | Q50: =$J$62 -> ag-cp | R50: =$J$65 -> ag-cpp | S50: =$J$63 -> ag-st | T50: =$J$60 -> ag-cs | U50: =$J$61 -> ag-cl | V50: =$J$64 -> ag-clp | W50: =$J$62 -> ag-cp | X50: =$J$65 -> ag-cpp | Y50: =$J$63 -> ag-st
B51: 追加商品コード
B52: 商 品 名 | E52: 個人名 ﾏｰｷﾝｸﾞ | F52: =$G$60&"("& IF(COUNTIF($B$7,"*公式戦*"),"公式戦","") & $F$2&")" -> セミオーダー昇華シャツ半袖(FP-Home) | G52: =$G$61&"("&IF(COUNTIF($B$7,"*公式戦*"),"公式戦","") & $F$2&")" -> セミオーダー昇華シャツ長袖(FP-Home) | H52: =$G$62&"("&IF(COUNTIF($B$7,"*公式戦*"),"公式戦","") & $F$2&")" -> セミオーダー昇華パンツ(FP-Home) | I52: =$G$63&"("&IF(COUNTIF($B$7,"*公式戦*"),"公式戦","") & $F$2&")" -> セミオーダーソックス(FP-Home) | J52: =$G$60&"("&IF(COUNTIF($B$7,"*公式戦*"),"公式戦","") & $J$2&")" -> セミオーダー昇華シャツ半袖(FP-Away) | K52: =$G$61&"("&IF(COUNTIF($B$7,"*公式戦*"),"公式戦","") & $J$2&")" -> セミオーダー昇華シャツ長袖(FP-Away) | L52: =$G$62&"("&IF(COUNTIF($B$7,"*公式戦*"),"公式戦","") & $J$2&")" -> セミオーダー昇華パンツ(FP-Away) | M52: =$G$63&"("&IF(COUNTIF($B$7,"*公式戦*"),"公式戦","") & $J$2&")" -> セミオーダーソックス(FP-Away) | N52: =$G$60&"("&IF(COUNTIF($B$7,"*公式戦*"),"公式戦","") & $N$2&")" -> セミオーダー昇華シャツ半袖(GK-Home) | O52: =$G$61&"("&IF(COUNTIF($B$7,"*公式戦*"),"公式戦","") & $N$2&")" -> セミオーダー昇華シャツ長袖(GK-Home) | P52: =$G$64&"("&IF(COUNTIF($B$7,"*公式戦*"),"公式戦","") & $N$2&")" -> セミオーダー昇華シャツ長袖パッド付(GK-Home) | Q52: =$G$62&"("&IF(COUNTIF($B$7,"*公式戦*"),"公式戦","") & $N$2&")" -> セミオーダー昇華パンツ(GK-Home) | R52: =$G$65&"("&IF(COUNTIF($B$7,"*公式戦*"),"公式戦","") & $N$2&")" -> セミオーダー昇華パンツパッド付(GK-Home) | S52: =$G$63&"("&IF(COUNTIF($B$7,"*公式戦*"),"公式戦","") & $N$2&")" -> セミオーダーソックス(GK-Home) | T52: =$G$60&"("&IF(COUNTIF($B$7,"*公式戦*"),"公式戦","") & $T$2&")" -> セミオーダー昇華シャツ半袖(GK-Away) | U52: =$G$61&"("&IF(COUNTIF($B$7,"*公式戦*"),"公式戦","") & $T$2&")" -> セミオーダー昇華シャツ長袖(GK-Away) | V52: =$G$64&"("&IF(COUNTIF($B$7,"*公式戦*"),"公式戦","") & $T$2&")" -> セミオーダー昇華シャツ長袖パッド付(GK-Away) | W52: =$G$62&"("&IF(COUNTIF($B$7,"*公式戦*"),"公式戦","") & $T$2&")" -> セミオーダー昇華パンツ(GK-Away) | X52: =$G$65&"("&IF(COUNTIF($B$7,"*公式戦*"),"公式戦","") & $T$2&")" -> セミオーダー昇華パンツパッド付(GK-Away) | Y52: =$G$63&"("&IF(COUNTIF($B$7,"*公式戦*"),"公式戦","") & $T$2&")" -> セミオーダーソックス(GK-Away)
B53: 注 文 数 | E53: =SUM(F49:Y49) -> 0 | F53: =SUM(F31:F48) -> 0 | G53: 0 | H53: 0 | I53: 0 | J53: 0 | K53: 0 | L53: 0 | M53: 0 | N53: 0 | O53: 0 | P53: 0 | Q53: 0 | R53: 0 | S53: 0 | T53: 0 | U53: 0 | V53: 0 | W53: 0 | X53: 0 | Y53: 0
B54: 定 価（税込） | E54: =$L$66 -> 1080 | F54: =$L$60 -> 8640 | G54: =$L$61 -> 9720 | H54: =$L$62 -> 7020 | I54: =$L$63 -> 1944 | J54: =$L$60 -> 8640 | K54: =$L$61 -> 9720 | L54: =$L$62 -> 7020 | M54: =$L$63 -> 1944 | N54: =$L$60 -> 8640 | O54: =$L$61 -> 9720 | P54: =$L$64 -> 10800 | Q54: =$L$62 -> 7020 | R54: =$L$65 -> 8100 | S54: =$L$63 -> 1944 | T54: =$L$60 -> 8640 | U54: =$L$61 -> 9720 | V54: =$L$64 -> 10800 | W54: =$L$62 -> 7020 | X54: =$L$65 -> 8100 | Y54: =$L$63 -> 1944
B55: 販売価格（税込） | E55: =$M$66 -> 1080 | F55: =$M$60 -> 8640 | G55: =$M$61 -> 9720 | H55: =$M$62 -> 7020 | I55: =$M$63 -> 1944 | J55: =$M$60 -> 8640 | K55: =$M$61 -> 9720 | L55: =$M$62 -> 7020 | M55: =$M$63 -> 1944 | N55: =$M$60 -> 8640 | O55: =$M$61 -> 9720 | P55: =$M$64 -> 10800 | Q55: =$M$62 -> 7020 | R55: =$M$65 -> 8100 | S55: =$M$63 -> 1944 | T55: =$M$60 -> 8640 | U55: =$M$61 -> 9720 | V55: =$M$64 -> 10800 | W55: =$M$62 -> 7020 | X55: =$M$65 -> 8100 | Y55: =$M$63 -> 1944
B56: 商品金額小計（税込） | E56: =E55*E53 -> 0 | F56: 0 | G56: 0 | H56: 0 | I56: 0 | J56: 0 | K56: 0 | L56: 0 | M56: 0 | N56: 0 | O56: 0 | P56: 0 | Q56: 0 | R56: 0 | S56: 0 | T56: 0 | U56: 0 | V56: 0 | W56: 0 | X56: 0 | Y56: 0
B58: ■ 簡易見積表 | G58: ■ 料金について（金額は税込定価です）
B59: 商 品 合 計 | D59: =SUM(F53:Y53) -> 0 | E59: =SUM(F56:Y56) -> 0 | G59: 商品名 | J59: 代表商品コード | L59: 定価(税込) | M59: 売価(税込) | N59: 掛率(X10%) | O59: 注文数
B60: マーキング代合計 | E60: =E56 -> 0 | G60: セミオーダー昇華シャツ半袖 | J60: ag-cs | L60: 8640 | M60: =ROUND(L60*N60*0.1,0) -> 8640 | N60: 10 | O60: =SUMIF(F$50:Y$50,J60,F$53:Y$53) -> 0
B61: 送 料 | E61: =IF(AND((E60+E59)>0,(E60+E59)<10800),$L$71,0) -> 0 | G61: セミオーダー昇華シャツ長袖 | J61: ag-cl | L61: 9720 | M61: =ROUND(L61*N61*0.1,0) -> 9720 | N61: =$N$60 -> 10 | O61: 0
B62: ― | E62: 0 | G62: セミオーダー昇華パンツ | J62: ag-cp | L62: 7020 | M62: 7020 | N62: =$N$60 -> 10 | O62: 0
B63: 合計金額（税込） | E63: =SUM(E59:E62) -> 0 | G63: セミオーダーソックス | J63: ag-st | L63: 1944 | M63: 1944 | N63: 10 | O63: 0
B64: 税抜金額 | E64: =E62-E65 -> 0 | G64: セミオーダー昇華シャツ長袖パッド付 | J64: ag-clp | L64: 10800 | M64: 10800 | N64: 10 | O64: 0
B65: 0.08 | E65: =E62-ROUND(E62/(1+B65),0) -> 0 | G65: セミオーダー昇華パンツパッド付 | J65: ag-cpp | L65: 8100 | M65: 8100 | N65: 10 | O65: 0
G66: マーキング | H66: 個人名 | J66: ag-name1000 | L66: 1080 | M66: 1080 | N66: 10 | O66: =E53 -> 0
G67: マーキング | H67: 背/胸/パンツ番号 | J67: 無料サービス | L67: 0 | M67: 0 | N67: 10
G68: マーキング | H68: エンブレム | J68: 無料サービス | L68: 0 | M68: 0 | N68: 10
G69: マーキング | H69: チーム名 | J69: 無料サービス | L69: 0 | M69: 0 | N69: 10
B70: =IF(F30<>"","ご注意","") ->  | G70: マーキング | H70: スポンサーバナー | J70: 無料サービス | L70: 0 | M70: 0 | N70: 10
B71: =IF(F30<>"",F30,"") ->  | G71: 送料（税込10,800円以上で送料無料） | L71: 540

Sheet フルオーダーユニ (hidden)
A2: お客様記入→ | B2: agrina フルオーダーユニフォーム 注文書 | E2: 種 別 | F2: FP-Home | J2: FP-Away | N2: GK-Home | T2: GK-Away | Z2: メモ欄
E3: 画 像
B4: =IF(ご注文者様チーム名="","「メインメニュー」のご注文者様情報をご記入ください。",ご注文者様チーム名) -> 「メインメニュー」のご注文者様情報をご記入ください。 | E4: 名 称 | F4: 半袖シャツ | G4: 長袖シャツ | H4: パンツ | I4: ソックス | J4: 半袖シャツ | K4: 長袖シャツ | L4: パンツ | M4: ソックス | N4: 半袖シャツ | O4: 長袖シャツ | P4: パッド付 長袖シャツ | Q4: パンツ | R4: パッド付 パンツ | S4: ソックス | T4: 半袖 シャツ | U4: 長袖シャツ | V4: パッド付 長袖シャツ | W4: パンツ | X4: パッド付 パンツ | Y4: ソックス
B5: ユニフォームタイプ
A6: 非表示 | E6: 商品コード | F6: =IF(F54>0,F51,"") ->  | G6: =IF(G54>0,G51,"") -> 
A7: ➡ | B7: 選択して下さい | E7: メ モ
B8: # | C8: 注文者氏名 | D8: ="マーキング名" -> マーキング名 | E8: 背番号 | F8: サイズ | J8: サイズ | N8: サイズ | T8: サイズ | Z8: 個人別価格 | AA8: 備考(お客様使用)
B9: 例 | C9: 加藤貴行 | D9: T.KATO | E9: 10 | F9: M | G9: M | H9: L | I9: 25x27 | J9: M | K9: M | L9: L | M9: 25x27
A10: ➡ | B10: 1 | Z10: =SUMIF(F10:Y10,"<>",$F$56:$Y$56)+IF($D10<>"",COUNTIFS(F10:Y10,"<>",$F$50:$Y$50,">0")*$M$67,0) -> 0
B11: 2 | Z11: =SUMIF(F11:Y11,"<>",$F$56:$Y$56)+IF($D11<>"",COUNTIFS(F11:Y11,"<>",$F$50:$Y$50,">0")*$M$67,0) -> 0
B12: 3 | Z12: 0
B13: 4 | Z13: 0
B14: 5 | Z14: 0
B15: 6 | Z15: 0
B16: 7 | Z16: 0
B17: 8 | Z17: 0
B18: 9 | Z18: 0
B19: 10 | Z19: 0
B20: 11 | Z20: 0
B21: 12 | Z21: 0
B22: 13 | Z22: 0
B23: 14 | Z23: 0
B24: 15 | Z24: 0
B25: 16 | Z25: 0
B26: 17 | Z26: 0
B27: 18 | Z27: 0
B28: 19 | Z28: 0
B29: 20 | Z29: 0
F30: =IF(AND((I54+M54+S54+Y54)>0,(I54+M54+S54+Y54)<5)," ※ソックスは5点以上でご注文をお願いいたします。"&"（最低注文数まであと"& 5-(I54+M54+S54+Y54) & "点）","") & IF(AND(OR(B7="選択して下さい",B7=""),(SUM(F54:H54)+SUM(J54:L54)+SUM(N54:R54)+SUM(T54:X54))>0)," ※ユニフォームタイプを選択して下さい。","") ->  | Z30: =IF(E62>0,"※ 個人別価格に送料は含まれていません。","") -> 
B31: 注 文 集 計 | E31: 100 | F31: =COUNTIF(F$10:F$29,$E31) -> 0 | G31: 0 | H31: 0 | J31: =COUNTIF(J$10:J$29,$E31) -> 0 | K31: 0 | L31: 0 | N31: =COUNTIF(N$10:N$29,$E31) -> 0 | O31: 0 | P31: 0 | Q31: 0 | R31: 0 | T31: =COUNTIF(T$10:T$29,$E31) -> 0 | U31: 0 | V31: 0 | W31: 0 | X31: 0
E32: 110 | F32: 0 | G32: 0 | H32: 0 | J32: 0 | K32: 0 | L32: 0 | N32: 0 | O32: 0 | P32: 0 | Q32: 0 | R32: 0 | T32: 0 | U32: 0 | V32: 0 | W32: 0 | X32: 0
E33: 120 | F33: 0 | G33: 0 | H33: 0 | J33: 0 | K33: 0 | L33: 0 | N33: 0 | O33: 0 | P33: 0 | Q33: 0 | R33: 0 | T33: 0 | U33: 0 | V33: 0 | W33: 0 | X33: 0
E34: 130 | F34: 0 | G34: 0 | H34: 0 | J34: 0 | K34: 0 | L34: 0 | N34: 0 | O34: 0 | P34: 0 | Q34: 0 | R34: 0 | T34: 0 | U34: 0 | V34: 0 | W34: 0 | X34: 0
E35: 140 | F35: 0 | G35: 0 | H35: 0 | J35: 0 | K35: 0 | L35: 0 | N35: 0 | O35: 0 | P35: 0 | Q35: 0 | R35: 0 | T35: 0 | U35: 0 | V35: 0 | W35: 0 | X35: 0
E36: 150 | F36: 0 | G36: 0 | H36: 0 | J36: 0 | K36: 0 | L36: 0 | N36: 0 | O36: 0 | P36: 0 | Q36: 0 | R36: 0 | T36: 0 | U36: 0 | V36: 0 | W36: 0 | X36: 0
E37: 160 | F37: 0 | G37: 0 | H37: 0 | J37: 0 | K37: 0 | L37: 0 | N37: 0 | O37: 0 | P37: 0 | Q37: 0 | R37: 0 | T37: 0 | U37: 0 | V37: 0 | W37: 0 | X37: 0
E38: S | F38: 0 | G38: 0 | H38: 0 | J38: 0 | K38: 0 | L38: 0 | N38: 0 | O38: 0 | P38: 0 | Q38: 0 | R38: 0 | T38: 0 | U38: 0 | V38: 0 | W38: 0 | X38: 0
E39: M | F39: 0 | G39: 0 | H39: 0 | J39: 0 | K39: 0 | L39: 0 | N39: 0 | O39: 0 | P39: 0 | Q39: 0 | R39: 0 | T39: 0 | U39: 0 | V39: 0 | W39: 0 | X39: 0
E40: L | F40: 0 | G40: 0 | H40: 0 | J40: 0 | K40: 0 | L40: 0 | N40: 0 | O40: 0 | P40: 0 | Q40: 0 | R40: 0 | T40: 0 | U40: 0 | V40: 0 | W40: 0 | X40: 0
E41: XL | F41: 0 | G41: 0 | H41: 0 | J41: 0 | K41: 0 | L41: 0 | N41: 0 | O41: 0 | P41: 0 | Q41: 0 | R41: 0 | T41: 0 | U41: 0 | V41: 0 | W41: 0 | X41: 0
E42: 3L | F42: 0 | G42: 0 | H42: 0 | J42: 0 | K42: 0 | L42: 0 | N42: 0 | O42: 0 | P42: 0 | Q42: 0 | R42: 0 | T42: 0 | U42: 0 | V42: 0 | W42: 0 | X42: 0
E43: 4L | F43: 0 | G43: 0 | H43: 0 | J43: 0 | K43: 0 | L43: 0 | N43: 0 | O43: 0 | P43: 0 | Q43: 0 | R43: 0 | T43: 0 | U43: 0 | V43: 0 | W43: 0 | X43: 0
E44: 5L | F44: 0 | G44: 0 | H44: 0 | J44: 0 | K44: 0 | L44: 0 | N44: 0 | O44: 0 | P44: 0 | Q44: 0 | R44: 0 | T44: 0 | U44: 0 | V44: 0 | W44: 0 | X44: 0
E45: 19x21 | I45: =COUNTIF(I$10:I$29,$E45) -> 0 | M45: =COUNTIF(M$10:M$29,$E45) -> 0 | S45: =COUNTIF(S$10:S$29,$E45) -> 0 | Y45: =COUNTIF(Y$10:Y$29,$E45) -> 0
E46: 22x24 | I46: =COUNTIF(I$10:I$29,$E46) -> 0 | M46: =COUNTIF(M$10:M$29,$E46) -> 0 | S46: =COUNTIF(S$10:S$29,$E46) -> 0 | Y46: =COUNTIF(Y$10:Y$29,$E46) -> 0
E47: 25x27 | I47: =COUNTIF(I$10:I$29,$E47) -> 0 | M47: =COUNTIF(M$10:M$29,$E47) -> 0 | S47: =COUNTIF(S$10:S$29,$E47) -> 0 | Y47: =COUNTIF(Y$10:Y$29,$E47) -> 0
E48: 27x29 | I48: =COUNTIF(I$10:I$29,$E48) -> 0 | M48: =COUNTIF(M$10:M$29,$E48) -> 0 | S48: =COUNTIF(S$10:S$29,$E48) -> 0 | Y48: =COUNTIF(Y$10:Y$29,$E48) -> 0
B49: マーキング | E49: 個人名有無 | F49: 個人名【有】 | G49: 個人名【有】 | H49: 個人名【有】 | J49: 個人名【有】 | K49: 個人名【有】 | L49: 個人名【無】 | N49: 個人名【有】 | O49: 個人名【有】 | P49: 個人名【無】 | Q49: 個人名【無】 | R49: 個人名【無】 | T49: 個人名【有】 | U49: 個人名【有】 | V49: 個人名【無】 | W49: 個人名【無】 | X49: 個人名【無】
E50: マーキング数 | F50: =IF(F49="個人名【有】",COUNTIFS($D$10:$D$29,"<>",F$10:F$29,"<>"),0) -> 0 | G50: =IF(G49="個人名【有】",COUNTIFS($D$10:$D$29,"<>",G$10:G$29,"<>"),0) -> 0 | H50: 0 | J50: =IF(J49="個人名【有】",COUNTIFS($D$10:$D$29,"<>",J$10:J$29,"<>"),0) -> 0 | K50: =IF(K49="個人名【有】",COUNTIFS($D$10:$D$29,"<>",K$10:K$29,"<>"),0) -> 0 | L50: =IF(L49="個人名【有】",COUNTIFS($D$10:$D$29,"<>",L$10:L$29,"<>"),0) -> 0 | N50: =IF(N49="個人名【有】",COUNTIFS($D$10:$D$29,"<>",N$10:N$29,"<>"),0) -> 0 | O50: =IF(O49="個人名【有】",COUNTIFS($D$10:$D$29,"<>",O$10:O$29,"<>"),0) -> 0 | P50: =IF(P49="個人名【有】",COUNTIFS($D$10:$D$29,"<>",P$10:P$29,"<>"),0) -> 0 | Q50: =IF(Q49="個人名【有】",COUNTIFS($D$10:$D$29,"<>",Q$10:Q$29,"<>"),0) -> 0 | R50: =IF(R49="個人名【有】",COUNTIFS($D$10:$D$29,"<>",R$10:R$29,"<>"),0) -> 0 | T50: =IF(T49="個人名【有】",COUNTIFS($D$10:$D$29,"<>",T$10:T$29,"<>"),0) -> 0 | U50: =IF(U49="個人名【有】",COUNTIFS($D$10:$D$29,"<>",U$10:U$29,"<>"),0) -> 0 | V50: =IF(V49="個人名【有】",COUNTIFS($D$10:$D$29,"<>",V$10:V$29,"<>"),0) -> 0 | W50: =IF(W49="個人名【有】",COUNTIFS($D$10:$D$29,"<>",W$10:W$29,"<>"),0) -> 0 | X50: =IF(X49="個人名【有】",COUNTIFS($D$10:$D$29,"<>",X$10:X$29,"<>"),0) -> 0
B51: 代表商品コード | E51: =$J$67 -> ag-name1000 | F51: =$J$61 -> ag-c001 | G51: =$J$62 -> ag-c001L | H51: =$J$63 -> ag-c002 | I51: =$J$64 -> ag-st | J51: =$J$61 -> ag-c001 | K51: =$J$62 -> ag-c001L | L51: =$J$63 -> ag-c002 | M51: =$J$64 -> ag-st | N51: =$J$61 -> ag-c001 | O51: =$J$62 -> ag-c001L | P51: =$J$65 -> ag-c001LP | Q51: =$J$63 -> ag-c002 | R51: =$J$66 -> ag-c002P | S51: =$J$64 -> ag-st | T51: =$J$61 -> ag-c001 | U51: =$J$62 -> ag-c001L | V51: =$J$65 -> ag-c001LP | W51: =$J$63 -> ag-c002 | X51: =$J$66 -> ag-c002P | Y51: =$J$64 -> ag-st
B52: 追加商品コード(不要)
B53: 商 品 名 | E53: 個人名 マーキング | F53: =$G$61&"("&IF(COUNTIF($B$7,"*公式戦*"),"公式戦","") & $F$2&")" -> フルオーダー昇華シャツ半袖(FP-Home) | G53: =$G$62&"("&IF(COUNTIF($B$7,"*公式戦*"),"公式戦","") & $F$2&")" -> フルオーダー昇華シャツ長袖(FP-Home) | H53: =$G$63&"("&IF(COUNTIF($B$7,"*公式戦*"),"公式戦","") & $F$2&")" -> フルオーダー昇華パンツ(FP-Home) | I53: =$G$64&"("&IF(COUNTIF($B$7,"*公式戦*"),"公式戦","") & $F$2&")" -> フルオーダーソックス(FP-Home) | J53: =$G$61&"("&IF(COUNTIF($B$7,"*公式戦*"),"公式戦","") & $J$2&")" -> フルオーダー昇華シャツ半袖(FP-Away) | K53: =$G$62&"("&IF(COUNTIF($B$7,"*公式戦*"),"公式戦","") & $J$2&")" -> フルオーダー昇華シャツ長袖(FP-Away) | L53: =$G$63&"("&IF(COUNTIF($B$7,"*公式戦*"),"公式戦","") & $J$2&")" -> フルオーダー昇華パンツ(FP-Away) | M53: =$G$64&"("&IF(COUNTIF($B$7,"*公式戦*"),"公式戦","") & $J$2&")" -> フルオーダーソックス(FP-Away) | N53: =$G$61&"("&IF(COUNTIF($B$7,"*公式戦*"),"公式戦","") & $N$2&")" -> フルオーダー昇華シャツ半袖(GK-Home) | O53: =$G$62&"("&IF(COUNTIF($B$7,"*公式戦*"),"公式戦","") & $N$2&")" -> フルオーダー昇華シャツ長袖(GK-Home) | P53: =$G$65&"("&IF(COUNTIF($B$7,"*公式戦*"),"公式戦","") & $N$2&")" -> フルオーダー昇華シャツ長袖パッド付(GK-Home) | Q53: =$G$63&"("&IF(COUNTIF($B$7,"*公式戦*"),"公式戦","") & $N$2&")" -> フルオーダー昇華パンツ(GK-Home) | R53: =$G$66&"("&IF(COUNTIF($B$7,"*公式戦*"),"公式戦","") & $N$2&")" -> フルオーダー昇華パンツパッド付(GK-Home) | S53: =$G$64&"("&IF(COUNTIF($B$7,"*公式戦*"),"公式戦","") & $N$2&")" -> フルオーダーソックス(GK-Home) | T53: =$G$61&"("&IF(COUNTIF($B$7,"*公式戦*"),"公式戦","") & $T$2&")" -> フルオーダー昇華シャツ半袖(GK-Away) | U53: =$G$62&"("&IF(COUNTIF($B$7,"*公式戦*"),"公式戦","") & $T$2&")" -> フルオーダー昇華シャツ長袖(GK-Away) | V53: =$G$65&"("&IF(COUNTIF($B$7,"*公式戦*"),"公式戦","") & $T$2&")" -> フルオーダー昇華シャツ長袖パッド付(GK-Away) | W53: =$G$63&"("&IF(COUNTIF($B$7,"*公式戦*"),"公式戦","") & $T$2&")" -> フルオーダー昇華パンツ(GK-Away) | X53: =$G$66&"("&IF(COUNTIF($B$7,"*公式戦*"),"公式戦","") & $T$2&")" -> フルオーダー昇華パンツパッド付(GK-Away) | Y53: =$G$64&"("&IF(COUNTIF($B$7,"*公式戦*"),"公式戦","") & $T$2&")" -> フルオーダーソックス(GK-Away)
B54: 注 文 数 | E54: =SUM(F50:Y50) -> 0 | F54: =SUM(F31:F48) -> 0 | G54: =SUM(G31:G48) -> 0 | H54: 0 | I54: 0 | J54: 0 | K54: 0 | L54: 0 | M54: 0 | N54: 0 | O54: 0 | P54: 0 | Q54: 0 | R54: 0 | S54: 0 | T54: 0 | U54: 0 | V54: 0 | W54: 0 | X54: 0 | Y54: 0
B55: 定 価（税込） | E55: =$L$67 -> 1080 | F55: =$L$61 -> 11880 | G55: =$L$62 -> 13500 | H55: =$L$63 -> 7344 | I55: =$L$64 -> 1944 | J55: =$L$61 -> 11880 | K55: =$L$62 -> 13500 | L55: =$L$63 -> 7344 | M55: =$L$64 -> 1944 | N55: =$L$61 -> 11880 | O55: =$L$62 -> 13500 | P55: =$L$65 -> 12960 | Q55: =$L$63 -> 7344 | R55: =$L$66 -> 8424 | S55: =$L$64 -> 1944 | T55: =$L$61 -> 11880 | U55: =$L$62 -> 13500 | V55: =$L$65 -> 12960 | W55: =$L$63 -> 7344 | X55: =$L$66 -> 8424 | Y55: =$L$64 -> 1944
B56: 販売価格（税込） | E56: =$M$67 -> 1080 | F56: =$M$61 -> 11880 | G56: =$M$62 -> 13500 | H56: =$M$63 -> 7344 | I56: =$M$64 -> 1944 | J56: =$M$61 -> 11880 | K56: =$M$62 -> 13500 | L56: =$M$63 -> 7344 | M56: =$M$64 -> 1944 | N56: =$M$61 -> 11880 | O56: =$M$62 -> 13500 | P56: =$M$65 -> 12960 | Q56: =$M$63 -> 7344 | R56: =$M$66 -> 8424 | S56: =$M$64 -> 1944 | T56: =$M$61 -> 11880 | U56: =$M$62 -> 13500 | V56: =$M$65 -> 12960 | W56: =$M$63 -> 7344 | X56: =$M$66 -> 8424 | Y56: =$M$64 -> 1944
B57: 商品金額小計（税込） | E57: =E56*E54 -> 0 | F57: 0 | G57: 0 | H57: 0 | I57: 0 | J57: 0 | K57: 0 | L57: 0 | M57: 0 | N57: 0 | O57: 0 | P57: 0 | Q57: 0 | R57: 0 | S57: 0 | T57: 0 | U57: 0 | V57: 0 | W57: 0 | X57: 0 | Y57: 0
B59: ■ 簡易見積表 | G59: ■ 料金について（金額は税込定価です）
B60: 商 品 合 計 | D60: =SUM(F54:Y54) -> 0 | E60: =SUM(F57:Y57) -> 0 | G60: 商品名 | J60: 代表商品コード | L60: 定価(税込) | M60: 売価(税込) | N60: 掛率(X10%) | O60: 注文数
B61: マーキング代合計 | E61: =E57 -> 0 | G61: フルオーダー昇華シャツ半袖 | J61: ag-c001 | L61: 11880 | M61: =ROUND(L61*N61*0.1,0) -> 11880 | N61: 10 | O61: =SUMIF(F$51:Y$51,J61,F$54:Y$54) -> 0
B62: 送 料 | E62: =IF(AND((E61+E60)>0,(E61+E60)<10800),$L$72,0) -> 0 | G62: フルオーダー昇華シャツ長袖 | J62: ag-c001L | L62: 13500 | M62: =ROUND(L62*N62*0.1,0) -> 13500 | N62: =$N$61 -> 10 | O62: 0
B63: ― | E63: 0 | G63: フルオーダー昇華パンツ | J63: ag-c002 | L63: 7344 | M63: 7344 | N63: =$N$61 -> 10 | O63: 0
B64: 合計金額（税込） | E64: =SUM(E60:E63) -> 0 | G64: フルオーダーソックス | J64: ag-st | L64: 1944 | M64: 1944 | N64: 10 | O64: 0
B65: 税抜金額 | E65: =E63-E66 -> 0 | G65: フルオーダー昇華シャツ長袖パッド付 | J65: ag-c001LP | L65: 12960 | M65: 12960 | N65: 10 | O65: 0
B66: 0.08 | E66: =E63-ROUND(E63/(1+B66),0) -> 0 | G66: フルオーダー昇華パンツパッド付 | J66: ag-c002P | L66: 8424 | M66: 8424 | N66: 10 | O66: 0
G67: マーキング | H67: 個人名 | J67: ag-name1000 | L67: 1080 | M67: 1080 | N67: 10 | O67: =E54 -> 0
G68: マーキング | H68: 背/胸/パンツ番号 | J68: 無料サービス | L68: 0 | M68: 0 | N68: 10
G69: マーキング | H69: エンブレム | J69: 無料サービス | L69: 0 | M69: 0 | N69: 10
G70: マーキング | H70: チーム名 | J70: 無料サービス | L70: 0 | M70: 0 | N70: 10
B71: =IF(F30<>"","ご注意","") ->  | G71: マーキング | H71: スポンサーバナー | J71: 無料サービス | L71: 0 | M71: 0 | N71: 10
B72: =IF(F30<>"",F30,"") ->  | G72: 送料（税込10,800円以上で送料無料） | L72: 540

Sheet 練習着 (hidden)
A2: お客様記入→ | B2: agrina 昇華練習着 注文書 | E2: 種 別 | F2: FP用 | I2: GK用 | L2: MG用 | O2: コーチ用 | R2: メモ欄
E3: 画 像
B4: =IF(ご注文者様チーム名="","「メインメニュー」のご注文者様情報をご記入ください。",ご注文者様チーム名) -> 「メインメニュー」のご注文者様情報をご記入ください。 | E4: 名 称 | F4: 半袖シャツ | G4: パンツ | H4: ソックス | I4: 半袖シャツ | J4: パンツ | K4: ソックス | L4: 半袖シャツ | M4: パンツ | N4: ソックス | O4: 半袖 シャツ | P4: パンツ | Q4: ソックス | R4: ３Dシミュレーターの「デザインを保存 する」ボタンをクリックして表示される ☜「デザインURL」を貼り付けて下さい。
A5: 非表示 | E5: 商品コード | F5: =IF(F52>0,IF(F50="","追加商品コード未記入",F49&F50),"") -> 
A6: ➡ | E6: デザイン URL | F6: 入力してください | I6: 入力してください | L6: 入力してください | O6: 入力してください
B7: # | C7: 注文者氏名 | D7: ="マーキング名" -> マーキング名 | E7: 背番号 | F7: サイズ | I7: サイズ | L7: サイズ | O7: サイズ | R7: 個人別価格 | S7: 備考(お客様使用)
B8: 例 | C8: 加藤貴行 | D8: T.KATO | E8: 10 | F8: M | G8: M | H8: 25x27 | I8: M | J8: M | K8: 25x27 | L8: M | M8: M | N8: 25x27 | O8: M | P8: M | Q8: 25x27
A9: ➡ | B9: 1 | R9: =SUMIF(F9:Q9,"<>",$F$54:$Q$54)+IF($D9<>"",COUNTIFS(F9:Q9,"<>",$F$48:$Q$48,">0")*$M$62,0) -> 0
B10: 2 | R10: =SUMIF(F10:Q10,"<>",$F$54:$Q$54)+IF($D10<>"",COUNTIFS(F10:Q10,"<>",$F$48:$Q$48,">0")*$M$62,0) -> 0
B11: 3 | R11: 0
B12: 4 | R12: 0
B13: 5 | R13: 0
B14: 6 | R14: 0
B15: 7 | R15: 0
B16: 8 | R16: 0
B17: 9 | R17: 0
B18: 10 | R18: 0
B19: 11 | R19: 0
B20: 12 | R20: 0
B21: 13 | R21: 0
B22: 14 | R22: 0
B23: 15 | R23: 0
B24: 16 | R24: 0
B25: 17 | R25: 0
B26: 18 | R26: 0
B27: 19 | R27: 0
B28: 20 | R28: 0
F29: =IF(AND((H52+K52+N52+Q52)>0,(H52+K52+N52+Q52)<5)," ※ソックスは5点以上でご注文をお願いいたします。"&"（最低注文数まであと"& 5-(H52+K52+N52+Q52) & "点）","") ->  | R29: =IF(E60>0,"※ 個人別価格に送料は含まれていません。","") -> 
B30: 注 文 集 計 | E30: 100 | F30: =COUNTIF(F$9:F$28,$E30) -> 0 | G30: 0 | I30: =COUNTIF(I$9:I$28,$E30) -> 0 | J30: 0 | L30: =COUNTIF(L$9:L$28,$E30) -> 0 | M30: 0 | O30: =COUNTIF(O$9:O$28,$E30) -> 0 | P30: 0
E31: 110 | F31: 0 | G31: 0 | I31: 0 | J31: 0 | L31: 0 | M31: 0 | O31: 0 | P31: 0
E32: 120 | F32: 0 | G32: 0 | I32: 0 | J32: 0 | L32: 0 | M32: 0 | O32: 0 | P32: 0
E33: 130 | F33: 0 | G33: 0 | I33: 0 | J33: 0 | L33: 0 | M33: 0 | O33: 0 | P33: 0
E34: 140 | F34: 0 | G34: 0 | I34: 0 | J34: 0 | L34: 0 | M34: 0 | O34: 0 | P34: 0
E35: 150 | F35: 0 | G35: 0 | I35: 0 | J35: 0 | L35: 0 | M35: 0 | O35: 0 | P35: 0
E36: 160 | F36: 0 | G36: 0 | I36: 0 | J36: 0 | L36: 0 | M36: 0 | O36: 0 | P36: 0
E37: S | F37: 0 | G37: 0 | I37: 0 | J37: 0 | L37: 0 | M37: 0 | O37: 0 | P37: 0
E38: M | F38: 0 | G38: 0 | I38: 0 | J38: 0 | L38: 0 | M38: 0 | O38: 0 | P38: 0
E39: L | F39: 0 | G39: 0 | I39: 0 | J39: 0 | L39: 0 | M39: 0 | O39: 0 | P39: 0
E40: XL | F40: 0 | G40: 0 | I40: 0 | J40: 0 | L40: 0 | M40: 0 | O40: 0 | P40: 0
E41: 3L | F41: 0 | G41: 0 | I41: 0 | J41: 0 | L41: 0 | M41: 0 | O41: 0 | P41: 0
E42: 4L | F42: 0 | G42: 0 | I42: 0 | J42: 0 | L42: 0 | M42: 0 | O42: 0 | P42: 0
E43: 5L | F43: 0 | G43: 0 | I43: 0 | J43: 0 | L43: 0 | M43: 0 | O43: 0 | P43: 0
E44: 19x21 | H44: =COUNTIF(H$9:H$28,$E44) -> 0 | K44: =COUNTIF(K$9:K$28,$E44) -> 0 | N44: =COUNTIF(N$9:N$28,$E44) -> 0 | Q44: =COUNTIF(Q$9:Q$28,$E44) -> 0
E45: 22x24 | H45: =COUNTIF(H$9:H$28,$E45) -> 0 | K45: =COUNTIF(K$9:K$28,$E45) -> 0 | N45: =COUNTIF(N$9:N$28,$E45) -> 0 | Q45: =COUNTIF(Q$9:Q$28,$E45) -> 0
E46: 25x27 | H46: =COUNTIF(H$9:H$28,$E46) -> 0 | K46: =COUNTIF(K$9:K$28,$E46) -> 0 | N46: =COUNTIF(N$9:N$28,$E46) -> 0 | Q46: =COUNTIF(Q$9:Q$28,$E46) -> 0
E47: 27x29 | H47: =COUNTIF(H$9:H$28,$E47) -> 0 | K47: =COUNTIF(K$9:K$28,$E47) -> 0 | N47: =COUNTIF(N$9:N$28,$E47) -> 0 | Q47: =COUNTIF(Q$9:Q$28,$E47) -> 0
B48: マーキング | E48: 個人名 | F48: =COUNTIFS($D$9:$D$28,"<>",F$9:F$28,"<>") -> 0 | I48: =COUNTIFS($D$9:$D$28,"<>",I$9:I$28,"<>") -> 0 | L48: =COUNTIFS($D$9:$D$28,"<>",L$9:L$28,"<>") -> 0 | O48: =COUNTIFS($D$9:$D$28,"<>",O$9:O$28,"<>") -> 0
B49: 代表商品コード | E49: =$J$62 -> ag-name1000 | F49: =$J$59 -> ag-bs | G49: =$J$60 -> ag-bp | H49: =$J$61 -> ag-st | I49: =$J$59 -> ag-bs | J49: =$J$60 -> ag-bp | K49: =$J$61 -> ag-st | L49: =$J$59 -> ag-bs | M49: =$J$60 -> ag-bp | N49: =$J$61 -> ag-st | O49: =$J$59 -> ag-bs | P49: =$J$60 -> ag-bp | Q49: =$J$61 -> ag-st
B50: 追加商品コード
B51: 商 品 名 | E51: 個人名 ﾏｰｷﾝｸﾞ | F51: =$G$59&"("&F2&")" -> セミオーダー昇華練習着シャツ半袖(FP用) | G51: =$G$60&"("&F2&")" -> セミオーダー昇華練習着パンツ(FP用) | H51: =$G$61&"("&F2&")" -> セミオーダーソックス(FP用) | I51: =$G$59&"("&I2&")" -> セミオーダー昇華練習着シャツ半袖(GK用) | J51: =$G$60&"("&I2&")" -> セミオーダー昇華練習着パンツ(GK用) | K51: =$G$61&"("&I2&")" -> セミオーダーソックス(GK用) | L51: =$G$59&"("&L2&")" -> セミオーダー昇華練習着シャツ半袖(MG用) | M51: =$G$60&"("&L2&")" -> セミオーダー昇華練習着パンツ(MG用) | N51: =$G$61&"("&L2&")" -> セミオーダーソックス(MG用) | O51: =$G$59&"("&O2&")" -> セミオーダー昇華練習着シャツ半袖(コーチ用) | P51: =$G$60&"("&O2&")" -> セミオーダー昇華練習着パンツ(コーチ用) | Q51: =$G$61&"("&O2&")" -> セミオーダーソックス(コーチ用)
B52: 注 文 数 | E52: =SUM(F48:Q48) -> 0 | F52: =SUM(F30:F47) -> 0 | G52: 0 | H52: 0 | I52: 0 | J52: 0 | K52: 0 | L52: 0 | M52: 0 | N52: 0 | O52: 0 | P52: 0 | Q52: 0
B53: 定 価（税込） | E53: =$L$62 -> 1080 | F53: =$L$59 -> 5292 | G53: =$L$60 -> 4860 | H53: =$L$61 -> 1944 | I53: =$L$59 -> 5292 | J53: =$L$60 -> 4860 | K53: =$L$61 -> 1944 | L53: =$L$59 -> 5292 | M53: =$L$60 -> 4860 | N53: =$L$61 -> 1944 | O53: =$L$59 -> 5292 | P53: =$L$60 -> 4860 | Q53: =$L$61 -> 1944
B54: 販売価格（税込） | E54: =$M$62 -> 1080 | F54: =$M$59 -> 5292 | G54: =$M$60 -> 4860 | H54: =$M$61 -> 1944 | I54: =$M$59 -> 5292 | J54: =$M$60 -> 4860 | K54: =$M$61 -> 1944 | L54: =$M$59 -> 5292 | M54: =$M$60 -> 4860 | N54: =$M$61 -> 1944 | O54: =$M$59 -> 5292 | P54: =$M$60 -> 4860 | Q54: =$M$61 -> 1944
B55: 商品金額小計（税込） | E55: =E54*E52 -> 0 | F55: 0 | G55: 0 | H55: 0 | I55: 0 | J55: 0 | K55: 0 | L55: 0 | M55: 0 | N55: 0 | O55: 0 | P55: 0 | Q55: 0
B57: ■ 簡易見積表 | G57: ■ 料金について（金額は税込定価です）
B58: 商 品 合 計 | D58: =SUM(F52:Q52) -> 0 | E58: =SUM(F55:Q55) -> 0 | G58: 商品名 | J58: 代表商品コード | L58: 定価(税込) | M58: 売価(税込) | N58: 掛率(X10%) | O58: 注文数
B59: マーキング代合計 | E59: =E55 -> 0 | G59: セミオーダー昇華練習着シャツ半袖 | J59: ag-bs | L59: 5292 | M59: =ROUND(L59*N59*0.1,0) -> 5292 | N59: 10 | O59: =SUMIF(F$49:Q$49,J59,F$52:Q$52) -> 0
B60: 送 料 | E60: =IF(AND((E59+E58)>0,(E59+E58)<10800),$L$67,0) -> 0 | G60: セミオーダー昇華練習着パンツ | J60: ag-bp | L60: 4860 | M60: =ROUND(L60*N60*0.1,0) -> 4860 | N60: =$N$59 -> 10 | O60: =SUMIF(F$49:Q$49,J60,F$52:Q$52) -> 0
B61: ― | E61: 0 | G61: セミオーダーソックス | J61: ag-st | L61: 1944 | M61: 1944 | N61: 10 | O61: =SUMIF(F$49:Q$49,J61,F$52:Q$52) -> 0
B62: 合計金額（税込） | E62: =SUM(E58:E61) -> 0 | G62: マーキング | H62: 個人名 | J62: ag-name1000 | L62: 1080 | M62: 1080 | N62: 10 | O62: =E52 -> 0
B63: 税抜金額 | E63: =E61-E64 -> 0 | G63: マーキング | H63: 胸/パンツ番号 | J63: 無料サービス | L63: 0 | M63: 0 | N63: 10
B64: 0.08 | E64: =E61-ROUND(E61/(1+B64),0) -> 0 | G64: マーキング | H64: エンブレム | J64: 無料サービス | L64: 0 | M64: 0 | N64: 10
G65: マーキング | H65: チーム名 | J65: 無料サービス | L65: 0 | M65: 0 | N65: 10
G66: マーキング | H66: スポンサーバナー | J66: 無料サービス | L66: 0 | M66: 0 | N66: 10
G67: 送料（税込10,800円以上で送料無料） | L67: 540
B68: =IF(F29<>"","ご注意","") -> 
B69: =IF(F29<>"",F29,"") -> 

Sheet ジャージ (hidden)
A2: お客様記入→ | B2: agrina ジャージ注文書 | E2: 種 別 | F2: カラー１ | I2: カラー２ | L2: カラー３ | O2: カラー４ | R2: メモ欄
E3: 画 像
B4: =IF(ご注文者様チーム名="","「メインメニュー」のご注文者様情報をご記入ください。",ご注文者様チーム名) -> 「メインメニュー」のご注文者様情報をご記入ください。 | E4: 名 称 | F4: ジャージ トップ | G4: ジャージ パンツ | H4: ハーフ パンツ | I4: ジャージ トップ | J4: ジャージ パンツ | K4: ハーフ パンツ | L4: ジャージ トップ | M4: ジャージ パンツ | N4: ハーフ パンツ | O4: ジャージ トップ | P4: ジャージ パンツ | Q4: ハーフ パンツ | R4: ３Dシミュレーターの「デザインを保存 する」ボタンをクリックして表示される ☜「デザインURL」を貼り付けて下さい。
A5: 非表示 | E5: 商品コード | F5: =IF(F50>0,IF(F48="","追加商品コード未記入",F47&F48),"") ->  | G5: =IF(G50>0,IF(G48="","追加商品コード未記入",G47&G48),"") ->  | I5: =IF(I50>0,IF(I48="","追加商品コード未記入",I47&I48),"") ->  | L5: =IF(L50>0,IF(L48="","追加商品コード未記入",L47&L48),"") ->  | O5: =IF(O50>0,IF(O48="","追加商品コード未記入",O47&O48),"") -> 
A6: ➡ | E6: シルエット | F6: シルエットを選択 | I6: シルエットを選択 | L6: シルエットを選択 | O6: シルエットを選択
A7: ➡ | E7: デザイン URL | F7: 入力してください | I7: 入力してください | L7: 入力してください | O7: 入力してください
B8: # | C8: 注文者氏名 | D8: ="マーキング名" -> マーキング名 | E8: 背番号 | F8: サイズ | I8: サイズ | L8: サイズ | O8: サイズ | R8: 個人別価格 | S8: 備考(お客様使用)
B9: 例 | C9: 加藤貴行 | D9: T.KATO | E9: 10 | F9: M | G9: L | H9: M | I9: M | J9: L | K9: M
A10: ➡ | B10: 1 | R10: =SUMIF(F10:Q10,"<>",$F$52:$Q$52)+IF($D10<>"",COUNTIFS(F10:Q10,"<>",$F$46:$Q$46,">0")*$M$63,0) -> 0
B11: 2 | R11: =SUMIF(F11:Q11,"<>",$F$52:$Q$52)+IF($D11<>"",COUNTIFS(F11:Q11,"<>",$F$46:$Q$46,">0")*$M$63,0) -> 0
B12: 3 | R12: 0
B13: 4 | R13: 0
B14: 5 | R14: 0
B15: 6 | R15: 0
B16: 7 | R16: 0
B17: 8 | R17: 0
B18: 9 | R18: 0
B19: 10 | R19: 0
B20: 11 | R20: 0
B21: 12 | R21: 0
B22: 13 | R22: 0
B23: 14 | R23: 0
B24: 15 | R24: 0
B25: 16 | R25: 0
B26: 17 | R26: 0
B27: 18 | R27: 0
B28: 19 | R28: 0
B29: 20 | R29: 0
F30: =IF(COUNTIF(F54:Q54,"?*")>0," ※シルエットを選択して下さい。","") ->  | R30: =IF(E58>0,"※ 個人別価格に送料は含まれていません。","") -> 
B31: 注 文 集 計 | E31: 100 | F31: =COUNTIF(F$10:F$29,$E31) -> 0 | G31: 0 | H31: 0 | I31: 0 | J31: 0 | K31: 0 | L31: 0 | M31: 0 | N31: 0 | O31: 0 | P31: 0 | Q31: 0
E32: 110 | F32: 0 | G32: 0 | H32: 0 | I32: 0 | J32: 0 | K32: 0 | L32: 0 | M32: 0 | N32: 0 | O32: 0 | P32: 0 | Q32: 0
E33: 120 | F33: 0 | G33: 0 | H33: 0 | I33: 0 | J33: 0 | K33: 0 | L33: 0 | M33: 0 | N33: 0 | O33: 0 | P33: 0 | Q33: 0
E34: 130 | F34: 0 | G34: 0 | H34: 0 | I34: 0 | J34: 0 | K34: 0 | L34: 0 | M34: 0 | N34: 0 | O34: 0 | P34: 0 | Q34: 0
E35: 140 | F35: 0 | G35: 0 | H35: 0 | I35: 0 | J35: 0 | K35: 0 | L35: 0 | M35: 0 | N35: 0 | O35: 0 | P35: 0 | Q35: 0
E36: 150 | F36: 0 | G36: 0 | H36: 0 | I36: 0 | J36: 0 | K36: 0 | L36: 0 | M36: 0 | N36: 0 | O36: 0 | P36: 0 | Q36: 0
E37: 160 | F37: 0 | G37: 0 | H37: 0 | I37: 0 | J37: 0 | K37: 0 | L37: 0 | M37: 0 | N37: 0 | O37: 0 | P37: 0 | Q37: 0
E38: S | F38: 0 | G38: 0 | H38: 0 | I38: 0 | J38: 0 | K38: 0 | L38: 0 | M38: 0 | N38: 0 | O38: 0 | P38: 0 | Q38: 0
E39: M | F39: 0 | G39: 0 | H39: 0 | I39: 0 | J39: 0 | K39: 0 | L39: 0 | M39: 0 | N39: 0 | O39: 0 | P39: 0 | Q39: 0
E40: L | F40: 0 | G40: 0 | H40: 0 | I40: 0 | J40: 0 | K40: 0 | L40: 0 | M40: 0 | N40: 0 | O40: 0 | P40: 0 | Q40: 0
E41: XL | F41: 0 | G41: 0 | H41: 0 | I41: 0 | J41: 0 | K41: 0 | L41: 0 | M41: 0 | N41: 0 | O41: 0 | P41: 0 | Q41: 0
E42: 3L | F42: 0 | G42: 0 | H42: 0 | I42: 0 | J42: 0 | K42: 0 | L42: 0 | M42: 0 | N42: 0 | O42: 0 | P42: 0 | Q42: 0
E43: 4L | F43: 0 | G43: 0 | H43: 0 | I43: 0 | J43: 0 | K43: 0 | L43: 0 | M43: 0 | N43: 0 | O43: 0 | P43: 0 | Q43: 0
E44: 5L | F44: 0 | G44: 0 | H44: 0 | I44: 0 | J44: 0 | K44: 0 | L44: 0 | M44: 0 | N44: 0 | O44: 0 | P44: 0 | Q44: 0
B45: マーキング | E45: 個人名有無 | F45: 個人名【有】 | G45: 個人名【無】 | H45: 個人名【無】 | I45: 個人名【有】 | J45: 個人名【無】 | K45: 個人名【無】 | L45: 個人名【有】 | M45: 個人名【無】 | N45: 個人名【無】 | O45: 個人名【有】 | P45: 個人名【無】 | Q45: 個人名【無】
E46: マーキング数 | F46: =IF(F45="個人名【有】",COUNTIFS($D$10:$D$29,"<>",F$10:F$29,"<>"),0) -> 0 | G46: =IF(G45="個人名【有】",COUNTIFS($D$10:$D$29,"<>",G$10:G$29,"<>"),0) -> 0 | H46: =IF(H45="個人名【有】",COUNTIFS($D$10:$D$29,"<>",H$10:H$29,"<>"),0) -> 0 | I46: =IF(I45="個人名【有】",COUNTIFS($D$10:$D$29,"<>",I$10:I$29,"<>"),0) -> 0 | J46: =IF(J45="個人名【有】",COUNTIFS($D$10:$D$29,"<>",J$10:J$29,"<>"),0) -> 0 | K46: =IF(K45="個人名【有】",COUNTIFS($D$10:$D$29,"<>",K$10:K$29,"<>"),0) -> 0 | L46: =IF(L45="個人名【有】",COUNTIFS($D$10:$D$29,"<>",L$10:L$29,"<>"),0) -> 0 | M46: =IF(M45="個人名【有】",COUNTIFS($D$10:$D$29,"<>",M$10:M$29,"<>"),0) -> 0 | N46: =IF(N45="個人名【有】",COUNTIFS($D$10:$D$29,"<>",N$10:N$29,"<>"),0) -> 0 | O46: =IF(O45="個人名【有】",COUNTIFS($D$10:$D$29,"<>",O$10:O$29,"<>"),0) -> 0 | P46: =IF(P45="個人名【有】",COUNTIFS($D$10:$D$29,"<>",P$10:P$29,"<>"),0) -> 0 | Q46: =IF(Q45="個人名【有】",COUNTIFS($D$10:$D$29,"<>",Q$10:Q$29,"<>"),0) -> 0
B47: 代表商品コード | E47: =$J$63 -> ag-name1000 | F47: =IF($F$6="ノーマル",$J$57, IF($F$6="スリム",$J$60, "")) ->  | G47: =IF($F$6="ノーマル",$J$58, IF($F$6="スリム",$J$61, "")) ->  | H47: =IF($F$6="ノーマル",$J$59, IF($F$6="スリム",$J$62, "")) ->  | I47: =IF($I$6="ノーマル",$J$57, IF($I$6="スリム",$J$60, "")) ->  | J47: =IF($I$6="ノーマル",$J$57, IF($I$6="スリム",$J$60, "")) ->  | K47: =IF($I$6="ノーマル",$J$57, IF($I$6="スリム",$J$60, "")) ->  | L47: =IF($L$6="ノーマル",$J$57, IF($L$6="スリム",$J$60, "")) ->  | M47: =IF($L$6="ノーマル",$J$58, IF($L$6="スリム",$J$61, "")) ->  | N47: =IF($L$6="ノーマル",$J$59, IF($L$6="スリム",$J$62, "")) ->  | O47: =IF($O$6="ノーマル",$J$57, IF($O$6="スリム",$J$60, "")) ->  | P47: =IF($O$6="ノーマル",$J$58, IF($O$6="スリム",$J$61, "")) ->  | Q47: =IF($O$6="ノーマル",$J$59, IF($O$6="スリム",$J$62, "")) -> 
B48: 追加商品コード | O48: 02 | P48: 02 | Q48: 02
B49: 商 品 名 | E49: 個人名 ﾏｰｷﾝｸﾞ | F49: =IF(F6="ノーマル",$G$57&"("&F2&")", IF(F6="スリム",$G$60&"("&F2&")", "")) ->  | G49: =IF(F6="ノーマル",$G$58&"("&F2&")", IF(F6="スリム",$G$61&"("&F2&")", "")) ->  | H49: =IF(F6="ノーマル",$G$59&"("&F2&")", IF(F6="スリム",$G$62&"("&F2&")", "")) ->  | I49: =IF(I6="ノーマル",$G$57&"("&I2&")", IF(I6="スリム",$G$60&"("&I2&")", "")) ->  | J49: =IF(I6="ノーマル",$G$58&"("&I2&")", IF(I6="スリム",$G$61&"("&I2&")", "")) ->  | K49: =IF(I6="ノーマル",$G$59&"("&I2&")", IF(I6="スリム",$G$62&"("&I2&")", "")) ->  | L49: =IF(L6="ノーマル",$G$57&"("&L2&")", IF(L6="スリム",$G$60&"("&L2&")", "")) ->  | M49: =IF(L6="ノーマル",$G$58&"("&L2&")", IF(L6="スリム",$G$61&"("&L2&")", "")) ->  | N49: =IF(L6="ノーマル",$G$59&"("&L2&")", IF(L6="スリム",$G$62&"("&L2&")", "")) ->  | O49: =IF(O6="ノーマル",$G$57&"("&O2&")", IF(O6="スリム",$G$60&"("&O2&")", "")) ->  | P49: =IF(O6="ノーマル",$G$58&"("&O2&")", IF(O6="スリム",$G$61&"("&O2&")", "")) ->  | Q49: =IF(O6="ノーマル",$G$59&"("&O2&")", IF(O6="スリム",$G$62&"("&O2&")", "")) -> 
B50: 注 文 数 | E50: =SUM(F46:Q46) -> 0 | F50: =SUM(F31:F44) -> 0 | G50: 0 | H50: 0 | I50: 0 | J50: 0 | K50: 0 | L50: 0 | M50: 0 | N50: 0 | O50: 0 | P50: 0 | Q50: 0
B51: 定 価（税込） | E51: =$L$63 -> 1080 | F51: =IF($F$6="ノーマル",$L$57, IF($F$6="スリム",$L$60, 0)) -> 0 | G51: =IF($F$6="ノーマル",$L$58, IF($F$6="スリム",$L$61, 0)) -> 0 | H51: =IF($F$6="ノーマル",$L$59, IF($F$6="スリム",$L$62, 0)) -> 0 | I51: =IF($I$6="ノーマル",$L$57, IF($I$6="スリム",$L$60, 0)) -> 0 | J51: =IF($I$6="ノーマル",$L$58, IF($I$6="スリム",$L$61, 0)) -> 0 | K51: =IF($I$6="ノーマル",$L$59, IF($I$6="スリム",$L$62, 0)) -> 0 | L51: =IF($L$6="ノーマル",$L$57, IF($L$6="スリム",$L$60, 0)) -> 0 | M51: =IF($L$6="ノーマル",$L$58, IF($L$6="スリム",$L$61, 0)) -> 0 | N51: =IF($L$6="ノーマル",$L$59, IF($L$6="スリム",$L$62, 0)) -> 0 | O51: =IF($O$6="ノーマル",$L$57, IF($O$6="スリム",$L$60, 0)) -> 0 | P51: =IF($O$6="ノーマル",$L$58, IF($O$6="スリム",$L$61, 0)) -> 0 | Q51: =IF($O$6="ノーマル",$L$59, IF($O$6="スリム",$L$62, 0)) -> 0
B52: 販売価格（税込） | E52: =IF(SUM(F50:Q50)=0,0,$M$63) -> 0 | F52: =IF($F$6="ノーマル",$M$57, IF($F$6="スリム",$M$60, 0)) -> 0 | G52: =IF($F$6="ノーマル",$M$58, IF($F$6="スリム",$M$61, 0)) -> 0 | H52: =IF($F$6="ノーマル",$M$59, IF($F$6="スリム",$M$62, 0)) -> 0 | I52: =IF($I$6="ノーマル",$M$57, IF($I$6="スリム",$M$60, 0)) -> 0 | J52: =IF($I$6="ノーマル",$M$58, IF($I$6="スリム",$M$61, 0)) -> 0 | K52: =IF($I$6="ノーマル",$M$59, IF($I$6="スリム",$M$62, 0)) -> 0 | L52: =IF($L$6="ノーマル",$M$57, IF($L$6="スリム",$M$60, 0)) -> 0 | M52: =IF($L$6="ノーマル",$M$58, IF($L$6="スリム",$M$61, 0)) -> 0 | N52: =IF($L$6="ノーマル",$M$59, IF($L$6="スリム",$M$62, 0)) -> 0 | O52: =IF($O$6="ノーマル",$M$57, IF($O$6="スリム",$M$60, 0)) -> 0 | P52: =IF($O$6="ノーマル",$M$58, IF($O$6="スリム",$M$61, 0)) -> 0 | Q52: =IF($O$6="ノーマル",$M$59, IF($O$6="スリム",$M$62, 0)) -> 0
B53: 商品金額小計（税込） | E53: =E52*E50 -> 0 | F53: 0 | G53: 0 | H53: 0 | I53: 0 | J53: 0 | K53: 0 | L53: 0 | M53: 0 | N53: 0 | O53: 0 | P53: 0 | Q53: 0
F54: =IF(AND(F47="",F50>0),"↑注文エラー","") ->  | G54: =IF(AND(G47="",G50>0),"↑注文エラー","") -> 
B55: ■ 簡易見積表 | G55: ■ 料金について（金額は税込定価です）
B56: 商 品 合 計 | D56: =SUM(F50:Q50) -> 0 | E56: =SUM(F53:Q53) -> 0 | G56: 商品名 | J56: 代表商品コード | L56: 定価(税込) | M56: 売価(税込) | N56: 掛率(X10%) | O56: 注文数
B57: マーキング代合計 | E57: =E53 -> 0 | G57: セミオーダー昇華ジャージトップノーマル | J57: ag-jt | L57: 9720 | M57: =ROUND(L57*N57*0.1,0) -> 9720 | N57: 10 | O57: =SUMIF(F$47:Q$47,J57,F$50:Q$50) -> 0
B58: 送 料 | E58: =IF(AND((E57+E56)>0,(E57+E56)<10800),$L$68,0) -> 0 | G58: セミオーダー昇華ジャージパンツノーマル | J58: ag-jp | L58: 9720 | M58: =ROUND(L58*N58*0.1,0) -> 9720 | N58: =$N$57 -> 10 | O58: 0
B59: ― | E59: 0 | G59: セミオーダー昇華ジャージハーフパンツノーマル | J59: ag-jh | L59: 8640 | M59: =ROUND(L59*N59*0.1,0) -> 8640 | N59: 10 | O59: 0
B60: 合計金額（税込） | E60: =SUM(E56:E59) -> 0 | G60: セミオーダー昇華ジャージトップスリム | J60: ag-jtns | L60: 9720 | M60: =ROUND(L60*N60*0.1,0) -> 9720 | N60: 10 | O60: 0
B61: 税抜金額 | E61: =E59-E62 -> 0 | G61: セミオーダー昇華ジャージパンツスリム | J61: ag-jpns | L61: 9720 | M61: =ROUND(L61*N61*0.1,0) -> 9720 | N61: 10 | O61: 0
B62: 0.08 | E62: =E59-ROUND(E59/(1+B62),0) -> 0 | G62: セミオーダー昇華ジャージハーフパンツスリム | J62: ag-jhns | L62: 8640 | M62: 8640 | N62: 10 | O62: 0
G63: マーキング | H63: 個人名 | J63: ag-name1000 | L63: 1080 | M63: 1080 | N63: 10 | O63: =E50 -> 0
G64: マーキング | H64: 背/胸/パンツ番号 | J64: 無料サービス | L64: 0 | M64: 0 | N64: =$N$60 -> 10
G65: マーキング | H65: エンブレム | J65: 無料サービス | L65: 0 | M65: 0 | N65: =$N$60 -> 10
G66: マーキング | H66: チーム名 | J66: 無料サービス | L66: 0 | M66: 0 | N66: =$N$60 -> 10
B67: =IF(F30<>"","ご注意","") ->  | G67: マーキング | H67: スポンサーバナー | J67: 無料サービス | L67: 0 | M67: 0 | N67: =$N$60 -> 10
B68: =IF(F30<>"",F30,"") ->  | G68: 送料（税込10,800円以上で送料無料） | L68: 540

Sheet ピステ (hidden)
A2: お客様記入→ | B2: agrina ピステ注文書 | E2: 種 別 | F2: カラー１ | J2: カラー２ | N2: カラー３ | R2: メモ欄
E3: 画 像
B4: =IF(ご注文者様チーム名="","「メインメニュー」のご注文者様情報をご記入ください。",ご注文者様チーム名) -> 「メインメニュー」のご注文者様情報をご記入ください。 | E4: 名 称 | F4: ピステトップ | G4: ピステパンツ | H4: フード付ピステトップ | I4: ピステパンツ | J4: ピステトップ | K4: ピステパンツ | L4: フード付ピステトップ | M4: ピステパンツ | N4: ピステトップ | O4: ピステパンツ | P4: フード付ピステトップ | Q4: ピステパンツ
A5: 非表示 | E5: 商品コード | F5: =IF(F51>0,IF(F49="","追加商品コード未記入",F48&F49),"") ->  | G5: =IF(G51>0,IF(G49="","追加商品コード未記入",G48&G49),"") ->  | H5: =IF(H51>0,IF(H49="","追加商品コード未記入",H48&H49),"") ->  | I5: =IF(I51>0,IF(I49="","追加商品コード未記入",I48&I49),"") ->  | J5: =IF(J51>0,IF(J49="","追加商品コード未記入",J48&J49),"") -> 
A6: ➡ | E6: シルエット | F6: シルエットを選択 | H6: シルエットを選択 | J6: シルエットを選択 | L6: シルエットを選択 | N6: シルエットを選択 | P6: シルエットを選択
A7: ➡ | E7: 裏素材 | F7: 裏素材を選択 | H7: 裏素材を選択 | J7: 裏素材を選択 | L7: 裏素材を選択 | N7: 裏素材を選択 | P7: 裏素材を選択 | R7: ３Dシミュレーターの「デザインを保存 する」ボタンをクリックして表示される ☜「デザインURL」を貼り付けて下さい。
A8: ➡ | E8: デザイン URL | F8: 入力してください | H8: 入力してください | J8: 入力してください | L8: 入力してください | N8: 入力してください | P8: 入力してください
B9: # | C9: 注文者氏名 | D9: ="マーキング名" -> マーキング名 | E9: 背番号 | F9: サイズ | J9: サイズ | N9: サイズ | R9: 個人別価格 | S9: 備考(お客様使用)
B10: 例 | C10: 加藤貴行 | D10: T.KATO | E10: 10 | F10: M | G10: M | H10: M | I10: L | J10: M | K10: M | L10: M | M10: L
A11: ➡ | B11: 1 | R11: =SUMIF(F11:Q11,"<>",$F$53:$Q$53)+IF($D11<>"",COUNTIFS(F11:Q11,"<>",$F$47:$Q$47,">0")*$M$73,0) -> 0
B12: 2 | R12: =SUMIF(F12:Q12,"<>",$F$53:$Q$53)+IF($D12<>"",COUNTIFS(F12:Q12,"<>",$F$47:$Q$47,">0")*$M$73,0) -> 0
B13: 3 | R13: 0
B14: 4 | R14: 0
B15: 5 | R15: 0
B16: 6 | R16: 0
B17: 7 | R17: 0
B18: 8 | R18: 0
B19: 9 | R19: 0
B20: 10 | R20: 0
B21: 11 | R21: 0
B22: 12 | R22: 0
B23: 13 | R23: 0
B24: 14 | R24: 0
B25: 15 | R25: 0
B26: 16 | R26: 0
B27: 17 | R27: 0
B28: 18 | R28: 0
B29: 19 | R29: 0
B30: 20 | R30: 0
F31: =IF(COUNTIF(F55:Q55,"?*")>0," ※シルエットと裏素材を正しく選択して下さい。","") ->  | R31: =IF(E59>0,"※ 個人別価格に送料は含まれていません。","") -> 
B32: 注 文 集 計 | E32: 100 | F32: =COUNTIF(F$11:F$30,$E32) -> 0 | G32: =COUNTIF(G$11:G$30,$E32) -> 0 | H32: 0 | I32: 0 | J32: 0 | K32: 0 | L32: 0 | M32: 0 | N32: 0 | O32: 0 | P32: 0 | Q32: 0
E33: 110 | F33: 0 | G33: 0 | H33: 0 | I33: 0 | J33: 0 | K33: 0 | L33: 0 | M33: 0 | N33: 0 | O33: 0 | P33: 0 | Q33: 0
E34: 120 | F34: 0 | G34: 0 | H34: 0 | I34: 0 | J34: 0 | K34: 0 | L34: 0 | M34: 0 | N34: 0 | O34: 0 | P34: 0 | Q34: 0
E35: 130 | F35: 0 | G35: 0 | H35: 0 | I35: 0 | J35: 0 | K35: 0 | L35: 0 | M35: 0 | N35: 0 | O35: 0 | P35: 0 | Q35: 0
E36: 140 | F36: 0 | G36: 0 | H36: 0 | I36: 0 | J36: 0 | K36: 0 | L36: 0 | M36: 0 | N36: 0 | O36: 0 | P36: 0 | Q36: 0
E37: 150 | F37: 0 | G37: 0 | H37: 0 | I37: 0 | J37: 0 | K37: 0 | L37: 0 | M37: 0 | N37: 0 | O37: 0 | P37: 0 | Q37: 0
E38: 160 | F38: 0 | G38: 0 | H38: 0 | I38: 0 | J38: 0 | K38: 0 | L38: 0 | M38: 0 | N38: 0 | O38: 0 | P38: 0 | Q38: 0
E39: S | F39: 0 | G39: 0 | H39: 0 | I39: 0 | J39: 0 | K39: 0 | L39: 0 | M39: 0 | N39: 0 | O39: 0 | P39: 0 | Q39: 0
E40: M | F40: 0 | G40: 0 | H40: 0 | I40: 0 | J40: 0 | K40: 0 | L40: 0 | M40: 0 | N40: 0 | O40: 0 | P40: 0 | Q40: 0
E41: L | F41: 0 | G41: 0 | H41: 0 | I41: 0 | J41: 0 | K41: 0 | L41: 0 | M41: 0 | N41: 0 | O41: 0 | P41: 0 | Q41: 0
E42: XL | F42: 0 | G42: 0 | H42: 0 | I42: 0 | J42: 0 | K42: 0 | L42: 0 | M42: 0 | N42: 0 | O42: 0 | P42: 0 | Q42: 0
E43: 3L | F43: 0 | G43: 0 | H43: 0 | I43: 0 | J43: 0 | K43: 0 | L43: 0 | M43: 0 | N43: 0 | O43: 0 | P43: 0 | Q43: 0
E44: 4L | F44: 0 | G44: 0 | H44: 0 | I44: 0 | J44: 0 | K44: 0 | L44: 0 | M44: 0 | N44: 0 | O44: 0 | P44: 0 | Q44: 0
E45: 5L | F45: 0 | G45: 0 | H45: 0 | I45: 0 | J45: 0 | K45: 0 | L45: 0 | M45: 0 | N45: 0 | O45: 0 | P45: 0 | Q45: 0
B46: マーキング | E46: 個人名有無 | F46: 個人名【有】 | G46: 個人名【無】 | H46: 個人名【有】 | I46: 個人名【無】 | J46: 個人名【有】 | K46: 個人名【無】 | L46: 個人名【有】 | M46: 個人名【無】 | N46: 個人名【有】 | O46: 個人名【無】 | P46: 個人名【有】 | Q46: 個人名【無】
E47: マーキング数 | F47: =IF(F46="個人名【有】",COUNTIFS($D$11:$D$30,"<>",F$11:F$30,"<>"),0) -> 0 | G47: 0 | H47: 0 | I47: 0 | J47: 0 | K47: 0 | L47: 0 | M47: 0 | N47: 0 | O47: 0 | P47: 0 | Q47: 0
B48: 代表商品コード | E48: =$J$73 -> ag-name1000 | F48: =IF(AND(F6="ノーマル",F7="裏地なし"),$J$58, IF(AND(F6="ノーマル",F7="裏メッシュ"),$J$61, IF(AND(F6="ノーマル",F7="裏トリコット"),$J$64, IF(AND(F6="スリム",F7="裏地なし"),$J$67, IF(AND(F6="スリム",F7="裏メッシュ"),$J$70, IF(AND(F6="スリム",F7="裏トリコット"),"", "")))))) ->  | G48: =IF(AND(F6="ノーマル",F7="裏地なし"),$J$60, IF(AND(F6="ノーマル",F7="裏メッシュ"),$J$63, IF(AND(F6="ノーマル",F7="裏トリコット"),$J$66, IF(AND(F6="スリム",F7="裏地なし"),$J$69, IF(AND(F6="スリム",F7="裏メッシュ"),$J$72, IF(AND(F6="スリム",F7="裏トリコット"),"", "")))))) ->  | H48: =IF(AND(H6="ノーマル",H7="裏地なし"),$J$59, IF(AND(H6="ノーマル",H7="裏メッシュ"),$J$62, IF(AND(H6="ノーマル",H7="裏トリコット"),$J$65, IF(AND(H6="スリム",H7="裏地なし"),$J$68, IF(AND(H6="スリム",H7="裏メッシュ"),$J$71, IF(AND(H6="スリム",H7="裏トリコット"),"", "")))))) ->  | I48: =IF(AND(H6="ノーマル",H7="裏地なし"),$J$60, IF(AND(H6="ノーマル",H7="裏メッシュ"),$J$63, IF(AND(H6="ノーマル",H7="裏トリコット"),$J$66, IF(AND(H6="スリム",H7="裏地なし"),$J$69, IF(AND(H6="スリム",H7="裏メッシュ"),$J$72, IF(AND(H6="スリム",H7="裏トリコット"),"", "")))))) ->  | J48: =IF(AND(J6="ノーマル",J7="裏地なし"),$J$58, IF(AND(J6="ノーマル",J7="裏メッシュ"),$J$61, IF(AND(J6="ノーマル",J7="裏トリコット"),$J$64, IF(AND(J6="スリム",J7="裏地なし"),$J$67, IF(AND(J6="スリム",J7="裏メッシュ"),$J$70, IF(AND(J6="スリム",J7="裏トリコット"),"", "")))))) ->  | K48: =IF(AND(J6="ノーマル",J7="裏地なし"),$J$60, IF(AND(J6="ノーマル",J7="裏メッシュ"),$J$63, IF(AND(J6="ノーマル",J7="裏トリコット"),$J$66, IF(AND(J6="スリム",J7="裏地なし"),$J$69, IF(AND(J6="スリム",J7="裏メッシュ"),$J$72, IF(AND(J6="スリム",J7="裏トリコット"),"", "")))))) ->  | L48: =IF(AND(L6="ノーマル",L7="裏地なし"),$J$59, IF(AND(L6="ノーマル",L7="裏メッシュ"),$J$62, IF(AND(L6="ノーマル",L7="裏トリコット"),$J$65, IF(AND(L6="スリム",L7="裏地なし"),$J$68, IF(AND(L6="スリム",L7="裏メッシュ"),$J$71, IF(AND(L6="スリム",L7="裏トリコット"),"", "")))))) ->  | M48: =IF(AND(L6="ノーマル",L7="裏地なし"),$J$60, IF(AND(L6="ノーマル",L7="裏メッシュ"),$J$63, IF(AND(L6="ノーマル",L7="裏トリコット"),$J$66, IF(AND(L6="スリム",L7="裏地なし"),$J$69, IF(AND(L6="スリム",L7="裏メッシュ"),$J$72, IF(AND(L6="スリム",L7="裏トリコット"),"", "")))))) ->  | N48: =IF(AND(N6="ノーマル",N7="裏地なし"),$J$58, IF(AND(N6="ノーマル",N7="裏メッシュ"),$J$61, IF(AND(N6="ノーマル",N7="裏トリコット"),$J$64, IF(AND(N6="スリム",N7="裏地なし"),$J$67, IF(AND(N6="スリム",N7="裏メッシュ"),$J$70, IF(AND(N6="スリム",N7="裏トリコット"),"", "")))))) ->  | O48: =IF(AND(N6="ノーマル",N7="裏地なし"),$J$60, IF(AND(N6="ノーマル",N7="裏メッシュ"),$J$63, IF(AND(N6="ノーマル",N7="裏トリコット"),$J$66, IF(AND(N6="スリム",N7="裏地なし"),$J$69, IF(AND(N6="スリム",N7="裏メッシュ"),$J$72, IF(AND(N6="スリム",N7="裏トリコット"),"", "")))))) ->  | P48: =IF(AND(P6="ノーマル",P7="裏地なし"),$J$59, IF(AND(P6="ノーマル",P7="裏メッシュ"),$J$62, IF(AND(P6="ノーマル",P7="裏トリコット"),$J$65, IF(AND(P6="スリム",P7="裏地なし"),$J$68, IF(AND(P6="スリム",P7="裏メッシュ"),$J$71, IF(AND(P6="スリム",P7="裏トリコット"),"", "")))))) ->  | Q48: =IF(AND(P6="ノーマル",P7="裏地なし"),$J$60, IF(AND(P6="ノーマル",P7="裏メッシュ"),$J$63, IF(AND(P6="ノーマル",P7="裏トリコット"),$J$66, IF(AND(P6="スリム",P7="裏地なし"),$J$69, IF(AND(P6="スリム",P7="裏メッシュ"),$J$72, IF(AND(P6="スリム",P7="裏トリコット"),"", "")))))) -> 
B49: 追加商品コード
B50: 商 品 名 | E50: 個人名 ﾏｰｷﾝｸﾞ | F50: =IF(AND(F6="ノーマル",F7="裏地なし"),$G$58&"("&F2&")", IF(AND(F6="ノーマル",F7="裏メッシュ"),$G$61&"("&F2&")", IF(AND(F6="ノーマル",F7="裏トリコット"),$G$64&"("&F2&")", IF(AND(F6="スリム",F7="裏地なし"),$G$67&"("&F2&")", IF(AND(F6="スリム",F7="裏メッシュ"),$G$70&"("&F2&")", IF(AND(F6="スリム",F7="裏トリコット"),"スリム×裏トリコットの組み合わせはできません", "")))))) ->  | G50: =IF(AND(F6="ノーマル",F7="裏地なし"),$G$60&"("&F2&")", IF(AND(F6="ノーマル",F7="裏メッシュ"),$G$63&"("&F2&")", IF(AND(F6="ノーマル",F7="裏トリコット"),$G$66&"("&F2&")", IF(AND(F6="スリム",F7="裏地なし"),$G$69&"("&F2&")", IF(AND(F6="スリム",F7="裏メッシュ"),$G$72&"("&F2&")", IF(AND(F6="スリム",F7="裏トリコット"),"スリム×裏トリコットの組み合わせはできません", "")))))) ->  | H50: =IF(AND(H6="ノーマル",H7="裏地なし"),$G$59&"("&F2&")", IF(AND(H6="ノーマル",H7="裏メッシュ"),$G$62&"("&F2&")", IF(AND(H6="ノーマル",H7="裏トリコット"),$G$65&"("&F2&")", IF(AND(H6="スリム",H7="裏地なし"),$G$68&"("&F2&")", IF(AND(H6="スリム",H7="裏メッシュ"),$G$71&"("&F2&")", IF(AND(H6="スリム",H7="裏トリコット"),"スリム×裏トリコットの組み合わせはできません", "")))))) ->  | I50: =IF(AND(H6="ノーマル",H7="裏地なし"),$G$60&"("&F2&")", IF(AND(H6="ノーマル",H7="裏メッシュ"),$G$63&"("&F2&")", IF(AND(H6="ノーマル",H7="裏トリコット"),$G$66&"("&F2&")", IF(AND(H6="スリム",H7="裏地なし"),$G$69&"("&F2&")", IF(AND(H6="スリム",H7="裏メッシュ"),$G$72&"("&F2&")", IF(AND(H6="スリム",H7="裏トリコット"),"スリム×裏トリコットの組み合わせはできません", "")))))) ->  | J50: =IF(AND(J6="ノーマル",J7="裏地なし"),$G$58&"("&J2&")", IF(AND(J6="ノーマル",J7="裏メッシュ"),$G$61&"("&J2&")", IF(AND(J6="ノーマル",J7="裏トリコット"),$G$64&"("&J2&")", IF(AND(J6="スリム",J7="裏地なし"),$G$67&"("&J2&")", IF(AND(J6="スリム",J7="裏メッシュ"),$G$70&"("&J2&")", IF(AND(J6="スリム",J7="裏トリコット"),"スリム×裏トリコットの組み合わせはできません", "")))))) ->  | K50: =IF(AND(J6="ノーマル",J7="裏地なし"),$G$60&"("&J2&")", IF(AND(J6="ノーマル",J7="裏メッシュ"),$G$63&"("&J2&")", IF(AND(J6="ノーマル",J7="裏トリコット"),$G$66&"("&J2&")", IF(AND(J6="スリム",J7="裏地なし"),$G$69&"("&J2&")", IF(AND(J6="スリム",J7="裏メッシュ"),$G$72&"("&J2&")", IF(AND(J6="スリム",J7="裏トリコット"),"スリム×裏トリコットの組み合わせはできません", "")))))) ->  | L50: =IF(AND(L6="ノーマル",L7="裏地なし"),$G$59&"("&J2&")", IF(AND(L6="ノーマル",L7="裏メッシュ"),$G$62&"("&J2&")", IF(AND(L6="ノーマル",L7="裏トリコット"),$G$65&"("&J2&")", IF(AND(L6="スリム",L7="裏地なし"),$G$68&"("&J2&")", IF(AND(L6="スリム",L7="裏メッシュ"),$G$71&"("&J2&")", IF(AND(L6="スリム",L7="裏トリコット"),"スリム×裏トリコットの組み合わせはできません", "")))))) ->  | M50: =IF(AND(L6="ノーマル",L7="裏地なし"),$G$60&"("&J2&")", IF(AND(L6="ノーマル",L7="裏メッシュ"),$G$63&"("&J2&")", IF(AND(L6="ノーマル",L7="裏トリコット"),$G$66&"("&J2&")", IF(AND(L6="スリム",L7="裏地なし"),$G$69&"("&J2&")", IF(AND(L6="スリム",L7="裏メッシュ"),$G$72&"("&J2&")", IF(AND(L6="スリム",L7="裏トリコット"),"スリム×裏トリコットの組み合わせはできません", "")))))) ->  | N50: =IF(AND(N6="ノーマル",N7="裏地なし"),$G$58&"("&N2&")", IF(AND(N6="ノーマル",N7="裏メッシュ"),$G$61&"("&N2&")", IF(AND(N6="ノーマル",N7="裏トリコット"),$G$64&"("&N2&")", IF(AND(N6="スリム",N7="裏地なし"),$G$67&"("&N2&")", IF(AND(N6="スリム",N7="裏メッシュ"),$G$70&"("&N2&")", IF(AND(N6="スリム",N7="裏トリコット"),"スリム×裏トリコットの組み合わせはできません", "")))))) ->  | O50: =IF(AND(N6="ノーマル",N7="裏地なし"),$G$60&"("&N2&")", IF(AND(N6="ノーマル",N7="裏メッシュ"),$G$63&"("&N2&")", IF(AND(N6="ノーマル",N7="裏トリコット"),$G$66&"("&N2&")", IF(AND(N6="スリム",N7="裏地なし"),$G$69&"("&N2&")", IF(AND(N6="スリム",N7="裏メッシュ"),$G$72&"("&N2&")", IF(AND(N6="スリム",N7="裏トリコット"),"スリム×裏トリコットの組み合わせはできません", "")))))) ->  | P50: =IF(AND(P6="ノーマル",P7="裏地なし"),$G$59&"("&N2&")", IF(AND(P6="ノーマル",P7="裏メッシュ"),$G$62&"("&N2&")", IF(AND(P6="ノーマル",P7="裏トリコット"),$G$65&"("&N2&")", IF(AND(P6="スリム",P7="裏地なし"),$G$68&"("&N2&")", IF(AND(P6="スリム",P7="裏メッシュ"),$G$71&"("&N2&")", IF(AND(P6="スリム",P7="裏トリコット"),"スリム×裏トリコットの組み合わせはできません", "")))))) ->  | Q50: =IF(AND(P6="ノーマル",P7="裏地なし"),$G$60&"("&N2&")", IF(AND(P6="ノーマル",P7="裏メッシュ"),$G$63&"("&N2&")", IF(AND(P6="ノーマル",P7="裏トリコット"),$G$66&"("&N2&")", IF(AND(P6="スリム",P7="裏地なし"),$G$69&"("&N2&")", IF(AND(P6="スリム",P7="裏メッシュ"),$G$72&"("&N2&")", IF(AND(P6="スリム",P7="裏トリコット"),"スリム×裏トリコットの組み合わせはできません", "")))))) -> 
B51: 注 文 数 | E51: =SUM(F47:Q47) -> 0 | F51: =SUM(F32:F45) -> 0 | G51: =SUM(G32:G45) -> 0 | H51: =SUM(H32:H45) -> 0 | I51: =SUM(I32:I45) -> 0 | J51: =SUM(J32:J45) -> 0 | K51: 0 | L51: 0 | M51: 0 | N51: 0 | O51: 0 | P51: 0 | Q51: 0
B52: 定 価（税込） | E52: =$L$73 -> 1080 | F52: =IF(AND(F6="ノーマル",F7="裏地なし"),$L$58, IF(AND(F6="ノーマル",F7="裏メッシュ"),$L$61, IF(AND(F6="ノーマル",F7="裏トリコット"),$L$64, IF(AND(F6="スリム",F7="裏地なし"),$L$67, IF(AND(F6="スリム",F7="裏メッシュ"),$L$70, IF(AND(F6="スリム",F7="裏トリコット"),0, 0)))))) -> 0 | G52: =IF(AND(F6="ノーマル",F7="裏地なし"),$L$60, IF(AND(F6="ノーマル",F7="裏メッシュ"),$L$63, IF(AND(F6="ノーマル",F7="裏トリコット"),$L$66, IF(AND(F6="スリム",F7="裏地なし"),$L$69, IF(AND(F6="スリム",F7="裏メッシュ"),$L$72, IF(AND(F6="スリム",F7="裏トリコット"),0, 0)))))) -> 0 | H52: =IF(AND(H6="ノーマル",H7="裏地なし"),$L$59, IF(AND(H6="ノーマル",H7="裏メッシュ"),$L$62, IF(AND(H6="ノーマル",H7="裏トリコット"),$L$65, IF(AND(H6="スリム",H7="裏地なし"),$L$68, IF(AND(H6="スリム",H7="裏メッシュ"),$L$71, IF(AND(H6="スリム",H7="裏トリコット"),0, 0)))))) -> 0 | I52: =IF(AND(H6="ノーマル",H7="裏地なし"),$L$60, IF(AND(H6="ノーマル",H7="裏メッシュ"),$L$63, IF(AND(H6="ノーマル",H7="裏トリコット"),$L$66, IF(AND(H6="スリム",H7="裏地なし"),$L$69, IF(AND(H6="スリム",H7="裏メッシュ"),$L$72, IF(AND(H6="スリム",H7="裏トリコット"),0, 0)))))) -> 0 | J52: =IF(AND(J6="ノーマル",J7="裏地なし"),$L$58, IF(AND(J6="ノーマル",J7="裏メッシュ"),$L$61, IF(AND(J6="ノーマル",J7="裏トリコット"),$L$64, IF(AND(J6="スリム",J7="裏地なし"),$L$67, IF(AND(J6="スリム",J7="裏メッシュ"),$L$70, IF(AND(J6="スリム",J7="裏トリコット"),0, 0)))))) -> 0 | K52: =IF(AND(J6="ノーマル",J7="裏地なし"),$L$60, IF(AND(J6="ノーマル",J7="裏メッシュ"),$L$63, IF(AND(J6="ノーマル",J7="裏トリコット"),$L$66, IF(AND(J6="スリム",J7="裏地なし"),$L$69, IF(AND(J6="スリム",J7="裏メッシュ"),$L$72, IF(AND(J6="スリム",J7="裏トリコット"),0, 0)))))) -> 0 | L52: =IF(AND(L6="ノーマル",L7="裏地なし"),$L$59, IF(AND(L6="ノーマル",L7="裏メッシュ"),$L$62, IF(AND(L6="ノーマル",L7="裏トリコット"),$L$65, IF(AND(L6="スリム",L7="裏地なし"),$L$68, IF(AND(L6="スリム",L7="裏メッシュ"),$L$71, IF(AND(L6="スリム",L7="裏トリコット"),0, 0)))))) -> 0 | M52: =IF(AND(L6="ノーマル",L7="裏地なし"),$L$60, IF(AND(L6="ノーマル",L7="裏メッシュ"),$L$63, IF(AND(L6="ノーマル",L7="裏トリコット"),$L$66, IF(AND(L6="スリム",L7="裏地なし"),$L$69, IF(AND(L6="スリム",L7="裏メッシュ"),$L$72, IF(AND(L6="スリム",L7="裏トリコット"),0, 0)))))) -> 0 | N52: =IF(AND(N6="ノーマル",N7="裏地なし"),$L$58, IF(AND(N6="ノーマル",N7="裏メッシュ"),$L$61, IF(AND(N6="ノーマル",N7="裏トリコット"),$L$64, IF(AND(N6="スリム",N7="裏地なし"),$L$67, IF(AND(N6="スリム",N7="裏メッシュ"),$L$70, IF(AND(N6="スリム",N7="裏トリコット"),0, 0)))))) -> 0 | O52: =IF(AND(N6="ノーマル",N7="裏地なし"),$L$60, IF(AND(N6="ノーマル",N7="裏メッシュ"),$L$63, IF(AND(N6="ノーマル",N7="裏トリコット"),$L$66, IF(AND(N6="スリム",N7="裏地なし"),$L$69, IF(AND(N6="スリム",N7="裏メッシュ"),$L$72, IF(AND(N6="スリム",N7="裏トリコット"),0, 0)))))) -> 0 | P52: =IF(AND(P6="ノーマル",P7="裏地なし"),$L$59, IF(AND(P6="ノーマル",P7="裏メッシュ"),$L$62, IF(AND(P6="ノーマル",P7="裏トリコット"),$L$65, IF(AND(P6="スリム",P7="裏地なし"),$L$68, IF(AND(P6="スリム",P7="裏メッシュ"),$L$71, IF(AND(P6="スリム",P7="裏トリコット"),0, 0)))))) -> 0 | Q52: =IF(AND(P6="ノーマル",P7="裏地なし"),$L$60, IF(AND(P6="ノーマル",P7="裏メッシュ"),$L$63, IF(AND(P6="ノーマル",P7="裏トリコット"),$L$66, IF(AND(P6="スリム",P7="裏地なし"),$L$69, IF(AND(P6="スリム",P7="裏メッシュ"),$L$72, IF(AND(P6="スリム",P7="裏トリコット"),0, 0)))))) -> 0
B53: 販売価格（税込） | E53: =IF(SUM(F53:Q53)=0,0,$M$73) -> 0 | F53: =IF(AND(F6="ノーマル",F7="裏地なし"),$M$58, IF(AND(F6="ノーマル",F7="裏メッシュ"),$M$61, IF(AND(F6="ノーマル",F7="裏トリコット"),$M$64, IF(AND(F6="スリム",F7="裏地なし"),$M$67, IF(AND(F6="スリム",F7="裏メッシュ"),$M$70, IF(AND(F6="スリム",F7="裏トリコット"),0, 0)))))) -> 0 | G53: =IF(AND(F6="ノーマル",F7="裏地なし"),$M$60, IF(AND(F6="ノーマル",F7="裏メッシュ"),$M$63, IF(AND(F6="ノーマル",F7="裏トリコット"),$M$66, IF(AND(F6="スリム",F7="裏地なし"),$M$69, IF(AND(F6="スリム",F7="裏メッシュ"),$M$72, IF(AND(F6="スリム",F7="裏トリコット"),0, 0)))))) -> 0 | H53: =IF(AND(H6="ノーマル",H7="裏地なし"),$M$59, IF(AND(H6="ノーマル",H7="裏メッシュ"),$M$62, IF(AND(H6="ノーマル",H7="裏トリコット"),$M$65, IF(AND(H6="スリム",H7="裏地なし"),$M$68, IF(AND(H6="スリム",H7="裏メッシュ"),$M$71, IF(AND(H6="スリム",H7="裏トリコット"),0, 0)))))) -> 0 | I53: =IF(AND(H6="ノーマル",H7="裏地なし"),$M$60, IF(AND(H6="ノーマル",H7="裏メッシュ"),$M$63, IF(AND(H6="ノーマル",H7="裏トリコット"),$M$66, IF(AND(H6="スリム",H7="裏地なし"),$M$69, IF(AND(H6="スリム",H7="裏メッシュ"),$M$72, IF(AND(H6="スリム",H7="裏トリコット"),0, 0)))))) -> 0 | J53: =IF(AND(J6="ノーマル",J7="裏地なし"),$M$58, IF(AND(J6="ノーマル",J7="裏メッシュ"),$M$61, IF(AND(J6="ノーマル",J7="裏トリコット"),$M$64, IF(AND(J6="スリム",J7="裏地なし"),$M$67, IF(AND(J6="スリム",J7="裏メッシュ"),$M$70, IF(AND(J6="スリム",J7="裏トリコット"),0, 0)))))) -> 0 | K53: =IF(AND(J6="ノーマル",J7="裏地なし"),$M$60, IF(AND(J6="ノーマル",J7="裏メッシュ"),$M$63, IF(AND(J6="ノーマル",J7="裏トリコット"),$M$66, IF(AND(J6="スリム",J7="裏地なし"),$M$69, IF(AND(J6="スリム",J7="裏メッシュ"),$M$72, IF(AND(J6="スリム",J7="裏トリコット"),0, 0)))))) -> 0 | L53: =IF(AND(L6="ノーマル",L7="裏地なし"),$M$59, IF(AND(L6="ノーマル",L7="裏メッシュ"),$M$62, IF(AND(L6="ノーマル",L7="裏トリコット"),$M$65, IF(AND(L6="スリム",L7="裏地なし"),$M$68, IF(AND(L6="スリム",L7="裏メッシュ"),$M$71, IF(AND(L6="スリム",L7="裏トリコット"),0, 0)))))) -> 0 | M53: =IF(AND(L6="ノーマル",L7="裏地なし"),$M$60, IF(AND(L6="ノーマル",L7="裏メッシュ"),$M$63, IF(AND(L6="ノーマル",L7="裏トリコット"),$M$66, IF(AND(L6="スリム",L7="裏地なし"),$M$69, IF(AND(L6="スリム",L7="裏メッシュ"),$M$72, IF(AND(L6="スリム",L7="裏トリコット"),0, 0)))))) -> 0 | N53: =IF(AND(N6="ノーマル",N7="裏地なし"),$M$58, IF(AND(N6="ノーマル",N7="裏メッシュ"),$M$61, IF(AND(N6="ノーマル",N7="裏トリコット"),$M$64, IF(AND(N6="スリム",N7="裏地なし"),$M$67, IF(AND(N6="スリム",N7="裏メッシュ"),$M$70, IF(AND(N6="スリム",N7="裏トリコット"),0, 0)))))) -> 0 | O53: =IF(AND(N6="ノーマル",N7="裏地なし"),$M$60, IF(AND(N6="ノーマル",N7="裏メッシュ"),$M$63, IF(AND(N6="ノーマル",N7="裏トリコット"),$M$66, IF(AND(N6="スリム",N7="裏地なし"),$M$69, IF(AND(N6="スリム",N7="裏メッシュ"),$M$72, IF(AND(N6="スリム",N7="裏トリコット"),0, 0)))))) -> 0 | P53: =IF(AND(P6="ノーマル",P7="裏地なし"),$M$59, IF(AND(P6="ノーマル",P7="裏メッシュ"),$M$62, IF(AND(P6="ノーマル",P7="裏トリコット"),$M$65, IF(AND(P6="スリム",P7="裏地なし"),$M$68, IF(AND(P6="スリム",P7="裏メッシュ"),$M$71, IF(AND(P6="スリム",P7="裏トリコット"),0, 0)))))) -> 0 | Q53: =IF(AND(P6="ノーマル",P7="裏地なし"),$M$60, IF(AND(P6="ノーマル",P7="裏メッシュ"),$M$63, IF(AND(P6="ノーマル",P7="裏トリコット"),$M$66, IF(AND(P6="スリム",P7="裏地なし"),$M$69, IF(AND(P6="スリム",P7="裏メッシュ"),$M$72, IF(AND(P6="スリム",P7="裏トリコット"),0, 0)))))) -> 0
B54: 商品金額小計（税込） | E54: =E53*E51 -> 0 | F54: =F53*F51 -> 0 | G54: =G53*G51 -> 0 | H54: =H53*H51 -> 0 | I54: =I53*I51 -> 0 | J54: =J53*J51 -> 0 | K54: 0 | L54: 0 | M54: 0 | N54: 0 | O54: 0 | P54: 0 | Q54: 0
F55: =IF(AND(F48="",F51>0),"↑注文エラー","") ->  | G55: =IF(AND(G48="",G51>0),"↑注文エラー","") ->  | H55: =IF(AND(H48="",H51>0),"↑注文エラー","") ->  | I55: =IF(AND(I48="",I51>0),"↑注文エラー","") ->  | J55: =IF(AND(J48="",J51>0),"↑注文エラー","") ->  | K55: =IF(AND(K48="",K51>0),"↑注文エラー","") -> 
B56: ■ 簡易見積表 | G56: ■ 料金について（金額は税込定価です）
B57: 商 品 合 計 | D57: =SUM(F51:Q51) -> 0 | E57: =SUM(F54:Q54) -> 0 | G57: 商品名 | J57: 代表商品コード | L57: 定価(税込) | M57: 売価(税込) | N57: 掛率(X10%) | O57: 注文数
B58: マーキング代合計 | E58: =E54 -> 0 | G58: セミオーダー昇華ピステトップノーマル裏地なし | J58: ag-pt | L58: 8640 | M58: =ROUND(L58*N58*0.1,0) -> 8640 | N58: 10 | O58: =SUMIF($F$48:$Q$48,J58,$F$51:$Q$51) -> 0
B59: 送 料 | E59: =IF(AND((E58+E57)>0,(E58+E57)<10800),$L$78,0) -> 0 | G59: セミオーダー昇華フード付ピステトップノーマル裏地なし | J59: ag-pf | L59: 9720 | M59: =ROUND(L59*N59*0.1,0) -> 9720 | N59: =$N$58 -> 10 | O59: 0
B60: ― | E60: 0 | G60: セミオーダー昇華ピステパンツノーマル裏地なし | J60: ag-pp | L60: 8640 | M60: =ROUND(L60*N60*0.1,0) -> 8640 | N60: =$N$58 -> 10 | O60: 0
B61: 合計金額（税込） | E61: =SUM(E57:E60) -> 0 | G61: セミオーダー昇華ピステトップノーマル裏メッシュ | J61: ag-ptm | L61: 9720 | M61: =ROUND(L61*N61*0.1,0) -> 9720 | N61: =$N$58 -> 10 | O61: 0
B62: 税抜金額 | E62: =E60-E63 -> 0 | G62: セミオーダー昇華フード付ピステトップノーマル裏メッシュ | J62: ag-pfm | L62: 10800 | M62: =ROUND(L62*N62*0.1,0) -> 10800 | N62: 10 | O62: 0
B63: 0.08 | E63: =E60-ROUND(E60/(1+B63),0) -> 0 | G63: セミオーダー昇華ピステパンツノーマル裏メッシュ | J63: ag-ppm | L63: 9720 | M63: 9720 | N63: 10 | O63: 0
G64: セミオーダー昇華ピステトップノーマル裏トリコット | J64: ag-ptt | L64: 10800 | M64: =ROUND(L64*N64*0.1,0) -> 10800 | N64: 10 | O64: 0
G65: セミオーダー昇華フード付ピステトップノーマル裏トリコット | J65: ag-pft | L65: 11880 | M65: 11880 | N65: 10 | O65: 0
G66: セミオーダー昇華ピステパンツノーマル裏トリコット | J66: ag-ppt | L66: 10800 | M66: 10800 | N66: 10 | O66: 0
G67: セミオーダー昇華ピステトップスリム裏地なし | J67: ag-ptns | L67: 8640 | M67: 8640 | N67: =$N$58 -> 10 | O67: 0
B68: =IF(F31<>"","ご注意","") ->  | G68: セミオーダー昇華フード付ピステトップスリム裏地なし | J68: ag-pfns | L68: 9720 | M68: =ROUND(L68*N68*0.1,0) -> 9720 | N68: 10 | O68: 0
B69: =IF(F31<>"",F31,"") ->  | G69: セミオーダー昇華ピステパンツスリム裏地なし | J69: ag-ppns | L69: 8640 | M69: =ROUND(L69*N69*0.1,0) -> 8640 | N69: 10 | O69: 0
G70: セミオーダー昇華ピステトップスリム裏メッシュ | J70: ag-ptms | L70: 9720 | M70: =ROUND(L70*N70*0.1,0) -> 9720 | N70: 10 | O70: 0
G71: セミオーダー昇華フード付ピステトップスリム裏メッシュ | J71: ag-pfms | L71: 10800 | M71: =ROUND(L71*N71*0.1,0) -> 10800 | N71: 10 | O71: 0
G72: セミオーダー昇華ピステパンツスリム裏メッシュ | J72: ag-ppms | L72: 9720 | M72: 9720 | N72: 10 | O72: 0
G73: マーキング | H73: 個人名 | J73: ag-name1000 | L73: 1080 | M73: 1080 | N73: 10 | O73: =E51 -> 0
G74: マーキング | H74: 背/胸/パンツ番号 | J74: 無料サービス | L74: 0 | M74: 0 | N74: 10
G75: マーキング | H75: エンブレム | J75: 無料サービス | L75: 0 | M75: 0 | N75: 10
G76: マーキング | H76: チーム名 | J76: 無料サービス | L76: 0 | M76: 0 | N76: 10
G77: マーキング | H77: スポンサーバナー | J77: 無料サービス | L77: 0 | M77: 0 | N77: 10
G78: 送料（税込10,800円以上で送料無料） | L78: 540

Sheet ウインドブレーカー (hidden)
A2: お客様記入→ | B2: agrina ウインドブレーカー注文書 | E2: 種 別 | F2: カラー１ | I2: カラー２ | L2: カラー３ | O2: カラー４ | R2: メモ欄
E3: 画 像
B4: =IF(ご注文者様チーム名="","「メインメニュー」のご注文者様情報をご記入ください。",ご注文者様チーム名) -> 「メインメニュー」のご注文者様情報をご記入ください。 | E4: 名 称 | F4: ウインドブレーカー トップ | G4: フード付ウインドブレーカー トップ | H4: ウインドブレーカー パンツ | I4: ウインドブレーカー トップ | J4: フード付ウインドブレーカー トップ | K4: ウインドブレーカー パンツ | L4: ウインドブレーカー トップ | M4: フード付ウインドブレーカー トップ | N4: ウインドブレーカー パンツ | O4: ウインドブレーカー トップ | P4: フード付ウインドブレーカー トップ | Q4: ウインドブレーカー パンツ
A5: 非表示 | E5: 商品コード | F5: =IF(F50>0,IF(F48="","追加商品コード未記入",F47&F48),"") ->  | G5: =IF(G50>0,IF(G48="","追加商品コード未記入",G47&G48),"") ->  | I5: =IF(I50>0,IF(I48="","追加商品コード未記入",I47&I48),"") ->  | L5: =IF(L50>0,IF(L48="","追加商品コード未記入",L47&L48),"") ->  | O5: =IF(O50>0,IF(O48="","追加商品コード未記入",O47&O48),"") -> 
A6: ➡ | E6: 裏素材 | F6: 裏素材を選択 | I6: 裏素材を選択 | L6: 裏素材を選択 | O6: 裏素材を選択 | R6: ３Dシミュレーターの「デザインを保存 する」ボタンをクリックして表示される ☜「デザインURL」を貼り付けて下さい。
A7: ➡ | E7: デザイン URL | F7: 入力してください | I7: 入力してください | L7: 入力してください | O7: 入力してください
B8: # | C8: 注文者氏名 | D8: ="マーキング名" -> マーキング名 | E8: 背番号 | F8: サイズ | I8: サイズ | L8: サイズ | O8: サイズ | R8: 個人別価格 | S8: 備考(お客様使用)
B9: 例 | C9: 加藤貴行 | D9: T.KATO | E9: 10 | F9: M | G9: M | H9: L | I9: M | J9: M | K9: L
A10: ➡ | B10: 1 | R10: =SUMIF(F10:Q10,"<>",$F$52:$Q$52)+IF($D10<>"",COUNTIFS(F10:Q10,"<>",$F$46:$Q$46,">0")*$M$66,0) -> 0
B11: 2 | R11: 0
B12: 3 | R12: 0
B13: 4 | R13: 0
B14: 5 | R14: 0
B15: 6 | R15: 0
B16: 7 | R16: 0
B17: 8 | R17: 0
B18: 9 | R18: 0
B19: 10 | R19: 0
B20: 11 | R20: 0
B21: 12 | R21: 0
B22: 13 | R22: 0
B23: 14 | R23: 0
B24: 15 | R24: 0
B25: 16 | R25: 0
B26: 17 | R26: 0
B27: 18 | R27: 0
B28: 19 | R28: 0
B29: 20 | R29: 0
F30: =IF(COUNTIF(F54:Q54,"?*")>0," ※裏素材を選択して下さい。","") ->  | R30: =IF(E58>0,"※ 個人別価格に送料は含まれていません。","") -> 
B31: 注 文 集 計 | E31: 100 | F31: =COUNTIF(F$10:F$29,$E31) -> 0 | G31: =COUNTIF(G$10:G$29,$E31) -> 0 | H31: 0 | I31: 0 | J31: 0 | K31: 0 | L31: 0 | M31: 0 | N31: 0 | O31: 0 | P31: 0 | Q31: 0
E32: 110 | F32: 0 | G32: 0 | H32: 0 | I32: 0 | J32: 0 | K32: 0 | L32: 0 | M32: 0 | N32: 0 | O32: 0 | P32: 0 | Q32: 0
E33: 120 | F33: 0 | G33: 0 | H33: 0 | I33: 0 | J33: 0 | K33: 0 | L33: 0 | M33: 0 | N33: 0 | O33: 0 | P33: 0 | Q33: 0
E34: 130 | F34: 0 | G34: 0 | H34: 0 | I34: 0 | J34: 0 | K34: 0 | L34: 0 | M34: 0 | N34: 0 | O34: 0 | P34: 0 | Q34: 0
E35: 140 | F35: 0 | G35: 0 | H35: 0 | I35: 0 | J35: 0 | K35: 0 | L35: 0 | M35: 0 | N35: 0 | O35: 0 | P35: 0 | Q35: 0
E36: 150 | F36: 0 | G36: 0 | H36: 0 | I36: 0 | J36: 0 | K36: 0 | L36: 0 | M36: 0 | N36: 0 | O36: 0 | P36: 0 | Q36: 0
E37: 160 | F37: 0 | G37: 0 | H37: 0 | I37: 0 | J37: 0 | K37: 0 | L37: 0 | M37: 0 | N37: 0 | O37: 0 | P37: 0 | Q37: 0
E38: S | F38: 0 | G38: 0 | H38: 0 | I38: 0 | J38: 0 | K38: 0 | L38: 0 | M38: 0 | N38: 0 | O38: 0 | P38: 0 | Q38: 0
E39: M | F39: 0 | G39: 0 | H39: 0 | I39: 0 | J39: 0 | K39: 0 | L39: 0 | M39: 0 | N39: 0 | O39: 0 | P39: 0 | Q39: 0
E40: L | F40: 0 | G40: 0 | H40: 0 | I40: 0 | J40: 0 | K40: 0 | L40: 0 | M40: 0 | N40: 0 | O40: 0 | P40: 0 | Q40: 0
E41: XL | F41: 0 | G41: 0 | H41: 0 | I41: 0 | J41: 0 | K41: 0 | L41: 0 | M41: 0 | N41: 0 | O41: 0 | P41: 0 | Q41: 0
E42: 3L | F42: 0 | G42: 0 | H42: 0 | I42: 0 | J42: 0 | K42: 0 | L42: 0 | M42: 0 | N42: 0 | O42: 0 | P42: 0 | Q42: 0
E43: 4L | F43: 0 | G43: 0 | H43: 0 | I43: 0 | J43: 0 | K43: 0 | L43: 0 | M43: 0 | N43: 0 | O43: 0 | P43: 0 | Q43: 0
E44: 5L | F44: 0 | G44: 0 | H44: 0 | I44: 0 | J44: 0 | K44: 0 | L44: 0 | M44: 0 | N44: 0 | O44: 0 | P44: 0 | Q44: 0
B45: マーキング | E45: 個人名有無 | F45: 個人名【有】 | G45: 個人名【有】 | H45: 個人名【無】 | I45: 個人名【有】 | J45: 個人名【有】 | K45: 個人名【無】 | L45: 個人名【有】 | M45: 個人名【有】 | N45: 個人名【無】 | O45: 個人名【有】 | P45: 個人名【有】 | Q45: 個人名【無】
E46: マーキング数 | F46: =IF(F45="個人名【有】",COUNTIFS($D$10:$D$29,"<>",F$10:F$29,"<>"),0) -> 0 | G46: =IF(G45="個人名【有】",COUNTIFS($D$10:$D$29,"<>",G$10:G$29,"<>"),0) -> 0 | H46: =IF(H45="個人名【有】",COUNTIFS($D$10:$D$29,"<>",H$10:H$29,"<>"),0) -> 0 | I46: =IF(I45="個人名【有】",COUNTIFS($D$10:$D$29,"<>",I$10:I$29,"<>"),0) -> 0 | J46: =IF(J45="個人名【有】",COUNTIFS($D$10:$D$29,"<>",J$10:J$29,"<>"),0) -> 0 | K46: =IF(K45="個人名【有】",COUNTIFS($D$10:$D$29,"<>",K$10:K$29,"<>"),0) -> 0 | L46: =IF(L45="個人名【有】",COUNTIFS($D$10:$D$29,"<>",L$10:L$29,"<>"),0) -> 0 | M46: =IF(M45="個人名【有】",COUNTIFS($D$10:$D$29,"<>",M$10:M$29,"<>"),0) -> 0 | N46: =IF(N45="個人名【有】",COUNTIFS($D$10:$D$29,"<>",N$10:N$29,"<>"),0) -> 0 | O46: =IF(O45="個人名【有】",COUNTIFS($D$10:$D$29,"<>",O$10:O$29,"<>"),0) -> 0 | P46: =IF(P45="個人名【有】",COUNTIFS($D$10:$D$29,"<>",P$10:P$29,"<>"),0) -> 0 | Q46: =IF(Q45="個人名【有】",COUNTIFS($D$10:$D$29,"<>",Q$10:Q$29,"<>"),0) -> 0
B47: 代表商品コード | E47: =$J$66 -> ag-name1000 | F47: =IF(F6="裏メッシュ",$J$57, IF(F6="裏トリコット",$J$60, IF(F6="中綿&裏トリコット",$J$63, ""))) ->  | G47: =IF(F6="裏メッシュ",$J$58, IF(F6="裏トリコット",$J$61, IF(F6="中綿&裏トリコット",$J$64, ""))) ->  | H47: =IF(F6="裏メッシュ",$J$59, IF(F6="裏トリコット",$J$62, IF(F6="中綿&裏トリコット",$J$65, ""))) ->  | I47: =IF(I6="裏メッシュ",$J$57, IF(I6="裏トリコット",$J$60, IF(I6="中綿&裏トリコット",$J$63, ""))) ->  | J47: =IF(I6="裏メッシュ",$J$58, IF(I6="裏トリコット",$J$61, IF(I6="中綿&裏トリコット",$J$64, ""))) ->  | K47: =IF(I6="裏メッシュ",$J$59, IF(I6="裏トリコット",$J$62, IF(I6="中綿&裏トリコット",$J$65, ""))) ->  | L47: =IF(L6="裏メッシュ",$J$57, IF(L6="裏トリコット",$J$60, IF(L6="中綿&裏トリコット",$J$63, ""))) ->  | M47: =IF(L6="裏メッシュ",$J$58, IF(L6="裏トリコット",$J$61, IF(L6="中綿&裏トリコット",$J$64, ""))) ->  | N47: =IF(L6="裏メッシュ",$J$59, IF(L6="裏トリコット",$J$62, IF(L6="中綿&裏トリコット",$J$65, ""))) ->  | O47: =IF(O6="裏メッシュ",$J$57, IF(O6="裏トリコット",$J$60, IF(O6="中綿&裏トリコット",$J$63, ""))) ->  | P47: =IF(O6="裏メッシュ",$J$58, IF(O6="裏トリコット",$J$61, IF(O6="中綿&裏トリコット",$J$64, ""))) ->  | Q47: =IF(O6="裏メッシュ",$J$59, IF(O6="裏トリコット",$J$62, IF(O6="中綿&裏トリコット",$J$65, ""))) -> 
B48: 追加商品コード
B49: 商 品 名 | E49: 個人名 ﾏｰｷﾝｸﾞ | F49: =IF(F6="裏メッシュ",$G$57&"("&F2&")", IF(F6="裏トリコット",$G$60&"("&F2&")", IF(F6="中綿&裏トリコット",$G$63&"("&F2&")", ""))) ->  | G49: =IF(F6="裏メッシュ",$G$58&"("&F2&")", IF(F6="裏トリコット",$G$61&"("&F2&")", IF(F6="中綿&裏トリコット",$G$64&"("&F2&")", ""))) ->  | H49: =IF(F6="裏メッシュ",$G$59&"("&F2&")", IF(F6="裏トリコット",$G$62&"("&F2&")", IF(F6="中綿&裏トリコット",$G$65&"("&F2&")", ""))) ->  | I49: =IF(I6="裏メッシュ",$G$57&"("&I2&")", IF(I6="裏トリコット",$G$60&"("&I2&")", IF(I6="中綿&裏トリコット",$G$63&"("&I2&")", ""))) ->  | J49: =IF(I6="裏メッシュ",$G$58&"("&I2&")", IF(I6="裏トリコット",$G$61&"("&I2&")", IF(I6="中綿&裏トリコット",$G$64&"("&I2&")", ""))) ->  | K49: =IF(I6="裏メッシュ",$G$59&"("&I2&")", IF(I6="裏トリコット",$G$62&"("&I2&")", IF(I6="中綿&裏トリコット",$G$65&"("&I2&")", ""))) ->  | L49: =IF(L6="裏メッシュ",$G$57&"("&L2&")", IF(L6="裏トリコット",$G$60&"("&L2&")", IF(L6="中綿&裏トリコット",$G$63&"("&L2&")", ""))) ->  | M49: =IF(L6="裏メッシュ",$G$58&"("&L2&")", IF(L6="裏トリコット",$G$61&"("&L2&")", IF(L6="中綿&裏トリコット",$G$64&"("&L2&")", ""))) ->  | N49: =IF(L6="裏メッシュ",$G$59&"("&L2&")", IF(L6="裏トリコット",$G$62&"("&L2&")", IF(L6="中綿&裏トリコット",$G$65&"("&L2&")", ""))) ->  | O49: =IF(O6="裏メッシュ",$G$57&"("&O2&")", IF(O6="裏トリコット",$G$60&"("&O2&")", IF(O6="中綿&裏トリコット",$G$63&"("&O2&")", ""))) ->  | P49: =IF(O6="裏メッシュ",$G$58&"("&O2&")", IF(O6="裏トリコット",$G$61&"("&O2&")", IF(O6="中綿&裏トリコット",$G$64&"("&O2&")", ""))) ->  | Q49: =IF(O6="裏メッシュ",$G$59&"("&O2&")", IF(O6="裏トリコット",$G$62&"("&O2&")", IF(O6="中綿&裏トリコット",$G$65&"("&O2&")", ""))) -> 
B50: 注 文 数 | E50: =SUM(F46:Q46) -> 0 | F50: =SUM(F31:F44) -> 0 | G50: 0 | H50: 0 | I50: 0 | J50: 0 | K50: 0 | L50: 0 | M50: 0 | N50: 0 | O50: 0 | P50: 0 | Q50: 0
B51: 定 価（税込） | E51: =$L$66 -> 1080 | F51: =IF(F6="裏メッシュ",$L$57, IF(F6="裏トリコット",$L$60, IF(F6="中綿&裏トリコット",$L$63, 0))) -> 0 | G51: =IF(F6="裏メッシュ",$L$58, IF(F6="裏トリコット",$L$61, IF(F6="中綿&裏トリコット",$L$64, 0))) -> 0 | H51: =IF(F6="裏メッシュ",$L$59, IF(F6="裏トリコット",$L$62, IF(F6="中綿&裏トリコット",$L$65, 0))) -> 0 | I51: =IF(I6="裏メッシュ",$L$57, IF(I6="裏トリコット",$L$60, IF(I6="中綿&裏トリコット",$L$63, 0))) -> 0 | J51: =IF(I6="裏メッシュ",$L$58, IF(I6="裏トリコット",$L$61, IF(I6="中綿&裏トリコット",$L$64, 0))) -> 0 | K51: =IF(I6="裏メッシュ",$L$59, IF(I6="裏トリコット",$L$62, IF(I6="中綿&裏トリコット",$L$65, 0))) -> 0 | L51: =IF(L6="裏メッシュ",$L$57, IF(L6="裏トリコット",$L$60, IF(L6="中綿&裏トリコット",$L$63, 0))) -> 0 | M51: =IF(L6="裏メッシュ",$L$58, IF(L6="裏トリコット",$L$61, IF(L6="中綿&裏トリコット",$L$64, 0))) -> 0 | N51: =IF(L6="裏メッシュ",$L$59, IF(L6="裏トリコット",$L$62, IF(L6="中綿&裏トリコット",$L$65, 0))) -> 0 | O51: =IF(O6="裏メッシュ",$L$57, IF(O6="裏トリコット",$L$60, IF(O6="中綿&裏トリコット",$L$63, 0))) -> 0 | P51: =IF(O6="裏メッシュ",$L$58, IF(O6="裏トリコット",$L$61, IF(O6="中綿&裏トリコット",$L$64, 0))) -> 0 | Q51: =IF(O6="裏メッシュ",$L$59, IF(O6="裏トリコット",$L$62, IF(O6="中綿&裏トリコット",$L$65, 0))) -> 0
B52: 販売価格（税込） | E52: =IF(SUM(F52:Q52)=0,0,$M$66) -> 0 | F52: =IF(F6="裏メッシュ",$M$57, IF(F6="裏トリコット",$M$60, IF(F6="中綿&裏トリコット",$M$63, 0))) -> 0 | G52: =IF(F6="裏メッシュ",$M$58, IF(F6="裏トリコット",$M$61, IF(F6="中綿&裏トリコット",$M$64, 0))) -> 0 | H52: =IF(F6="裏メッシュ",$M$59, IF(F6="裏トリコット",$M$62, IF(F6="中綿&裏トリコット",$M$65, 0))) -> 0 | I52: =IF(I6="裏メッシュ",$M$57, IF(I6="裏トリコット",$M$60, IF(I6="中綿&裏トリコット",$M$63, 0))) -> 0 | J52: =IF(I6="裏メッシュ",$M$58, IF(I6="裏トリコット",$M$61, IF(I6="中綿&裏トリコット",$M$64, 0))) -> 0 | K52: =IF(I6="裏メッシュ",$M$59, IF(I6="裏トリコット",$M$62, IF(I6="中綿&裏トリコット",$M$65, 0))) -> 0 | L52: =IF(L6="裏メッシュ",$M$57, IF(L6="裏トリコット",$M$60, IF(L6="中綿&裏トリコット",$M$63, 0))) -> 0 | M52: =IF(L6="裏メッシュ",$M$58, IF(L6="裏トリコット",$M$61, IF(L6="中綿&裏トリコット",$M$64, 0))) -> 0 | N52: =IF(L6="裏メッシュ",$M$59, IF(L6="裏トリコット",$M$62, IF(L6="中綿&裏トリコット",$M$65, 0))) -> 0 | O52: =IF(O6="裏メッシュ",$M$57, IF(O6="裏トリコット",$M$60, IF(O6="中綿&裏トリコット",$M$63, 0))) -> 0 | P52: =IF(O6="裏メッシュ",$M$58, IF(O6="裏トリコット",$M$61, IF(O6="中綿&裏トリコット",$M$64, 0))) -> 0 | Q52: =IF(O6="裏メッシュ",$M$59, IF(O6="裏トリコット",$M$62, IF(O6="中綿&裏トリコット",$M$65, 0))) -> 0
B53: 商品金額小計（税込） | E53: =E52*E50 -> 0 | F53: =F52*F50 -> 0 | G53: =G52*G50 -> 0 | H53: =H52*H50 -> 0 | I53: =I52*I50 -> 0 | J53: 0 | K53: 0 | L53: 0 | M53: 0 | N53: 0 | O53: 0 | P53: 0 | Q53: 0
F54: =IF(AND(F47="",F50>0),"↑注文エラー","") ->  | G54: =IF(AND(G47="",G50>0),"↑注文エラー","") -> 
B55: ■ 簡易見積表 | G55: ■ 料金について（金額は税込定価です）
B56: 商 品 合 計 | D56: =SUM(F50:Q50) -> 0 | E56: =SUM(F53:Q53) -> 0 | G56: 商品名 | J56: 代表商品コード | L56: 定価(税込) | M56: 売価(税込) | N56: 掛率(X10%) | O56: 注文数
B57: マーキング代合計 | E57: =E53 -> 0 | G57: セミオーダー昇華ウインドブレーカートップ裏メッシュ | J57: ag-wjm | L57: 10800 | M57: =ROUND(L57*N57*0.1,0) -> 10800 | N57: 10 | O57: =SUMIF($F$47:$Q$47,J57,$F$50:$Q$50) -> 0
B58: 送 料 | E58: =IF(AND((E57+E56)>0,(E57+E56)<10800),L71,0) -> 0 | G58: セミオーダー昇華フード付ウインドブレーカートップ裏メッシュ | J58: ag-wfm | L58: 11880 | M58: =ROUND(L58*N58*0.1,0) -> 11880 | N58: =$N$57 -> 10 | O58: =SUMIF($F$47:$Q$47,J58,$F$50:$Q$50) -> 0
B59: ― | E59: 0 | G59: セミオーダー昇華ウインドブレーカーパンツ裏メッシュ | J59: ag-wpm | L59: 10800 | M59: 10800 | N59: =$N$57 -> 10 | O59: 0
B60: 合計金額（税込） | E60: =SUM(E56:E59) -> 0 | G60: セミオーダー昇華ウインドブレーカートップ裏トリコット | J60: ag-wjt | L60: 11880 | M60: 11880 | N60: =$N$57 -> 10 | O60: 0
B61: 税抜金額 | E61: =E59-E62 -> 0 | G61: セミオーダー昇華フード付ウインドブレーカートップ裏トリコット | J61: ag-wft | L61: 12960 | M61: =ROUND(L61*N61*0.1,0) -> 12960 | N61: 10 | O61: 0
B62: 0.08 | E62: =E59-ROUND(E59/(1+B62),0) -> 0 | G62: セミオーダー昇華ウインドブレーカーパンツ裏トリコット | J62: ag-wpt | L62: 11880 | M62: 11880 | N62: 10 | O62: 0
G63: セミオーダー昇華ウインドブレーカートップ中綿&裏トリコット | J63: ag-wjw | L63: 14040 | M63: 14040 | N63: 10 | O63: 0
G64: セミオーダー昇華フード付ウインドブレーカートップ中綿&裏トリコット | J64: ag-wfw | L64: 15120 | M64: =ROUND(L64*N64*0.1,0) -> 15120 | N64: 10 | O64: 0
G65: セミオーダー昇華ウインドブレーカーパンツ中綿&裏トリコット | J65: ag-wpw | L65: 14040 | M65: 14040 | N65: 10 | O65: 0
G66: マーキング | H66: 個人名 | J66: ag-name1000 | L66: 1080 | M66: =ROUND(L66*N66*0.1,0) -> 1080 | N66: 10 | O66: =E50 -> 0
B67: =IF(F30<>"","ご注意","") ->  | G67: マーキング | H67: 背/胸/パンツ番号 | J67: 無料サービス | L67: 0 | M67: =ROUND(L67*N67*0.1,0) -> 0 | N67: 10
B68: =IF(F30<>"",F30,"") ->  | G68: マーキング | H68: エンブレム | J68: 無料サービス | L68: 0 | M68: =ROUND(L68*N68*0.1,0) -> 0 | N68: 10
G69: マーキング | H69: チーム名 | J69: 無料サービス | L69: 0 | M69: =ROUND(L69*N69*0.1,0) -> 0 | N69: 10
G70: マーキング | H70: スポンサーバナー | J70: 無料サービス | L70: 0 | M70: =ROUND(L70*N70*0.1,0) -> 0 | N70: 10
G71: 送料（税込10,800円以上で送料無料） | L71: 540

Sheet プラシャツ (hidden)
A2: お客様記入→ | B2: agrina プラシャツ 注文書 | E2: 種 別 | F2: カラー１ | J2: カラー２ | N2: カラー３ | R2: カラー４ | V2: メモ欄
E3: 画 像
B4: =IF(ご注文者様チーム名="","「メインメニュー」のご注文者様情報をご記入ください。",ご注文者様チーム名) -> 「メインメニュー」のご注文者様情報をご記入ください。 | E4: 名 称 | F4: 半袖シャツ | G4: 長袖シャツ | H4: パンツ | I4: ソックス | J4: 半袖シャツ | K4: 長袖シャツ | L4: パンツ | M4: ソックス | N4: 半袖シャツ | O4: 長袖シャツ | P4: パンツ | Q4: ソックス | R4: 半袖シャツ | S4: 長袖シャツ | T4: パンツ | U4: ソックス | V4: ３Dシミュレーターの「デザインを保存 する」ボタンをクリックして表示される ☜「デザインURL」を貼り付けて下さい。
A5: 非表示 | E5: 商品コード | F5: =IF(F53>0,IF(F48="","追加商品コード未記入",F47&F48),"") -> 
A6: ➡ | E6: デザイン URL | F6: 入力してください | J6: 入力してください | N6: 入力してください | R6: 入力してください
B7: # | C7: 注文者氏名 | D7: ="マーキング名" -> マーキング名 | E7: 背番号 | F7: サイズ | J7: サイズ | N7: サイズ | R7: サイズ | V7: 個人別価格 | W7: 備考(お客様使用)
B8: 例 | C8: 加藤貴行 | D8: T.KATO | E8: 10 | F8: M | G8: M | H8: L | I8: 25x27 | J8: M | K8: M | L8: L | M8: 25x27
A9: ➡ | B9: 1 | V9: =SUMIF(F9:U9,"<>",$F$55:$U$55) -> 0
B10: 2 | V10: 0
B11: 3 | V11: 0
B12: 4 | V12: 0
B13: 5 | V13: 0
B14: 6 | V14: 0
B15: 7 | V15: 0
B16: 8 | V16: 0
B17: 9 | V17: 0
B18: 10 | V18: 0
B19: 11 | V19: 0
B20: 12 | V20: 0
B21: 13 | V21: 0
B22: 14 | V22: 0
B23: 15 | V23: 0
B24: 16 | V24: 0
B25: 17 | V25: 0
B26: 18 | V26: 0
B27: 19 | V27: 0
B28: 20 | V28: 0
F29: =IF(O61>0,"※マーキング代が別途かかります。ご注文受付後に金額をご案内いたします。 ","") & IF(COUNTIF(F58:Q58,"?*")>0,"※素材を選択して下さい。 ","") & IF(SUM(F57:U57)>0,"※少量生産手数料が加算されています。(シャツ[素材別]・パンツ４着以下。ソックス５足以下。)","") ->  | V29: ※ 個人別価格にマーキング代・手数料・送料は含まれていません。
B30: 注 文 集 計 | E30: 120 | F30: =COUNTIF(F$9:F$28,$E30) -> 0 | J30: =COUNTIF(J$9:J$28,$E30) -> 0 | N30: =COUNTIF(N$9:N$28,$E30) -> 0 | R30: =COUNTIF(R$9:R$28,$E30) -> 0
E31: 130 | F31: =COUNTIF(F$9:F$28,$E31) -> 0 | J31: 0 | N31: 0 | R31: 0
E32: 140 | F32: =COUNTIF(F$9:F$28,$E32) -> 0 | G32: =COUNTIF(G$9:G$28,$E32) -> 0 | H32: =COUNTIF(H$9:H$28,$E32) -> 0 | J32: 0 | K32: =COUNTIF(K$9:K$28,$E32) -> 0 | L32: =COUNTIF(L$9:L$28,$E32) -> 0 | N32: 0 | O32: =COUNTIF(O$9:O$28,$E32) -> 0 | P32: =COUNTIF(P$9:P$28,$E32) -> 0 | R32: 0 | S32: =COUNTIF(S$9:S$28,$E32) -> 0 | T32: =COUNTIF(T$9:T$28,$E32) -> 0
E33: 150 | F33: 0 | G33: 0 | H33: =COUNTIF(H$9:H$28,$E33) -> 0 | J33: 0 | K33: =COUNTIF(K$9:K$28,$E33) -> 0 | L33: =COUNTIF(L$9:L$28,$E33) -> 0 | N33: 0 | O33: =COUNTIF(O$9:O$28,$E33) -> 0 | P33: =COUNTIF(P$9:P$28,$E33) -> 0 | R33: 0 | S33: =COUNTIF(S$9:S$28,$E33) -> 0 | T33: =COUNTIF(T$9:T$28,$E33) -> 0
E34: SS | F34: 0 | G34: 0 | H34: 0 | J34: 0 | K34: 0 | L34: 0 | N34: 0 | O34: 0 | P34: 0 | R34: 0 | S34: 0 | T34: 0
E35: S | F35: 0 | G35: 0 | H35: 0 | J35: 0 | K35: 0 | L35: 0 | N35: 0 | O35: 0 | P35: 0 | R35: 0 | S35: 0 | T35: 0
E36: M | F36: 0 | G36: 0 | H36: 0 | J36: 0 | K36: 0 | L36: 0 | N36: 0 | O36: 0 | P36: 0 | R36: 0 | S36: 0 | T36: 0
E37: L | F37: 0 | G37: 0 | H37: 0 | J37: 0 | K37: 0 | L37: 0 | N37: 0 | O37: 0 | P37: 0 | R37: 0 | S37: 0 | T37: 0
E38: XL | F38: 0 | G38: 0 | H38: 0 | J38: 0 | K38: 0 | L38: 0 | N38: 0 | O38: 0 | P38: 0 | R38: 0 | S38: 0 | T38: 0
E39: 3L | F39: 0 | G39: 0 | H39: 0 | J39: 0 | K39: 0 | L39: 0 | N39: 0 | O39: 0 | P39: 0 | R39: 0 | S39: 0 | T39: 0
E40: 4L | F40: 0 | G40: 0 | H40: 0 | J40: 0 | K40: 0 | L40: 0 | N40: 0 | O40: 0 | P40: 0 | R40: 0 | S40: 0 | T40: 0
E41: 5L | F41: 0 | G41: 0 | H41: 0 | J41: 0 | K41: 0 | L41: 0 | N41: 0 | O41: 0 | P41: 0 | R41: 0 | S41: 0 | T41: 0
E42: 19x21 | I42: =COUNTIF(I$9:I$28,$E42) -> 0 | M42: =COUNTIF(M$9:M$28,$E42) -> 0 | Q42: =COUNTIF(Q$9:Q$28,$E42) -> 0 | U42: =COUNTIF(U$9:U$28,$E42) -> 0
E43: 22x24 | I43: =COUNTIF(I$9:I$28,$E43) -> 0 | M43: =COUNTIF(M$9:M$28,$E43) -> 0 | Q43: =COUNTIF(Q$9:Q$28,$E43) -> 0 | U43: =COUNTIF(U$9:U$28,$E43) -> 0
E44: 25x27 | I44: =COUNTIF(I$9:I$28,$E44) -> 0 | M44: =COUNTIF(M$9:M$28,$E44) -> 0 | Q44: =COUNTIF(Q$9:Q$28,$E44) -> 0 | U44: =COUNTIF(U$9:U$28,$E44) -> 0
E45: 27x29 | I45: =COUNTIF(I$9:I$28,$E45) -> 0 | M45: =COUNTIF(M$9:M$28,$E45) -> 0 | Q45: =COUNTIF(Q$9:Q$28,$E45) -> 0 | U45: =COUNTIF(U$9:U$28,$E45) -> 0
B46: マーキング | E46: 個人名 | F46: =COUNTIFS($D$9:$D$28,"<>",F$9:F$28,"<>") -> 0 | J46: =COUNTIFS($D$9:$D$28,"<>",J$9:J$28,"<>") -> 0 | N46: =COUNTIFS($D$9:$D$28,"<>",N$9:N$28,"<>") -> 0 | R46: =COUNTIFS($D$9:$D$28,"<>",R$9:R$28,"<>") -> 0
B47: 代表商品コード | F47: =$J$61 -> ag-ss | G47: =$J$62 -> ag-sl | H47: =$J$63 -> ag-sp | I47: =$J$64 -> ag-st | J47: =$J$61 -> ag-ss | K47: =$J$62 -> ag-sl | L47: =$J$63 -> ag-sp | M47: =$J$64 -> ag-st | N47: =$J$61 -> ag-ss | O47: =$J$62 -> ag-sl | P47: =$J$63 -> ag-sp | Q47: =$J$64 -> ag-st | R47: =$J$61 -> ag-ss | S47: =$J$62 -> ag-sl | T47: =$J$63 -> ag-sp | U47: =$J$64 -> ag-st
B48: 追加商品コード
B49: agrinaボディカラー
A50: 非表示 | B50: Tomsボディ品番 | F50: 00300-ACT | G50: 00304-ALT | H50: 00325-ACP | J50: 00300-ACT | K50: 00304-ALT | L50: 00325-ACP | N50: 00300-ACT | O50: 00304-ALT | P50: 00325-ACP | R50: 00300-ACT | S50: 00304-ALT | T50: 00325-ACP
A51: 非表示 | B51: Tomsボディカラー | F51: =IFERROR(TEXT(VALUE(LEFT(F49,3))-10,"000") & MID(F49,4,99),"") ->  | G51: =IFERROR(TEXT(VALUE(LEFT(G49,3))-10,"000") & MID(G49,4,99),"") ->  | H51: =IFERROR(TEXT(VALUE(LEFT(H49,3))-10,"000") & MID(H49,4,99),"") ->  | J51: =IFERROR(TEXT(VALUE(LEFT(J49,3))-10,"000") & MID(J49,4,99),"") ->  | K51: =IFERROR(TEXT(VALUE(LEFT(K49,3))-10,"000") & MID(K49,4,99),"") ->  | L51: =IFERROR(TEXT(VALUE(LEFT(L49,3))-10,"000") & MID(L49,4,99),"") ->  | N51: =IFERROR(TEXT(VALUE(LEFT(N49,3))-10,"000") & MID(N49,4,99),"") ->  | O51: =IFERROR(TEXT(VALUE(LEFT(O49,3))-10,"000") & MID(O49,4,99),"") ->  | P51: =IFERROR(TEXT(VALUE(LEFT(P49,3))-10,"000") & MID(P49,4,99),"") ->  | R51: =IFERROR(TEXT(VALUE(LEFT(R49,3))-10,"000") & MID(R49,4,99),"") ->  | S51: =IFERROR(TEXT(VALUE(LEFT(S49,3))-10,"000") & MID(S49,4,99),"") ->  | T51: =IFERROR(TEXT(VALUE(LEFT(T49,3))-10,"000") & MID(T49,4,99),"") -> 
B52: 商 品 名 | F52: =$G$61& "("&F2&")" -> セミオーダープラシャツ半袖(カラー１) | G52: =$G$62& "("&F2&")" -> セミオーダープラシャツ長袖(カラー１) | H52: =$G$63& "("&F2&")" -> セミオーダープラパンツ(カラー１) | I52: =$G$64& "("&F2&")" -> セミオーダーソックス(カラー１) | J52: =$G$61& "("&J2&")" -> セミオーダープラシャツ半袖(カラー２) | K52: =$G$62& "("&J2&")" -> セミオーダープラシャツ長袖(カラー２) | L52: =$G$63& "("&J2&")" -> セミオーダープラパンツ(カラー２) | M52: =$G$64& "("&J2&")" -> セミオーダーソックス(カラー２) | N52: =$G$61& "("&N2&")" -> セミオーダープラシャツ半袖(カラー３) | O52: =$G$62& "("&N2&")" -> セミオーダープラシャツ長袖(カラー３) | P52: =$G$63& "("&N2&")" -> セミオーダープラパンツ(カラー３) | Q52: =$G$64& "("&N2&")" -> セミオーダーソックス(カラー３) | R52: =$G$61& "("&R2&")" -> セミオーダープラシャツ半袖(カラー４) | S52: =$G$62& "("&R2&")" -> セミオーダープラシャツ長袖(カラー４) | T52: =$G$63& "("&R2&")" -> セミオーダープラパンツ(カラー４) | U52: =$G$64& "("&R2&")" -> セミオーダーソックス(カラー４)
B53: 注 文 数 | F53: =SUM(F30:F45) -> 0 | G53: =SUM(G30:G45) -> 0 | H53: 0 | I53: 0 | J53: 0 | K53: 0 | L53: 0 | M53: 0 | N53: 0 | O53: 0 | P53: 0 | Q53: 0 | R53: 0 | S53: 0 | T53: 0 | U53: 0
B54: 定 価（税込） | F54: =$L$61 -> 3780 | G54: =$L$62 -> 4500 | H54: =$L$63 -> 3996 | I54: =$L$64 -> 1944 | J54: =$L$61 -> 3780 | K54: =$L$62 -> 4500 | L54: =$L$63 -> 3996 | M54: =$L$64 -> 1944 | N54: =$L$61 -> 3780 | O54: =$L$62 -> 4500 | P54: =$L$63 -> 3996 | Q54: =$L$64 -> 1944 | R54: =$L$61 -> 3780 | S54: =$L$62 -> 4500 | T54: =$L$63 -> 3996 | U54: =$L$64 -> 1944
B55: 販売価格（税込） | F55: =$M$61 -> 3780 | G55: =$M$62 -> 4500 | H55: =$M$63 -> 3996 | I55: =$M$64 -> 1944 | J55: =$M$61 -> 3780 | K55: =$M$62 -> 4500 | L55: =$M$63 -> 3996 | M55: =$M$64 -> 1944 | N55: =$M$61 -> 3780 | O55: =$M$62 -> 4500 | P55: =$M$63 -> 3996 | Q55: =$M$64 -> 1944 | R55: =$M$61 -> 3780 | S55: =$M$62 -> 4500 | T55: =$M$63 -> 3996 | U55: =$M$64 -> 1944
B56: 商品金額小計（税込） | F56: =F55*F53 -> 0 | G56: =G55*G53 -> 0 | H56: 0 | I56: 0 | J56: 0 | K56: 0 | L56: 0 | M56: 0 | N56: 0 | O56: 0 | P56: 0 | Q56: 0 | R56: 0 | S56: 0 | T56: 0 | U56: 0
B57: 少量生産手数料（税込） | F57: =IF(AND($O$61>0,$O$61<5),$M$76,0) -> 0 | G57: =IF(AND($O$62>0,$O$62<5),$M$76,0) -> 0 | H57: =IF(AND($O$63>0,$O$63<5),$M$76,0) -> 0 | I57: =IF(AND($O$64>0,$O$64<6),$M$76,0) -> 0
F58: =IF(AND(F52="",F53>0),"↑注文エラー","") ->  | I58: =IF(AND(J52="",J53>0),"↑注文エラー","") ->  | L58: =IF(AND(N52="",N53>0),"↑注文エラー","") ->  | O58: =IF(AND(R52="",R53>0),"↑注文エラー","") -> 
B59: ■ 簡易見積表 | G59: ■ 料金について（金額は税込定価です）
B60: 商 品 合 計 | D60: =SUM(F53:U53) -> 0 | E60: =SUM(F56:U56)+SUM(F57:U57) -> 0 | G60: 商品名 | J60: 代表商品コード | L60: 定価(税込) | M60: 売価(税込) | N60: 掛率(X10%) | O60: 注文数
B61: マーキング代別途 | G61: セミオーダープラシャツ半袖 | J61: ag-ss | L61: 3780 | M61: =ROUND(L61*N61*0.1,0) -> 3780 | N61: 10 | O61: =SUMIF(F$47:U$47,J61,F$53:U$53) -> 0
B62: 送 料 | E62: =IF(AND((E61+E60)>0,(E61+E60)<10800),$L$77,0) -> 0 | G62: セミオーダープラシャツ長袖 | J62: ag-sl | L62: 4500 | M62: =ROUND(L62*N62*0.1,0) -> 4500 | N62: =$N$61 -> 10 | O62: =SUMIF(F$47:U$47,J62,F$53:U$53) -> 0
B63: ― | E63: 0 | G63: セミオーダープラパンツ | J63: ag-sp | L63: 3996 | M63: 3996 | N63: =$N$61 -> 10 | O63: =SUMIF(F$47:U$47,J63,F$53:U$53) -> 0
B64: 合計金額（税込） | E64: =SUM(E60:E63) -> 0 | G64: セミオーダーソックス | J64: ag-st | L64: 1944 | M64: 1944 | N64: =$N$61 -> 10 | O64: =SUMIF(F$47:U$47,J64,F$53:U$53) -> 0
B65: 税抜金額 | E65: =E63-E66 -> 0 | G65: マーキング | H65: 個人名 | J65: ag-name1000 | L65: 1080 | M65: 1080 | N65: =$N$61 -> 10
B66: 0.08 | E66: =E63-ROUND(E63/(1+B66),0) -> 0 | G66: マーキング | H66: 胸番号 １桁 | J66: mark-500 | L66: 540 | M66: 540 | N66: =$N$61 -> 10
G67: マーキング | H67: 胸番号 ２桁 | J67: mark-800 | L67: 864 | M67: 864 | N67: 10
G68: マーキング | H68: 背番号 １桁 | J68: mark-800 | L68: 864 | M68: 864 | N68: 10
G69: マーキング | H69: 背番号 ２桁 | J69: mark-1500 | L69: 1620 | M69: 1620 | N69: 10
B70: =IF(F29<>"","ご注意","") ->  | G70: マーキング | H70: パンツ番号 １桁 | J70: mark-500 | L70: 540 | M70: 540 | N70: 10
B71: =IF(F29<>"",F29,"") ->  | G71: マーキング | H71: パンツ番号 ２桁 | J71: mark-800 | L71: 864 | M71: 864 | N71: 10
G72: マーキング | H72: エンブレム | J72: mark-1500 | L72: 1620 | M72: 1620 | N72: 10
G73: マーキング | H73: チーム名 | J73: mark-1500 | L73: 1620 | M73: 1620 | N73: 10
G74: マーキング | H74: スポンサーバナー | J74: mark-2000 | L74: 2400 | M74: 2400 | N74: 10
G75: マーキング | H75: メッセージ | J75: mark-1500 | L75: 1620 | M75: 1620 | N75: 10
G76: 少量生産手数料 | J76: ag-fee | L76: 2160 | M76: 2160 | N76: 10 | O76: =COUNTIF(F57:I57,">0") -> 0
G77: 送料（税込10,800円以上で送料無料） | L77: 540

Sheet プラシャツ(未使用) (hidden)
A2: お客様記入→ | B2: agrina プラシャツ注文書 | E2: 種 別 | F2: カラー１ | J2: カラー２ | N2: カラー３ | R2: メモ欄
E3: 画 像
E4: 名 称 | F4: 半袖シャツ | G4: 長袖シャツ | H4: パンツ | I4: ソックス | J4: 半袖シャツ | K4: 長袖シャツ | L4: パンツ | M4: ソックス | N4: 半袖シャツ | O4: 長袖シャツ | P4: パンツ | Q4: ソックス | V4: 半袖シャツ | W4: 長袖シャツ | X4: パンツ | Y4: ソックス | Z4: 半袖シャツ | AA4: 長袖シャツ | AB4: パンツ | AC4: ソックス | AD4: 半袖シャツ | AE4: 長袖シャツ | AF4: パンツ | AG4: ソックス
E5: 商品コード | F5: =IF(F57>0,IF(F55="","追加商品コード未記入",F54&F55),"") ->  | G5: =IF(G57>0,IF(G55="","追加商品コード未記入",G54&G55),"") ->  | J5: =IF(J57>0,IF(J55="","追加商品コード未記入",J54&J55),"") ->  | N5: =IF(N57>0,IF(N55="","追加商品コード未記入",N54&N55),"") -> 
A6: ➡ | B6: =IF(ご注文者様チーム名="","「メインメニュー」のご注文者様情報をご記入ください。",ご注文者様チーム名) -> 「メインメニュー」のご注文者様情報をご記入ください。 | E6: 番 号 | F6: 選択して下さい | G6: 選択して下さい | H6: 選択して下さい | J6: 選択して下さい | K6: 選択して下さい | L6: 選択して下さい | N6: 選択して下さい | O6: 選択して下さい | P6: 選択して下さい | R6: ３Dシミュレーターの「デザインを保存 する」ボタンをクリックして表示される ☜「デザインURL」を貼り付けて下さい。 | U6: 番号種別 | V6: =IF(F6="番号胸背",1,IF(F6="番号胸のみ",2,IF(F6="番号背のみ",3,IF(F6="番号なし",4,0)))) -> 0 | W6: =IF(G6="番号胸背",1,IF(G6="番号胸のみ",2,IF(G6="番号背のみ",3,IF(G6="番号なし",4,0)))) -> 0 | X6: =IF(H6="番号有",1,0) -> 0 | Z6: =IF(J6="番号胸背",1,IF(J6="番号胸のみ",2,IF(J6="番号背のみ",3,IF(J6="番号なし",4,0)))) -> 0 | AA6: =IF(K6="番号胸背",1,IF(K6="番号胸のみ",2,IF(K6="番号背のみ",3,IF(K6="番号なし",4,0)))) -> 0 | AB6: =IF(L6="番号有",1,0) -> 0 | AD6: =IF(N6="番号胸背",1,IF(N6="番号胸のみ",2,IF(N6="番号背のみ",3,IF(N6="番号なし",4,0)))) -> 0 | AE6: =IF(O6="番号胸背",1,IF(O6="番号胸のみ",2,IF(O6="番号背のみ",3,IF(O6="番号なし",4,0)))) -> 0 | AF6: =IF(P6="番号有",1,0) -> 0 | AH6: ←1:胸背,2:胸のみ,3:背のみ
A7: ➡ | E7: エンブレム | F7: 選択して下さい | G7: 選択して下さい | H7: 選択して下さい | J7: 選択して下さい | K7: 選択して下さい | L7: 選択して下さい | N7: 選択して下さい | O7: 選択して下さい | P7: 選択して下さい | V7: =IF(F7="エンブレム有",$M$75,0) -> 0 | W7: =IF(G7="エンブレム有",$M$75,0) -> 0 | X7: =IF(H7="エンブレム有",$M$75,0) -> 0 | Z7: =IF(J7="エンブレム有",$M$75,0) -> 0 | AA7: =IF(K7="エンブレム有",$M$75,0) -> 0 | AB7: =IF(L7="エンブレム有",$M$75,0) -> 0 | AD7: =IF(N7="エンブレム有",$M$75,0) -> 0 | AE7: =IF(O7="エンブレム有",$M$75,0) -> 0 | AF7: =IF(P7="エンブレム有",$M$75,0) -> 0
A8: ➡ | E8: チーム名 | F8: 選択して下さい | G8: 選択して下さい | J8: 選択して下さい | K8: 選択して下さい | N8: 選択して下さい | O8: 選択して下さい | V8: =IF(F8="チーム名有",$M$76,0) -> 0 | W8: =IF(G8="チーム名有",$M$76,0) -> 0 | Z8: =IF(J8="チーム名有",$M$76,0) -> 0 | AA8: =IF(K8="チーム名有",$M$76,0) -> 0 | AD8: =IF(N8="チーム名有",$M$76,0) -> 0 | AE8: =IF(O8="チーム名有",$M$76,0) -> 0
A9: ➡ | E9: メッセージ | F9: 選択して下さい | G9: 選択して下さい | J9: 選択して下さい | K9: 選択して下さい | N9: 選択して下さい | O9: 選択して下さい | V9: =IF(F9="メッセージ有",$M$78,0) -> 0 | W9: =IF(G9="メッセージ有",$M$78,0) -> 0 | Z9: =IF(J9="メッセージ有",$M$78,0) -> 0 | AA9: =IF(K9="メッセージ有",$M$78,0) -> 0 | AD9: =IF(N9="メッセージ有",$M$78,0) -> 0 | AE9: =IF(O9="メッセージ有",$M$78,0) -> 0
A10: ➡ | E10: スポンサーバナー | F10: 選択して下さい | G10: 選択して下さい | J10: 選択して下さい | K10: 選択して下さい | N10: 選択して下さい | O10: 選択して下さい | V10: =IF(F10="スポンサー有",$M$77,0) -> 0 | W10: =IF(G10="スポンサー有",$M$77,0) -> 0 | Z10: =IF(J10="スポンサー有",$M$77,0) -> 0 | AA10: =IF(K10="スポンサー有",$M$77,0) -> 0 | AD10: =IF(N10="スポンサー有",$M$77,0) -> 0 | AE10: =IF(O10="スポンサー有",$M$77,0) -> 0
A11: ➡ | E11: デザイン URL | F11: 入力してください | J11: 入力してください | N11: 入力してください | V11: =SUM(V7:V10) -> 0 | W11: =SUM(W7:W10) -> 0 | X11: =SUM(X7:X10) -> 0 | Z11: =SUM(Z7:Z10) -> 0 | AA11: =SUM(AA7:AA10) -> 0 | AB11: =SUM(AB7:AB10) -> 0 | AD11: =SUM(AD7:AD10) -> 0 | AE11: =SUM(AE7:AE10) -> 0 | AF11: =SUM(AF7:AF10) -> 0
B12: # | C12: 注文者氏名 | D12: マーキング名 | E12: 背番号 | F12: サイズ | J12: サイズ | N12: サイズ | R12: 個人別価格 | S12: 備考(お客様使用) | V12: 半袖シャツ | W12: 長袖シャツ | X12: パンツ | Y12: ソックス | Z12: 半袖シャツ | AA12: 長袖シャツ | AB12: パンツ | AC12: ソックス | AD12: 半袖シャツ | AE12: 長袖シャツ | AF12: パンツ | AG12: ソックス
B13: 例 | C13: 加藤貴行 | D13: T.KATO | E13: 10 | F13: M | G13: M | H13: L | I13: 25x27 | J13: M | K13: M | L13: L | M13: 25x27 | AI13: 個人名 | AJ13: 胸番号 １桁 | AK13: 胸番号 ２桁 | AL13: 背番号 １桁 | AM13: 背番号 ２桁 | AN13: パンツ番号 １桁 | AO13: パンツ番号 ２桁 | AP13: エンブレム | AQ13: チーム名 | AR13: メッセージ | AS13: スポンサーバナー
A14: ➡ | B14: 1 | R14: =SUM(V14:AG14) -> 0 | U14: =LEN(t_プラシャツ[[#This Row],[列3]]) -> 0 | V14: =IF(LEN(t_プラシャツ[[#This Row],[列4]])>0, $F$59+V$11+ IF(LEN(t_プラシャツ[[#This Row],[列2]])>0,$E$59,0)+ IF(AND(V$6=1,$U14=1),$M$69+$M$71, IF(AND(V$6=1,$U14>1),$M$70+$M$72, IF(AND(V$6=2,$U14=1),$M$69, IF(AND(V$6=2,$U14>1),$M$70, IF(AND(V$6=3,$U14=1),$M$71, IF(AND(V$6=3,$U14>1),$M$72, 0)))))),0) -> 0 | W14: =IF(LEN(t_プラシャツ[[#This Row],[列5]])>0, $G$59+W$11+ IF(LEN(t_プラシャツ[[#This Row],[列2]])>0,$E$59,0)+ IF(AND(W$6=1,$U14=1),$M$69+$M$71, IF(AND(W$6=1,$U14>1),$M$70+$M$72, IF(AND(W$6=2,$U14=1),$M$69, IF(AND(W$6=2,$U14>1),$M$70, IF(AND(W$6=3,$U14=1),$M$71, IF(AND(W$6=3,$U14>1),$M$72, 0)))))),0) -> 0 | X14: =IF(LEN(t_プラシャツ[[#This Row],[列6]])>0, $H$59+X$11+ IF(AND(X$6=1,$U14=1),$M$73, IF(AND(X$6=1,$U14>1),$M$74, 0)),0) -> 0 | Y14: =IF(LEN(t_プラシャツ[[#This Row],[列7]])>0,$I$59,0) -> 0 | Z14: =IF(LEN(t_プラシャツ[[#This Row],[列8]])>0, $F$59+Z$11+ IF(LEN(t_プラシャツ[[#This Row],[列2]])>0,$E$59,0)+ IF(AND(Z$6=1,$U14=1),$M$69+$M$71, IF(AND(Z$6=1,$U14>1),$M$70+$M$72, IF(AND(Z$6=2,$U14=1),$M$69, IF(AND(Z$6=2,$U14>1),$M$70, IF(AND(Z$6=3,$U14=1),$M$71, IF(AND(Z$6=3,$U14>1),$M$72, 0)))))),0) -> 0 | AA14: =IF(LEN(t_プラシャツ[[#This Row],[列9]])>0, $G$59+AA$11+ IF(LEN(t_プラシャツ[[#This Row],[列2]])>0,$E$59,0)+ IF(AND(AA$6=1,$U14=1),$M$69+$M$71, IF(AND(AA$6=1,$U14>1),$M$70+$M$72, IF(AND(AA$6=2,$U14=1),$M$69, IF(AND(AA$6=2,$U14>1),$M$70, IF(AND(AA$6=3,$U14=1),$M$71, IF(AND(AA$6=3,$U14>1),$M$72, 0)))))),0) -> 0 | AB14: =IF(LEN(t_プラシャツ[[#This Row],[列10]])>0, $H$59+AB$11+ IF(AND(AB$6=1,$U14=1),$M$73, IF(AND(AB$6=1,$U14>1),$M$74, 0)),0) -> 0 | AC14: =IF(LEN(t_プラシャツ[[#This Row],[列11]])>0,$I$59,0) -> 0 | AD14: =IF(LEN(t_プラシャツ[[#This Row],[列12]])>0, $F$59+AD$11+ IF(LEN(t_プラシャツ[[#This Row],[列2]])>0,$E$59,0)+ IF(AND(AD$6=1,$U14=1),$M$69+$M$71, IF(AND(AD$6=1,$U14>1),$M$70+$M$72, IF(AND(AD$6=2,$U14=1),$M$69, IF(AND(AD$6=2,$U14>1),$M$70, IF(AND(AD$6=3,$U14=1),$M$71, IF(AND(AD$6=3,$U14>1),$M$72, 0)))))),0) -> 0 | AE14: =IF(LEN(t_プラシャツ[[#This Row],[列13]])>0, $G$59+AE$11+ IF(LEN(t_プラシャツ[[#This Row],[列2]])>0,$E$59,0)+ IF(AND(AE$6=1,$U14=1),$M$69+$M$71, IF(AND(AE$6=1,$U14>1),$M$70+$M$72, IF(AND(AE$6=2,$U14=1),$M$69, IF(AND(AE$6=2,$U14>1),$M$70, IF(AND(AE$6=3,$U14=1),$M$71, IF(AND(AE$6=3,$U14>1),$M$72, 0)))))),0) -> 0 | AF14: =IF(LEN(t_プラシャツ[[#This Row],[列16]])>0, $H$59+AF$11+ IF(AND(AF$6=1,$U14=1),$M$73, IF(AND(AF$6=1,$U14>1),$M$74, 0)),0) -> 0 | AG14: =IF(LEN(t_プラシャツ[[#This Row],[列17]])>0,$I$59,0) -> 0 | AI14: =IF(LEN(t_プラシャツ[[#This Row],[列2]])>0,COUNTA(t_プラシャツ[[#This Row],[列4]:[列5]],t_プラシャツ[[#This Row],[列8]:[列9]],t_プラシャツ[[#This Row],[列12]:[列13]]),0) -> 0 | AJ14: =IF(AND($U14=1,OR($V$6=1,$V$6=2)),COUNTA(t_プラシャツ[[#This Row],[列4]]),0) + IF(AND($U14=1,OR($W$6=1,$W$6=2)),COUNTA(t_プラシャツ[[#This Row],[列5]]),0) + IF(AND($U14=1,OR($Z$6=1,$Z$6=2)),COUNTA(t_プラシャツ[[#This Row],[列8]]),0) + IF(AND($U14=1,OR($AA$6=1,$AA$6=2)),COUNTA(t_プラシャツ[[#This Row],[列9]]),0) + IF(AND($U14=1,OR($AD$6=1,$AD$6=2)),COUNTA(t_プラシャツ[[#This Row],[列12]]),0) + IF(AND($U14=1,OR($AE$6=1,$AE$6=2)),COUNTA(t_プラシャツ[[#This Row],[列13]]),0) -> 0 | AK14: =IF(AND($U14>1,OR($V$6=1,$V$6=2)),COUNTA(t_プラシャツ[[#This Row],[列4]]),0) + IF(AND($U14>1,OR($W$6=1,$W$6=2)),COUNTA(t_プラシャツ[[#This Row],[列5]]),0) + IF(AND($U14>1,OR($Z$6=1,$Z$6=2)),COUNTA(t_プラシャツ[[#This Row],[列8]]),0) + IF(AND($U14>1,OR($AA$6=1,$AA$6=2)),COUNTA(t_プラシャツ[[#This Row],[列9]]),0) + IF(AND($U14>1,OR($AD$6=1,$AD$6=2)),COUNTA(t_プラシャツ[[#This Row],[列12]]),0) + IF(AND($U14>1,OR($AE$6=1,$AE$6=2)),COUNTA(t_プラシャツ[[#This Row],[列13]]),0) -> 0 | AL14: =IF(AND($U14=1,OR($V$6=1,$V$6=3)),COUNTA(t_プラシャツ[[#This Row],[列4]]),0) + IF(AND($U14=1,OR($W$6=1,$W$6=3)),COUNTA(t_プラシャツ[[#This Row],[列5]]),0) + IF(AND($U14=1,OR($Z$6=1,$Z$6=3)),COUNTA(t_プラシャツ[[#This Row],[列8]]),0) + IF(AND($U14=1,OR($AA$6=1,$AA$6=3)),COUNTA(t_プラシャツ[[#This Row],[列9]]),0) + IF(AND($U14=1,OR($AD$6=1,$AD$6=3)),COUNTA(t_プラシャツ[[#This Row],[列12]]),0) + IF(AND($U14=1,OR($AE$6=1,$AE$6=3)),COUNTA(t_プラシャツ[[#This Row],[列13]]),0) -> 0 | AM14: =IF(AND($U14>1,OR($V$6=1,$V$6=3)),COUNTA(t_プラシャツ[[#This Row],[列4]]),0) + IF(AND($U14>1,OR($W$6=1,$W$6=3)),COUNTA(t_プラシャツ[[#This Row],[列5]]),0) + IF(AND($U14>1,OR($Z$6=1,$Z$6=3)),COUNTA(t_プラシャツ[[#This Row],[列8]]),0) + IF(AND($U14>1,OR($AA$6=1,$AA$6=3)),COUNTA(t_プラシャツ[[#This Row],[列9]]),0) + IF(AND($U14>1,OR($AD$6=1,$AD$6=3)),COUNTA(t_プラシャツ[[#This Row],[列12]]),0) + IF(AND($U14>1,OR($AE$6=1,$AE$6=3)),COUNTA(t_プラシャツ[[#This Row],[列13]]),0) -> 0 | AN14: =IF(AND($U14=1,$X$6=1),COUNTA(t_プラシャツ[[#This Row],[列6]]),0) + IF(AND($U14=1,$AB$6=1),COUNTA(t_プラシャツ[[#This Row],[列10]]),0) + IF(AND($U14=1,$AF$6=1),COUNTA(t_プラシャツ[[#This Row],[列16]]),0) -> 0 | AO14: =IF(AND($U14>1,$X$6=1),COUNTA(t_プラシャツ[[#This Row],[列6]]),0) + IF(AND($U14>1,$AB$6=1),COUNTA(t_プラシャツ[[#This Row],[列10]]),0) + IF(AND($U14>1,$AF$6=1),COUNTA(t_プラシャツ[[#This Row],[列16]]),0) -> 0 | AP14: =IF($V$7>0,COUNTA(t_プラシャツ[[#This Row],[列4]]),0) + IF($W$7>0,COUNTA(t_プラシャツ[[#This Row],[列5]]),0) + IF($X$7>0,COUNTA(t_プラシャツ[[#This Row],[列6]]),0) +IF($Z$7>0,COUNTA(t_プラシャツ[[#This Row],[列8]]),0) + IF($AA$7>0,COUNTA(t_プラシャツ[[#This Row],[列9]]),0) + IF($AB$7>0,COUNTA(t_プラシャツ[[#This Row],[列10]]),0) +IF($AD$7>0,COUNTA(t_プラシャツ[[#This Row],[列12]]),0) + IF($AE$7>0,COUNTA(t_プラシャツ[[#This Row],[列13]]),0) + IF($AF$7>0,COUNTA(t_プラシャツ[[#This Row],[列16]]),0) -> 0 | AQ14: =IF($V$8>0,COUNTA(t_プラシャツ[[#This Row],[列4]]),0) + IF($W$8>0,COUNTA(t_プラシャツ[[#This Row],[列5]]),0) +IF($Z$8>0,COUNTA(t_プラシャツ[[#This Row],[列8]]),0) + IF($AA$8>0,COUNTA(t_プラシャツ[[#This Row],[列9]]),0) +IF($AD$8>0,COUNTA(t_プラシャツ[[#This Row],[列12]]),0) + IF($AE$8>0,COUNTA(t_プラシャツ[[#This Row],[列13]]),0) -> 0 | AR14: =IF($V$9>0,COUNTA(t_プラシャツ[[#This Row],[列4]]),0) + IF($W$9>0,COUNTA(t_プラシャツ[[#This Row],[列5]]),0) +IF($Z$9>0,COUNTA(t_プラシャツ[[#This Row],[列8]]),0) + IF($AA$9>0,COUNTA(t_プラシャツ[[#This Row],[列9]]),0) +IF($AD$9>0,COUNTA(t_プラシャツ[[#This Row],[列12]]),0) + IF($AE$9>0,COUNTA(t_プラシャツ[[#This Row],[列13]]),0) -> 0 | AS14: =IF($V$10>0,COUNTA(t_プラシャツ[[#This Row],[列4]]),0) + IF($W$10>0,COUNTA(t_プラシャツ[[#This Row],[列5]]),0) +IF($Z$10>0,COUNTA(t_プラシャツ[[#This Row],[列8]]),0) + IF($AA$10>0,COUNTA(t_プラシャツ[[#This Row],[列9]]),0) +IF($AD$10>0,COUNTA(t_プラシャツ[[#This Row],[列12]]),0) + IF($AE$10>0,COUNTA(t_プラシャツ[[#This Row],[列13]]),0) -> 0
B15: 2 | R15: 0 | U15: =LEN(t_プラシャツ[[#This Row],[列3]]) -> 0 | V15: =IF(LEN(t_プラシャツ[[#This Row],[列4]])>0, $F$59+V$11+ IF(LEN(t_プラシャツ[[#This Row],[列2]])>0,$E$59,0)+ IF(AND(V$6=1,$U15=1),$M$69+$M$71, IF(AND(V$6=1,$U15>1),$M$70+$M$72, IF(AND(V$6=2,$U15=1),$M$69, IF(AND(V$6=2,$U15>1),$M$70, IF(AND(V$6=3,$U15=1),$M$71, IF(AND(V$6=3,$U15>1),$M$72, 0)))))),0) -> 0 | W15: =IF(LEN(t_プラシャツ[[#This Row],[列5]])>0, $G$59+W$11+ IF(LEN(t_プラシャツ[[#This Row],[列2]])>0,$E$59,0)+ IF(AND(W$6=1,$U15=1),$M$69+$M$71, IF(AND(W$6=1,$U15>1),$M$70+$M$72, IF(AND(W$6=2,$U15=1),$M$69, IF(AND(W$6=2,$U15>1),$M$70, IF(AND(W$6=3,$U15=1),$M$71, IF(AND(W$6=3,$U15>1),$M$72, 0)))))),0) -> 0 | X15: =IF(LEN(t_プラシャツ[[#This Row],[列6]])>0, $H$59+X$11+ IF(AND(X$6=1,$U15=1),$M$73, IF(AND(X$6=1,$U15>1),$M$74, 0)),0) -> 0 | Y15: =IF(LEN(t_プラシャツ[[#This Row],[列7]])>0,$I$59,0) -> 0 | Z15: =IF(LEN(t_プラシャツ[[#This Row],[列8]])>0, $F$59+Z$11+ IF(LEN(t_プラシャツ[[#This Row],[列2]])>0,$E$59,0)+ IF(AND(Z$6=1,$U15=1),$M$69+$M$71, IF(AND(Z$6=1,$U15>1),$M$70+$M$72, IF(AND(Z$6=2,$U15=1),$M$69, IF(AND(Z$6=2,$U15>1),$M$70, IF(AND(Z$6=3,$U15=1),$M$71, IF(AND(Z$6=3,$U15>1),$M$72, 0)))))),0) -> 0 | AA15: =IF(LEN(t_プラシャツ[[#This Row],[列9]])>0, $G$59+AA$11+ IF(LEN(t_プラシャツ[[#This Row],[列2]])>0,$E$59,0)+ IF(AND(AA$6=1,$U15=1),$M$69+$M$71, IF(AND(AA$6=1,$U15>1),$M$70+$M$72, IF(AND(AA$6=2,$U15=1),$M$69, IF(AND(AA$6=2,$U15>1),$M$70, IF(AND(AA$6=3,$U15=1),$M$71, IF(AND(AA$6=3,$U15>1),$M$72, 0)))))),0) -> 0 | AB15: =IF(LEN(t_プラシャツ[[#This Row],[列10]])>0, $H$59+AB$11+ IF(AND(AB$6=1,$U15=1),$M$73, IF(AND(AB$6=1,$U15>1),$M$74, 0)),0) -> 0 | AC15: =IF(LEN(t_プラシャツ[[#This Row],[列11]])>0,$I$59,0) -> 0 | AD15: =IF(LEN(t_プラシャツ[[#This Row],[列12]])>0, $F$59+AD$11+ IF(LEN(t_プラシャツ[[#This Row],[列2]])>0,$E$59,0)+ IF(AND(AD$6=1,$U15=1),$M$69+$M$71, IF(AND(AD$6=1,$U15>1),$M$70+$M$72, IF(AND(AD$6=2,$U15=1),$M$69, IF(AND(AD$6=2,$U15>1),$M$70, IF(AND(AD$6=3,$U15=1),$M$71, IF(AND(AD$6=3,$U15>1),$M$72, 0)))))),0) -> 0 | AE15: =IF(LEN(t_プラシャツ[[#This Row],[列13]])>0, $G$59+AE$11+ IF(LEN(t_プラシャツ[[#This Row],[列2]])>0,$E$59,0)+ IF(AND(AE$6=1,$U15=1),$M$69+$M$71, IF(AND(AE$6=1,$U15>1),$M$70+$M$72, IF(AND(AE$6=2,$U15=1),$M$69, IF(AND(AE$6=2,$U15>1),$M$70, IF(AND(AE$6=3,$U15=1),$M$71, IF(AND(AE$6=3,$U15>1),$M$72, 0)))))),0) -> 0 | AF15: =IF(LEN(t_プラシャツ[[#This Row],[列16]])>0, $H$59+AF$11+ IF(AND(AF$6=1,$U15=1),$M$73, IF(AND(AF$6=1,$U15>1),$M$74, 0)),0) -> 0 | AG15: =IF(LEN(t_プラシャツ[[#This Row],[列17]])>0,$I$59,0) -> 0 | AI15: =IF(LEN(t_プラシャツ[[#This Row],[列2]])>0,COUNTA(t_プラシャツ[[#This Row],[列4]:[列5]],t_プラシャツ[[#This Row],[列8]:[列9]],t_プラシャツ[[#This Row],[列12]:[列13]]),0) -> 0 | AJ15: =IF(AND($U15=1,OR($V$6=1,$V$6=2)),COUNTA(t_プラシャツ[[#This Row],[列4]]),0) + IF(AND($U15=1,OR($W$6=1,$W$6=2)),COUNTA(t_プラシャツ[[#This Row],[列5]]),0) + IF(AND($U15=1,OR($Z$6=1,$Z$6=2)),COUNTA(t_プラシャツ[[#This Row],[列8]]),0) + IF(AND($U15=1,OR($AA$6=1,$AA$6=2)),COUNTA(t_プラシャツ[[#This Row],[列9]]),0) + IF(AND($U15=1,OR($AD$6=1,$AD$6=2)),COUNTA(t_プラシャツ[[#This Row],[列12]]),0) + IF(AND($U15=1,OR($AE$6=1,$AE$6=2)),COUNTA(t_プラシャツ[[#This Row],[列13]]),0) -> 0 | AK15: =IF(AND($U15>1,OR($V$6=1,$V$6=2)),COUNTA(t_プラシャツ[[#This Row],[列4]]),0) + IF(AND($U15>1,OR($W$6=1,$W$6=2)),COUNTA(t_プラシャツ[[#This Row],[列5]]),0) + IF(AND($U15>1,OR($Z$6=1,$Z$6=2)),COUNTA(t_プラシャツ[[#This Row],[列8]]),0) + IF(AND($U15>1,OR($AA$6=1,$AA$6=2)),COUNTA(t_プラシャツ[[#This Row],[列9]]),0) + IF(AND($U15>1,OR($AD$6=1,$AD$6=2)),COUNTA(t_プラシャツ[[#This Row],[列12]]),0) + IF(AND($U15>1,OR($AE$6=1,$AE$6=2)),COUNTA(t_プラシャツ[[#This Row],[列13]]),0) -> 0 | AL15: =IF(AND($U15=1,OR($V$6=1,$V$6=3)),COUNTA(t_プラシャツ[[#This Row],[列4]]),0) + IF(AND($U15=1,OR($W$6=1,$W$6=3)),COUNTA(t_プラシャツ[[#This Row],[列5]]),0) + IF(AND($U15=1,OR($Z$6=1,$Z$6=3)),COUNTA(t_プラシャツ[[#This Row],[列8]]),0) + IF(AND($U15=1,OR($AA$6=1,$AA$6=3)),COUNTA(t_プラシャツ[[#This Row],[列9]]),0) + IF(AND($U15=1,OR($AD$6=1,$AD$6=3)),COUNTA(t_プラシャツ[[#This Row],[列12]]),0) + IF(AND($U15=1,OR($AE$6=1,$AE$6=3)),COUNTA(t_プラシャツ[[#This Row],[列13]]),0) -> 0 | AM15: =IF(AND($U15>1,OR($V$6=1,$V$6=3)),COUNTA(t_プラシャツ[[#This Row],[列4]]),0) + IF(AND($U15>1,OR($W$6=1,$W$6=3)),COUNTA(t_プラシャツ[[#This Row],[列5]]),0) + IF(AND($U15>1,OR($Z$6=1,$Z$6=3)),COUNTA(t_プラシャツ[[#This Row],[列8]]),0) + IF(AND($U15>1,OR($AA$6=1,$AA$6=3)),COUNTA(t_プラシャツ[[#This Row],[列9]]),0) + IF(AND($U15>1,OR($AD$6=1,$AD$6=3)),COUNTA(t_プラシャツ[[#This Row],[列12]]),0) + IF(AND($U15>1,OR($AE$6=1,$AE$6=3)),COUNTA(t_プラシャツ[[#This Row],[列13]]),0) -> 0 | AN15: =IF(AND($U15=1,$X$6=1),COUNTA(t_プラシャツ[[#This Row],[列6]]),0) + IF(AND($U15=1,$AB$6=1),COUNTA(t_プラシャツ[[#This Row],[列10]]),0) + IF(AND($U15=1,$AF$6=1),COUNTA(t_プラシャツ[[#This Row],[列16]]),0) -> 0 | AO15: =IF(AND($U15>1,$X$6=1),COUNTA(t_プラシャツ[[#This Row],[列6]]),0) + IF(AND($U15>1,$AB$6=1),COUNTA(t_プラシャツ[[#This Row],[列10]]),0) + IF(AND($U15>1,$AF$6=1),COUNTA(t_プラシャツ[[#This Row],[列16]]),0) -> 0 | AP15: =IF($V$7>0,COUNTA(t_プラシャツ[[#This Row],[列4]]),0) + IF($W$7>0,COUNTA(t_プラシャツ[[#This Row],[列5]]),0) + IF($X$7>0,COUNTA(t_プラシャツ[[#This Row],[列6]]),0) +IF($Z$7>0,COUNTA(t_プラシャツ[[#This Row],[列8]]),0) + IF($AA$7>0,COUNTA(t_プラシャツ[[#This Row],[列9]]),0) + IF($AB$7>0,COUNTA(t_プラシャツ[[#This Row],[列10]]),0) +IF($AD$7>0,COUNTA(t_プラシャツ[[#This Row],[列12]]),0) + IF($AE$7>0,COUNTA(t_プラシャツ[[#This Row],[列13]]),0) + IF($AF$7>0,COUNTA(t_プラシャツ[[#This Row],[列16]]),0) -> 0 | AQ15: =IF($V$8>0,COUNTA(t_プラシャツ[[#This Row],[列4]]),0) + IF($W$8>0,COUNTA(t_プラシャツ[[#This Row],[列5]]),0) +IF($Z$8>0,COUNTA(t_プラシャツ[[#This Row],[列8]]),0) + IF($AA$8>0,COUNTA(t_プラシャツ[[#This Row],[列9]]),0) +IF($AD$8>0,COUNTA(t_プラシャツ[[#This Row],[列12]]),0) + IF($AE$8>0,COUNTA(t_プラシャツ[[#This Row],[列13]]),0) -> 0 | AR15: =IF($V$9>0,COUNTA(t_プラシャツ[[#This Row],[列4]]),0) + IF($W$9>0,COUNTA(t_プラシャツ[[#This Row],[列5]]),0) +IF($Z$9>0,COUNTA(t_プラシャツ[[#This Row],[列8]]),0) + IF($AA$9>0,COUNTA(t_プラシャツ[[#This Row],[列9]]),0) +IF($AD$9>0,COUNTA(t_プラシャツ[[#This Row],[列12]]),0) + IF($AE$9>0,COUNTA(t_プラシャツ[[#This Row],[列13]]),0) -> 0 | AS15: =IF($V$10>0,COUNTA(t_プラシャツ[[#This Row],[列4]]),0) + IF($W$10>0,COUNTA(t_プラシャツ[[#This Row],[列5]]),0) +IF($Z$10>0,COUNTA(t_プラシャツ[[#This Row],[列8]]),0) + IF($AA$10>0,COUNTA(t_プラシャツ[[#This Row],[列9]]),0) +IF($AD$10>0,COUNTA(t_プラシャツ[[#This Row],[列12]]),0) + IF($AE$10>0,COUNTA(t_プラシャツ[[#This Row],[列13]]),0) -> 0
B16: 3 | R16: 0 | U16: =LEN(t_プラシャツ[[#This Row],[列3]]) -> 0 | V16: =IF(LEN(t_プラシャツ[[#This Row],[列4]])>0, $F$59+V$11+ IF(LEN(t_プラシャツ[[#This Row],[列2]])>0,$E$59,0)+ IF(AND(V$6=1,$U16=1),$M$69+$M$71, IF(AND(V$6=1,$U16>1),$M$70+$M$72, IF(AND(V$6=2,$U16=1),$M$69, IF(AND(V$6=2,$U16>1),$M$70, IF(AND(V$6=3,$U16=1),$M$71, IF(AND(V$6=3,$U16>1),$M$72, 0)))))),0) -> 0 | W16: =IF(LEN(t_プラシャツ[[#This Row],[列5]])>0, $G$59+W$11+ IF(LEN(t_プラシャツ[[#This Row],[列2]])>0,$E$59,0)+ IF(AND(W$6=1,$U16=1),$M$69+$M$71, IF(AND(W$6=1,$U16>1),$M$70+$M$72, IF(AND(W$6=2,$U16=1),$M$69, IF(AND(W$6=2,$U16>1),$M$70, IF(AND(W$6=3,$U16=1),$M$71, IF(AND(W$6=3,$U16>1),$M$72, 0)))))),0) -> 0 | X16: =IF(LEN(t_プラシャツ[[#This Row],[列6]])>0, $H$59+X$11+ IF(AND(X$6=1,$U16=1),$M$73, IF(AND(X$6=1,$U16>1),$M$74, 0)),0) -> 0 | Y16: =IF(LEN(t_プラシャツ[[#This Row],[列7]])>0,$I$59,0) -> 0 | Z16: =IF(LEN(t_プラシャツ[[#This Row],[列8]])>0, $F$59+Z$11+ IF(LEN(t_プラシャツ[[#This Row],[列2]])>0,$E$59,0)+ IF(AND(Z$6=1,$U16=1),$M$69+$M$71, IF(AND(Z$6=1,$U16>1),$M$70+$M$72, IF(AND(Z$6=2,$U16=1),$M$69, IF(AND(Z$6=2,$U16>1),$M$70, IF(AND(Z$6=3,$U16=1),$M$71, IF(AND(Z$6=3,$U16>1),$M$72, 0)))))),0) -> 0 | AA16: =IF(LEN(t_プラシャツ[[#This Row],[列9]])>0, $G$59+AA$11+ IF(LEN(t_プラシャツ[[#This Row],[列2]])>0,$E$59,0)+ IF(AND(AA$6=1,$U16=1),$M$69+$M$71, IF(AND(AA$6=1,$U16>1),$M$70+$M$72, IF(AND(AA$6=2,$U16=1),$M$69, IF(AND(AA$6=2,$U16>1),$M$70, IF(AND(AA$6=3,$U16=1),$M$71, IF(AND(AA$6=3,$U16>1),$M$72, 0)))))),0) -> 0 | AB16: =IF(LEN(t_プラシャツ[[#This Row],[列10]])>0, $H$59+AB$11+ IF(AND(AB$6=1,$U16=1),$M$73, IF(AND(AB$6=1,$U16>1),$M$74, 0)),0) -> 0 | AC16: =IF(LEN(t_プラシャツ[[#This Row],[列11]])>0,$I$59,0) -> 0 | AD16: =IF(LEN(t_プラシャツ[[#This Row],[列12]])>0, $F$59+AD$11+ IF(LEN(t_プラシャツ[[#This Row],[列2]])>0,$E$59,0)+ IF(AND(AD$6=1,$U16=1),$M$69+$M$71, IF(AND(AD$6=1,$U16>1),$M$70+$M$72, IF(AND(AD$6=2,$U16=1),$M$69, IF(AND(AD$6=2,$U16>1),$M$70, IF(AND(AD$6=3,$U16=1),$M$71, IF(AND(AD$6=3,$U16>1),$M$72, 0)))))),0) -> 0 | AE16: =IF(LEN(t_プラシャツ[[#This Row],[列13]])>0, $G$59+AE$11+ IF(LEN(t_プラシャツ[[#This Row],[列2]])>0,$E$59,0)+ IF(AND(AE$6=1,$U16=1),$M$69+$M$71, IF(AND(AE$6=1,$U16>1),$M$70+$M$72, IF(AND(AE$6=2,$U16=1),$M$69, IF(AND(AE$6=2,$U16>1),$M$70, IF(AND(AE$6=3,$U16=1),$M$71, IF(AND(AE$6=3,$U16>1),$M$72, 0)))))),0) -> 0 | AF16: =IF(LEN(t_プラシャツ[[#This Row],[列16]])>0, $H$59+AF$11+ IF(AND(AF$6=1,$U16=1),$M$73, IF(AND(AF$6=1,$U16>1),$M$74, 0)),0) -> 0 | AG16: =IF(LEN(t_プラシャツ[[#This Row],[列17]])>0,$I$59,0) -> 0 | AI16: =IF(LEN(t_プラシャツ[[#This Row],[列2]])>0,COUNTA(t_プラシャツ[[#This Row],[列4]:[列5]],t_プラシャツ[[#This Row],[列8]:[列9]],t_プラシャツ[[#This Row],[列12]:[列13]]),0) -> 0 | AJ16: =IF(AND($U16=1,OR($V$6=1,$V$6=2)),COUNTA(t_プラシャツ[[#This Row],[列4]]),0) + IF(AND($U16=1,OR($W$6=1,$W$6=2)),COUNTA(t_プラシャツ[[#This Row],[列5]]),0) + IF(AND($U16=1,OR($Z$6=1,$Z$6=2)),COUNTA(t_プラシャツ[[#This Row],[列8]]),0) + IF(AND($U16=1,OR($AA$6=1,$AA$6=2)),COUNTA(t_プラシャツ[[#This Row],[列9]]),0) + IF(AND($U16=1,OR($AD$6=1,$AD$6=2)),COUNTA(t_プラシャツ[[#This Row],[列12]]),0) + IF(AND($U16=1,OR($AE$6=1,$AE$6=2)),COUNTA(t_プラシャツ[[#This Row],[列13]]),0) -> 0 | AK16: =IF(AND($U16>1,OR($V$6=1,$V$6=2)),COUNTA(t_プラシャツ[[#This Row],[列4]]),0) + IF(AND($U16>1,OR($W$6=1,$W$6=2)),COUNTA(t_プラシャツ[[#This Row],[列5]]),0) + IF(AND($U16>1,OR($Z$6=1,$Z$6=2)),COUNTA(t_プラシャツ[[#This Row],[列8]]),0) + IF(AND($U16>1,OR($AA$6=1,$AA$6=2)),COUNTA(t_プラシャツ[[#This Row],[列9]]),0) + IF(AND($U16>1,OR($AD$6=1,$AD$6=2)),COUNTA(t_プラシャツ[[#This Row],[列12]]),0) + IF(AND($U16>1,OR($AE$6=1,$AE$6=2)),COUNTA(t_プラシャツ[[#This Row],[列13]]),0) -> 0 | AL16: =IF(AND($U16=1,OR($V$6=1,$V$6=3)),COUNTA(t_プラシャツ[[#This Row],[列4]]),0) + IF(AND($U16=1,OR($W$6=1,$W$6=3)),COUNTA(t_プラシャツ[[#This Row],[列5]]),0) + IF(AND($U16=1,OR($Z$6=1,$Z$6=3)),COUNTA(t_プラシャツ[[#This Row],[列8]]),0) + IF(AND($U16=1,OR($AA$6=1,$AA$6=3)),COUNTA(t_プラシャツ[[#This Row],[列9]]),0) + IF(AND($U16=1,OR($AD$6=1,$AD$6=3)),COUNTA(t_プラシャツ[[#This Row],[列12]]),0) + IF(AND($U16=1,OR($AE$6=1,$AE$6=3)),COUNTA(t_プラシャツ[[#This Row],[列13]]),0) -> 0 | AM16: =IF(AND($U16>1,OR($V$6=1,$V$6=3)),COUNTA(t_プラシャツ[[#This Row],[列4]]),0) + IF(AND($U16>1,OR($W$6=1,$W$6=3)),COUNTA(t_プラシャツ[[#This Row],[列5]]),0) + IF(AND($U16>1,OR($Z$6=1,$Z$6=3)),COUNTA(t_プラシャツ[[#This Row],[列8]]),0) + IF(AND($U16>1,OR($AA$6=1,$AA$6=3)),COUNTA(t_プラシャツ[[#This Row],[列9]]),0) + IF(AND($U16>1,OR($AD$6=1,$AD$6=3)),COUNTA(t_プラシャツ[[#This Row],[列12]]),0) + IF(AND($U16>1,OR($AE$6=1,$AE$6=3)),COUNTA(t_プラシャツ[[#This Row],[列13]]),0) -> 0 | AN16: =IF(AND($U16=1,$X$6=1),COUNTA(t_プラシャツ[[#This Row],[列6]]),0) + IF(AND($U16=1,$AB$6=1),COUNTA(t_プラシャツ[[#This Row],[列10]]),0) + IF(AND($U16=1,$AF$6=1),COUNTA(t_プラシャツ[[#This Row],[列16]]),0) -> 0 | AO16: =IF(AND($U16>1,$X$6=1),COUNTA(t_プラシャツ[[#This Row],[列6]]),0) + IF(AND($U16>1,$AB$6=1),COUNTA(t_プラシャツ[[#This Row],[列10]]),0) + IF(AND($U16>1,$AF$6=1),COUNTA(t_プラシャツ[[#This Row],[列16]]),0) -> 0 | AP16: =IF($V$7>0,COUNTA(t_プラシャツ[[#This Row],[列4]]),0) + IF($W$7>0,COUNTA(t_プラシャツ[[#This Row],[列5]]),0) + IF($X$7>0,COUNTA(t_プラシャツ[[#This Row],[列6]]),0) +IF($Z$7>0,COUNTA(t_プラシャツ[[#This Row],[列8]]),0) + IF($AA$7>0,COUNTA(t_プラシャツ[[#This Row],[列9]]),0) + IF($AB$7>0,COUNTA(t_プラシャツ[[#This Row],[列10]]),0) +IF($AD$7>0,COUNTA(t_プラシャツ[[#This Row],[列12]]),0) + IF($AE$7>0,COUNTA(t_プラシャツ[[#This Row],[列13]]),0) + IF($AF$7>0,COUNTA(t_プラシャツ[[#This Row],[列16]]),0) -> 0 | AQ16: =IF($V$8>0,COUNTA(t_プラシャツ[[#This Row],[列4]]),0) + IF($W$8>0,COUNTA(t_プラシャツ[[#This Row],[列5]]),0) +IF($Z$8>0,COUNTA(t_プラシャツ[[#This Row],[列8]]),0) + IF($AA$8>0,COUNTA(t_プラシャツ[[#This Row],[列9]]),0) +IF($AD$8>0,COUNTA(t_プラシャツ[[#This Row],[列12]]),0) + IF($AE$8>0,COUNTA(t_プラシャツ[[#This Row],[列13]]),0) -> 0 | AR16: =IF($V$9>0,COUNTA(t_プラシャツ[[#This Row],[列4]]),0) + IF($W$9>0,COUNTA(t_プラシャツ[[#This Row],[列5]]),0) +IF($Z$9>0,COUNTA(t_プラシャツ[[#This Row],[列8]]),0) + IF($AA$9>0,COUNTA(t_プラシャツ[[#This Row],[列9]]),0) +IF($AD$9>0,COUNTA(t_プラシャツ[[#This Row],[列12]]),0) + IF($AE$9>0,COUNTA(t_プラシャツ[[#This Row],[列13]]),0) -> 0 | AS16: =IF($V$10>0,COUNTA(t_プラシャツ[[#This Row],[列4]]),0) + IF($W$10>0,COUNTA(t_プラシャツ[[#This Row],[列5]]),0) +IF($Z$10>0,COUNTA(t_プラシャツ[[#This Row],[列8]]),0) + IF($AA$10>0,COUNTA(t_プラシャツ[[#This Row],[列9]]),0) +IF($AD$10>0,COUNTA(t_プラシャツ[[#This Row],[列12]]),0) + IF($AE$10>0,COUNTA(t_プラシャツ[[#This Row],[列13]]),0) -> 0
B17: 4 | R17: 0 | U17: =LEN(t_プラシャツ[[#This Row],[列3]]) -> 0 | V17: =IF(LEN(t_プラシャツ[[#This Row],[列4]])>0, $F$59+V$11+ IF(LEN(t_プラシャツ[[#This Row],[列2]])>0,$E$59,0)+ IF(AND(V$6=1,$U17=1),$M$69+$M$71, IF(AND(V$6=1,$U17>1),$M$70+$M$72, IF(AND(V$6=2,$U17=1),$M$69, IF(AND(V$6=2,$U17>1),$M$70, IF(AND(V$6=3,$U17=1),$M$71, IF(AND(V$6=3,$U17>1),$M$72, 0)))))),0) -> 0 | W17: =IF(LEN(t_プラシャツ[[#This Row],[列5]])>0, $G$59+W$11+ IF(LEN(t_プラシャツ[[#This Row],[列2]])>0,$E$59,0)+ IF(AND(W$6=1,$U17=1),$M$69+$M$71, IF(AND(W$6=1,$U17>1),$M$70+$M$72, IF(AND(W$6=2,$U17=1),$M$69, IF(AND(W$6=2,$U17>1),$M$70, IF(AND(W$6=3,$U17=1),$M$71, IF(AND(W$6=3,$U17>1),$M$72, 0)))))),0) -> 0 | X17: =IF(LEN(t_プラシャツ[[#This Row],[列6]])>0, $H$59+X$11+ IF(AND(X$6=1,$U17=1),$M$73, IF(AND(X$6=1,$U17>1),$M$74, 0)),0) -> 0 | Y17: =IF(LEN(t_プラシャツ[[#This Row],[列7]])>0,$I$59,0) -> 0 | Z17: =IF(LEN(t_プラシャツ[[#This Row],[列8]])>0, $F$59+Z$11+ IF(LEN(t_プラシャツ[[#This Row],[列2]])>0,$E$59,0)+ IF(AND(Z$6=1,$U17=1),$M$69+$M$71, IF(AND(Z$6=1,$U17>1),$M$70+$M$72, IF(AND(Z$6=2,$U17=1),$M$69, IF(AND(Z$6=2,$U17>1),$M$70, IF(AND(Z$6=3,$U17=1),$M$71, IF(AND(Z$6=3,$U17>1),$M$72, 0)))))),0) -> 0 | AA17: =IF(LEN(t_プラシャツ[[#This Row],[列9]])>0, $G$59+AA$11+ IF(LEN(t_プラシャツ[[#This Row],[列2]])>0,$E$59,0)+ IF(AND(AA$6=1,$U17=1),$M$69+$M$71, IF(AND(AA$6=1,$U17>1),$M$70+$M$72, IF(AND(AA$6=2,$U17=1),$M$69, IF(AND(AA$6=2,$U17>1),$M$70, IF(AND(AA$6=3,$U17=1),$M$71, IF(AND(AA$6=3,$U17>1),$M$72, 0)))))),0) -> 0 | AB17: =IF(LEN(t_プラシャツ[[#This Row],[列10]])>0, $H$59+AB$11+ IF(AND(AB$6=1,$U17=1),$M$73, IF(AND(AB$6=1,$U17>1),$M$74, 0)),0) -> 0 | AC17: =IF(LEN(t_プラシャツ[[#This Row],[列11]])>0,$I$59,0) -> 0 | AD17: =IF(LEN(t_プラシャツ[[#This Row],[列12]])>0, $F$59+AD$11+ IF(LEN(t_プラシャツ[[#This Row],[列2]])>0,$E$59,0)+ IF(AND(AD$6=1,$U17=1),$M$69+$M$71, IF(AND(AD$6=1,$U17>1),$M$70+$M$72, IF(AND(AD$6=2,$U17=1),$M$69, IF(AND(AD$6=2,$U17>1),$M$70, IF(AND(AD$6=3,$U17=1),$M$71, IF(AND(AD$6=3,$U17>1),$M$72, 0)))))),0) -> 0 | AE17: =IF(LEN(t_プラシャツ[[#This Row],[列13]])>0, $G$59+AE$11+ IF(LEN(t_プラシャツ[[#This Row],[列2]])>0,$E$59,0)+ IF(AND(AE$6=1,$U17=1),$M$69+$M$71, IF(AND(AE$6=1,$U17>1),$M$70+$M$72, IF(AND(AE$6=2,$U17=1),$M$69, IF(AND(AE$6=2,$U17>1),$M$70, IF(AND(AE$6=3,$U17=1),$M$71, IF(AND(AE$6=3,$U17>1),$M$72, 0)))))),0) -> 0 | AF17: =IF(LEN(t_プラシャツ[[#This Row],[列16]])>0, $H$59+AF$11+ IF(AND(AF$6=1,$U17=1),$M$73, IF(AND(AF$6=1,$U17>1),$M$74, 0)),0) -> 0 | AG17: =IF(LEN(t_プラシャツ[[#This Row],[列17]])>0,$I$59,0) -> 0 | AI17: =IF(LEN(t_プラシャツ[[#This Row],[列2]])>0,COUNTA(t_プラシャツ[[#This Row],[列4]:[列5]],t_プラシャツ[[#This Row],[列8]:[列9]],t_プラシャツ[[#This Row],[列12]:[列13]]),0) -> 0 | AJ17: =IF(AND($U17=1,OR($V$6=1,$V$6=2)),COUNTA(t_プラシャツ[[#This Row],[列4]]),0) + IF(AND($U17=1,OR($W$6=1,$W$6=2)),COUNTA(t_プラシャツ[[#This Row],[列5]]),0) + IF(AND($U17=1,OR($Z$6=1,$Z$6=2)),COUNTA(t_プラシャツ[[#This Row],[列8]]),0) + IF(AND($U17=1,OR($AA$6=1,$AA$6=2)),COUNTA(t_プラシャツ[[#This Row],[列9]]),0) + IF(AND($U17=1,OR($AD$6=1,$AD$6=2)),COUNTA(t_プラシャツ[[#This Row],[列12]]),0) + IF(AND($U17=1,OR($AE$6=1,$AE$6=2)),COUNTA(t_プラシャツ[[#This Row],[列13]]),0) -> 0 | AK17: =IF(AND($U17>1,OR($V$6=1,$V$6=2)),COUNTA(t_プラシャツ[[#This Row],[列4]]),0) + IF(AND($U17>1,OR($W$6=1,$W$6=2)),COUNTA(t_プラシャツ[[#This Row],[列5]]),0) + IF(AND($U17>1,OR($Z$6=1,$Z$6=2)),COUNTA(t_プラシャツ[[#This Row],[列8]]),0) + IF(AND($U17>1,OR($AA$6=1,$AA$6=2)),COUNTA(t_プラシャツ[[#This Row],[列9]]),0) + IF(AND($U17>1,OR($AD$6=1,$AD$6=2)),COUNTA(t_プラシャツ[[#This Row],[列12]]),0) + IF(AND($U17>1,OR($AE$6=1,$AE$6=2)),COUNTA(t_プラシャツ[[#This Row],[列13]]),0) -> 0 | AL17: =IF(AND($U17=1,OR($V$6=1,$V$6=3)),COUNTA(t_プラシャツ[[#This Row],[列4]]),0) + IF(AND($U17=1,OR($W$6=1,$W$6=3)),COUNTA(t_プラシャツ[[#This Row],[列5]]),0) + IF(AND($U17=1,OR($Z$6=1,$Z$6=3)),COUNTA(t_プラシャツ[[#This Row],[列8]]),0) + IF(AND($U17=1,OR($AA$6=1,$AA$6=3)),COUNTA(t_プラシャツ[[#This Row],[列9]]),0) + IF(AND($U17=1,OR($AD$6=1,$AD$6=3)),COUNTA(t_プラシャツ[[#This Row],[列12]]),0) + IF(AND($U17=1,OR($AE$6=1,$AE$6=3)),COUNTA(t_プラシャツ[[#This Row],[列13]]),0) -> 0 | AM17: =IF(AND($U17>1,OR($V$6=1,$V$6=3)),COUNTA(t_プラシャツ[[#This Row],[列4]]),0) + IF(AND($U17>1,OR($W$6=1,$W$6=3)),COUNTA(t_プラシャツ[[#This Row],[列5]]),0) + IF(AND($U17>1,OR($Z$6=1,$Z$6=3)),COUNTA(t_プラシャツ[[#This Row],[列8]]),0) + IF(AND($U17>1,OR($AA$6=1,$AA$6=3)),COUNTA(t_プラシャツ[[#This Row],[列9]]),0) + IF(AND($U17>1,OR($AD$6=1,$AD$6=3)),COUNTA(t_プラシャツ[[#This Row],[列12]]),0) + IF(AND($U17>1,OR($AE$6=1,$AE$6=3)),COUNTA(t_プラシャツ[[#This Row],[列13]]),0) -> 0 | AN17: =IF(AND($U17=1,$X$6=1),COUNTA(t_プラシャツ[[#This Row],[列6]]),0) + IF(AND($U17=1,$AB$6=1),COUNTA(t_プラシャツ[[#This Row],[列10]]),0) + IF(AND($U17=1,$AF$6=1),COUNTA(t_プラシャツ[[#This Row],[列16]]),0) -> 0 | AO17: =IF(AND($U17>1,$X$6=1),COUNTA(t_プラシャツ[[#This Row],[列6]]),0) + IF(AND($U17>1,$AB$6=1),COUNTA(t_プラシャツ[[#This Row],[列10]]),0) + IF(AND($U17>1,$AF$6=1),COUNTA(t_プラシャツ[[#This Row],[列16]]),0) -> 0 | AP17: =IF($V$7>0,COUNTA(t_プラシャツ[[#This Row],[列4]]),0) + IF($W$7>0,COUNTA(t_プラシャツ[[#This Row],[列5]]),0) + IF($X$7>0,COUNTA(t_プラシャツ[[#This Row],[列6]]),0) +IF($Z$7>0,COUNTA(t_プラシャツ[[#This Row],[列8]]),0) + IF($AA$7>0,COUNTA(t_プラシャツ[[#This Row],[列9]]),0) + IF($AB$7>0,COUNTA(t_プラシャツ[[#This Row],[列10]]),0) +IF($AD$7>0,COUNTA(t_プラシャツ[[#This Row],[列12]]),0) + IF($AE$7>0,COUNTA(t_プラシャツ[[#This Row],[列13]]),0) + IF($AF$7>0,COUNTA(t_プラシャツ[[#This Row],[列16]]),0) -> 0 | AQ17: =IF($V$8>0,COUNTA(t_プラシャツ[[#This Row],[列4]]),0) + IF($W$8>0,COUNTA(t_プラシャツ[[#This Row],[列5]]),0) +IF($Z$8>0,COUNTA(t_プラシャツ[[#This Row],[列8]]),0) + IF($AA$8>0,COUNTA(t_プラシャツ[[#This Row],[列9]]),0) +IF($AD$8>0,COUNTA(t_プラシャツ[[#This Row],[列12]]),0) + IF($AE$8>0,COUNTA(t_プラシャツ[[#This Row],[列13]]),0) -> 0 | AR17: =IF($V$9>0,COUNTA(t_プラシャツ[[#This Row],[列4]]),0) + IF($W$9>0,COUNTA(t_プラシャツ[[#This Row],[列5]]),0) +IF($Z$9>0,COUNTA(t_プラシャツ[[#This Row],[列8]]),0) + IF($AA$9>0,COUNTA(t_プラシャツ[[#This Row],[列9]]),0) +IF($AD$9>0,COUNTA(t_プラシャツ[[#This Row],[列12]]),0) + IF($AE$9>0,COUNTA(t_プラシャツ[[#This Row],[列13]]),0) -> 0 | AS17: =IF($V$10>0,COUNTA(t_プラシャツ[[#This Row],[列4]]),0) + IF($W$10>0,COUNTA(t_プラシャツ[[#This Row],[列5]]),0) +IF($Z$10>0,COUNTA(t_プラシャツ[[#This Row],[列8]]),0) + IF($AA$10>0,COUNTA(t_プラシャツ[[#This Row],[列9]]),0) +IF($AD$10>0,COUNTA(t_プラシャツ[[#This Row],[列12]]),0) + IF($AE$10>0,COUNTA(t_プラシャツ[[#This Row],[列13]]),0) -> 0
B18: 5 | R18: 0 | U18: =LEN(t_プラシャツ[[#This Row],[列3]]) -> 0 | V18: =IF(LEN(t_プラシャツ[[#This Row],[列4]])>0, $F$59+V$11+ IF(LEN(t_プラシャツ[[#This Row],[列2]])>0,$E$59,0)+ IF(AND(V$6=1,$U18=1),$M$69+$M$71, IF(AND(V$6=1,$U18>1),$M$70+$M$72, IF(AND(V$6=2,$U18=1),$M$69, IF(AND(V$6=2,$U18>1),$M$70, IF(AND(V$6=3,$U18=1),$M$71, IF(AND(V$6=3,$U18>1),$M$72, 0)))))),0) -> 0 | W18: =IF(LEN(t_プラシャツ[[#This Row],[列5]])>0, $G$59+W$11+ IF(LEN(t_プラシャツ[[#This Row],[列2]])>0,$E$59,0)+ IF(AND(W$6=1,$U18=1),$M$69+$M$71, IF(AND(W$6=1,$U18>1),$M$70+$M$72, IF(AND(W$6=2,$U18=1),$M$69, IF(AND(W$6=2,$U18>1),$M$70, IF(AND(W$6=3,$U18=1),$M$71, IF(AND(W$6=3,$U18>1),$M$72, 0)))))),0) -> 0 | X18: =IF(LEN(t_プラシャツ[[#This Row],[列6]])>0, $H$59+X$11+ IF(AND(X$6=1,$U18=1),$M$73, IF(AND(X$6=1,$U18>1),$M$74, 0)),0) -> 0 | Y18: =IF(LEN(t_プラシャツ[[#This Row],[列7]])>0,$I$59,0) -> 0 | Z18: =IF(LEN(t_プラシャツ[[#This Row],[列8]])>0, $F$59+Z$11+ IF(LEN(t_プラシャツ[[#This Row],[列2]])>0,$E$59,0)+ IF(AND(Z$6=1,$U18=1),$M$69+$M$71, IF(AND(Z$6=1,$U18>1),$M$70+$M$72, IF(AND(Z$6=2,$U18=1),$M$69, IF(AND(Z$6=2,$U18>1),$M$70, IF(AND(Z$6=3,$U18=1),$M$71, IF(AND(Z$6=3,$U18>1),$M$72, 0)))))),0) -> 0 | AA18: =IF(LEN(t_プラシャツ[[#This Row],[列9]])>0, $G$59+AA$11+ IF(LEN(t_プラシャツ[[#This Row],[列2]])>0,$E$59,0)+ IF(AND(AA$6=1,$U18=1),$M$69+$M$71, IF(AND(AA$6=1,$U18>1),$M$70+$M$72, IF(AND(AA$6=2,$U18=1),$M$69, IF(AND(AA$6=2,$U18>1),$M$70, IF(AND(AA$6=3,$U18=1),$M$71, IF(AND(AA$6=3,$U18>1),$M$72, 0)))))),0) -> 0 | AB18: =IF(LEN(t_プラシャツ[[#This Row],[列10]])>0, $H$59+AB$11+ IF(AND(AB$6=1,$U18=1),$M$73, IF(AND(AB$6=1,$U18>1),$M$74, 0)),0) -> 0 | AC18: =IF(LEN(t_プラシャツ[[#This Row],[列11]])>0,$I$59,0) -> 0 | AD18: =IF(LEN(t_プラシャツ[[#This Row],[列12]])>0, $F$59+AD$11+ IF(LEN(t_プラシャツ[[#This Row],[列2]])>0,$E$59,0)+ IF(AND(AD$6=1,$U18=1),$M$69+$M$71, IF(AND(AD$6=1,$U18>1),$M$70+$M$72, IF(AND(AD$6=2,$U18=1),$M$69, IF(AND(AD$6=2,$U18>1),$M$70, IF(AND(AD$6=3,$U18=1),$M$71, IF(AND(AD$6=3,$U18>1),$M$72, 0)))))),0) -> 0 | AE18: =IF(LEN(t_プラシャツ[[#This Row],[列13]])>0, $G$59+AE$11+ IF(LEN(t_プラシャツ[[#This Row],[列2]])>0,$E$59,0)+ IF(AND(AE$6=1,$U18=1),$M$69+$M$71, IF(AND(AE$6=1,$U18>1),$M$70+$M$72, IF(AND(AE$6=2,$U18=1),$M$69, IF(AND(AE$6=2,$U18>1),$M$70, IF(AND(AE$6=3,$U18=1),$M$71, IF(AND(AE$6=3,$U18>1),$M$72, 0)))))),0) -> 0 | AF18: =IF(LEN(t_プラシャツ[[#This Row],[列16]])>0, $H$59+AF$11+ IF(AND(AF$6=1,$U18=1),$M$73, IF(AND(AF$6=1,$U18>1),$M$74, 0)),0) -> 0 | AG18: =IF(LEN(t_プラシャツ[[#This Row],[列17]])>0,$I$59,0) -> 0 | AI18: =IF(LEN(t_プラシャツ[[#This Row],[列2]])>0,COUNTA(t_プラシャツ[[#This Row],[列4]:[列5]],t_プラシャツ[[#This Row],[列8]:[列9]],t_プラシャツ[[#This Row],[列12]:[列13]]),0) -> 0 | AJ18: =IF(AND($U18=1,OR($V$6=1,$V$6=2)),COUNTA(t_プラシャツ[[#This Row],[列4]]),0) + IF(AND($U18=1,OR($W$6=1,$W$6=2)),COUNTA(t_プラシャツ[[#This Row],[列5]]),0) + IF(AND($U18=1,OR($Z$6=1,$Z$6=2)),COUNTA(t_プラシャツ[[#This Row],[列8]]),0) + IF(AND($U18=1,OR($AA$6=1,$AA$6=2)),COUNTA(t_プラシャツ[[#This Row],[列9]]),0) + IF(AND($U18=1,OR($AD$6=1,$AD$6=2)),COUNTA(t_プラシャツ[[#This Row],[列12]]),0) + IF(AND($U18=1,OR($AE$6=1,$AE$6=2)),COUNTA(t_プラシャツ[[#This Row],[列13]]),0) -> 0 | AK18: =IF(AND($U18>1,OR($V$6=1,$V$6=2)),COUNTA(t_プラシャツ[[#This Row],[列4]]),0) + IF(AND($U18>1,OR($W$6=1,$W$6=2)),COUNTA(t_プラシャツ[[#This Row],[列5]]),0) + IF(AND($U18>1,OR($Z$6=1,$Z$6=2)),COUNTA(t_プラシャツ[[#This Row],[列8]]),0) + IF(AND($U18>1,OR($AA$6=1,$AA$6=2)),COUNTA(t_プラシャツ[[#This Row],[列9]]),0) + IF(AND($U18>1,OR($AD$6=1,$AD$6=2)),COUNTA(t_プラシャツ[[#This Row],[列12]]),0) + IF(AND($U18>1,OR($AE$6=1,$AE$6=2)),COUNTA(t_プラシャツ[[#This Row],[列13]]),0) -> 0 | AL18: =IF(AND($U18=1,OR($V$6=1,$V$6=3)),COUNTA(t_プラシャツ[[#This Row],[列4]]),0) + IF(AND($U18=1,OR($W$6=1,$W$6=3)),COUNTA(t_プラシャツ[[#This Row],[列5]]),0) + IF(AND($U18=1,OR($Z$6=1,$Z$6=3)),COUNTA(t_プラシャツ[[#This Row],[列8]]),0) + IF(AND($U18=1,OR($AA$6=1,$AA$6=3)),COUNTA(t_プラシャツ[[#This Row],[列9]]),0) + IF(AND($U18=1,OR($AD$6=1,$AD$6=3)),COUNTA(t_プラシャツ[[#This Row],[列12]]),0) + IF(AND($U18=1,OR($AE$6=1,$AE$6=3)),COUNTA(t_プラシャツ[[#This Row],[列13]]),0) -> 0 | AM18: =IF(AND($U18>1,OR($V$6=1,$V$6=3)),COUNTA(t_プラシャツ[[#This Row],[列4]]),0) + IF(AND($U18>1,OR($W$6=1,$W$6=3)),COUNTA(t_プラシャツ[[#This Row],[列5]]),0) + IF(AND($U18>1,OR($Z$6=1,$Z$6=3)),COUNTA(t_プラシャツ[[#This Row],[列8]]),0) + IF(AND($U18>1,OR($AA$6=1,$AA$6=3)),COUNTA(t_プラシャツ[[#This Row],[列9]]),0) + IF(AND($U18>1,OR($AD$6=1,$AD$6=3)),COUNTA(t_プラシャツ[[#This Row],[列12]]),0) + IF(AND($U18>1,OR($AE$6=1,$AE$6=3)),COUNTA(t_プラシャツ[[#This Row],[列13]]),0) -> 0 | AN18: =IF(AND($U18=1,$X$6=1),COUNTA(t_プラシャツ[[#This Row],[列6]]),0) + IF(AND($U18=1,$AB$6=1),COUNTA(t_プラシャツ[[#This Row],[列10]]),0) + IF(AND($U18=1,$AF$6=1),COUNTA(t_プラシャツ[[#This Row],[列16]]),0) -> 0 | AO18: =IF(AND($U18>1,$X$6=1),COUNTA(t_プラシャツ[[#This Row],[列6]]),0) + IF(AND($U18>1,$AB$6=1),COUNTA(t_プラシャツ[[#This Row],[列10]]),0) + IF(AND($U18>1,$AF$6=1),COUNTA(t_プラシャツ[[#This Row],[列16]]),0) -> 0 | AP18: =IF($V$7>0,COUNTA(t_プラシャツ[[#This Row],[列4]]),0) + IF($W$7>0,COUNTA(t_プラシャツ[[#This Row],[列5]]),0) + IF($X$7>0,COUNTA(t_プラシャツ[[#This Row],[列6]]),0) +IF($Z$7>0,COUNTA(t_プラシャツ[[#This Row],[列8]]),0) + IF($AA$7>0,COUNTA(t_プラシャツ[[#This Row],[列9]]),0) + IF($AB$7>0,COUNTA(t_プラシャツ[[#This Row],[列10]]),0) +IF($AD$7>0,COUNTA(t_プラシャツ[[#This Row],[列12]]),0) + IF($AE$7>0,COUNTA(t_プラシャツ[[#This Row],[列13]]),0) + IF($AF$7>0,COUNTA(t_プラシャツ[[#This Row],[列16]]),0) -> 0 | AQ18: =IF($V$8>0,COUNTA(t_プラシャツ[[#This Row],[列4]]),0) + IF($W$8>0,COUNTA(t_プラシャツ[[#This Row],[列5]]),0) +IF($Z$8>0,COUNTA(t_プラシャツ[[#This Row],[列8]]),0) + IF($AA$8>0,COUNTA(t_プラシャツ[[#This Row],[列9]]),0) +IF($AD$8>0,COUNTA(t_プラシャツ[[#This Row],[列12]]),0) + IF($AE$8>0,COUNTA(t_プラシャツ[[#This Row],[列13]]),0) -> 0 | AR18: =IF($V$9>0,COUNTA(t_プラシャツ[[#This Row],[列4]]),0) + IF($W$9>0,COUNTA(t_プラシャツ[[#This Row],[列5]]),0) +IF($Z$9>0,COUNTA(t_プラシャツ[[#This Row],[列8]]),0) + IF($AA$9>0,COUNTA(t_プラシャツ[[#This Row],[列9]]),0) +IF($AD$9>0,COUNTA(t_プラシャツ[[#This Row],[列12]]),0) + IF($AE$9>0,COUNTA(t_プラシャツ[[#This Row],[列13]]),0) -> 0 | AS18: =IF($V$10>0,COUNTA(t_プラシャツ[[#This Row],[列4]]),0) + IF($W$10>0,COUNTA(t_プラシャツ[[#This Row],[列5]]),0) +IF($Z$10>0,COUNTA(t_プラシャツ[[#This Row],[列8]]),0) + IF($AA$10>0,COUNTA(t_プラシャツ[[#This Row],[列9]]),0) +IF($AD$10>0,COUNTA(t_プラシャツ[[#This Row],[列12]]),0) + IF($AE$10>0,COUNTA(t_プラシャツ[[#This Row],[列13]]),0) -> 0
B19: 6 | R19: 0 | U19: =LEN(t_プラシャツ[[#This Row],[列3]]) -> 0 | V19: =IF(LEN(t_プラシャツ[[#This Row],[列4]])>0, $F$59+V$11+ IF(LEN(t_プラシャツ[[#This Row],[列2]])>0,$E$59,0)+ IF(AND(V$6=1,$U19=1),$M$69+$M$71, IF(AND(V$6=1,$U19>1),$M$70+$M$72, IF(AND(V$6=2,$U19=1),$M$69, IF(AND(V$6=2,$U19>1),$M$70, IF(AND(V$6=3,$U19=1),$M$71, IF(AND(V$6=3,$U19>1),$M$72, 0)))))),0) -> 0 | W19: =IF(LEN(t_プラシャツ[[#This Row],[列5]])>0, $G$59+W$11+ IF(LEN(t_プラシャツ[[#This Row],[列2]])>0,$E$59,0)+ IF(AND(W$6=1,$U19=1),$M$69+$M$71, IF(AND(W$6=1,$U19>1),$M$70+$M$72, IF(AND(W$6=2,$U19=1),$M$69, IF(AND(W$6=2,$U19>1),$M$70, IF(AND(W$6=3,$U19=1),$M$71, IF(AND(W$6=3,$U19>1),$M$72, 0)))))),0) -> 0 | X19: =IF(LEN(t_プラシャツ[[#This Row],[列6]])>0, $H$59+X$11+ IF(AND(X$6=1,$U19=1),$M$73, IF(AND(X$6=1,$U19>1),$M$74, 0)),0) -> 0 | Y19: =IF(LEN(t_プラシャツ[[#This Row],[列7]])>0,$I$59,0) -> 0 | Z19: =IF(LEN(t_プラシャツ[[#This Row],[列8]])>0, $F$59+Z$11+ IF(LEN(t_プラシャツ[[#This Row],[列2]])>0,$E$59,0)+ IF(AND(Z$6=1,$U19=1),$M$69+$M$71, IF(AND(Z$6=1,$U19>1),$M$70+$M$72, IF(AND(Z$6=2,$U19=1),$M$69, IF(AND(Z$6=2,$U19>1),$M$70, IF(AND(Z$6=3,$U19=1),$M$71, IF(AND(Z$6=3,$U19>1),$M$72, 0)))))),0) -> 0 | AA19: =IF(LEN(t_プラシャツ[[#This Row],[列9]])>0, $G$59+AA$11+ IF(LEN(t_プラシャツ[[#This Row],[列2]])>0,$E$59,0)+ IF(AND(AA$6=1,$U19=1),$M$69+$M$71, IF(AND(AA$6=1,$U19>1),$M$70+$M$72, IF(AND(AA$6=2,$U19=1),$M$69, IF(AND(AA$6=2,$U19>1),$M$70, IF(AND(AA$6=3,$U19=1),$M$71, IF(AND(AA$6=3,$U19>1),$M$72, 0)))))),0) -> 0 | AB19: =IF(LEN(t_プラシャツ[[#This Row],[列10]])>0, $H$59+AB$11+ IF(AND(AB$6=1,$U19=1),$M$73, IF(AND(AB$6=1,$U19>1),$M$74, 0)),0) -> 0 | AC19: =IF(LEN(t_プラシャツ[[#This Row],[列11]])>0,$I$59,0) -> 0 | AD19: =IF(LEN(t_プラシャツ[[#This Row],[列12]])>0, $F$59+AD$11+ IF(LEN(t_プラシャツ[[#This Row],[列2]])>0,$E$59,0)+ IF(AND(AD$6=1,$U19=1),$M$69+$M$71, IF(AND(AD$6=1,$U19>1),$M$70+$M$72, IF(AND(AD$6=2,$U19=1),$M$69, IF(AND(AD$6=2,$U19>1),$M$70, IF(AND(AD$6=3,$U19=1),$M$71, IF(AND(AD$6=3,$U19>1),$M$72, 0)))))),0) -> 0 | AE19: =IF(LEN(t_プラシャツ[[#This Row],[列13]])>0, $G$59+AE$11+ IF(LEN(t_プラシャツ[[#This Row],[列2]])>0,$E$59,0)+ IF(AND(AE$6=1,$U19=1),$M$69+$M$71, IF(AND(AE$6=1,$U19>1),$M$70+$M$72, IF(AND(AE$6=2,$U19=1),$M$69, IF(AND(AE$6=2,$U19>1),$M$70, IF(AND(AE$6=3,$U19=1),$M$71, IF(AND(AE$6=3,$U19>1),$M$72, 0)))))),0) -> 0 | AF19: =IF(LEN(t_プラシャツ[[#This Row],[列16]])>0, $H$59+AF$11+ IF(AND(AF$6=1,$U19=1),$M$73, IF(AND(AF$6=1,$U19>1),$M$74, 0)),0) -> 0 | AG19: =IF(LEN(t_プラシャツ[[#This Row],[列17]])>0,$I$59,0) -> 0 | AI19: =IF(LEN(t_プラシャツ[[#This Row],[列2]])>0,COUNTA(t_プラシャツ[[#This Row],[列4]:[列5]],t_プラシャツ[[#This Row],[列8]:[列9]],t_プラシャツ[[#This Row],[列12]:[列13]]),0) -> 0 | AJ19: =IF(AND($U19=1,OR($V$6=1,$V$6=2)),COUNTA(t_プラシャツ[[#This Row],[列4]]),0) + IF(AND($U19=1,OR($W$6=1,$W$6=2)),COUNTA(t_プラシャツ[[#This Row],[列5]]),0) + IF(AND($U19=1,OR($Z$6=1,$Z$6=2)),COUNTA(t_プラシャツ[[#This Row],[列8]]),0) + IF(AND($U19=1,OR($AA$6=1,$AA$6=2)),COUNTA(t_プラシャツ[[#This Row],[列9]]),0) + IF(AND($U19=1,OR($AD$6=1,$AD$6=2)),COUNTA(t_プラシャツ[[#This Row],[列12]]),0) + IF(AND($U19=1,OR($AE$6=1,$AE$6=2)),COUNTA(t_プラシャツ[[#This Row],[列13]]),0) -> 0 | AK19: =IF(AND($U19>1,OR($V$6=1,$V$6=2)),COUNTA(t_プラシャツ[[#This Row],[列4]]),0) + IF(AND($U19>1,OR($W$6=1,$W$6=2)),COUNTA(t_プラシャツ[[#This Row],[列5]]),0) + IF(AND($U19>1,OR($Z$6=1,$Z$6=2)),COUNTA(t_プラシャツ[[#This Row],[列8]]),0) + IF(AND($U19>1,OR($AA$6=1,$AA$6=2)),COUNTA(t_プラシャツ[[#This Row],[列9]]),0) + IF(AND($U19>1,OR($AD$6=1,$AD$6=2)),COUNTA(t_プラシャツ[[#This Row],[列12]]),0) + IF(AND($U19>1,OR($AE$6=1,$AE$6=2)),COUNTA(t_プラシャツ[[#This Row],[列13]]),0) -> 0 | AL19: =IF(AND($U19=1,OR($V$6=1,$V$6=3)),COUNTA(t_プラシャツ[[#This Row],[列4]]),0) + IF(AND($U19=1,OR($W$6=1,$W$6=3)),COUNTA(t_プラシャツ[[#This Row],[列5]]),0) + IF(AND($U19=1,OR($Z$6=1,$Z$6=3)),COUNTA(t_プラシャツ[[#This Row],[列8]]),0) + IF(AND($U19=1,OR($AA$6=1,$AA$6=3)),COUNTA(t_プラシャツ[[#This Row],[列9]]),0) + IF(AND($U19=1,OR($AD$6=1,$AD$6=3)),COUNTA(t_プラシャツ[[#This Row],[列12]]),0) + IF(AND($U19=1,OR($AE$6=1,$AE$6=3)),COUNTA(t_プラシャツ[[#This Row],[列13]]),0) -> 0 | AM19: =IF(AND($U19>1,OR($V$6=1,$V$6=3)),COUNTA(t_プラシャツ[[#This Row],[列4]]),0) + IF(AND($U19>1,OR($W$6=1,$W$6=3)),COUNTA(t_プラシャツ[[#This Row],[列5]]),0) + IF(AND($U19>1,OR($Z$6=1,$Z$6=3)),COUNTA(t_プラシャツ[[#This Row],[列8]]),0) + IF(AND($U19>1,OR($AA$6=1,$AA$6=3)),COUNTA(t_プラシャツ[[#This Row],[列9]]),0) + IF(AND($U19>1,OR($AD$6=1,$AD$6=3)),COUNTA(t_プラシャツ[[#This Row],[列12]]),0) + IF(AND($U19>1,OR($AE$6=1,$AE$6=3)),COUNTA(t_プラシャツ[[#This Row],[列13]]),0) -> 0 | AN19: =IF(AND($U19=1,$X$6=1),COUNTA(t_プラシャツ[[#This Row],[列6]]),0) + IF(AND($U19=1,$AB$6=1),COUNTA(t_プラシャツ[[#This Row],[列10]]),0) + IF(AND($U19=1,$AF$6=1),COUNTA(t_プラシャツ[[#This Row],[列16]]),0) -> 0 | AO19: =IF(AND($U19>1,$X$6=1),COUNTA(t_プラシャツ[[#This Row],[列6]]),0) + IF(AND($U19>1,$AB$6=1),COUNTA(t_プラシャツ[[#This Row],[列10]]),0) + IF(AND($U19>1,$AF$6=1),COUNTA(t_プラシャツ[[#This Row],[列16]]),0) -> 0 | AP19: =IF($V$7>0,COUNTA(t_プラシャツ[[#This Row],[列4]]),0) + IF($W$7>0,COUNTA(t_プラシャツ[[#This Row],[列5]]),0) + IF($X$7>0,COUNTA(t_プラシャツ[[#This Row],[列6]]),0) +IF($Z$7>0,COUNTA(t_プラシャツ[[#This Row],[列8]]),0) + IF($AA$7>0,COUNTA(t_プラシャツ[[#This Row],[列9]]),0) + IF($AB$7>0,COUNTA(t_プラシャツ[[#This Row],[列10]]),0) +IF($AD$7>0,COUNTA(t_プラシャツ[[#This Row],[列12]]),0) + IF($AE$7>0,COUNTA(t_プラシャツ[[#This Row],[列13]]),0) + IF($AF$7>0,COUNTA(t_プラシャツ[[#This Row],[列16]]),0) -> 0 | AQ19: =IF($V$8>0,COUNTA(t_プラシャツ[[#This Row],[列4]]),0) + IF($W$8>0,COUNTA(t_プラシャツ[[#This Row],[列5]]),0) +IF($Z$8>0,COUNTA(t_プラシャツ[[#This Row],[列8]]),0) + IF($AA$8>0,COUNTA(t_プラシャツ[[#This Row],[列9]]),0) +IF($AD$8>0,COUNTA(t_プラシャツ[[#This Row],[列12]]),0) + IF($AE$8>0,COUNTA(t_プラシャツ[[#This Row],[列13]]),0) -> 0 | AR19: =IF($V$9>0,COUNTA(t_プラシャツ[[#This Row],[列4]]),0) + IF($W$9>0,COUNTA(t_プラシャツ[[#This Row],[列5]]),0) +IF($Z$9>0,COUNTA(t_プラシャツ[[#This Row],[列8]]),0) + IF($AA$9>0,COUNTA(t_プラシャツ[[#This Row],[列9]]),0) +IF($AD$9>0,COUNTA(t_プラシャツ[[#This Row],[列12]]),0) + IF($AE$9>0,COUNTA(t_プラシャツ[[#This Row],[列13]]),0) -> 0 | AS19: =IF($V$10>0,COUNTA(t_プラシャツ[[#This Row],[列4]]),0) + IF($W$10>0,COUNTA(t_プラシャツ[[#This Row],[列5]]),0) +IF($Z$10>0,COUNTA(t_プラシャツ[[#This Row],[列8]]),0) + IF($AA$10>0,COUNTA(t_プラシャツ[[#This Row],[列9]]),0) +IF($AD$10>0,COUNTA(t_プラシャツ[[#This Row],[列12]]),0) + IF($AE$10>0,COUNTA(t_プラシャツ[[#This Row],[列13]]),0) -> 0
B20: 7 | R20: 0 | U20: =LEN(t_プラシャツ[[#This Row],[列3]]) -> 0 | V20: =IF(LEN(t_プラシャツ[[#This Row],[列4]])>0, $F$59+V$11+ IF(LEN(t_プラシャツ[[#This Row],[列2]])>0,$E$59,0)+ IF(AND(V$6=1,$U20=1),$M$69+$M$71, IF(AND(V$6=1,$U20>1),$M$70+$M$72, IF(AND(V$6=2,$U20=1),$M$69, IF(AND(V$6=2,$U20>1),$M$70, IF(AND(V$6=3,$U20=1),$M$71, IF(AND(V$6=3,$U20>1),$M$72, 0)))))),0) -> 0 | W20: =IF(LEN(t_プラシャツ[[#This Row],[列5]])>0, $G$59+W$11+ IF(LEN(t_プラシャツ[[#This Row],[列2]])>0,$E$59,0)+ IF(AND(W$6=1,$U20=1),$M$69+$M$71, IF(AND(W$6=1,$U20>1),$M$70+$M$72, IF(AND(W$6=2,$U20=1),$M$69, IF(AND(W$6=2,$U20>1),$M$70, IF(AND(W$6=3,$U20=1),$M$71, IF(AND(W$6=3,$U20>1),$M$72, 0)))))),0) -> 0 | X20: =IF(LEN(t_プラシャツ[[#This Row],[列6]])>0, $H$59+X$11+ IF(AND(X$6=1,$U20=1),$M$73, IF(AND(X$6=1,$U20>1),$M$74, 0)),0) -> 0 | Y20: =IF(LEN(t_プラシャツ[[#This Row],[列7]])>0,$I$59,0) -> 0 | Z20: =IF(LEN(t_プラシャツ[[#This Row],[列8]])>0, $F$59+Z$11+ IF(LEN(t_プラシャツ[[#This Row],[列2]])>0,$E$59,0)+ IF(AND(Z$6=1,$U20=1),$M$69+$M$71, IF(AND(Z$6=1,$U20>1),$M$70+$M$72, IF(AND(Z$6=2,$U20=1),$M$69, IF(AND(Z$6=2,$U20>1),$M$70, IF(AND(Z$6=3,$U20=1),$M$71, IF(AND(Z$6=3,$U20>1),$M$72, 0)))))),0) -> 0 | AA20: =IF(LEN(t_プラシャツ[[#This Row],[列9]])>0, $G$59+AA$11+ IF(LEN(t_プラシャツ[[#This Row],[列2]])>0,$E$59,0)+ IF(AND(AA$6=1,$U20=1),$M$69+$M$71, IF(AND(AA$6=1,$U20>1),$M$70+$M$72, IF(AND(AA$6=2,$U20=1),$M$69, IF(AND(AA$6=2,$U20>1),$M$70, IF(AND(AA$6=3,$U20=1),$M$71, IF(AND(AA$6=3,$U20>1),$M$72, 0)))))),0) -> 0 | AB20: =IF(LEN(t_プラシャツ[[#This Row],[列10]])>0, $H$59+AB$11+ IF(AND(AB$6=1,$U20=1),$M$73, IF(AND(AB$6=1,$U20>1),$M$74, 0)),0) -> 0 | AC20: =IF(LEN(t_プラシャツ[[#This Row],[列11]])>0,$I$59,0) -> 0 | AD20: =IF(LEN(t_プラシャツ[[#This Row],[列12]])>0, $F$59+AD$11+ IF(LEN(t_プラシャツ[[#This Row],[列2]])>0,$E$59,0)+ IF(AND(AD$6=1,$U20=1),$M$69+$M$71, IF(AND(AD$6=1,$U20>1),$M$70+$M$72, IF(AND(AD$6=2,$U20=1),$M$69, IF(AND(AD$6=2,$U20>1),$M$70, IF(AND(AD$6=3,$U20=1),$M$71, IF(AND(AD$6=3,$U20>1),$M$72, 0)))))),0) -> 0 | AE20: =IF(LEN(t_プラシャツ[[#This Row],[列13]])>0, $G$59+AE$11+ IF(LEN(t_プラシャツ[[#This Row],[列2]])>0,$E$59,0)+ IF(AND(AE$6=1,$U20=1),$M$69+$M$71, IF(AND(AE$6=1,$U20>1),$M$70+$M$72, IF(AND(AE$6=2,$U20=1),$M$69, IF(AND(AE$6=2,$U20>1),$M$70, IF(AND(AE$6=3,$U20=1),$M$71, IF(AND(AE$6=3,$U20>1),$M$72, 0)))))),0) -> 0 | AF20: =IF(LEN(t_プラシャツ[[#This Row],[列16]])>0, $H$59+AF$11+ IF(AND(AF$6=1,$U20=1),$M$73, IF(AND(AF$6=1,$U20>1),$M$74, 0)),0) -> 0 | AG20: =IF(LEN(t_プラシャツ[[#This Row],[列17]])>0,$I$59,0) -> 0 | AI20: =IF(LEN(t_プラシャツ[[#This Row],[列2]])>0,COUNTA(t_プラシャツ[[#This Row],[列4]:[列5]],t_プラシャツ[[#This Row],[列8]:[列9]],t_プラシャツ[[#This Row],[列12]:[列13]]),0) -> 0 | AJ20: =IF(AND($U20=1,OR($V$6=1,$V$6=2)),COUNTA(t_プラシャツ[[#This Row],[列4]]),0) + IF(AND($U20=1,OR($W$6=1,$W$6=2)),COUNTA(t_プラシャツ[[#This Row],[列5]]),0) + IF(AND($U20=1,OR($Z$6=1,$Z$6=2)),COUNTA(t_プラシャツ[[#This Row],[列8]]),0) + IF(AND($U20=1,OR($AA$6=1,$AA$6=2)),COUNTA(t_プラシャツ[[#This Row],[列9]]),0) + IF(AND($U20=1,OR($AD$6=1,$AD$6=2)),COUNTA(t_プラシャツ[[#This Row],[列12]]),0) + IF(AND($U20=1,OR($AE$6=1,$AE$6=2)),COUNTA(t_プラシャツ[[#This Row],[列13]]),0) -> 0 | AK20: =IF(AND($U20>1,OR($V$6=1,$V$6=2)),COUNTA(t_プラシャツ[[#This Row],[列4]]),0) + IF(AND($U20>1,OR($W$6=1,$W$6=2)),COUNTA(t_プラシャツ[[#This Row],[列5]]),0) + IF(AND($U20>1,OR($Z$6=1,$Z$6=2)),COUNTA(t_プラシャツ[[#This Row],[列8]]),0) + IF(AND($U20>1,OR($AA$6=1,$AA$6=2)),COUNTA(t_プラシャツ[[#This Row],[列9]]),0) + IF(AND($U20>1,OR($AD$6=1,$AD$6=2)),COUNTA(t_プラシャツ[[#This Row],[列12]]),0) + IF(AND($U20>1,OR($AE$6=1,$AE$6=2)),COUNTA(t_プラシャツ[[#This Row],[列13]]),0) -> 0 | AL20: =IF(AND($U20=1,OR($V$6=1,$V$6=3)),COUNTA(t_プラシャツ[[#This Row],[列4]]),0) + IF(AND($U20=1,OR($W$6=1,$W$6=3)),COUNTA(t_プラシャツ[[#This Row],[列5]]),0) + IF(AND($U20=1,OR($Z$6=1,$Z$6=3)),COUNTA(t_プラシャツ[[#This Row],[列8]]),0) + IF(AND($U20=1,OR($AA$6=1,$AA$6=3)),COUNTA(t_プラシャツ[[#This Row],[列9]]),0) + IF(AND($U20=1,OR($AD$6=1,$AD$6=3)),COUNTA(t_プラシャツ[[#This Row],[列12]]),0) + IF(AND($U20=1,OR($AE$6=1,$AE$6=3)),COUNTA(t_プラシャツ[[#This Row],[列13]]),0) -> 0 | AM20: =IF(AND($U20>1,OR($V$6=1,$V$6=3)),COUNTA(t_プラシャツ[[#This Row],[列4]]),0) + IF(AND($U20>1,OR($W$6=1,$W$6=3)),COUNTA(t_プラシャツ[[#This Row],[列5]]),0) + IF(AND($U20>1,OR($Z$6=1,$Z$6=3)),COUNTA(t_プラシャツ[[#This Row],[列8]]),0) + IF(AND($U20>1,OR($AA$6=1,$AA$6=3)),COUNTA(t_プラシャツ[[#This Row],[列9]]),0) + IF(AND($U20>1,OR($AD$6=1,$AD$6=3)),COUNTA(t_プラシャツ[[#This Row],[列12]]),0) + IF(AND($U20>1,OR($AE$6=1,$AE$6=3)),COUNTA(t_プラシャツ[[#This Row],[列13]]),0) -> 0 | AN20: =IF(AND($U20=1,$X$6=1),COUNTA(t_プラシャツ[[#This Row],[列6]]),0) + IF(AND($U20=1,$AB$6=1),COUNTA(t_プラシャツ[[#This Row],[列10]]),0) + IF(AND($U20=1,$AF$6=1),COUNTA(t_プラシャツ[[#This Row],[列16]]),0) -> 0 | AO20: =IF(AND($U20>1,$X$6=1),COUNTA(t_プラシャツ[[#This Row],[列6]]),0) + IF(AND($U20>1,$AB$6=1),COUNTA(t_プラシャツ[[#This Row],[列10]]),0) + IF(AND($U20>1,$AF$6=1),COUNTA(t_プラシャツ[[#This Row],[列16]]),0) -> 0 | AP20: =IF($V$7>0,COUNTA(t_プラシャツ[[#This Row],[列4]]),0) + IF($W$7>0,COUNTA(t_プラシャツ[[#This Row],[列5]]),0) + IF($X$7>0,COUNTA(t_プラシャツ[[#This Row],[列6]]),0) +IF($Z$7>0,COUNTA(t_プラシャツ[[#This Row],[列8]]),0) + IF($AA$7>0,COUNTA(t_プラシャツ[[#This Row],[列9]]),0) + IF($AB$7>0,COUNTA(t_プラシャツ[[#This Row],[列10]]),0) +IF($AD$7>0,COUNTA(t_プラシャツ[[#This Row],[列12]]),0) + IF($AE$7>0,COUNTA(t_プラシャツ[[#This Row],[列13]]),0) + IF($AF$7>0,COUNTA(t_プラシャツ[[#This Row],[列16]]),0) -> 0 | AQ20: =IF($V$8>0,COUNTA(t_プラシャツ[[#This Row],[列4]]),0) + IF($W$8>0,COUNTA(t_プラシャツ[[#This Row],[列5]]),0) +IF($Z$8>0,COUNTA(t_プラシャツ[[#This Row],[列8]]),0) + IF($AA$8>0,COUNTA(t_プラシャツ[[#This Row],[列9]]),0) +IF($AD$8>0,COUNTA(t_プラシャツ[[#This Row],[列12]]),0) + IF($AE$8>0,COUNTA(t_プラシャツ[[#This Row],[列13]]),0) -> 0 | AR20: =IF($V$9>0,COUNTA(t_プラシャツ[[#This Row],[列4]]),0) + IF($W$9>0,COUNTA(t_プラシャツ[[#This Row],[列5]]),0) +IF($Z$9>0,COUNTA(t_プラシャツ[[#This Row],[列8]]),0) + IF($AA$9>0,COUNTA(t_プラシャツ[[#This Row],[列9]]),0) +IF($AD$9>0,COUNTA(t_プラシャツ[[#This Row],[列12]]),0) + IF($AE$9>0,COUNTA(t_プラシャツ[[#This Row],[列13]]),0) -> 0 | AS20: =IF($V$10>0,COUNTA(t_プラシャツ[[#This Row],[列4]]),0) + IF($W$10>0,COUNTA(t_プラシャツ[[#This Row],[列5]]),0) +IF($Z$10>0,COUNTA(t_プラシャツ[[#This Row],[列8]]),0) + IF($AA$10>0,COUNTA(t_プラシャツ[[#This Row],[列9]]),0) +IF($AD$10>0,COUNTA(t_プラシャツ[[#This Row],[列12]]),0) + IF($AE$10>0,COUNTA(t_プラシャツ[[#This Row],[列13]]),0) -> 0
B21: 8 | R21: 0 | U21: =LEN(t_プラシャツ[[#This Row],[列3]]) -> 0 | V21: =IF(LEN(t_プラシャツ[[#This Row],[列4]])>0, $F$59+V$11+ IF(LEN(t_プラシャツ[[#This Row],[列2]])>0,$E$59,0)+ IF(AND(V$6=1,$U21=1),$M$69+$M$71, IF(AND(V$6=1,$U21>1),$M$70+$M$72, IF(AND(V$6=2,$U21=1),$M$69, IF(AND(V$6=2,$U21>1),$M$70, IF(AND(V$6=3,$U21=1),$M$71, IF(AND(V$6=3,$U21>1),$M$72, 0)))))),0) -> 0 | W21: =IF(LEN(t_プラシャツ[[#This Row],[列5]])>0, $G$59+W$11+ IF(LEN(t_プラシャツ[[#This Row],[列2]])>0,$E$59,0)+ IF(AND(W$6=1,$U21=1),$M$69+$M$71, IF(AND(W$6=1,$U21>1),$M$70+$M$72, IF(AND(W$6=2,$U21=1),$M$69, IF(AND(W$6=2,$U21>1),$M$70, IF(AND(W$6=3,$U21=1),$M$71, IF(AND(W$6=3,$U21>1),$M$72, 0)))))),0) -> 0 | X21: =IF(LEN(t_プラシャツ[[#This Row],[列6]])>0, $H$59+X$11+ IF(AND(X$6=1,$U21=1),$M$73, IF(AND(X$6=1,$U21>1),$M$74, 0)),0) -> 0 | Y21: =IF(LEN(t_プラシャツ[[#This Row],[列7]])>0,$I$59,0) -> 0 | Z21: =IF(LEN(t_プラシャツ[[#This Row],[列8]])>0, $F$59+Z$11+ IF(LEN(t_プラシャツ[[#This Row],[列2]])>0,$E$59,0)+ IF(AND(Z$6=1,$U21=1),$M$69+$M$71, IF(AND(Z$6=1,$U21>1),$M$70+$M$72, IF(AND(Z$6=2,$U21=1),$M$69, IF(AND(Z$6=2,$U21>1),$M$70, IF(AND(Z$6=3,$U21=1),$M$71, IF(AND(Z$6=3,$U21>1),$M$72, 0)))))),0) -> 0 | AA21: =IF(LEN(t_プラシャツ[[#This Row],[列9]])>0, $G$59+AA$11+ IF(LEN(t_プラシャツ[[#This Row],[列2]])>0,$E$59,0)+ IF(AND(AA$6=1,$U21=1),$M$69+$M$71, IF(AND(AA$6=1,$U21>1),$M$70+$M$72, IF(AND(AA$6=2,$U21=1),$M$69, IF(AND(AA$6=2,$U21>1),$M$70, IF(AND(AA$6=3,$U21=1),$M$71, IF(AND(AA$6=3,$U21>1),$M$72, 0)))))),0) -> 0 | AB21: =IF(LEN(t_プラシャツ[[#This Row],[列10]])>0, $H$59+AB$11+ IF(AND(AB$6=1,$U21=1),$M$73, IF(AND(AB$6=1,$U21>1),$M$74, 0)),0) -> 0 | AC21: =IF(LEN(t_プラシャツ[[#This Row],[列11]])>0,$I$59,0) -> 0 | AD21: =IF(LEN(t_プラシャツ[[#This Row],[列12]])>0, $F$59+AD$11+ IF(LEN(t_プラシャツ[[#This Row],[列2]])>0,$E$59,0)+ IF(AND(AD$6=1,$U21=1),$M$69+$M$71, IF(AND(AD$6=1,$U21>1),$M$70+$M$72, IF(AND(AD$6=2,$U21=1),$M$69, IF(AND(AD$6=2,$U21>1),$M$70, IF(AND(AD$6=3,$U21=1),$M$71, IF(AND(AD$6=3,$U21>1),$M$72, 0)))))),0) -> 0 | AE21: =IF(LEN(t_プラシャツ[[#This Row],[列13]])>0, $G$59+AE$11+ IF(LEN(t_プラシャツ[[#This Row],[列2]])>0,$E$59,0)+ IF(AND(AE$6=1,$U21=1),$M$69+$M$71, IF(AND(AE$6=1,$U21>1),$M$70+$M$72, IF(AND(AE$6=2,$U21=1),$M$69, IF(AND(AE$6=2,$U21>1),$M$70, IF(AND(AE$6=3,$U21=1),$M$71, IF(AND(AE$6=3,$U21>1),$M$72, 0)))))),0) -> 0 | AF21: =IF(LEN(t_プラシャツ[[#This Row],[列16]])>0, $H$59+AF$11+ IF(AND(AF$6=1,$U21=1),$M$73, IF(AND(AF$6=1,$U21>1),$M$74, 0)),0) -> 0 | AG21: =IF(LEN(t_プラシャツ[[#This Row],[列17]])>0,$I$59,0) -> 0 | AI21: =IF(LEN(t_プラシャツ[[#This Row],[列2]])>0,COUNTA(t_プラシャツ[[#This Row],[列4]:[列5]],t_プラシャツ[[#This Row],[列8]:[列9]],t_プラシャツ[[#This Row],[列12]:[列13]]),0) -> 0 | AJ21: =IF(AND($U21=1,OR($V$6=1,$V$6=2)),COUNTA(t_プラシャツ[[#This Row],[列4]]),0) + IF(AND($U21=1,OR($W$6=1,$W$6=2)),COUNTA(t_プラシャツ[[#This Row],[列5]]),0) + IF(AND($U21=1,OR($Z$6=1,$Z$6=2)),COUNTA(t_プラシャツ[[#This Row],[列8]]),0) + IF(AND($U21=1,OR($AA$6=1,$AA$6=2)),COUNTA(t_プラシャツ[[#This Row],[列9]]),0) + IF(AND($U21=1,OR($AD$6=1,$AD$6=2)),COUNTA(t_プラシャツ[[#This Row],[列12]]),0) + IF(AND($U21=1,OR($AE$6=1,$AE$6=2)),COUNTA(t_プラシャツ[[#This Row],[列13]]),0) -> 0 | AK21: =IF(AND($U21>1,OR($V$6=1,$V$6=2)),COUNTA(t_プラシャツ[[#This Row],[列4]]),0) + IF(AND($U21>1,OR($W$6=1,$W$6=2)),COUNTA(t_プラシャツ[[#This Row],[列5]]),0) + IF(AND($U21>1,OR($Z$6=1,$Z$6=2)),COUNTA(t_プラシャツ[[#This Row],[列8]]),0) + IF(AND($U21>1,OR($AA$6=1,$AA$6=2)),COUNTA(t_プラシャツ[[#This Row],[列9]]),0) + IF(AND($U21>1,OR($AD$6=1,$AD$6=2)),COUNTA(t_プラシャツ[[#This Row],[列12]]),0) + IF(AND($U21>1,OR($AE$6=1,$AE$6=2)),COUNTA(t_プラシャツ[[#This Row],[列13]]),0) -> 0 | AL21: =IF(AND($U21=1,OR($V$6=1,$V$6=3)),COUNTA(t_プラシャツ[[#This Row],[列4]]),0) + IF(AND($U21=1,OR($W$6=1,$W$6=3)),COUNTA(t_プラシャツ[[#This Row],[列5]]),0) + IF(AND($U21=1,OR($Z$6=1,$Z$6=3)),COUNTA(t_プラシャツ[[#This Row],[列8]]),0) + IF(AND($U21=1,OR($AA$6=1,$AA$6=3)),COUNTA(t_プラシャツ[[#This Row],[列9]]),0) + IF(AND($U21=1,OR($AD$6=1,$AD$6=3)),COUNTA(t_プラシャツ[[#This Row],[列12]]),0) + IF(AND($U21=1,OR($AE$6=1,$AE$6=3)),COUNTA(t_プラシャツ[[#This Row],[列13]]),0) -> 0 | AM21: =IF(AND($U21>1,OR($V$6=1,$V$6=3)),COUNTA(t_プラシャツ[[#This Row],[列4]]),0) + IF(AND($U21>1,OR($W$6=1,$W$6=3)),COUNTA(t_プラシャツ[[#This Row],[列5]]),0) + IF(AND($U21>1,OR($Z$6=1,$Z$6=3)),COUNTA(t_プラシャツ[[#This Row],[列8]]),0) + IF(AND($U21>1,OR($AA$6=1,$AA$6=3)),COUNTA(t_プラシャツ[[#This Row],[列9]]),0) + IF(AND($U21>1,OR($AD$6=1,$AD$6=3)),COUNTA(t_プラシャツ[[#This Row],[列12]]),0) + IF(AND($U21>1,OR($AE$6=1,$AE$6=3)),COUNTA(t_プラシャツ[[#This Row],[列13]]),0) -> 0 | AN21: =IF(AND($U21=1,$X$6=1),COUNTA(t_プラシャツ[[#This Row],[列6]]),0) + IF(AND($U21=1,$AB$6=1),COUNTA(t_プラシャツ[[#This Row],[列10]]),0) + IF(AND($U21=1,$AF$6=1),COUNTA(t_プラシャツ[[#This Row],[列16]]),0) -> 0 | AO21: =IF(AND($U21>1,$X$6=1),COUNTA(t_プラシャツ[[#This Row],[列6]]),0) + IF(AND($U21>1,$AB$6=1),COUNTA(t_プラシャツ[[#This Row],[列10]]),0) + IF(AND($U21>1,$AF$6=1),COUNTA(t_プラシャツ[[#This Row],[列16]]),0) -> 0 | AP21: =IF($V$7>0,COUNTA(t_プラシャツ[[#This Row],[列4]]),0) + IF($W$7>0,COUNTA(t_プラシャツ[[#This Row],[列5]]),0) + IF($X$7>0,COUNTA(t_プラシャツ[[#This Row],[列6]]),0) +IF($Z$7>0,COUNTA(t_プラシャツ[[#This Row],[列8]]),0) + IF($AA$7>0,COUNTA(t_プラシャツ[[#This Row],[列9]]),0) + IF($AB$7>0,COUNTA(t_プラシャツ[[#This Row],[列10]]),0) +IF($AD$7>0,COUNTA(t_プラシャツ[[#This Row],[列12]]),0) + IF($AE$7>0,COUNTA(t_プラシャツ[[#This Row],[列13]]),0) + IF($AF$7>0,COUNTA(t_プラシャツ[[#This Row],[列16]]),0) -> 0 | AQ21: =IF($V$8>0,COUNTA(t_プラシャツ[[#This Row],[列4]]),0) + IF($W$8>0,COUNTA(t_プラシャツ[[#This Row],[列5]]),0) +IF($Z$8>0,COUNTA(t_プラシャツ[[#This Row],[列8]]),0) + IF($AA$8>0,COUNTA(t_プラシャツ[[#This Row],[列9]]),0) +IF($AD$8>0,COUNTA(t_プラシャツ[[#This Row],[列12]]),0) + IF($AE$8>0,COUNTA(t_プラシャツ[[#This Row],[列13]]),0) -> 0 | AR21: =IF($V$9>0,COUNTA(t_プラシャツ[[#This Row],[列4]]),0) + IF($W$9>0,COUNTA(t_プラシャツ[[#This Row],[列5]]),0) +IF($Z$9>0,COUNTA(t_プラシャツ[[#This Row],[列8]]),0) + IF($AA$9>0,COUNTA(t_プラシャツ[[#This Row],[列9]]),0) +IF($AD$9>0,COUNTA(t_プラシャツ[[#This Row],[列12]]),0) + IF($AE$9>0,COUNTA(t_プラシャツ[[#This Row],[列13]]),0) -> 0 | AS21: =IF($V$10>0,COUNTA(t_プラシャツ[[#This Row],[列4]]),0) + IF($W$10>0,COUNTA(t_プラシャツ[[#This Row],[列5]]),0) +IF($Z$10>0,COUNTA(t_プラシャツ[[#This Row],[列8]]),0) + IF($AA$10>0,COUNTA(t_プラシャツ[[#This Row],[列9]]),0) +IF($AD$10>0,COUNTA(t_プラシャツ[[#This Row],[列12]]),0) + IF($AE$10>0,COUNTA(t_プラシャツ[[#This Row],[列13]]),0) -> 0
B22: 9 | R22: 0 | U22: =LEN(t_プラシャツ[[#This Row],[列3]]) -> 0 | V22: =IF(LEN(t_プラシャツ[[#This Row],[列4]])>0, $F$59+V$11+ IF(LEN(t_プラシャツ[[#This Row],[列2]])>0,$E$59,0)+ IF(AND(V$6=1,$U22=1),$M$69+$M$71, IF(AND(V$6=1,$U22>1),$M$70+$M$72, IF(AND(V$6=2,$U22=1),$M$69, IF(AND(V$6=2,$U22>1),$M$70, IF(AND(V$6=3,$U22=1),$M$71, IF(AND(V$6=3,$U22>1),$M$72, 0)))))),0) -> 0 | W22: =IF(LEN(t_プラシャツ[[#This Row],[列5]])>0, $G$59+W$11+ IF(LEN(t_プラシャツ[[#This Row],[列2]])>0,$E$59,0)+ IF(AND(W$6=1,$U22=1),$M$69+$M$71, IF(AND(W$6=1,$U22>1),$M$70+$M$72, IF(AND(W$6=2,$U22=1),$M$69, IF(AND(W$6=2,$U22>1),$M$70, IF(AND(W$6=3,$U22=1),$M$71, IF(AND(W$6=3,$U22>1),$M$72, 0)))))),0) -> 0 | X22: =IF(LEN(t_プラシャツ[[#This Row],[列6]])>0, $H$59+X$11+ IF(AND(X$6=1,$U22=1),$M$73, IF(AND(X$6=1,$U22>1),$M$74, 0)),0) -> 0 | Y22: =IF(LEN(t_プラシャツ[[#This Row],[列7]])>0,$I$59,0) -> 0 | Z22: =IF(LEN(t_プラシャツ[[#This Row],[列8]])>0, $F$59+Z$11+ IF(LEN(t_プラシャツ[[#This Row],[列2]])>0,$E$59,0)+ IF(AND(Z$6=1,$U22=1),$M$69+$M$71, IF(AND(Z$6=1,$U22>1),$M$70+$M$72, IF(AND(Z$6=2,$U22=1),$M$69, IF(AND(Z$6=2,$U22>1),$M$70, IF(AND(Z$6=3,$U22=1),$M$71, IF(AND(Z$6=3,$U22>1),$M$72, 0)))))),0) -> 0 | AA22: =IF(LEN(t_プラシャツ[[#This Row],[列9]])>0, $G$59+AA$11+ IF(LEN(t_プラシャツ[[#This Row],[列2]])>0,$E$59,0)+ IF(AND(AA$6=1,$U22=1),$M$69+$M$71, IF(AND(AA$6=1,$U22>1),$M$70+$M$72, IF(AND(AA$6=2,$U22=1),$M$69, IF(AND(AA$6=2,$U22>1),$M$70, IF(AND(AA$6=3,$U22=1),$M$71, IF(AND(AA$6=3,$U22>1),$M$72, 0)))))),0) -> 0 | AB22: =IF(LEN(t_プラシャツ[[#This Row],[列10]])>0, $H$59+AB$11+ IF(AND(AB$6=1,$U22=1),$M$73, IF(AND(AB$6=1,$U22>1),$M$74, 0)),0) -> 0 | AC22: =IF(LEN(t_プラシャツ[[#This Row],[列11]])>0,$I$59,0) -> 0 | AD22: =IF(LEN(t_プラシャツ[[#This Row],[列12]])>0, $F$59+AD$11+ IF(LEN(t_プラシャツ[[#This Row],[列2]])>0,$E$59,0)+ IF(AND(AD$6=1,$U22=1),$M$69+$M$71, IF(AND(AD$6=1,$U22>1),$M$70+$M$72, IF(AND(AD$6=2,$U22=1),$M$69, IF(AND(AD$6=2,$U22>1),$M$70, IF(AND(AD$6=3,$U22=1),$M$71, IF(AND(AD$6=3,$U22>1),$M$72, 0)))))),0) -> 0 | AE22: =IF(LEN(t_プラシャツ[[#This Row],[列13]])>0, $G$59+AE$11+ IF(LEN(t_プラシャツ[[#This Row],[列2]])>0,$E$59,0)+ IF(AND(AE$6=1,$U22=1),$M$69+$M$71, IF(AND(AE$6=1,$U22>1),$M$70+$M$72, IF(AND(AE$6=2,$U22=1),$M$69, IF(AND(AE$6=2,$U22>1),$M$70, IF(AND(AE$6=3,$U22=1),$M$71, IF(AND(AE$6=3,$U22>1),$M$72, 0)))))),0) -> 0 | AF22: =IF(LEN(t_プラシャツ[[#This Row],[列16]])>0, $H$59+AF$11+ IF(AND(AF$6=1,$U22=1),$M$73, IF(AND(AF$6=1,$U22>1),$M$74, 0)),0) -> 0 | AG22: =IF(LEN(t_プラシャツ[[#This Row],[列17]])>0,$I$59,0) -> 0 | AI22: =IF(LEN(t_プラシャツ[[#This Row],[列2]])>0,COUNTA(t_プラシャツ[[#This Row],[列4]:[列5]],t_プラシャツ[[#This Row],[列8]:[列9]],t_プラシャツ[[#This Row],[列12]:[列13]]),0) -> 0 | AJ22: =IF(AND($U22=1,OR($V$6=1,$V$6=2)),COUNTA(t_プラシャツ[[#This Row],[列4]]),0) + IF(AND($U22=1,OR($W$6=1,$W$6=2)),COUNTA(t_プラシャツ[[#This Row],[列5]]),0) + IF(AND($U22=1,OR($Z$6=1,$Z$6=2)),COUNTA(t_プラシャツ[[#This Row],[列8]]),0) + IF(AND($U22=1,OR($AA$6=1,$AA$6=2)),COUNTA(t_プラシャツ[[#This Row],[列9]]),0) + IF(AND($U22=1,OR($AD$6=1,$AD$6=2)),COUNTA(t_プラシャツ[[#This Row],[列12]]),0) + IF(AND($U22=1,OR($AE$6=1,$AE$6=2)),COUNTA(t_プラシャツ[[#This Row],[列13]]),0) -> 0 | AK22: =IF(AND($U22>1,OR($V$6=1,$V$6=2)),COUNTA(t_プラシャツ[[#This Row],[列4]]),0) + IF(AND($U22>1,OR($W$6=1,$W$6=2)),COUNTA(t_プラシャツ[[#This Row],[列5]]),0) + IF(AND($U22>1,OR($Z$6=1,$Z$6=2)),COUNTA(t_プラシャツ[[#This Row],[列8]]),0) + IF(AND($U22>1,OR($AA$6=1,$AA$6=2)),COUNTA(t_プラシャツ[[#This Row],[列9]]),0) + IF(AND($U22>1,OR($AD$6=1,$AD$6=2)),COUNTA(t_プラシャツ[[#This Row],[列12]]),0) + IF(AND($U22>1,OR($AE$6=1,$AE$6=2)),COUNTA(t_プラシャツ[[#This Row],[列13]]),0) -> 0 | AL22: =IF(AND($U22=1,OR($V$6=1,$V$6=3)),COUNTA(t_プラシャツ[[#This Row],[列4]]),0) + IF(AND($U22=1,OR($W$6=1,$W$6=3)),COUNTA(t_プラシャツ[[#This Row],[列5]]),0) + IF(AND($U22=1,OR($Z$6=1,$Z$6=3)),COUNTA(t_プラシャツ[[#This Row],[列8]]),0) + IF(AND($U22=1,OR($AA$6=1,$AA$6=3)),COUNTA(t_プラシャツ[[#This Row],[列9]]),0) + IF(AND($U22=1,OR($AD$6=1,$AD$6=3)),COUNTA(t_プラシャツ[[#This Row],[列12]]),0) + IF(AND($U22=1,OR($AE$6=1,$AE$6=3)),COUNTA(t_プラシャツ[[#This Row],[列13]]),0) -> 0 | AM22: =IF(AND($U22>1,OR($V$6=1,$V$6=3)),COUNTA(t_プラシャツ[[#This Row],[列4]]),0) + IF(AND($U22>1,OR($W$6=1,$W$6=3)),COUNTA(t_プラシャツ[[#This Row],[列5]]),0) + IF(AND($U22>1,OR($Z$6=1,$Z$6=3)),COUNTA(t_プラシャツ[[#This Row],[列8]]),0) + IF(AND($U22>1,OR($AA$6=1,$AA$6=3)),COUNTA(t_プラシャツ[[#This Row],[列9]]),0) + IF(AND($U22>1,OR($AD$6=1,$AD$6=3)),COUNTA(t_プラシャツ[[#This Row],[列12]]),0) + IF(AND($U22>1,OR($AE$6=1,$AE$6=3)),COUNTA(t_プラシャツ[[#This Row],[列13]]),0) -> 0 | AN22: =IF(AND($U22=1,$X$6=1),COUNTA(t_プラシャツ[[#This Row],[列6]]),0) + IF(AND($U22=1,$AB$6=1),COUNTA(t_プラシャツ[[#This Row],[列10]]),0) + IF(AND($U22=1,$AF$6=1),COUNTA(t_プラシャツ[[#This Row],[列16]]),0) -> 0 | AO22: =IF(AND($U22>1,$X$6=1),COUNTA(t_プラシャツ[[#This Row],[列6]]),0) + IF(AND($U22>1,$AB$6=1),COUNTA(t_プラシャツ[[#This Row],[列10]]),0) + IF(AND($U22>1,$AF$6=1),COUNTA(t_プラシャツ[[#This Row],[列16]]),0) -> 0 | AP22: =IF($V$7>0,COUNTA(t_プラシャツ[[#This Row],[列4]]),0) + IF($W$7>0,COUNTA(t_プラシャツ[[#This Row],[列5]]),0) + IF($X$7>0,COUNTA(t_プラシャツ[[#This Row],[列6]]),0) +IF($Z$7>0,COUNTA(t_プラシャツ[[#This Row],[列8]]),0) + IF($AA$7>0,COUNTA(t_プラシャツ[[#This Row],[列9]]),0) + IF($AB$7>0,COUNTA(t_プラシャツ[[#This Row],[列10]]),0) +IF($AD$7>0,COUNTA(t_プラシャツ[[#This Row],[列12]]),0) + IF($AE$7>0,COUNTA(t_プラシャツ[[#This Row],[列13]]),0) + IF($AF$7>0,COUNTA(t_プラシャツ[[#This Row],[列16]]),0) -> 0 | AQ22: =IF($V$8>0,COUNTA(t_プラシャツ[[#This Row],[列4]]),0) + IF($W$8>0,COUNTA(t_プラシャツ[[#This Row],[列5]]),0) +IF($Z$8>0,COUNTA(t_プラシャツ[[#This Row],[列8]]),0) + IF($AA$8>0,COUNTA(t_プラシャツ[[#This Row],[列9]]),0) +IF($AD$8>0,COUNTA(t_プラシャツ[[#This Row],[列12]]),0) + IF($AE$8>0,COUNTA(t_プラシャツ[[#This Row],[列13]]),0) -> 0 | AR22: =IF($V$9>0,COUNTA(t_プラシャツ[[#This Row],[列4]]),0) + IF($W$9>0,COUNTA(t_プラシャツ[[#This Row],[列5]]),0) +IF($Z$9>0,COUNTA(t_プラシャツ[[#This Row],[列8]]),0) + IF($AA$9>0,COUNTA(t_プラシャツ[[#This Row],[列9]]),0) +IF($AD$9>0,COUNTA(t_プラシャツ[[#This Row],[列12]]),0) + IF($AE$9>0,COUNTA(t_プラシャツ[[#This Row],[列13]]),0) -> 0 | AS22: =IF($V$10>0,COUNTA(t_プラシャツ[[#This Row],[列4]]),0) + IF($W$10>0,COUNTA(t_プラシャツ[[#This Row],[列5]]),0) +IF($Z$10>0,COUNTA(t_プラシャツ[[#This Row],[列8]]),0) + IF($AA$10>0,COUNTA(t_プラシャツ[[#This Row],[列9]]),0) +IF($AD$10>0,COUNTA(t_プラシャツ[[#This Row],[列12]]),0) + IF($AE$10>0,COUNTA(t_プラシャツ[[#This Row],[列13]]),0) -> 0
B23: 10 | R23: 0 | U23: =LEN(t_プラシャツ[[#This Row],[列3]]) -> 0 | V23: =IF(LEN(t_プラシャツ[[#This Row],[列4]])>0, $F$59+V$11+ IF(LEN(t_プラシャツ[[#This Row],[列2]])>0,$E$59,0)+ IF(AND(V$6=1,$U23=1),$M$69+$M$71, IF(AND(V$6=1,$U23>1),$M$70+$M$72, IF(AND(V$6=2,$U23=1),$M$69, IF(AND(V$6=2,$U23>1),$M$70, IF(AND(V$6=3,$U23=1),$M$71, IF(AND(V$6=3,$U23>1),$M$72, 0)))))),0) -> 0 | W23: =IF(LEN(t_プラシャツ[[#This Row],[列5]])>0, $G$59+W$11+ IF(LEN(t_プラシャツ[[#This Row],[列2]])>0,$E$59,0)+ IF(AND(W$6=1,$U23=1),$M$69+$M$71, IF(AND(W$6=1,$U23>1),$M$70+$M$72, IF(AND(W$6=2,$U23=1),$M$69, IF(AND(W$6=2,$U23>1),$M$70, IF(AND(W$6=3,$U23=1),$M$71, IF(AND(W$6=3,$U23>1),$M$72, 0)))))),0) -> 0 | X23: =IF(LEN(t_プラシャツ[[#This Row],[列6]])>0, $H$59+X$11+ IF(AND(X$6=1,$U23=1),$M$73, IF(AND(X$6=1,$U23>1),$M$74, 0)),0) -> 0 | Y23: =IF(LEN(t_プラシャツ[[#This Row],[列7]])>0,$I$59,0) -> 0 | Z23: =IF(LEN(t_プラシャツ[[#This Row],[列8]])>0, $F$59+Z$11+ IF(LEN(t_プラシャツ[[#This Row],[列2]])>0,$E$59,0)+ IF(AND(Z$6=1,$U23=1),$M$69+$M$71, IF(AND(Z$6=1,$U23>1),$M$70+$M$72, IF(AND(Z$6=2,$U23=1),$M$69, IF(AND(Z$6=2,$U23>1),$M$70, IF(AND(Z$6=3,$U23=1),$M$71, IF(AND(Z$6=3,$U23>1),$M$72, 0)))))),0) -> 0 | AA23: =IF(LEN(t_プラシャツ[[#This Row],[列9]])>0, $G$59+AA$11+ IF(LEN(t_プラシャツ[[#This Row],[列2]])>0,$E$59,0)+ IF(AND(AA$6=1,$U23=1),$M$69+$M$71, IF(AND(AA$6=1,$U23>1),$M$70+$M$72, IF(AND(AA$6=2,$U23=1),$M$69, IF(AND(AA$6=2,$U23>1),$M$70, IF(AND(AA$6=3,$U23=1),$M$71, IF(AND(AA$6=3,$U23>1),$M$72, 0)))))),0) -> 0 | AB23: =IF(LEN(t_プラシャツ[[#This Row],[列10]])>0, $H$59+AB$11+ IF(AND(AB$6=1,$U23=1),$M$73, IF(AND(AB$6=1,$U23>1),$M$74, 0)),0) -> 0 | AC23: =IF(LEN(t_プラシャツ[[#This Row],[列11]])>0,$I$59,0) -> 0 | AD23: =IF(LEN(t_プラシャツ[[#This Row],[列12]])>0, $F$59+AD$11+ IF(LEN(t_プラシャツ[[#This Row],[列2]])>0,$E$59,0)+ IF(AND(AD$6=1,$U23=1),$M$69+$M$71, IF(AND(AD$6=1,$U23>1),$M$70+$M$72, IF(AND(AD$6=2,$U23=1),$M$69, IF(AND(AD$6=2,$U23>1),$M$70, IF(AND(AD$6=3,$U23=1),$M$71, IF(AND(AD$6=3,$U23>1),$M$72, 0)))))),0) -> 0 | AE23: =IF(LEN(t_プラシャツ[[#This Row],[列13]])>0, $G$59+AE$11+ IF(LEN(t_プラシャツ[[#This Row],[列2]])>0,$E$59,0)+ IF(AND(AE$6=1,$U23=1),$M$69+$M$71, IF(AND(AE$6=1,$U23>1),$M$70+$M$72, IF(AND(AE$6=2,$U23=1),$M$69, IF(AND(AE$6=2,$U23>1),$M$70, IF(AND(AE$6=3,$U23=1),$M$71, IF(AND(AE$6=3,$U23>1),$M$72, 0)))))),0) -> 0 | AF23: =IF(LEN(t_プラシャツ[[#This Row],[列16]])>0, $H$59+AF$11+ IF(AND(AF$6=1,$U23=1),$M$73, IF(AND(AF$6=1,$U23>1),$M$74, 0)),0) -> 0 | AG23: =IF(LEN(t_プラシャツ[[#This Row],[列17]])>0,$I$59,0) -> 0 | AI23: =IF(LEN(t_プラシャツ[[#This Row],[列2]])>0,COUNTA(t_プラシャツ[[#This Row],[列4]:[列5]],t_プラシャツ[[#This Row],[列8]:[列9]],t_プラシャツ[[#This Row],[列12]:[列13]]),0) -> 0 | AJ23: =IF(AND($U23=1,OR($V$6=1,$V$6=2)),COUNTA(t_プラシャツ[[#This Row],[列4]]),0) + IF(AND($U23=1,OR($W$6=1,$W$6=2)),COUNTA(t_プラシャツ[[#This Row],[列5]]),0) + IF(AND($U23=1,OR($Z$6=1,$Z$6=2)),COUNTA(t_プラシャツ[[#This Row],[列8]]),0) + IF(AND($U23=1,OR($AA$6=1,$AA$6=2)),COUNTA(t_プラシャツ[[#This Row],[列9]]),0) + IF(AND($U23=1,OR($AD$6=1,$AD$6=2)),COUNTA(t_プラシャツ[[#This Row],[列12]]),0) + IF(AND($U23=1,OR($AE$6=1,$AE$6=2)),COUNTA(t_プラシャツ[[#This Row],[列13]]),0) -> 0 | AK23: =IF(AND($U23>1,OR($V$6=1,$V$6=2)),COUNTA(t_プラシャツ[[#This Row],[列4]]),0) + IF(AND($U23>1,OR($W$6=1,$W$6=2)),COUNTA(t_プラシャツ[[#This Row],[列5]]),0) + IF(AND($U23>1,OR($Z$6=1,$Z$6=2)),COUNTA(t_プラシャツ[[#This Row],[列8]]),0) + IF(AND($U23>1,OR($AA$6=1,$AA$6=2)),COUNTA(t_プラシャツ[[#This Row],[列9]]),0) + IF(AND($U23>1,OR($AD$6=1,$AD$6=2)),COUNTA(t_プラシャツ[[#This Row],[列12]]),0) + IF(AND($U23>1,OR($AE$6=1,$AE$6=2)),COUNTA(t_プラシャツ[[#This Row],[列13]]),0) -> 0 | AL23: =IF(AND($U23=1,OR($V$6=1,$V$6=3)),COUNTA(t_プラシャツ[[#This Row],[列4]]),0) + IF(AND($U23=1,OR($W$6=1,$W$6=3)),COUNTA(t_プラシャツ[[#This Row],[列5]]),0) + IF(AND($U23=1,OR($Z$6=1,$Z$6=3)),COUNTA(t_プラシャツ[[#This Row],[列8]]),0) + IF(AND($U23=1,OR($AA$6=1,$AA$6=3)),COUNTA(t_プラシャツ[[#This Row],[列9]]),0) + IF(AND($U23=1,OR($AD$6=1,$AD$6=3)),COUNTA(t_プラシャツ[[#This Row],[列12]]),0) + IF(AND($U23=1,OR($AE$6=1,$AE$6=3)),COUNTA(t_プラシャツ[[#This Row],[列13]]),0) -> 0 | AM23: =IF(AND($U23>1,OR($V$6=1,$V$6=3)),COUNTA(t_プラシャツ[[#This Row],[列4]]),0) + IF(AND($U23>1,OR($W$6=1,$W$6=3)),COUNTA(t_プラシャツ[[#This Row],[列5]]),0) + IF(AND($U23>1,OR($Z$6=1,$Z$6=3)),COUNTA(t_プラシャツ[[#This Row],[列8]]),0) + IF(AND($U23>1,OR($AA$6=1,$AA$6=3)),COUNTA(t_プラシャツ[[#This Row],[列9]]),0) + IF(AND($U23>1,OR($AD$6=1,$AD$6=3)),COUNTA(t_プラシャツ[[#This Row],[列12]]),0) + IF(AND($U23>1,OR($AE$6=1,$AE$6=3)),COUNTA(t_プラシャツ[[#This Row],[列13]]),0) -> 0 | AN23: =IF(AND($U23=1,$X$6=1),COUNTA(t_プラシャツ[[#This Row],[列6]]),0) + IF(AND($U23=1,$AB$6=1),COUNTA(t_プラシャツ[[#This Row],[列10]]),0) + IF(AND($U23=1,$AF$6=1),COUNTA(t_プラシャツ[[#This Row],[列16]]),0) -> 0 | AO23: =IF(AND($U23>1,$X$6=1),COUNTA(t_プラシャツ[[#This Row],[列6]]),0) + IF(AND($U23>1,$AB$6=1),COUNTA(t_プラシャツ[[#This Row],[列10]]),0) + IF(AND($U23>1,$AF$6=1),COUNTA(t_プラシャツ[[#This Row],[列16]]),0) -> 0 | AP23: =IF($V$7>0,COUNTA(t_プラシャツ[[#This Row],[列4]]),0) + IF($W$7>0,COUNTA(t_プラシャツ[[#This Row],[列5]]),0) + IF($X$7>0,COUNTA(t_プラシャツ[[#This Row],[列6]]),0) +IF($Z$7>0,COUNTA(t_プラシャツ[[#This Row],[列8]]),0) + IF($AA$7>0,COUNTA(t_プラシャツ[[#This Row],[列9]]),0) + IF($AB$7>0,COUNTA(t_プラシャツ[[#This Row],[列10]]),0) +IF($AD$7>0,COUNTA(t_プラシャツ[[#This Row],[列12]]),0) + IF($AE$7>0,COUNTA(t_プラシャツ[[#This Row],[列13]]),0) + IF($AF$7>0,COUNTA(t_プラシャツ[[#This Row],[列16]]),0) -> 0 | AQ23: =IF($V$8>0,COUNTA(t_プラシャツ[[#This Row],[列4]]),0) + IF($W$8>0,COUNTA(t_プラシャツ[[#This Row],[列5]]),0) +IF($Z$8>0,COUNTA(t_プラシャツ[[#This Row],[列8]]),0) + IF($AA$8>0,COUNTA(t_プラシャツ[[#This Row],[列9]]),0) +IF($AD$8>0,COUNTA(t_プラシャツ[[#This Row],[列12]]),0) + IF($AE$8>0,COUNTA(t_プラシャツ[[#This Row],[列13]]),0) -> 0 | AR23: =IF($V$9>0,COUNTA(t_プラシャツ[[#This Row],[列4]]),0) + IF($W$9>0,COUNTA(t_プラシャツ[[#This Row],[列5]]),0) +IF($Z$9>0,COUNTA(t_プラシャツ[[#This Row],[列8]]),0) + IF($AA$9>0,COUNTA(t_プラシャツ[[#This Row],[列9]]),0) +IF($AD$9>0,COUNTA(t_プラシャツ[[#This Row],[列12]]),0) + IF($AE$9>0,COUNTA(t_プラシャツ[[#This Row],[列13]]),0) -> 0 | AS23: =IF($V$10>0,COUNTA(t_プラシャツ[[#This Row],[列4]]),0) + IF($W$10>0,COUNTA(t_プラシャツ[[#This Row],[列5]]),0) +IF($Z$10>0,COUNTA(t_プラシャツ[[#This Row],[列8]]),0) + IF($AA$10>0,COUNTA(t_プラシャツ[[#This Row],[列9]]),0) +IF($AD$10>0,COUNTA(t_プラシャツ[[#This Row],[列12]]),0) + IF($AE$10>0,COUNTA(t_プラシャツ[[#This Row],[列13]]),0) -> 0
B24: 11 | R24: 0 | U24: =LEN(t_プラシャツ[[#This Row],[列3]]) -> 0 | V24: =IF(LEN(t_プラシャツ[[#This Row],[列4]])>0, $F$59+V$11+ IF(LEN(t_プラシャツ[[#This Row],[列2]])>0,$E$59,0)+ IF(AND(V$6=1,$U24=1),$M$69+$M$71, IF(AND(V$6=1,$U24>1),$M$70+$M$72, IF(AND(V$6=2,$U24=1),$M$69, IF(AND(V$6=2,$U24>1),$M$70, IF(AND(V$6=3,$U24=1),$M$71, IF(AND(V$6=3,$U24>1),$M$72, 0)))))),0) -> 0 | W24: =IF(LEN(t_プラシャツ[[#This Row],[列5]])>0, $G$59+W$11+ IF(LEN(t_プラシャツ[[#This Row],[列2]])>0,$E$59,0)+ IF(AND(W$6=1,$U24=1),$M$69+$M$71, IF(AND(W$6=1,$U24>1),$M$70+$M$72, IF(AND(W$6=2,$U24=1),$M$69, IF(AND(W$6=2,$U24>1),$M$70, IF(AND(W$6=3,$U24=1),$M$71, IF(AND(W$6=3,$U24>1),$M$72, 0)))))),0) -> 0 | X24: =IF(LEN(t_プラシャツ[[#This Row],[列6]])>0, $H$59+X$11+ IF(AND(X$6=1,$U24=1),$M$73, IF(AND(X$6=1,$U24>1),$M$74, 0)),0) -> 0 | Y24: =IF(LEN(t_プラシャツ[[#This Row],[列7]])>0,$I$59,0) -> 0 | Z24: =IF(LEN(t_プラシャツ[[#This Row],[列8]])>0, $F$59+Z$11+ IF(LEN(t_プラシャツ[[#This Row],[列2]])>0,$E$59,0)+ IF(AND(Z$6=1,$U24=1),$M$69+$M$71, IF(AND(Z$6=1,$U24>1),$M$70+$M$72, IF(AND(Z$6=2,$U24=1),$M$69, IF(AND(Z$6=2,$U24>1),$M$70, IF(AND(Z$6=3,$U24=1),$M$71, IF(AND(Z$6=3,$U24>1),$M$72, 0)))))),0) -> 0 | AA24: =IF(LEN(t_プラシャツ[[#This Row],[列9]])>0, $G$59+AA$11+ IF(LEN(t_プラシャツ[[#This Row],[列2]])>0,$E$59,0)+ IF(AND(AA$6=1,$U24=1),$M$69+$M$71, IF(AND(AA$6=1,$U24>1),$M$70+$M$72, IF(AND(AA$6=2,$U24=1),$M$69, IF(AND(AA$6=2,$U24>1),$M$70, IF(AND(AA$6=3,$U24=1),$M$71, IF(AND(AA$6=3,$U24>1),$M$72, 0)))))),0) -> 0 | AB24: =IF(LEN(t_プラシャツ[[#This Row],[列10]])>0, $H$59+AB$11+ IF(AND(AB$6=1,$U24=1),$M$73, IF(AND(AB$6=1,$U24>1),$M$74, 0)),0) -> 0 | AC24: =IF(LEN(t_プラシャツ[[#This Row],[列11]])>0,$I$59,0) -> 0 | AD24: =IF(LEN(t_プラシャツ[[#This Row],[列12]])>0, $F$59+AD$11+ IF(LEN(t_プラシャツ[[#This Row],[列2]])>0,$E$59,0)+ IF(AND(AD$6=1,$U24=1),$M$69+$M$71, IF(AND(AD$6=1,$U24>1),$M$70+$M$72, IF(AND(AD$6=2,$U24=1),$M$69, IF(AND(AD$6=2,$U24>1),$M$70, IF(AND(AD$6=3,$U24=1),$M$71, IF(AND(AD$6=3,$U24>1),$M$72, 0)))))),0) -> 0 | AE24: =IF(LEN(t_プラシャツ[[#This Row],[列13]])>0, $G$59+AE$11+ IF(LEN(t_プラシャツ[[#This Row],[列2]])>0,$E$59,0)+ IF(AND(AE$6=1,$U24=1),$M$69+$M$71, IF(AND(AE$6=1,$U24>1),$M$70+$M$72, IF(AND(AE$6=2,$U24=1),$M$69, IF(AND(AE$6=2,$U24>1),$M$70, IF(AND(AE$6=3,$U24=1),$M$71, IF(AND(AE$6=3,$U24>1),$M$72, 0)))))),0) -> 0 | AF24: =IF(LEN(t_プラシャツ[[#This Row],[列16]])>0, $H$59+AF$11+ IF(AND(AF$6=1,$U24=1),$M$73, IF(AND(AF$6=1,$U24>1),$M$74, 0)),0) -> 0 | AG24: =IF(LEN(t_プラシャツ[[#This Row],[列17]])>0,$I$59,0) -> 0 | AI24: =IF(LEN(t_プラシャツ[[#This Row],[列2]])>0,COUNTA(t_プラシャツ[[#This Row],[列4]:[列5]],t_プラシャツ[[#This Row],[列8]:[列9]],t_プラシャツ[[#This Row],[列12]:[列13]]),0) -> 0 | AJ24: =IF(AND($U24=1,OR($V$6=1,$V$6=2)),COUNTA(t_プラシャツ[[#This Row],[列4]]),0) + IF(AND($U24=1,OR($W$6=1,$W$6=2)),COUNTA(t_プラシャツ[[#This Row],[列5]]),0) + IF(AND($U24=1,OR($Z$6=1,$Z$6=2)),COUNTA(t_プラシャツ[[#This Row],[列8]]),0) + IF(AND($U24=1,OR($AA$6=1,$AA$6=2)),COUNTA(t_プラシャツ[[#This Row],[列9]]),0) + IF(AND($U24=1,OR($AD$6=1,$AD$6=2)),COUNTA(t_プラシャツ[[#This Row],[列12]]),0) + IF(AND($U24=1,OR($AE$6=1,$AE$6=2)),COUNTA(t_プラシャツ[[#This Row],[列13]]),0) -> 0 | AK24: =IF(AND($U24>1,OR($V$6=1,$V$6=2)),COUNTA(t_プラシャツ[[#This Row],[列4]]),0) + IF(AND($U24>1,OR($W$6=1,$W$6=2)),COUNTA(t_プラシャツ[[#This Row],[列5]]),0) + IF(AND($U24>1,OR($Z$6=1,$Z$6=2)),COUNTA(t_プラシャツ[[#This Row],[列8]]),0) + IF(AND($U24>1,OR($AA$6=1,$AA$6=2)),COUNTA(t_プラシャツ[[#This Row],[列9]]),0) + IF(AND($U24>1,OR($AD$6=1,$AD$6=2)),COUNTA(t_プラシャツ[[#This Row],[列12]]),0) + IF(AND($U24>1,OR($AE$6=1,$AE$6=2)),COUNTA(t_プラシャツ[[#This Row],[列13]]),0) -> 0 | AL24: =IF(AND($U24=1,OR($V$6=1,$V$6=3)),COUNTA(t_プラシャツ[[#This Row],[列4]]),0) + IF(AND($U24=1,OR($W$6=1,$W$6=3)),COUNTA(t_プラシャツ[[#This Row],[列5]]),0) + IF(AND($U24=1,OR($Z$6=1,$Z$6=3)),COUNTA(t_プラシャツ[[#This Row],[列8]]),0) + IF(AND($U24=1,OR($AA$6=1,$AA$6=3)),COUNTA(t_プラシャツ[[#This Row],[列9]]),0) + IF(AND($U24=1,OR($AD$6=1,$AD$6=3)),COUNTA(t_プラシャツ[[#This Row],[列12]]),0) + IF(AND($U24=1,OR($AE$6=1,$AE$6=3)),COUNTA(t_プラシャツ[[#This Row],[列13]]),0) -> 0 | AM24: =IF(AND($U24>1,OR($V$6=1,$V$6=3)),COUNTA(t_プラシャツ[[#This Row],[列4]]),0) + IF(AND($U24>1,OR($W$6=1,$W$6=3)),COUNTA(t_プラシャツ[[#This Row],[列5]]),0) + IF(AND($U24>1,OR($Z$6=1,$Z$6=3)),COUNTA(t_プラシャツ[[#This Row],[列8]]),0) + IF(AND($U24>1,OR($AA$6=1,$AA$6=3)),COUNTA(t_プラシャツ[[#This Row],[列9]]),0) + IF(AND($U24>1,OR($AD$6=1,$AD$6=3)),COUNTA(t_プラシャツ[[#This Row],[列12]]),0) + IF(AND($U24>1,OR($AE$6=1,$AE$6=3)),COUNTA(t_プラシャツ[[#This Row],[列13]]),0) -> 0 | AN24: =IF(AND($U24=1,$X$6=1),COUNTA(t_プラシャツ[[#This Row],[列6]]),0) + IF(AND($U24=1,$AB$6=1),COUNTA(t_プラシャツ[[#This Row],[列10]]),0) + IF(AND($U24=1,$AF$6=1),COUNTA(t_プラシャツ[[#This Row],[列16]]),0) -> 0 | AO24: =IF(AND($U24>1,$X$6=1),COUNTA(t_プラシャツ[[#This Row],[列6]]),0) + IF(AND($U24>1,$AB$6=1),COUNTA(t_プラシャツ[[#This Row],[列10]]),0) + IF(AND($U24>1,$AF$6=1),COUNTA(t_プラシャツ[[#This Row],[列16]]),0) -> 0 | AP24: =IF($V$7>0,COUNTA(t_プラシャツ[[#This Row],[列4]]),0) + IF($W$7>0,COUNTA(t_プラシャツ[[#This Row],[列5]]),0) + IF($X$7>0,COUNTA(t_プラシャツ[[#This Row],[列6]]),0) +IF($Z$7>0,COUNTA(t_プラシャツ[[#This Row],[列8]]),0) + IF($AA$7>0,COUNTA(t_プラシャツ[[#This Row],[列9]]),0) + IF($AB$7>0,COUNTA(t_プラシャツ[[#This Row],[列10]]),0) +IF($AD$7>0,COUNTA(t_プラシャツ[[#This Row],[列12]]),0) + IF($AE$7>0,COUNTA(t_プラシャツ[[#This Row],[列13]]),0) + IF($AF$7>0,COUNTA(t_プラシャツ[[#This Row],[列16]]),0) -> 0 | AQ24: =IF($V$8>0,COUNTA(t_プラシャツ[[#This Row],[列4]]),0) + IF($W$8>0,COUNTA(t_プラシャツ[[#This Row],[列5]]),0) +IF($Z$8>0,COUNTA(t_プラシャツ[[#This Row],[列8]]),0) + IF($AA$8>0,COUNTA(t_プラシャツ[[#This Row],[列9]]),0) +IF($AD$8>0,COUNTA(t_プラシャツ[[#This Row],[列12]]),0) + IF($AE$8>0,COUNTA(t_プラシャツ[[#This Row],[列13]]),0) -> 0 | AR24: =IF($V$9>0,COUNTA(t_プラシャツ[[#This Row],[列4]]),0) + IF($W$9>0,COUNTA(t_プラシャツ[[#This Row],[列5]]),0) +IF($Z$9>0,COUNTA(t_プラシャツ[[#This Row],[列8]]),0) + IF($AA$9>0,COUNTA(t_プラシャツ[[#This Row],[列9]]),0) +IF($AD$9>0,COUNTA(t_プラシャツ[[#This Row],[列12]]),0) + IF($AE$9>0,COUNTA(t_プラシャツ[[#This Row],[列13]]),0) -> 0 | AS24: =IF($V$10>0,COUNTA(t_プラシャツ[[#This Row],[列4]]),0) + IF($W$10>0,COUNTA(t_プラシャツ[[#This Row],[列5]]),0) +IF($Z$10>0,COUNTA(t_プラシャツ[[#This Row],[列8]]),0) + IF($AA$10>0,COUNTA(t_プラシャツ[[#This Row],[列9]]),0) +IF($AD$10>0,COUNTA(t_プラシャツ[[#This Row],[列12]]),0) + IF($AE$10>0,COUNTA(t_プラシャツ[[#This Row],[列13]]),0) -> 0
B25: 12 | R25: 0 | U25: =LEN(t_プラシャツ[[#This Row],[列3]]) -> 0 | V25: =IF(LEN(t_プラシャツ[[#This Row],[列4]])>0, $F$59+V$11+ IF(LEN(t_プラシャツ[[#This Row],[列2]])>0,$E$59,0)+ IF(AND(V$6=1,$U25=1),$M$69+$M$71, IF(AND(V$6=1,$U25>1),$M$70+$M$72, IF(AND(V$6=2,$U25=1),$M$69, IF(AND(V$6=2,$U25>1),$M$70, IF(AND(V$6=3,$U25=1),$M$71, IF(AND(V$6=3,$U25>1),$M$72, 0)))))),0) -> 0 | W25: =IF(LEN(t_プラシャツ[[#This Row],[列5]])>0, $G$59+W$11+ IF(LEN(t_プラシャツ[[#This Row],[列2]])>0,$E$59,0)+ IF(AND(W$6=1,$U25=1),$M$69+$M$71, IF(AND(W$6=1,$U25>1),$M$70+$M$72, IF(AND(W$6=2,$U25=1),$M$69, IF(AND(W$6=2,$U25>1),$M$70, IF(AND(W$6=3,$U25=1),$M$71, IF(AND(W$6=3,$U25>1),$M$72, 0)))))),0) -> 0 | X25: =IF(LEN(t_プラシャツ[[#This Row],[列6]])>0, $H$59+X$11+ IF(AND(X$6=1,$U25=1),$M$73, IF(AND(X$6=1,$U25>1),$M$74, 0)),0) -> 0 | Y25: =IF(LEN(t_プラシャツ[[#This Row],[列7]])>0,$I$59,0) -> 0 | Z25: =IF(LEN(t_プラシャツ[[#This Row],[列8]])>0, $F$59+Z$11+ IF(LEN(t_プラシャツ[[#This Row],[列2]])>0,$E$59,0)+ IF(AND(Z$6=1,$U25=1),$M$69+$M$71, IF(AND(Z$6=1,$U25>1),$M$70+$M$72, IF(AND(Z$6=2,$U25=1),$M$69, IF(AND(Z$6=2,$U25>1),$M$70, IF(AND(Z$6=3,$U25=1),$M$71, IF(AND(Z$6=3,$U25>1),$M$72, 0)))))),0) -> 0 | AA25: =IF(LEN(t_プラシャツ[[#This Row],[列9]])>0, $G$59+AA$11+ IF(LEN(t_プラシャツ[[#This Row],[列2]])>0,$E$59,0)+ IF(AND(AA$6=1,$U25=1),$M$69+$M$71, IF(AND(AA$6=1,$U25>1),$M$70+$M$72, IF(AND(AA$6=2,$U25=1),$M$69, IF(AND(AA$6=2,$U25>1),$M$70, IF(AND(AA$6=3,$U25=1),$M$71, IF(AND(AA$6=3,$U25>1),$M$72, 0)))))),0) -> 0 | AB25: =IF(LEN(t_プラシャツ[[#This Row],[列10]])>0, $H$59+AB$11+ IF(AND(AB$6=1,$U25=1),$M$73, IF(AND(AB$6=1,$U25>1),$M$74, 0)),0) -> 0 | AC25: =IF(LEN(t_プラシャツ[[#This Row],[列11]])>0,$I$59,0) -> 0 | AD25: =IF(LEN(t_プラシャツ[[#This Row],[列12]])>0, $F$59+AD$11+ IF(LEN(t_プラシャツ[[#This Row],[列2]])>0,$E$59,0)+ IF(AND(AD$6=1,$U25=1),$M$69+$M$71, IF(AND(AD$6=1,$U25>1),$M$70+$M$72, IF(AND(AD$6=2,$U25=1),$M$69, IF(AND(AD$6=2,$U25>1),$M$70, IF(AND(AD$6=3,$U25=1),$M$71, IF(AND(AD$6=3,$U25>1),$M$72, 0)))))),0) -> 0 | AE25: =IF(LEN(t_プラシャツ[[#This Row],[列13]])>0, $G$59+AE$11+ IF(LEN(t_プラシャツ[[#This Row],[列2]])>0,$E$59,0)+ IF(AND(AE$6=1,$U25=1),$M$69+$M$71, IF(AND(AE$6=1,$U25>1),$M$70+$M$72, IF(AND(AE$6=2,$U25=1),$M$69, IF(AND(AE$6=2,$U25>1),$M$70, IF(AND(AE$6=3,$U25=1),$M$71, IF(AND(AE$6=3,$U25>1),$M$72, 0)))))),0) -> 0 | AF25: =IF(LEN(t_プラシャツ[[#This Row],[列16]])>0, $H$59+AF$11+ IF(AND(AF$6=1,$U25=1),$M$73, IF(AND(AF$6=1,$U25>1),$M$74, 0)),0) -> 0 | AG25: =IF(LEN(t_プラシャツ[[#This Row],[列17]])>0,$I$59,0) -> 0 | AI25: =IF(LEN(t_プラシャツ[[#This Row],[列2]])>0,COUNTA(t_プラシャツ[[#This Row],[列4]:[列5]],t_プラシャツ[[#This Row],[列8]:[列9]],t_プラシャツ[[#This Row],[列12]:[列13]]),0) -> 0 | AJ25: =IF(AND($U25=1,OR($V$6=1,$V$6=2)),COUNTA(t_プラシャツ[[#This Row],[列4]]),0) + IF(AND($U25=1,OR($W$6=1,$W$6=2)),COUNTA(t_プラシャツ[[#This Row],[列5]]),0) + IF(AND($U25=1,OR($Z$6=1,$Z$6=2)),COUNTA(t_プラシャツ[[#This Row],[列8]]),0) + IF(AND($U25=1,OR($AA$6=1,$AA$6=2)),COUNTA(t_プラシャツ[[#This Row],[列9]]),0) + IF(AND($U25=1,OR($AD$6=1,$AD$6=2)),COUNTA(t_プラシャツ[[#This Row],[列12]]),0) + IF(AND($U25=1,OR($AE$6=1,$AE$6=2)),COUNTA(t_プラシャツ[[#This Row],[列13]]),0) -> 0 | AK25: =IF(AND($U25>1,OR($V$6=1,$V$6=2)),COUNTA(t_プラシャツ[[#This Row],[列4]]),0) + IF(AND($U25>1,OR($W$6=1,$W$6=2)),COUNTA(t_プラシャツ[[#This Row],[列5]]),0) + IF(AND($U25>1,OR($Z$6=1,$Z$6=2)),COUNTA(t_プラシャツ[[#This Row],[列8]]),0) + IF(AND($U25>1,OR($AA$6=1,$AA$6=2)),COUNTA(t_プラシャツ[[#This Row],[列9]]),0) + IF(AND($U25>1,OR($AD$6=1,$AD$6=2)),COUNTA(t_プラシャツ[[#This Row],[列12]]),0) + IF(AND($U25>1,OR($AE$6=1,$AE$6=2)),COUNTA(t_プラシャツ[[#This Row],[列13]]),0) -> 0 | AL25: =IF(AND($U25=1,OR($V$6=1,$V$6=3)),COUNTA(t_プラシャツ[[#This Row],[列4]]),0) + IF(AND($U25=1,OR($W$6=1,$W$6=3)),COUNTA(t_プラシャツ[[#This Row],[列5]]),0) + IF(AND($U25=1,OR($Z$6=1,$Z$6=3)),COUNTA(t_プラシャツ[[#This Row],[列8]]),0) + IF(AND($U25=1,OR($AA$6=1,$AA$6=3)),COUNTA(t_プラシャツ[[#This Row],[列9]]),0) + IF(AND($U25=1,OR($AD$6=1,$AD$6=3)),COUNTA(t_プラシャツ[[#This Row],[列12]]),0) + IF(AND($U25=1,OR($AE$6=1,$AE$6=3)),COUNTA(t_プラシャツ[[#This Row],[列13]]),0) -> 0 | AM25: =IF(AND($U25>1,OR($V$6=1,$V$6=3)),COUNTA(t_プラシャツ[[#This Row],[列4]]),0) + IF(AND($U25>1,OR($W$6=1,$W$6=3)),COUNTA(t_プラシャツ[[#This Row],[列5]]),0) + IF(AND($U25>1,OR($Z$6=1,$Z$6=3)),COUNTA(t_プラシャツ[[#This Row],[列8]]),0) + IF(AND($U25>1,OR($AA$6=1,$AA$6=3)),COUNTA(t_プラシャツ[[#This Row],[列9]]),0) + IF(AND($U25>1,OR($AD$6=1,$AD$6=3)),COUNTA(t_プラシャツ[[#This Row],[列12]]),0) + IF(AND($U25>1,OR($AE$6=1,$AE$6=3)),COUNTA(t_プラシャツ[[#This Row],[列13]]),0) -> 0 | AN25: =IF(AND($U25=1,$X$6=1),COUNTA(t_プラシャツ[[#This Row],[列6]]),0) + IF(AND($U25=1,$AB$6=1),COUNTA(t_プラシャツ[[#This Row],[列10]]),0) + IF(AND($U25=1,$AF$6=1),COUNTA(t_プラシャツ[[#This Row],[列16]]),0) -> 0 | AO25: =IF(AND($U25>1,$X$6=1),COUNTA(t_プラシャツ[[#This Row],[列6]]),0) + IF(AND($U25>1,$AB$6=1),COUNTA(t_プラシャツ[[#This Row],[列10]]),0) + IF(AND($U25>1,$AF$6=1),COUNTA(t_プラシャツ[[#This Row],[列16]]),0) -> 0 | AP25: =IF($V$7>0,COUNTA(t_プラシャツ[[#This Row],[列4]]),0) + IF($W$7>0,COUNTA(t_プラシャツ[[#This Row],[列5]]),0) + IF($X$7>0,COUNTA(t_プラシャツ[[#This Row],[列6]]),0) +IF($Z$7>0,COUNTA(t_プラシャツ[[#This Row],[列8]]),0) + IF($AA$7>0,COUNTA(t_プラシャツ[[#This Row],[列9]]),0) + IF($AB$7>0,COUNTA(t_プラシャツ[[#This Row],[列10]]),0) +IF($AD$7>0,COUNTA(t_プラシャツ[[#This Row],[列12]]),0) + IF($AE$7>0,COUNTA(t_プラシャツ[[#This Row],[列13]]),0) + IF($AF$7>0,COUNTA(t_プラシャツ[[#This Row],[列16]]),0) -> 0 | AQ25: =IF($V$8>0,COUNTA(t_プラシャツ[[#This Row],[列4]]),0) + IF($W$8>0,COUNTA(t_プラシャツ[[#This Row],[列5]]),0) +IF($Z$8>0,COUNTA(t_プラシャツ[[#This Row],[列8]]),0) + IF($AA$8>0,COUNTA(t_プラシャツ[[#This Row],[列9]]),0) +IF($AD$8>0,COUNTA(t_プラシャツ[[#This Row],[列12]]),0) + IF($AE$8>0,COUNTA(t_プラシャツ[[#This Row],[列13]]),0) -> 0 | AR25: =IF($V$9>0,COUNTA(t_プラシャツ[[#This Row],[列4]]),0) + IF($W$9>0,COUNTA(t_プラシャツ[[#This Row],[列5]]),0) +IF($Z$9>0,COUNTA(t_プラシャツ[[#This Row],[列8]]),0) + IF($AA$9>0,COUNTA(t_プラシャツ[[#This Row],[列9]]),0) +IF($AD$9>0,COUNTA(t_プラシャツ[[#This Row],[列12]]),0) + IF($AE$9>0,COUNTA(t_プラシャツ[[#This Row],[列13]]),0) -> 0 | AS25: =IF($V$10>0,COUNTA(t_プラシャツ[[#This Row],[列4]]),0) + IF($W$10>0,COUNTA(t_プラシャツ[[#This Row],[列5]]),0) +IF($Z$10>0,COUNTA(t_プラシャツ[[#This Row],[列8]]),0) + IF($AA$10>0,COUNTA(t_プラシャツ[[#This Row],[列9]]),0) +IF($AD$10>0,COUNTA(t_プラシャツ[[#This Row],[列12]]),0) + IF($AE$10>0,COUNTA(t_プラシャツ[[#This Row],[列13]]),0) -> 0
B26: 13 | R26: 0 | U26: =LEN(t_プラシャツ[[#This Row],[列3]]) -> 0 | V26: =IF(LEN(t_プラシャツ[[#This Row],[列4]])>0, $F$59+V$11+ IF(LEN(t_プラシャツ[[#This Row],[列2]])>0,$E$59,0)+ IF(AND(V$6=1,$U26=1),$M$69+$M$71, IF(AND(V$6=1,$U26>1),$M$70+$M$72, IF(AND(V$6=2,$U26=1),$M$69, IF(AND(V$6=2,$U26>1),$M$70, IF(AND(V$6=3,$U26=1),$M$71, IF(AND(V$6=3,$U26>1),$M$72, 0)))))),0) -> 0 | W26: =IF(LEN(t_プラシャツ[[#This Row],[列5]])>0, $G$59+W$11+ IF(LEN(t_プラシャツ[[#This Row],[列2]])>0,$E$59,0)+ IF(AND(W$6=1,$U26=1),$M$69+$M$71, IF(AND(W$6=1,$U26>1),$M$70+$M$72, IF(AND(W$6=2,$U26=1),$M$69, IF(AND(W$6=2,$U26>1),$M$70, IF(AND(W$6=3,$U26=1),$M$71, IF(AND(W$6=3,$U26>1),$M$72, 0)))))),0) -> 0 | X26: =IF(LEN(t_プラシャツ[[#This Row],[列6]])>0, $H$59+X$11+ IF(AND(X$6=1,$U26=1),$M$73, IF(AND(X$6=1,$U26>1),$M$74, 0)),0) -> 0 | Y26: =IF(LEN(t_プラシャツ[[#This Row],[列7]])>0,$I$59,0) -> 0 | Z26: =IF(LEN(t_プラシャツ[[#This Row],[列8]])>0, $F$59+Z$11+ IF(LEN(t_プラシャツ[[#This Row],[列2]])>0,$E$59,0)+ IF(AND(Z$6=1,$U26=1),$M$69+$M$71, IF(AND(Z$6=1,$U26>1),$M$70+$M$72, IF(AND(Z$6=2,$U26=1),$M$69, IF(AND(Z$6=2,$U26>1),$M$70, IF(AND(Z$6=3,$U26=1),$M$71, IF(AND(Z$6=3,$U26>1),$M$72, 0)))))),0) -> 0 | AA26: =IF(LEN(t_プラシャツ[[#This Row],[列9]])>0, $G$59+AA$11+ IF(LEN(t_プラシャツ[[#This Row],[列2]])>0,$E$59,0)+ IF(AND(AA$6=1,$U26=1),$M$69+$M$71, IF(AND(AA$6=1,$U26>1),$M$70+$M$72, IF(AND(AA$6=2,$U26=1),$M$69, IF(AND(AA$6=2,$U26>1),$M$70, IF(AND(AA$6=3,$U26=1),$M$71, IF(AND(AA$6=3,$U26>1),$M$72, 0)))))),0) -> 0 | AB26: =IF(LEN(t_プラシャツ[[#This Row],[列10]])>0, $H$59+AB$11+ IF(AND(AB$6=1,$U26=1),$M$73, IF(AND(AB$6=1,$U26>1),$M$74, 0)),0) -> 0 | AC26: =IF(LEN(t_プラシャツ[[#This Row],[列11]])>0,$I$59,0) -> 0 | AD26: =IF(LEN(t_プラシャツ[[#This Row],[列12]])>0, $F$59+AD$11+ IF(LEN(t_プラシャツ[[#This Row],[列2]])>0,$E$59,0)+ IF(AND(AD$6=1,$U26=1),$M$69+$M$71, IF(AND(AD$6=1,$U26>1),$M$70+$M$72, IF(AND(AD$6=2,$U26=1),$M$69, IF(AND(AD$6=2,$U26>1),$M$70, IF(AND(AD$6=3,$U26=1),$M$71, IF(AND(AD$6=3,$U26>1),$M$72, 0)))))),0) -> 0 | AE26: =IF(LEN(t_プラシャツ[[#This Row],[列13]])>0, $G$59+AE$11+ IF(LEN(t_プラシャツ[[#This Row],[列2]])>0,$E$59,0)+ IF(AND(AE$6=1,$U26=1),$M$69+$M$71, IF(AND(AE$6=1,$U26>1),$M$70+$M$72, IF(AND(AE$6=2,$U26=1),$M$69, IF(AND(AE$6=2,$U26>1),$M$70, IF(AND(AE$6=3,$U26=1),$M$71, IF(AND(AE$6=3,$U26>1),$M$72, 0)))))),0) -> 0 | AF26: =IF(LEN(t_プラシャツ[[#This Row],[列16]])>0, $H$59+AF$11+ IF(AND(AF$6=1,$U26=1),$M$73, IF(AND(AF$6=1,$U26>1),$M$74, 0)),0) -> 0 | AG26: =IF(LEN(t_プラシャツ[[#This Row],[列17]])>0,$I$59,0) -> 0 | AI26: =IF(LEN(t_プラシャツ[[#This Row],[列2]])>0,COUNTA(t_プラシャツ[[#This Row],[列4]:[列5]],t_プラシャツ[[#This Row],[列8]:[列9]],t_プラシャツ[[#This Row],[列12]:[列13]]),0) -> 0 | AJ26: =IF(AND($U26=1,OR($V$6=1,$V$6=2)),COUNTA(t_プラシャツ[[#This Row],[列4]]),0) + IF(AND($U26=1,OR($W$6=1,$W$6=2)),COUNTA(t_プラシャツ[[#This Row],[列5]]),0) + IF(AND($U26=1,OR($Z$6=1,$Z$6=2)),COUNTA(t_プラシャツ[[#This Row],[列8]]),0) + IF(AND($U26=1,OR($AA$6=1,$AA$6=2)),COUNTA(t_プラシャツ[[#This Row],[列9]]),0) + IF(AND($U26=1,OR($AD$6=1,$AD$6=2)),COUNTA(t_プラシャツ[[#This Row],[列12]]),0) + IF(AND($U26=1,OR($AE$6=1,$AE$6=2)),COUNTA(t_プラシャツ[[#This Row],[列13]]),0) -> 0 | AK26: =IF(AND($U26>1,OR($V$6=1,$V$6=2)),COUNTA(t_プラシャツ[[#This Row],[列4]]),0) + IF(AND($U26>1,OR($W$6=1,$W$6=2)),COUNTA(t_プラシャツ[[#This Row],[列5]]),0) + IF(AND($U26>1,OR($Z$6=1,$Z$6=2)),COUNTA(t_プラシャツ[[#This Row],[列8]]),0) + IF(AND($U26>1,OR($AA$6=1,$AA$6=2)),COUNTA(t_プラシャツ[[#This Row],[列9]]),0) + IF(AND($U26>1,OR($AD$6=1,$AD$6=2)),COUNTA(t_プラシャツ[[#This Row],[列12]]),0) + IF(AND($U26>1,OR($AE$6=1,$AE$6=2)),COUNTA(t_プラシャツ[[#This Row],[列13]]),0) -> 0 | AL26: =IF(AND($U26=1,OR($V$6=1,$V$6=3)),COUNTA(t_プラシャツ[[#This Row],[列4]]),0) + IF(AND($U26=1,OR($W$6=1,$W$6=3)),COUNTA(t_プラシャツ[[#This Row],[列5]]),0) + IF(AND($U26=1,OR($Z$6=1,$Z$6=3)),COUNTA(t_プラシャツ[[#This Row],[列8]]),0) + IF(AND($U26=1,OR($AA$6=1,$AA$6=3)),COUNTA(t_プラシャツ[[#This Row],[列9]]),0) + IF(AND($U26=1,OR($AD$6=1,$AD$6=3)),COUNTA(t_プラシャツ[[#This Row],[列12]]),0) + IF(AND($U26=1,OR($AE$6=1,$AE$6=3)),COUNTA(t_プラシャツ[[#This Row],[列13]]),0) -> 0 | AM26: =IF(AND($U26>1,OR($V$6=1,$V$6=3)),COUNTA(t_プラシャツ[[#This Row],[列4]]),0) + IF(AND($U26>1,OR($W$6=1,$W$6=3)),COUNTA(t_プラシャツ[[#This Row],[列5]]),0) + IF(AND($U26>1,OR($Z$6=1,$Z$6=3)),COUNTA(t_プラシャツ[[#This Row],[列8]]),0) + IF(AND($U26>1,OR($AA$6=1,$AA$6=3)),COUNTA(t_プラシャツ[[#This Row],[列9]]),0) + IF(AND($U26>1,OR($AD$6=1,$AD$6=3)),COUNTA(t_プラシャツ[[#This Row],[列12]]),0) + IF(AND($U26>1,OR($AE$6=1,$AE$6=3)),COUNTA(t_プラシャツ[[#This Row],[列13]]),0) -> 0 | AN26: =IF(AND($U26=1,$X$6=1),COUNTA(t_プラシャツ[[#This Row],[列6]]),0) + IF(AND($U26=1,$AB$6=1),COUNTA(t_プラシャツ[[#This Row],[列10]]),0) + IF(AND($U26=1,$AF$6=1),COUNTA(t_プラシャツ[[#This Row],[列16]]),0) -> 0 | AO26: =IF(AND($U26>1,$X$6=1),COUNTA(t_プラシャツ[[#This Row],[列6]]),0) + IF(AND($U26>1,$AB$6=1),COUNTA(t_プラシャツ[[#This Row],[列10]]),0) + IF(AND($U26>1,$AF$6=1),COUNTA(t_プラシャツ[[#This Row],[列16]]),0) -> 0 | AP26: =IF($V$7>0,COUNTA(t_プラシャツ[[#This Row],[列4]]),0) + IF($W$7>0,COUNTA(t_プラシャツ[[#This Row],[列5]]),0) + IF($X$7>0,COUNTA(t_プラシャツ[[#This Row],[列6]]),0) +IF($Z$7>0,COUNTA(t_プラシャツ[[#This Row],[列8]]),0) + IF($AA$7>0,COUNTA(t_プラシャツ[[#This Row],[列9]]),0) + IF($AB$7>0,COUNTA(t_プラシャツ[[#This Row],[列10]]),0) +IF($AD$7>0,COUNTA(t_プラシャツ[[#This Row],[列12]]),0) + IF($AE$7>0,COUNTA(t_プラシャツ[[#This Row],[列13]]),0) + IF($AF$7>0,COUNTA(t_プラシャツ[[#This Row],[列16]]),0) -> 0 | AQ26: =IF($V$8>0,COUNTA(t_プラシャツ[[#This Row],[列4]]),0) + IF($W$8>0,COUNTA(t_プラシャツ[[#This Row],[列5]]),0) +IF($Z$8>0,COUNTA(t_プラシャツ[[#This Row],[列8]]),0) + IF($AA$8>0,COUNTA(t_プラシャツ[[#This Row],[列9]]),0) +IF($AD$8>0,COUNTA(t_プラシャツ[[#This Row],[列12]]),0) + IF($AE$8>0,COUNTA(t_プラシャツ[[#This Row],[列13]]),0) -> 0 | AR26: =IF($V$9>0,COUNTA(t_プラシャツ[[#This Row],[列4]]),0) + IF($W$9>0,COUNTA(t_プラシャツ[[#This Row],[列5]]),0) +IF($Z$9>0,COUNTA(t_プラシャツ[[#This Row],[列8]]),0) + IF($AA$9>0,COUNTA(t_プラシャツ[[#This Row],[列9]]),0) +IF($AD$9>0,COUNTA(t_プラシャツ[[#This Row],[列12]]),0) + IF($AE$9>0,COUNTA(t_プラシャツ[[#This Row],[列13]]),0) -> 0 | AS26: =IF($V$10>0,COUNTA(t_プラシャツ[[#This Row],[列4]]),0) + IF($W$10>0,COUNTA(t_プラシャツ[[#This Row],[列5]]),0) +IF($Z$10>0,COUNTA(t_プラシャツ[[#This Row],[列8]]),0) + IF($AA$10>0,COUNTA(t_プラシャツ[[#This Row],[列9]]),0) +IF($AD$10>0,COUNTA(t_プラシャツ[[#This Row],[列12]]),0) + IF($AE$10>0,COUNTA(t_プラシャツ[[#This Row],[列13]]),0) -> 0
B27: 14 | R27: 0 | U27: =LEN(t_プラシャツ[[#This Row],[列3]]) -> 0 | V27: =IF(LEN(t_プラシャツ[[#This Row],[列4]])>0, $F$59+V$11+ IF(LEN(t_プラシャツ[[#This Row],[列2]])>0,$E$59,0)+ IF(AND(V$6=1,$U27=1),$M$69+$M$71, IF(AND(V$6=1,$U27>1),$M$70+$M$72, IF(AND(V$6=2,$U27=1),$M$69, IF(AND(V$6=2,$U27>1),$M$70, IF(AND(V$6=3,$U27=1),$M$71, IF(AND(V$6=3,$U27>1),$M$72, 0)))))),0) -> 0 | W27: =IF(LEN(t_プラシャツ[[#This Row],[列5]])>0, $G$59+W$11+ IF(LEN(t_プラシャツ[[#This Row],[列2]])>0,$E$59,0)+ IF(AND(W$6=1,$U27=1),$M$69+$M$71, IF(AND(W$6=1,$U27>1),$M$70+$M$72, IF(AND(W$6=2,$U27=1),$M$69, IF(AND(W$6=2,$U27>1),$M$70, IF(AND(W$6=3,$U27=1),$M$71, IF(AND(W$6=3,$U27>1),$M$72, 0)))))),0) -> 0 | X27: =IF(LEN(t_プラシャツ[[#This Row],[列6]])>0, $H$59+X$11+ IF(AND(X$6=1,$U27=1),$M$73, IF(AND(X$6=1,$U27>1),$M$74, 0)),0) -> 0 | Y27: =IF(LEN(t_プラシャツ[[#This Row],[列7]])>0,$I$59,0) -> 0 | Z27: =IF(LEN(t_プラシャツ[[#This Row],[列8]])>0, $F$59+Z$11+ IF(LEN(t_プラシャツ[[#This Row],[列2]])>0,$E$59,0)+ IF(AND(Z$6=1,$U27=1),$M$69+$M$71, IF(AND(Z$6=1,$U27>1),$M$70+$M$72, IF(AND(Z$6=2,$U27=1),$M$69, IF(AND(Z$6=2,$U27>1),$M$70, IF(AND(Z$6=3,$U27=1),$M$71, IF(AND(Z$6=3,$U27>1),$M$72, 0)))))),0) -> 0 | AA27: =IF(LEN(t_プラシャツ[[#This Row],[列9]])>0, $G$59+AA$11+ IF(LEN(t_プラシャツ[[#This Row],[列2]])>0,$E$59,0)+ IF(AND(AA$6=1,$U27=1),$M$69+$M$71, IF(AND(AA$6=1,$U27>1),$M$70+$M$72, IF(AND(AA$6=2,$U27=1),$M$69, IF(AND(AA$6=2,$U27>1),$M$70, IF(AND(AA$6=3,$U27=1),$M$71, IF(AND(AA$6=3,$U27>1),$M$72, 0)))))),0) -> 0 | AB27: =IF(LEN(t_プラシャツ[[#This Row],[列10]])>0, $H$59+AB$11+ IF(AND(AB$6=1,$U27=1),$M$73, IF(AND(AB$6=1,$U27>1),$M$74, 0)),0) -> 0 | AC27: =IF(LEN(t_プラシャツ[[#This Row],[列11]])>0,$I$59,0) -> 0 | AD27: =IF(LEN(t_プラシャツ[[#This Row],[列12]])>0, $F$59+AD$11+ IF(LEN(t_プラシャツ[[#This Row],[列2]])>0,$E$59,0)+ IF(AND(AD$6=1,$U27=1),$M$69+$M$71, IF(AND(AD$6=1,$U27>1),$M$70+$M$72, IF(AND(AD$6=2,$U27=1),$M$69, IF(AND(AD$6=2,$U27>1),$M$70, IF(AND(AD$6=3,$U27=1),$M$71, IF(AND(AD$6=3,$U27>1),$M$72, 0)))))),0) -> 0 | AE27: =IF(LEN(t_プラシャツ[[#This Row],[列13]])>0, $G$59+AE$11+ IF(LEN(t_プラシャツ[[#This Row],[列2]])>0,$E$59,0)+ IF(AND(AE$6=1,$U27=1),$M$69+$M$71, IF(AND(AE$6=1,$U27>1),$M$70+$M$72, IF(AND(AE$6=2,$U27=1),$M$69, IF(AND(AE$6=2,$U27>1),$M$70, IF(AND(AE$6=3,$U27=1),$M$71, IF(AND(AE$6=3,$U27>1),$M$72, 0)))))),0) -> 0 | AF27: =IF(LEN(t_プラシャツ[[#This Row],[列16]])>0, $H$59+AF$11+ IF(AND(AF$6=1,$U27=1),$M$73, IF(AND(AF$6=1,$U27>1),$M$74, 0)),0) -> 0 | AG27: =IF(LEN(t_プラシャツ[[#This Row],[列17]])>0,$I$59,0) -> 0 | AI27: =IF(LEN(t_プラシャツ[[#This Row],[列2]])>0,COUNTA(t_プラシャツ[[#This Row],[列4]:[列5]],t_プラシャツ[[#This Row],[列8]:[列9]],t_プラシャツ[[#This Row],[列12]:[列13]]),0) -> 0 | AJ27: =IF(AND($U27=1,OR($V$6=1,$V$6=2)),COUNTA(t_プラシャツ[[#This Row],[列4]]),0) + IF(AND($U27=1,OR($W$6=1,$W$6=2)),COUNTA(t_プラシャツ[[#This Row],[列5]]),0) + IF(AND($U27=1,OR($Z$6=1,$Z$6=2)),COUNTA(t_プラシャツ[[#This Row],[列8]]),0) + IF(AND($U27=1,OR($AA$6=1,$AA$6=2)),COUNTA(t_プラシャツ[[#This Row],[列9]]),0) + IF(AND($U27=1,OR($AD$6=1,$AD$6=2)),COUNTA(t_プラシャツ[[#This Row],[列12]]),0) + IF(AND($U27=1,OR($AE$6=1,$AE$6=2)),COUNTA(t_プラシャツ[[#This Row],[列13]]),0) -> 0 | AK27: =IF(AND($U27>1,OR($V$6=1,$V$6=2)),COUNTA(t_プラシャツ[[#This Row],[列4]]),0) + IF(AND($U27>1,OR($W$6=1,$W$6=2)),COUNTA(t_プラシャツ[[#This Row],[列5]]),0) + IF(AND($U27>1,OR($Z$6=1,$Z$6=2)),COUNTA(t_プラシャツ[[#This Row],[列8]]),0) + IF(AND($U27>1,OR($AA$6=1,$AA$6=2)),COUNTA(t_プラシャツ[[#This Row],[列9]]),0) + IF(AND($U27>1,OR($AD$6=1,$AD$6=2)),COUNTA(t_プラシャツ[[#This Row],[列12]]),0) + IF(AND($U27>1,OR($AE$6=1,$AE$6=2)),COUNTA(t_プラシャツ[[#This Row],[列13]]),0) -> 0 | AL27: =IF(AND($U27=1,OR($V$6=1,$V$6=3)),COUNTA(t_プラシャツ[[#This Row],[列4]]),0) + IF(AND($U27=1,OR($W$6=1,$W$6=3)),COUNTA(t_プラシャツ[[#This Row],[列5]]),0) + IF(AND($U27=1,OR($Z$6=1,$Z$6=3)),COUNTA(t_プラシャツ[[#This Row],[列8]]),0) + IF(AND($U27=1,OR($AA$6=1,$AA$6=3)),COUNTA(t_プラシャツ[[#This Row],[列9]]),0) + IF(AND($U27=1,OR($AD$6=1,$AD$6=3)),COUNTA(t_プラシャツ[[#This Row],[列12]]),0) + IF(AND($U27=1,OR($AE$6=1,$AE$6=3)),COUNTA(t_プラシャツ[[#This Row],[列13]]),0) -> 0 | AM27: =IF(AND($U27>1,OR($V$6=1,$V$6=3)),COUNTA(t_プラシャツ[[#This Row],[列4]]),0) + IF(AND($U27>1,OR($W$6=1,$W$6=3)),COUNTA(t_プラシャツ[[#This Row],[列5]]),0) + IF(AND($U27>1,OR($Z$6=1,$Z$6=3)),COUNTA(t_プラシャツ[[#This Row],[列8]]),0) + IF(AND($U27>1,OR($AA$6=1,$AA$6=3)),COUNTA(t_プラシャツ[[#This Row],[列9]]),0) + IF(AND($U27>1,OR($AD$6=1,$AD$6=3)),COUNTA(t_プラシャツ[[#This Row],[列12]]),0) + IF(AND($U27>1,OR($AE$6=1,$AE$6=3)),COUNTA(t_プラシャツ[[#This Row],[列13]]),0) -> 0 | AN27: =IF(AND($U27=1,$X$6=1),COUNTA(t_プラシャツ[[#This Row],[列6]]),0) + IF(AND($U27=1,$AB$6=1),COUNTA(t_プラシャツ[[#This Row],[列10]]),0) + IF(AND($U27=1,$AF$6=1),COUNTA(t_プラシャツ[[#This Row],[列16]]),0) -> 0 | AO27: =IF(AND($U27>1,$X$6=1),COUNTA(t_プラシャツ[[#This Row],[列6]]),0) + IF(AND($U27>1,$AB$6=1),COUNTA(t_プラシャツ[[#This Row],[列10]]),0) + IF(AND($U27>1,$AF$6=1),COUNTA(t_プラシャツ[[#This Row],[列16]]),0) -> 0 | AP27: =IF($V$7>0,COUNTA(t_プラシャツ[[#This Row],[列4]]),0) + IF($W$7>0,COUNTA(t_プラシャツ[[#This Row],[列5]]),0) + IF($X$7>0,COUNTA(t_プラシャツ[[#This Row],[列6]]),0) +IF($Z$7>0,COUNTA(t_プラシャツ[[#This Row],[列8]]),0) + IF($AA$7>0,COUNTA(t_プラシャツ[[#This Row],[列9]]),0) + IF($AB$7>0,COUNTA(t_プラシャツ[[#This Row],[列10]]),0) +IF($AD$7>0,COUNTA(t_プラシャツ[[#This Row],[列12]]),0) + IF($AE$7>0,COUNTA(t_プラシャツ[[#This Row],[列13]]),0) + IF($AF$7>0,COUNTA(t_プラシャツ[[#This Row],[列16]]),0) -> 0 | AQ27: =IF($V$8>0,COUNTA(t_プラシャツ[[#This Row],[列4]]),0) + IF($W$8>0,COUNTA(t_プラシャツ[[#This Row],[列5]]),0) +IF($Z$8>0,COUNTA(t_プラシャツ[[#This Row],[列8]]),0) + IF($AA$8>0,COUNTA(t_プラシャツ[[#This Row],[列9]]),0) +IF($AD$8>0,COUNTA(t_プラシャツ[[#This Row],[列12]]),0) + IF($AE$8>0,COUNTA(t_プラシャツ[[#This Row],[列13]]),0) -> 0 | AR27: =IF($V$9>0,COUNTA(t_プラシャツ[[#This Row],[列4]]),0) + IF($W$9>0,COUNTA(t_プラシャツ[[#This Row],[列5]]),0) +IF($Z$9>0,COUNTA(t_プラシャツ[[#This Row],[列8]]),0) + IF($AA$9>0,COUNTA(t_プラシャツ[[#This Row],[列9]]),0) +IF($AD$9>0,COUNTA(t_プラシャツ[[#This Row],[列12]]),0) + IF($AE$9>0,COUNTA(t_プラシャツ[[#This Row],[列13]]),0) -> 0 | AS27: =IF($V$10>0,COUNTA(t_プラシャツ[[#This Row],[列4]]),0) + IF($W$10>0,COUNTA(t_プラシャツ[[#This Row],[列5]]),0) +IF($Z$10>0,COUNTA(t_プラシャツ[[#This Row],[列8]]),0) + IF($AA$10>0,COUNTA(t_プラシャツ[[#This Row],[列9]]),0) +IF($AD$10>0,COUNTA(t_プラシャツ[[#This Row],[列12]]),0) + IF($AE$10>0,COUNTA(t_プラシャツ[[#This Row],[列13]]),0) -> 0
B28: 15 | R28: 0 | U28: =LEN(t_プラシャツ[[#This Row],[列3]]) -> 0 | V28: =IF(LEN(t_プラシャツ[[#This Row],[列4]])>0, $F$59+V$11+ IF(LEN(t_プラシャツ[[#This Row],[列2]])>0,$E$59,0)+ IF(AND(V$6=1,$U28=1),$M$69+$M$71, IF(AND(V$6=1,$U28>1),$M$70+$M$72, IF(AND(V$6=2,$U28=1),$M$69, IF(AND(V$6=2,$U28>1),$M$70, IF(AND(V$6=3,$U28=1),$M$71, IF(AND(V$6=3,$U28>1),$M$72, 0)))))),0) -> 0 | W28: =IF(LEN(t_プラシャツ[[#This Row],[列5]])>0, $G$59+W$11+ IF(LEN(t_プラシャツ[[#This Row],[列2]])>0,$E$59,0)+ IF(AND(W$6=1,$U28=1),$M$69+$M$71, IF(AND(W$6=1,$U28>1),$M$70+$M$72, IF(AND(W$6=2,$U28=1),$M$69, IF(AND(W$6=2,$U28>1),$M$70, IF(AND(W$6=3,$U28=1),$M$71, IF(AND(W$6=3,$U28>1),$M$72, 0)))))),0) -> 0 | X28: =IF(LEN(t_プラシャツ[[#This Row],[列6]])>0, $H$59+X$11+ IF(AND(X$6=1,$U28=1),$M$73, IF(AND(X$6=1,$U28>1),$M$74, 0)),0) -> 0 | Y28: =IF(LEN(t_プラシャツ[[#This Row],[列7]])>0,$I$59,0) -> 0 | Z28: =IF(LEN(t_プラシャツ[[#This Row],[列8]])>0, $F$59+Z$11+ IF(LEN(t_プラシャツ[[#This Row],[列2]])>0,$E$59,0)+ IF(AND(Z$6=1,$U28=1),$M$69+$M$71, IF(AND(Z$6=1,$U28>1),$M$70+$M$72, IF(AND(Z$6=2,$U28=1),$M$69, IF(AND(Z$6=2,$U28>1),$M$70, IF(AND(Z$6=3,$U28=1),$M$71, IF(AND(Z$6=3,$U28>1),$M$72, 0)))))),0) -> 0 | AA28: =IF(LEN(t_プラシャツ[[#This Row],[列9]])>0, $G$59+AA$11+ IF(LEN(t_プラシャツ[[#This Row],[列2]])>0,$E$59,0)+ IF(AND(AA$6=1,$U28=1),$M$69+$M$71, IF(AND(AA$6=1,$U28>1),$M$70+$M$72, IF(AND(AA$6=2,$U28=1),$M$69, IF(AND(AA$6=2,$U28>1),$M$70, IF(AND(AA$6=3,$U28=1),$M$71, IF(AND(AA$6=3,$U28>1),$M$72, 0)))))),0) -> 0 | AB28: =IF(LEN(t_プラシャツ[[#This Row],[列10]])>0, $H$59+AB$11+ IF(AND(AB$6=1,$U28=1),$M$73, IF(AND(AB$6=1,$U28>1),$M$74, 0)),0) -> 0 | AC28: =IF(LEN(t_プラシャツ[[#This Row],[列11]])>0,$I$59,0) -> 0 | AD28: =IF(LEN(t_プラシャツ[[#This Row],[列12]])>0, $F$59+AD$11+ IF(LEN(t_プラシャツ[[#This Row],[列2]])>0,$E$59,0)+ IF(AND(AD$6=1,$U28=1),$M$69+$M$71, IF(AND(AD$6=1,$U28>1),$M$70+$M$72, IF(AND(AD$6=2,$U28=1),$M$69, IF(AND(AD$6=2,$U28>1),$M$70, IF(AND(AD$6=3,$U28=1),$M$71, IF(AND(AD$6=3,$U28>1),$M$72, 0)))))),0) -> 0 | AE28: =IF(LEN(t_プラシャツ[[#This Row],[列13]])>0, $G$59+AE$11+ IF(LEN(t_プラシャツ[[#This Row],[列2]])>0,$E$59,0)+ IF(AND(AE$6=1,$U28=1),$M$69+$M$71, IF(AND(AE$6=1,$U28>1),$M$70+$M$72, IF(AND(AE$6=2,$U28=1),$M$69, IF(AND(AE$6=2,$U28>1),$M$70, IF(AND(AE$6=3,$U28=1),$M$71, IF(AND(AE$6=3,$U28>1),$M$72, 0)))))),0) -> 0 | AF28: =IF(LEN(t_プラシャツ[[#This Row],[列16]])>0, $H$59+AF$11+ IF(AND(AF$6=1,$U28=1),$M$73, IF(AND(AF$6=1,$U28>1),$M$74, 0)),0) -> 0 | AG28: =IF(LEN(t_プラシャツ[[#This Row],[列17]])>0,$I$59,0) -> 0 | AI28: =IF(LEN(t_プラシャツ[[#This Row],[列2]])>0,COUNTA(t_プラシャツ[[#This Row],[列4]:[列5]],t_プラシャツ[[#This Row],[列8]:[列9]],t_プラシャツ[[#This Row],[列12]:[列13]]),0) -> 0 | AJ28: =IF(AND($U28=1,OR($V$6=1,$V$6=2)),COUNTA(t_プラシャツ[[#This Row],[列4]]),0) + IF(AND($U28=1,OR($W$6=1,$W$6=2)),COUNTA(t_プラシャツ[[#This Row],[列5]]),0) + IF(AND($U28=1,OR($Z$6=1,$Z$6=2)),COUNTA(t_プラシャツ[[#This Row],[列8]]),0) + IF(AND($U28=1,OR($AA$6=1,$AA$6=2)),COUNTA(t_プラシャツ[[#This Row],[列9]]),0) + IF(AND($U28=1,OR($AD$6=1,$AD$6=2)),COUNTA(t_プラシャツ[[#This Row],[列12]]),0) + IF(AND($U28=1,OR($AE$6=1,$AE$6=2)),COUNTA(t_プラシャツ[[#This Row],[列13]]),0) -> 0 | AK28: =IF(AND($U28>1,OR($V$6=1,$V$6=2)),COUNTA(t_プラシャツ[[#This Row],[列4]]),0) + IF(AND($U28>1,OR($W$6=1,$W$6=2)),COUNTA(t_プラシャツ[[#This Row],[列5]]),0) + IF(AND($U28>1,OR($Z$6=1,$Z$6=2)),COUNTA(t_プラシャツ[[#This Row],[列8]]),0) + IF(AND($U28>1,OR($AA$6=1,$AA$6=2)),COUNTA(t_プラシャツ[[#This Row],[列9]]),0) + IF(AND($U28>1,OR($AD$6=1,$AD$6=2)),COUNTA(t_プラシャツ[[#This Row],[列12]]),0) + IF(AND($U28>1,OR($AE$6=1,$AE$6=2)),COUNTA(t_プラシャツ[[#This Row],[列13]]),0) -> 0 | AL28: =IF(AND($U28=1,OR($V$6=1,$V$6=3)),COUNTA(t_プラシャツ[[#This Row],[列4]]),0) + IF(AND($U28=1,OR($W$6=1,$W$6=3)),COUNTA(t_プラシャツ[[#This Row],[列5]]),0) + IF(AND($U28=1,OR($Z$6=1,$Z$6=3)),COUNTA(t_プラシャツ[[#This Row],[列8]]),0) + IF(AND($U28=1,OR($AA$6=1,$AA$6=3)),COUNTA(t_プラシャツ[[#This Row],[列9]]),0) + IF(AND($U28=1,OR($AD$6=1,$AD$6=3)),COUNTA(t_プラシャツ[[#This Row],[列12]]),0) + IF(AND($U28=1,OR($AE$6=1,$AE$6=3)),COUNTA(t_プラシャツ[[#This Row],[列13]]),0) -> 0 | AM28: =IF(AND($U28>1,OR($V$6=1,$V$6=3)),COUNTA(t_プラシャツ[[#This Row],[列4]]),0) + IF(AND($U28>1,OR($W$6=1,$W$6=3)),COUNTA(t_プラシャツ[[#This Row],[列5]]),0) + IF(AND($U28>1,OR($Z$6=1,$Z$6=3)),COUNTA(t_プラシャツ[[#This Row],[列8]]),0) + IF(AND($U28>1,OR($AA$6=1,$AA$6=3)),COUNTA(t_プラシャツ[[#This Row],[列9]]),0) + IF(AND($U28>1,OR($AD$6=1,$AD$6=3)),COUNTA(t_プラシャツ[[#This Row],[列12]]),0) + IF(AND($U28>1,OR($AE$6=1,$AE$6=3)),COUNTA(t_プラシャツ[[#This Row],[列13]]),0) -> 0 | AN28: =IF(AND($U28=1,$X$6=1),COUNTA(t_プラシャツ[[#This Row],[列6]]),0) + IF(AND($U28=1,$AB$6=1),COUNTA(t_プラシャツ[[#This Row],[列10]]),0) + IF(AND($U28=1,$AF$6=1),COUNTA(t_プラシャツ[[#This Row],[列16]]),0) -> 0 | AO28: =IF(AND($U28>1,$X$6=1),COUNTA(t_プラシャツ[[#This Row],[列6]]),0) + IF(AND($U28>1,$AB$6=1),COUNTA(t_プラシャツ[[#This Row],[列10]]),0) + IF(AND($U28>1,$AF$6=1),COUNTA(t_プラシャツ[[#This Row],[列16]]),0) -> 0 | AP28: =IF($V$7>0,COUNTA(t_プラシャツ[[#This Row],[列4]]),0) + IF($W$7>0,COUNTA(t_プラシャツ[[#This Row],[列5]]),0) + IF($X$7>0,COUNTA(t_プラシャツ[[#This Row],[列6]]),0) +IF($Z$7>0,COUNTA(t_プラシャツ[[#This Row],[列8]]),0) + IF($AA$7>0,COUNTA(t_プラシャツ[[#This Row],[列9]]),0) + IF($AB$7>0,COUNTA(t_プラシャツ[[#This Row],[列10]]),0) +IF($AD$7>0,COUNTA(t_プラシャツ[[#This Row],[列12]]),0) + IF($AE$7>0,COUNTA(t_プラシャツ[[#This Row],[列13]]),0) + IF($AF$7>0,COUNTA(t_プラシャツ[[#This Row],[列16]]),0) -> 0 | AQ28: =IF($V$8>0,COUNTA(t_プラシャツ[[#This Row],[列4]]),0) + IF($W$8>0,COUNTA(t_プラシャツ[[#This Row],[列5]]),0) +IF($Z$8>0,COUNTA(t_プラシャツ[[#This Row],[列8]]),0) + IF($AA$8>0,COUNTA(t_プラシャツ[[#This Row],[列9]]),0) +IF($AD$8>0,COUNTA(t_プラシャツ[[#This Row],[列12]]),0) + IF($AE$8>0,COUNTA(t_プラシャツ[[#This Row],[列13]]),0) -> 0 | AR28: =IF($V$9>0,COUNTA(t_プラシャツ[[#This Row],[列4]]),0) + IF($W$9>0,COUNTA(t_プラシャツ[[#This Row],[列5]]),0) +IF($Z$9>0,COUNTA(t_プラシャツ[[#This Row],[列8]]),0) + IF($AA$9>0,COUNTA(t_プラシャツ[[#This Row],[列9]]),0) +IF($AD$9>0,COUNTA(t_プラシャツ[[#This Row],[列12]]),0) + IF($AE$9>0,COUNTA(t_プラシャツ[[#This Row],[列13]]),0) -> 0 | AS28: =IF($V$10>0,COUNTA(t_プラシャツ[[#This Row],[列4]]),0) + IF($W$10>0,COUNTA(t_プラシャツ[[#This Row],[列5]]),0) +IF($Z$10>0,COUNTA(t_プラシャツ[[#This Row],[列8]]),0) + IF($AA$10>0,COUNTA(t_プラシャツ[[#This Row],[列9]]),0) +IF($AD$10>0,COUNTA(t_プラシャツ[[#This Row],[列12]]),0) + IF($AE$10>0,COUNTA(t_プラシャツ[[#This Row],[列13]]),0) -> 0
B29: 16 | R29: 0 | U29: =LEN(t_プラシャツ[[#This Row],[列3]]) -> 0 | V29: =IF(LEN(t_プラシャツ[[#This Row],[列4]])>0, $F$59+V$11+ IF(LEN(t_プラシャツ[[#This Row],[列2]])>0,$E$59,0)+ IF(AND(V$6=1,$U29=1),$M$69+$M$71, IF(AND(V$6=1,$U29>1),$M$70+$M$72, IF(AND(V$6=2,$U29=1),$M$69, IF(AND(V$6=2,$U29>1),$M$70, IF(AND(V$6=3,$U29=1),$M$71, IF(AND(V$6=3,$U29>1),$M$72, 0)))))),0) -> 0 | W29: =IF(LEN(t_プラシャツ[[#This Row],[列5]])>0, $G$59+W$11+ IF(LEN(t_プラシャツ[[#This Row],[列2]])>0,$E$59,0)+ IF(AND(W$6=1,$U29=1),$M$69+$M$71, IF(AND(W$6=1,$U29>1),$M$70+$M$72, IF(AND(W$6=2,$U29=1),$M$69, IF(AND(W$6=2,$U29>1),$M$70, IF(AND(W$6=3,$U29=1),$M$71, IF(AND(W$6=3,$U29>1),$M$72, 0)))))),0) -> 0 | X29: =IF(LEN(t_プラシャツ[[#This Row],[列6]])>0, $H$59+X$11+ IF(AND(X$6=1,$U29=1),$M$73, IF(AND(X$6=1,$U29>1),$M$74, 0)),0) -> 0 | Y29: =IF(LEN(t_プラシャツ[[#This Row],[列7]])>0,$I$59,0) -> 0 | Z29: =IF(LEN(t_プラシャツ[[#This Row],[列8]])>0, $F$59+Z$11+ IF(LEN(t_プラシャツ[[#This Row],[列2]])>0,$E$59,0)+ IF(AND(Z$6=1,$U29=1),$M$69+$M$71, IF(AND(Z$6=1,$U29>1),$M$70+$M$72, IF(AND(Z$6=2,$U29=1),$M$69, IF(AND(Z$6=2,$U29>1),$M$70, IF(AND(Z$6=3,$U29=1),$M$71, IF(AND(Z$6=3,$U29>1),$M$72, 0)))))),0) -> 0 | AA29: =IF(LEN(t_プラシャツ[[#This Row],[列9]])>0, $G$59+AA$11+ IF(LEN(t_プラシャツ[[#This Row],[列2]])>0,$E$59,0)+ IF(AND(AA$6=1,$U29=1),$M$69+$M$71, IF(AND(AA$6=1,$U29>1),$M$70+$M$72, IF(AND(AA$6=2,$U29=1),$M$69, IF(AND(AA$6=2,$U29>1),$M$70, IF(AND(AA$6=3,$U29=1),$M$71, IF(AND(AA$6=3,$U29>1),$M$72, 0)))))),0) -> 0 | AB29: =IF(LEN(t_プラシャツ[[#This Row],[列10]])>0, $H$59+AB$11+ IF(AND(AB$6=1,$U29=1),$M$73, IF(AND(AB$6=1,$U29>1),$M$74, 0)),0) -> 0 | AC29: =IF(LEN(t_プラシャツ[[#This Row],[列11]])>0,$I$59,0) -> 0 | AD29: =IF(LEN(t_プラシャツ[[#This Row],[列12]])>0, $F$59+AD$11+ IF(LEN(t_プラシャツ[[#This Row],[列2]])>0,$E$59,0)+ IF(AND(AD$6=1,$U29=1),$M$69+$M$71, IF(AND(AD$6=1,$U29>1),$M$70+$M$72, IF(AND(AD$6=2,$U29=1),$M$69, IF(AND(AD$6=2,$U29>1),$M$70, IF(AND(AD$6=3,$U29=1),$M$71, IF(AND(AD$6=3,$U29>1),$M$72, 0)))))),0) -> 0 | AE29: =IF(LEN(t_プラシャツ[[#This Row],[列13]])>0, $G$59+AE$11+ IF(LEN(t_プラシャツ[[#This Row],[列2]])>0,$E$59,0)+ IF(AND(AE$6=1,$U29=1),$M$69+$M$71, IF(AND(AE$6=1,$U29>1),$M$70+$M$72, IF(AND(AE$6=2,$U29=1),$M$69, IF(AND(AE$6=2,$U29>1),$M$70, IF(AND(AE$6=3,$U29=1),$M$71, IF(AND(AE$6=3,$U29>1),$M$72, 0)))))),0) -> 0 | AF29: =IF(LEN(t_プラシャツ[[#This Row],[列16]])>0, $H$59+AF$11+ IF(AND(AF$6=1,$U29=1),$M$73, IF(AND(AF$6=1,$U29>1),$M$74, 0)),0) -> 0 | AG29: =IF(LEN(t_プラシャツ[[#This Row],[列17]])>0,$I$59,0) -> 0 | AI29: =IF(LEN(t_プラシャツ[[#This Row],[列2]])>0,COUNTA(t_プラシャツ[[#This Row],[列4]:[列5]],t_プラシャツ[[#This Row],[列8]:[列9]],t_プラシャツ[[#This Row],[列12]:[列13]]),0) -> 0 | AJ29: =IF(AND($U29=1,OR($V$6=1,$V$6=2)),COUNTA(t_プラシャツ[[#This Row],[列4]]),0) + IF(AND($U29=1,OR($W$6=1,$W$6=2)),COUNTA(t_プラシャツ[[#This Row],[列5]]),0) + IF(AND($U29=1,OR($Z$6=1,$Z$6=2)),COUNTA(t_プラシャツ[[#This Row],[列8]]),0) + IF(AND($U29=1,OR($AA$6=1,$AA$6=2)),COUNTA(t_プラシャツ[[#This Row],[列9]]),0) + IF(AND($U29=1,OR($AD$6=1,$AD$6=2)),COUNTA(t_プラシャツ[[#This Row],[列12]]),0) + IF(AND($U29=1,OR($AE$6=1,$AE$6=2)),COUNTA(t_プラシャツ[[#This Row],[列13]]),0) -> 0 | AK29: =IF(AND($U29>1,OR($V$6=1,$V$6=2)),COUNTA(t_プラシャツ[[#This Row],[列4]]),0) + IF(AND($U29>1,OR($W$6=1,$W$6=2)),COUNTA(t_プラシャツ[[#This Row],[列5]]),0) + IF(AND($U29>1,OR($Z$6=1,$Z$6=2)),COUNTA(t_プラシャツ[[#This Row],[列8]]),0) + IF(AND($U29>1,OR($AA$6=1,$AA$6=2)),COUNTA(t_プラシャツ[[#This Row],[列9]]),0) + IF(AND($U29>1,OR($AD$6=1,$AD$6=2)),COUNTA(t_プラシャツ[[#This Row],[列12]]),0) + IF(AND($U29>1,OR($AE$6=1,$AE$6=2)),COUNTA(t_プラシャツ[[#This Row],[列13]]),0) -> 0 | AL29: =IF(AND($U29=1,OR($V$6=1,$V$6=3)),COUNTA(t_プラシャツ[[#This Row],[列4]]),0) + IF(AND($U29=1,OR($W$6=1,$W$6=3)),COUNTA(t_プラシャツ[[#This Row],[列5]]),0) + IF(AND($U29=1,OR($Z$6=1,$Z$6=3)),COUNTA(t_プラシャツ[[#This Row],[列8]]),0) + IF(AND($U29=1,OR($AA$6=1,$AA$6=3)),COUNTA(t_プラシャツ[[#This Row],[列9]]),0) + IF(AND($U29=1,OR($AD$6=1,$AD$6=3)),COUNTA(t_プラシャツ[[#This Row],[列12]]),0) + IF(AND($U29=1,OR($AE$6=1,$AE$6=3)),COUNTA(t_プラシャツ[[#This Row],[列13]]),0) -> 0 | AM29: =IF(AND($U29>1,OR($V$6=1,$V$6=3)),COUNTA(t_プラシャツ[[#This Row],[列4]]),0) + IF(AND($U29>1,OR($W$6=1,$W$6=3)),COUNTA(t_プラシャツ[[#This Row],[列5]]),0) + IF(AND($U29>1,OR($Z$6=1,$Z$6=3)),COUNTA(t_プラシャツ[[#This Row],[列8]]),0) + IF(AND($U29>1,OR($AA$6=1,$AA$6=3)),COUNTA(t_プラシャツ[[#This Row],[列9]]),0) + IF(AND($U29>1,OR($AD$6=1,$AD$6=3)),COUNTA(t_プラシャツ[[#This Row],[列12]]),0) + IF(AND($U29>1,OR($AE$6=1,$AE$6=3)),COUNTA(t_プラシャツ[[#This Row],[列13]]),0) -> 0 | AN29: =IF(AND($U29=1,$X$6=1),COUNTA(t_プラシャツ[[#This Row],[列6]]),0) + IF(AND($U29=1,$AB$6=1),COUNTA(t_プラシャツ[[#This Row],[列10]]),0) + IF(AND($U29=1,$AF$6=1),COUNTA(t_プラシャツ[[#This Row],[列16]]),0) -> 0 | AO29: =IF(AND($U29>1,$X$6=1),COUNTA(t_プラシャツ[[#This Row],[列6]]),0) + IF(AND($U29>1,$AB$6=1),COUNTA(t_プラシャツ[[#This Row],[列10]]),0) + IF(AND($U29>1,$AF$6=1),COUNTA(t_プラシャツ[[#This Row],[列16]]),0) -> 0 | AP29: =IF($V$7>0,COUNTA(t_プラシャツ[[#This Row],[列4]]),0) + IF($W$7>0,COUNTA(t_プラシャツ[[#This Row],[列5]]),0) + IF($X$7>0,COUNTA(t_プラシャツ[[#This Row],[列6]]),0) +IF($Z$7>0,COUNTA(t_プラシャツ[[#This Row],[列8]]),0) + IF($AA$7>0,COUNTA(t_プラシャツ[[#This Row],[列9]]),0) + IF($AB$7>0,COUNTA(t_プラシャツ[[#This Row],[列10]]),0) +IF($AD$7>0,COUNTA(t_プラシャツ[[#This Row],[列12]]),0) + IF($AE$7>0,COUNTA(t_プラシャツ[[#This Row],[列13]]),0) + IF($AF$7>0,COUNTA(t_プラシャツ[[#This Row],[列16]]),0) -> 0 | AQ29: =IF($V$8>0,COUNTA(t_プラシャツ[[#This Row],[列4]]),0) + IF($W$8>0,COUNTA(t_プラシャツ[[#This Row],[列5]]),0) +IF($Z$8>0,COUNTA(t_プラシャツ[[#This Row],[列8]]),0) + IF($AA$8>0,COUNTA(t_プラシャツ[[#This Row],[列9]]),0) +IF($AD$8>0,COUNTA(t_プラシャツ[[#This Row],[列12]]),0) + IF($AE$8>0,COUNTA(t_プラシャツ[[#This Row],[列13]]),0) -> 0 | AR29: =IF($V$9>0,COUNTA(t_プラシャツ[[#This Row],[列4]]),0) + IF($W$9>0,COUNTA(t_プラシャツ[[#This Row],[列5]]),0) +IF($Z$9>0,COUNTA(t_プラシャツ[[#This Row],[列8]]),0) + IF($AA$9>0,COUNTA(t_プラシャツ[[#This Row],[列9]]),0) +IF($AD$9>0,COUNTA(t_プラシャツ[[#This Row],[列12]]),0) + IF($AE$9>0,COUNTA(t_プラシャツ[[#This Row],[列13]]),0) -> 0 | AS29: =IF($V$10>0,COUNTA(t_プラシャツ[[#This Row],[列4]]),0) + IF($W$10>0,COUNTA(t_プラシャツ[[#This Row],[列5]]),0) +IF($Z$10>0,COUNTA(t_プラシャツ[[#This Row],[列8]]),0) + IF($AA$10>0,COUNTA(t_プラシャツ[[#This Row],[列9]]),0) +IF($AD$10>0,COUNTA(t_プラシャツ[[#This Row],[列12]]),0) + IF($AE$10>0,COUNTA(t_プラシャツ[[#This Row],[列13]]),0) -> 0
B30: 17 | R30: 0 | U30: =LEN(t_プラシャツ[[#This Row],[列3]]) -> 0 | V30: =IF(LEN(t_プラシャツ[[#This Row],[列4]])>0, $F$59+V$11+ IF(LEN(t_プラシャツ[[#This Row],[列2]])>0,$E$59,0)+ IF(AND(V$6=1,$U30=1),$M$69+$M$71, IF(AND(V$6=1,$U30>1),$M$70+$M$72, IF(AND(V$6=2,$U30=1),$M$69, IF(AND(V$6=2,$U30>1),$M$70, IF(AND(V$6=3,$U30=1),$M$71, IF(AND(V$6=3,$U30>1),$M$72, 0)))))),0) -> 0 | W30: =IF(LEN(t_プラシャツ[[#This Row],[列5]])>0, $G$59+W$11+ IF(LEN(t_プラシャツ[[#This Row],[列2]])>0,$E$59,0)+ IF(AND(W$6=1,$U30=1),$M$69+$M$71, IF(AND(W$6=1,$U30>1),$M$70+$M$72, IF(AND(W$6=2,$U30=1),$M$69, IF(AND(W$6=2,$U30>1),$M$70, IF(AND(W$6=3,$U30=1),$M$71, IF(AND(W$6=3,$U30>1),$M$72, 0)))))),0) -> 0 | X30: =IF(LEN(t_プラシャツ[[#This Row],[列6]])>0, $H$59+X$11+ IF(AND(X$6=1,$U30=1),$M$73, IF(AND(X$6=1,$U30>1),$M$74, 0)),0) -> 0 | Y30: =IF(LEN(t_プラシャツ[[#This Row],[列7]])>0,$I$59,0) -> 0 | Z30: =IF(LEN(t_プラシャツ[[#This Row],[列8]])>0, $F$59+Z$11+ IF(LEN(t_プラシャツ[[#This Row],[列2]])>0,$E$59,0)+ IF(AND(Z$6=1,$U30=1),$M$69+$M$71, IF(AND(Z$6=1,$U30>1),$M$70+$M$72, IF(AND(Z$6=2,$U30=1),$M$69, IF(AND(Z$6=2,$U30>1),$M$70, IF(AND(Z$6=3,$U30=1),$M$71, IF(AND(Z$6=3,$U30>1),$M$72, 0)))))),0) -> 0 | AA30: =IF(LEN(t_プラシャツ[[#This Row],[列9]])>0, $G$59+AA$11+ IF(LEN(t_プラシャツ[[#This Row],[列2]])>0,$E$59,0)+ IF(AND(AA$6=1,$U30=1),$M$69+$M$71, IF(AND(AA$6=1,$U30>1),$M$70+$M$72, IF(AND(AA$6=2,$U30=1),$M$69, IF(AND(AA$6=2,$U30>1),$M$70, IF(AND(AA$6=3,$U30=1),$M$71, IF(AND(AA$6=3,$U30>1),$M$72, 0)))))),0) -> 0 | AB30: =IF(LEN(t_プラシャツ[[#This Row],[列10]])>0, $H$59+AB$11+ IF(AND(AB$6=1,$U30=1),$M$73, IF(AND(AB$6=1,$U30>1),$M$74, 0)),0) -> 0 | AC30: =IF(LEN(t_プラシャツ[[#This Row],[列11]])>0,$I$59,0) -> 0 | AD30: =IF(LEN(t_プラシャツ[[#This Row],[列12]])>0, $F$59+AD$11+ IF(LEN(t_プラシャツ[[#This Row],[列2]])>0,$E$59,0)+ IF(AND(AD$6=1,$U30=1),$M$69+$M$71, IF(AND(AD$6=1,$U30>1),$M$70+$M$72, IF(AND(AD$6=2,$U30=1),$M$69, IF(AND(AD$6=2,$U30>1),$M$70, IF(AND(AD$6=3,$U30=1),$M$71, IF(AND(AD$6=3,$U30>1),$M$72, 0)))))),0) -> 0 | AE30: =IF(LEN(t_プラシャツ[[#This Row],[列13]])>0, $G$59+AE$11+ IF(LEN(t_プラシャツ[[#This Row],[列2]])>0,$E$59,0)+ IF(AND(AE$6=1,$U30=1),$M$69+$M$71, IF(AND(AE$6=1,$U30>1),$M$70+$M$72, IF(AND(AE$6=2,$U30=1),$M$69, IF(AND(AE$6=2,$U30>1),$M$70, IF(AND(AE$6=3,$U30=1),$M$71, IF(AND(AE$6=3,$U30>1),$M$72, 0)))))),0) -> 0 | AF30: =IF(LEN(t_プラシャツ[[#This Row],[列16]])>0, $H$59+AF$11+ IF(AND(AF$6=1,$U30=1),$M$73, IF(AND(AF$6=1,$U30>1),$M$74, 0)),0) -> 0 | AG30: =IF(LEN(t_プラシャツ[[#This Row],[列17]])>0,$I$59,0) -> 0 | AI30: =IF(LEN(t_プラシャツ[[#This Row],[列2]])>0,COUNTA(t_プラシャツ[[#This Row],[列4]:[列5]],t_プラシャツ[[#This Row],[列8]:[列9]],t_プラシャツ[[#This Row],[列12]:[列13]]),0) -> 0 | AJ30: =IF(AND($U30=1,OR($V$6=1,$V$6=2)),COUNTA(t_プラシャツ[[#This Row],[列4]]),0) + IF(AND($U30=1,OR($W$6=1,$W$6=2)),COUNTA(t_プラシャツ[[#This Row],[列5]]),0) + IF(AND($U30=1,OR($Z$6=1,$Z$6=2)),COUNTA(t_プラシャツ[[#This Row],[列8]]),0) + IF(AND($U30=1,OR($AA$6=1,$AA$6=2)),COUNTA(t_プラシャツ[[#This Row],[列9]]),0) + IF(AND($U30=1,OR($AD$6=1,$AD$6=2)),COUNTA(t_プラシャツ[[#This Row],[列12]]),0) + IF(AND($U30=1,OR($AE$6=1,$AE$6=2)),COUNTA(t_プラシャツ[[#This Row],[列13]]),0) -> 0 | AK30: =IF(AND($U30>1,OR($V$6=1,$V$6=2)),COUNTA(t_プラシャツ[[#This Row],[列4]]),0) + IF(AND($U30>1,OR($W$6=1,$W$6=2)),COUNTA(t_プラシャツ[[#This Row],[列5]]),0) + IF(AND($U30>1,OR($Z$6=1,$Z$6=2)),COUNTA(t_プラシャツ[[#This Row],[列8]]),0) + IF(AND($U30>1,OR($AA$6=1,$AA$6=2)),COUNTA(t_プラシャツ[[#This Row],[列9]]),0) + IF(AND($U30>1,OR($AD$6=1,$AD$6=2)),COUNTA(t_プラシャツ[[#This Row],[列12]]),0) + IF(AND($U30>1,OR($AE$6=1,$AE$6=2)),COUNTA(t_プラシャツ[[#This Row],[列13]]),0) -> 0 | AL30: =IF(AND($U30=1,OR($V$6=1,$V$6=3)),COUNTA(t_プラシャツ[[#This Row],[列4]]),0) + IF(AND($U30=1,OR($W$6=1,$W$6=3)),COUNTA(t_プラシャツ[[#This Row],[列5]]),0) + IF(AND($U30=1,OR($Z$6=1,$Z$6=3)),COUNTA(t_プラシャツ[[#This Row],[列8]]),0) + IF(AND($U30=1,OR($AA$6=1,$AA$6=3)),COUNTA(t_プラシャツ[[#This Row],[列9]]),0) + IF(AND($U30=1,OR($AD$6=1,$AD$6=3)),COUNTA(t_プラシャツ[[#This Row],[列12]]),0) + IF(AND($U30=1,OR($AE$6=1,$AE$6=3)),COUNTA(t_プラシャツ[[#This Row],[列13]]),0) -> 0 | AM30: =IF(AND($U30>1,OR($V$6=1,$V$6=3)),COUNTA(t_プラシャツ[[#This Row],[列4]]),0) + IF(AND($U30>1,OR($W$6=1,$W$6=3)),COUNTA(t_プラシャツ[[#This Row],[列5]]),0) + IF(AND($U30>1,OR($Z$6=1,$Z$6=3)),COUNTA(t_プラシャツ[[#This Row],[列8]]),0) + IF(AND($U30>1,OR($AA$6=1,$AA$6=3)),COUNTA(t_プラシャツ[[#This Row],[列9]]),0) + IF(AND($U30>1,OR($AD$6=1,$AD$6=3)),COUNTA(t_プラシャツ[[#This Row],[列12]]),0) + IF(AND($U30>1,OR($AE$6=1,$AE$6=3)),COUNTA(t_プラシャツ[[#This Row],[列13]]),0) -> 0 | AN30: =IF(AND($U30=1,$X$6=1),COUNTA(t_プラシャツ[[#This Row],[列6]]),0) + IF(AND($U30=1,$AB$6=1),COUNTA(t_プラシャツ[[#This Row],[列10]]),0) + IF(AND($U30=1,$AF$6=1),COUNTA(t_プラシャツ[[#This Row],[列16]]),0) -> 0 | AO30: =IF(AND($U30>1,$X$6=1),COUNTA(t_プラシャツ[[#This Row],[列6]]),0) + IF(AND($U30>1,$AB$6=1),COUNTA(t_プラシャツ[[#This Row],[列10]]),0) + IF(AND($U30>1,$AF$6=1),COUNTA(t_プラシャツ[[#This Row],[列16]]),0) -> 0 | AP30: =IF($V$7>0,COUNTA(t_プラシャツ[[#This Row],[列4]]),0) + IF($W$7>0,COUNTA(t_プラシャツ[[#This Row],[列5]]),0) + IF($X$7>0,COUNTA(t_プラシャツ[[#This Row],[列6]]),0) +IF($Z$7>0,COUNTA(t_プラシャツ[[#This Row],[列8]]),0) + IF($AA$7>0,COUNTA(t_プラシャツ[[#This Row],[列9]]),0) + IF($AB$7>0,COUNTA(t_プラシャツ[[#This Row],[列10]]),0) +IF($AD$7>0,COUNTA(t_プラシャツ[[#This Row],[列12]]),0) + IF($AE$7>0,COUNTA(t_プラシャツ[[#This Row],[列13]]),0) + IF($AF$7>0,COUNTA(t_プラシャツ[[#This Row],[列16]]),0) -> 0 | AQ30: =IF($V$8>0,COUNTA(t_プラシャツ[[#This Row],[列4]]),0) + IF($W$8>0,COUNTA(t_プラシャツ[[#This Row],[列5]]),0) +IF($Z$8>0,COUNTA(t_プラシャツ[[#This Row],[列8]]),0) + IF($AA$8>0,COUNTA(t_プラシャツ[[#This Row],[列9]]),0) +IF($AD$8>0,COUNTA(t_プラシャツ[[#This Row],[列12]]),0) + IF($AE$8>0,COUNTA(t_プラシャツ[[#This Row],[列13]]),0) -> 0 | AR30: =IF($V$9>0,COUNTA(t_プラシャツ[[#This Row],[列4]]),0) + IF($W$9>0,COUNTA(t_プラシャツ[[#This Row],[列5]]),0) +IF($Z$9>0,COUNTA(t_プラシャツ[[#This Row],[列8]]),0) + IF($AA$9>0,COUNTA(t_プラシャツ[[#This Row],[列9]]),0) +IF($AD$9>0,COUNTA(t_プラシャツ[[#This Row],[列12]]),0) + IF($AE$9>0,COUNTA(t_プラシャツ[[#This Row],[列13]]),0) -> 0 | AS30: =IF($V$10>0,COUNTA(t_プラシャツ[[#This Row],[列4]]),0) + IF($W$10>0,COUNTA(t_プラシャツ[[#This Row],[列5]]),0) +IF($Z$10>0,COUNTA(t_プラシャツ[[#This Row],[列8]]),0) + IF($AA$10>0,COUNTA(t_プラシャツ[[#This Row],[列9]]),0) +IF($AD$10>0,COUNTA(t_プラシャツ[[#This Row],[列12]]),0) + IF($AE$10>0,COUNTA(t_プラシャツ[[#This Row],[列13]]),0) -> 0
B31: 18 | R31: 0 | U31: =LEN(t_プラシャツ[[#This Row],[列3]]) -> 0 | V31: =IF(LEN(t_プラシャツ[[#This Row],[列4]])>0, $F$59+V$11+ IF(LEN(t_プラシャツ[[#This Row],[列2]])>0,$E$59,0)+ IF(AND(V$6=1,$U31=1),$M$69+$M$71, IF(AND(V$6=1,$U31>1),$M$70+$M$72, IF(AND(V$6=2,$U31=1),$M$69, IF(AND(V$6=2,$U31>1),$M$70, IF(AND(V$6=3,$U31=1),$M$71, IF(AND(V$6=3,$U31>1),$M$72, 0)))))),0) -> 0 | W31: =IF(LEN(t_プラシャツ[[#This Row],[列5]])>0, $G$59+W$11+ IF(LEN(t_プラシャツ[[#This Row],[列2]])>0,$E$59,0)+ IF(AND(W$6=1,$U31=1),$M$69+$M$71, IF(AND(W$6=1,$U31>1),$M$70+$M$72, IF(AND(W$6=2,$U31=1),$M$69, IF(AND(W$6=2,$U31>1),$M$70, IF(AND(W$6=3,$U31=1),$M$71, IF(AND(W$6=3,$U31>1),$M$72, 0)))))),0) -> 0 | X31: =IF(LEN(t_プラシャツ[[#This Row],[列6]])>0, $H$59+X$11+ IF(AND(X$6=1,$U31=1),$M$73, IF(AND(X$6=1,$U31>1),$M$74, 0)),0) -> 0 | Y31: =IF(LEN(t_プラシャツ[[#This Row],[列7]])>0,$I$59,0) -> 0 | Z31: =IF(LEN(t_プラシャツ[[#This Row],[列8]])>0, $F$59+Z$11+ IF(LEN(t_プラシャツ[[#This Row],[列2]])>0,$E$59,0)+ IF(AND(Z$6=1,$U31=1),$M$69+$M$71, IF(AND(Z$6=1,$U31>1),$M$70+$M$72, IF(AND(Z$6=2,$U31=1),$M$69, IF(AND(Z$6=2,$U31>1),$M$70, IF(AND(Z$6=3,$U31=1),$M$71, IF(AND(Z$6=3,$U31>1),$M$72, 0)))))),0) -> 0 | AA31: =IF(LEN(t_プラシャツ[[#This Row],[列9]])>0, $G$59+AA$11+ IF(LEN(t_プラシャツ[[#This Row],[列2]])>0,$E$59,0)+ IF(AND(AA$6=1,$U31=1),$M$69+$M$71, IF(AND(AA$6=1,$U31>1),$M$70+$M$72, IF(AND(AA$6=2,$U31=1),$M$69, IF(AND(AA$6=2,$U31>1),$M$70, IF(AND(AA$6=3,$U31=1),$M$71, IF(AND(AA$6=3,$U31>1),$M$72, 0)))))),0) -> 0 | AB31: =IF(LEN(t_プラシャツ[[#This Row],[列10]])>0, $H$59+AB$11+ IF(AND(AB$6=1,$U31=1),$M$73, IF(AND(AB$6=1,$U31>1),$M$74, 0)),0) -> 0 | AC31: =IF(LEN(t_プラシャツ[[#This Row],[列11]])>0,$I$59,0) -> 0 | AD31: =IF(LEN(t_プラシャツ[[#This Row],[列12]])>0, $F$59+AD$11+ IF(LEN(t_プラシャツ[[#This Row],[列2]])>0,$E$59,0)+ IF(AND(AD$6=1,$U31=1),$M$69+$M$71, IF(AND(AD$6=1,$U31>1),$M$70+$M$72, IF(AND(AD$6=2,$U31=1),$M$69, IF(AND(AD$6=2,$U31>1),$M$70, IF(AND(AD$6=3,$U31=1),$M$71, IF(AND(AD$6=3,$U31>1),$M$72, 0)))))),0) -> 0 | AE31: =IF(LEN(t_プラシャツ[[#This Row],[列13]])>0, $G$59+AE$11+ IF(LEN(t_プラシャツ[[#This Row],[列2]])>0,$E$59,0)+ IF(AND(AE$6=1,$U31=1),$M$69+$M$71, IF(AND(AE$6=1,$U31>1),$M$70+$M$72, IF(AND(AE$6=2,$U31=1),$M$69, IF(AND(AE$6=2,$U31>1),$M$70, IF(AND(AE$6=3,$U31=1),$M$71, IF(AND(AE$6=3,$U31>1),$M$72, 0)))))),0) -> 0 | AF31: =IF(LEN(t_プラシャツ[[#This Row],[列16]])>0, $H$59+AF$11+ IF(AND(AF$6=1,$U31=1),$M$73, IF(AND(AF$6=1,$U31>1),$M$74, 0)),0) -> 0 | AG31: =IF(LEN(t_プラシャツ[[#This Row],[列17]])>0,$I$59,0) -> 0 | AI31: =IF(LEN(t_プラシャツ[[#This Row],[列2]])>0,COUNTA(t_プラシャツ[[#This Row],[列4]:[列5]],t_プラシャツ[[#This Row],[列8]:[列9]],t_プラシャツ[[#This Row],[列12]:[列13]]),0) -> 0 | AJ31: =IF(AND($U31=1,OR($V$6=1,$V$6=2)),COUNTA(t_プラシャツ[[#This Row],[列4]]),0) + IF(AND($U31=1,OR($W$6=1,$W$6=2)),COUNTA(t_プラシャツ[[#This Row],[列5]]),0) + IF(AND($U31=1,OR($Z$6=1,$Z$6=2)),COUNTA(t_プラシャツ[[#This Row],[列8]]),0) + IF(AND($U31=1,OR($AA$6=1,$AA$6=2)),COUNTA(t_プラシャツ[[#This Row],[列9]]),0) + IF(AND($U31=1,OR($AD$6=1,$AD$6=2)),COUNTA(t_プラシャツ[[#This Row],[列12]]),0) + IF(AND($U31=1,OR($AE$6=1,$AE$6=2)),COUNTA(t_プラシャツ[[#This Row],[列13]]),0) -> 0 | AK31: =IF(AND($U31>1,OR($V$6=1,$V$6=2)),COUNTA(t_プラシャツ[[#This Row],[列4]]),0) + IF(AND($U31>1,OR($W$6=1,$W$6=2)),COUNTA(t_プラシャツ[[#This Row],[列5]]),0) + IF(AND($U31>1,OR($Z$6=1,$Z$6=2)),COUNTA(t_プラシャツ[[#This Row],[列8]]),0) + IF(AND($U31>1,OR($AA$6=1,$AA$6=2)),COUNTA(t_プラシャツ[[#This Row],[列9]]),0) + IF(AND($U31>1,OR($AD$6=1,$AD$6=2)),COUNTA(t_プラシャツ[[#This Row],[列12]]),0) + IF(AND($U31>1,OR($AE$6=1,$AE$6=2)),COUNTA(t_プラシャツ[[#This Row],[列13]]),0) -> 0 | AL31: =IF(AND($U31=1,OR($V$6=1,$V$6=3)),COUNTA(t_プラシャツ[[#This Row],[列4]]),0) + IF(AND($U31=1,OR($W$6=1,$W$6=3)),COUNTA(t_プラシャツ[[#This Row],[列5]]),0) + IF(AND($U31=1,OR($Z$6=1,$Z$6=3)),COUNTA(t_プラシャツ[[#This Row],[列8]]),0) + IF(AND($U31=1,OR($AA$6=1,$AA$6=3)),COUNTA(t_プラシャツ[[#This Row],[列9]]),0) + IF(AND($U31=1,OR($AD$6=1,$AD$6=3)),COUNTA(t_プラシャツ[[#This Row],[列12]]),0) + IF(AND($U31=1,OR($AE$6=1,$AE$6=3)),COUNTA(t_プラシャツ[[#This Row],[列13]]),0) -> 0 | AM31: =IF(AND($U31>1,OR($V$6=1,$V$6=3)),COUNTA(t_プラシャツ[[#This Row],[列4]]),0) + IF(AND($U31>1,OR($W$6=1,$W$6=3)),COUNTA(t_プラシャツ[[#This Row],[列5]]),0) + IF(AND($U31>1,OR($Z$6=1,$Z$6=3)),COUNTA(t_プラシャツ[[#This Row],[列8]]),0) + IF(AND($U31>1,OR($AA$6=1,$AA$6=3)),COUNTA(t_プラシャツ[[#This Row],[列9]]),0) + IF(AND($U31>1,OR($AD$6=1,$AD$6=3)),COUNTA(t_プラシャツ[[#This Row],[列12]]),0) + IF(AND($U31>1,OR($AE$6=1,$AE$6=3)),COUNTA(t_プラシャツ[[#This Row],[列13]]),0) -> 0 | AN31: =IF(AND($U31=1,$X$6=1),COUNTA(t_プラシャツ[[#This Row],[列6]]),0) + IF(AND($U31=1,$AB$6=1),COUNTA(t_プラシャツ[[#This Row],[列10]]),0) + IF(AND($U31=1,$AF$6=1),COUNTA(t_プラシャツ[[#This Row],[列16]]),0) -> 0 | AO31: =IF(AND($U31>1,$X$6=1),COUNTA(t_プラシャツ[[#This Row],[列6]]),0) + IF(AND($U31>1,$AB$6=1),COUNTA(t_プラシャツ[[#This Row],[列10]]),0) + IF(AND($U31>1,$AF$6=1),COUNTA(t_プラシャツ[[#This Row],[列16]]),0) -> 0 | AP31: =IF($V$7>0,COUNTA(t_プラシャツ[[#This Row],[列4]]),0) + IF($W$7>0,COUNTA(t_プラシャツ[[#This Row],[列5]]),0) + IF($X$7>0,COUNTA(t_プラシャツ[[#This Row],[列6]]),0) +IF($Z$7>0,COUNTA(t_プラシャツ[[#This Row],[列8]]),0) + IF($AA$7>0,COUNTA(t_プラシャツ[[#This Row],[列9]]),0) + IF($AB$7>0,COUNTA(t_プラシャツ[[#This Row],[列10]]),0) +IF($AD$7>0,COUNTA(t_プラシャツ[[#This Row],[列12]]),0) + IF($AE$7>0,COUNTA(t_プラシャツ[[#This Row],[列13]]),0) + IF($AF$7>0,COUNTA(t_プラシャツ[[#This Row],[列16]]),0) -> 0 | AQ31: =IF($V$8>0,COUNTA(t_プラシャツ[[#This Row],[列4]]),0) + IF($W$8>0,COUNTA(t_プラシャツ[[#This Row],[列5]]),0) +IF($Z$8>0,COUNTA(t_プラシャツ[[#This Row],[列8]]),0) + IF($AA$8>0,COUNTA(t_プラシャツ[[#This Row],[列9]]),0) +IF($AD$8>0,COUNTA(t_プラシャツ[[#This Row],[列12]]),0) + IF($AE$8>0,COUNTA(t_プラシャツ[[#This Row],[列13]]),0) -> 0 | AR31: =IF($V$9>0,COUNTA(t_プラシャツ[[#This Row],[列4]]),0) + IF($W$9>0,COUNTA(t_プラシャツ[[#This Row],[列5]]),0) +IF($Z$9>0,COUNTA(t_プラシャツ[[#This Row],[列8]]),0) + IF($AA$9>0,COUNTA(t_プラシャツ[[#This Row],[列9]]),0) +IF($AD$9>0,COUNTA(t_プラシャツ[[#This Row],[列12]]),0) + IF($AE$9>0,COUNTA(t_プラシャツ[[#This Row],[列13]]),0) -> 0 | AS31: =IF($V$10>0,COUNTA(t_プラシャツ[[#This Row],[列4]]),0) + IF($W$10>0,COUNTA(t_プラシャツ[[#This Row],[列5]]),0) +IF($Z$10>0,COUNTA(t_プラシャツ[[#This Row],[列8]]),0) + IF($AA$10>0,COUNTA(t_プラシャツ[[#This Row],[列9]]),0) +IF($AD$10>0,COUNTA(t_プラシャツ[[#This Row],[列12]]),0) + IF($AE$10>0,COUNTA(t_プラシャツ[[#This Row],[列13]]),0) -> 0
B32: 19 | R32: 0 | U32: =LEN(t_プラシャツ[[#This Row],[列3]]) -> 0 | V32: =IF(LEN(t_プラシャツ[[#This Row],[列4]])>0, $F$59+V$11+ IF(LEN(t_プラシャツ[[#This Row],[列2]])>0,$E$59,0)+ IF(AND(V$6=1,$U32=1),$M$69+$M$71, IF(AND(V$6=1,$U32>1),$M$70+$M$72, IF(AND(V$6=2,$U32=1),$M$69, IF(AND(V$6=2,$U32>1),$M$70, IF(AND(V$6=3,$U32=1),$M$71, IF(AND(V$6=3,$U32>1),$M$72, 0)))))),0) -> 0 | W32: =IF(LEN(t_プラシャツ[[#This Row],[列5]])>0, $G$59+W$11+ IF(LEN(t_プラシャツ[[#This Row],[列2]])>0,$E$59,0)+ IF(AND(W$6=1,$U32=1),$M$69+$M$71, IF(AND(W$6=1,$U32>1),$M$70+$M$72, IF(AND(W$6=2,$U32=1),$M$69, IF(AND(W$6=2,$U32>1),$M$70, IF(AND(W$6=3,$U32=1),$M$71, IF(AND(W$6=3,$U32>1),$M$72, 0)))))),0) -> 0 | X32: =IF(LEN(t_プラシャツ[[#This Row],[列6]])>0, $H$59+X$11+ IF(AND(X$6=1,$U32=1),$M$73, IF(AND(X$6=1,$U32>1),$M$74, 0)),0) -> 0 | Y32: =IF(LEN(t_プラシャツ[[#This Row],[列7]])>0,$I$59,0) -> 0 | Z32: =IF(LEN(t_プラシャツ[[#This Row],[列8]])>0, $F$59+Z$11+ IF(LEN(t_プラシャツ[[#This Row],[列2]])>0,$E$59,0)+ IF(AND(Z$6=1,$U32=1),$M$69+$M$71, IF(AND(Z$6=1,$U32>1),$M$70+$M$72, IF(AND(Z$6=2,$U32=1),$M$69, IF(AND(Z$6=2,$U32>1),$M$70, IF(AND(Z$6=3,$U32=1),$M$71, IF(AND(Z$6=3,$U32>1),$M$72, 0)))))),0) -> 0 | AA32: =IF(LEN(t_プラシャツ[[#This Row],[列9]])>0, $G$59+AA$11+ IF(LEN(t_プラシャツ[[#This Row],[列2]])>0,$E$59,0)+ IF(AND(AA$6=1,$U32=1),$M$69+$M$71, IF(AND(AA$6=1,$U32>1),$M$70+$M$72, IF(AND(AA$6=2,$U32=1),$M$69, IF(AND(AA$6=2,$U32>1),$M$70, IF(AND(AA$6=3,$U32=1),$M$71, IF(AND(AA$6=3,$U32>1),$M$72, 0)))))),0) -> 0 | AB32: =IF(LEN(t_プラシャツ[[#This Row],[列10]])>0, $H$59+AB$11+ IF(AND(AB$6=1,$U32=1),$M$73, IF(AND(AB$6=1,$U32>1),$M$74, 0)),0) -> 0 | AC32: =IF(LEN(t_プラシャツ[[#This Row],[列11]])>0,$I$59,0) -> 0 | AD32: =IF(LEN(t_プラシャツ[[#This Row],[列12]])>0, $F$59+AD$11+ IF(LEN(t_プラシャツ[[#This Row],[列2]])>0,$E$59,0)+ IF(AND(AD$6=1,$U32=1),$M$69+$M$71, IF(AND(AD$6=1,$U32>1),$M$70+$M$72, IF(AND(AD$6=2,$U32=1),$M$69, IF(AND(AD$6=2,$U32>1),$M$70, IF(AND(AD$6=3,$U32=1),$M$71, IF(AND(AD$6=3,$U32>1),$M$72, 0)))))),0) -> 0 | AE32: =IF(LEN(t_プラシャツ[[#This Row],[列13]])>0, $G$59+AE$11+ IF(LEN(t_プラシャツ[[#This Row],[列2]])>0,$E$59,0)+ IF(AND(AE$6=1,$U32=1),$M$69+$M$71, IF(AND(AE$6=1,$U32>1),$M$70+$M$72, IF(AND(AE$6=2,$U32=1),$M$69, IF(AND(AE$6=2,$U32>1),$M$70, IF(AND(AE$6=3,$U32=1),$M$71, IF(AND(AE$6=3,$U32>1),$M$72, 0)))))),0) -> 0 | AF32: =IF(LEN(t_プラシャツ[[#This Row],[列16]])>0, $H$59+AF$11+ IF(AND(AF$6=1,$U32=1),$M$73, IF(AND(AF$6=1,$U32>1),$M$74, 0)),0) -> 0 | AG32: =IF(LEN(t_プラシャツ[[#This Row],[列17]])>0,$I$59,0) -> 0 | AI32: =IF(LEN(t_プラシャツ[[#This Row],[列2]])>0,COUNTA(t_プラシャツ[[#This Row],[列4]:[列5]],t_プラシャツ[[#This Row],[列8]:[列9]],t_プラシャツ[[#This Row],[列12]:[列13]]),0) -> 0 | AJ32: =IF(AND($U32=1,OR($V$6=1,$V$6=2)),COUNTA(t_プラシャツ[[#This Row],[列4]]),0) + IF(AND($U32=1,OR($W$6=1,$W$6=2)),COUNTA(t_プラシャツ[[#This Row],[列5]]),0) + IF(AND($U32=1,OR($Z$6=1,$Z$6=2)),COUNTA(t_プラシャツ[[#This Row],[列8]]),0) + IF(AND($U32=1,OR($AA$6=1,$AA$6=2)),COUNTA(t_プラシャツ[[#This Row],[列9]]),0) + IF(AND($U32=1,OR($AD$6=1,$AD$6=2)),COUNTA(t_プラシャツ[[#This Row],[列12]]),0) + IF(AND($U32=1,OR($AE$6=1,$AE$6=2)),COUNTA(t_プラシャツ[[#This Row],[列13]]),0) -> 0 | AK32: =IF(AND($U32>1,OR($V$6=1,$V$6=2)),COUNTA(t_プラシャツ[[#This Row],[列4]]),0) + IF(AND($U32>1,OR($W$6=1,$W$6=2)),COUNTA(t_プラシャツ[[#This Row],[列5]]),0) + IF(AND($U32>1,OR($Z$6=1,$Z$6=2)),COUNTA(t_プラシャツ[[#This Row],[列8]]),0) + IF(AND($U32>1,OR($AA$6=1,$AA$6=2)),COUNTA(t_プラシャツ[[#This Row],[列9]]),0) + IF(AND($U32>1,OR($AD$6=1,$AD$6=2)),COUNTA(t_プラシャツ[[#This Row],[列12]]),0) + IF(AND($U32>1,OR($AE$6=1,$AE$6=2)),COUNTA(t_プラシャツ[[#This Row],[列13]]),0) -> 0 | AL32: =IF(AND($U32=1,OR($V$6=1,$V$6=3)),COUNTA(t_プラシャツ[[#This Row],[列4]]),0) + IF(AND($U32=1,OR($W$6=1,$W$6=3)),COUNTA(t_プラシャツ[[#This Row],[列5]]),0) + IF(AND($U32=1,OR($Z$6=1,$Z$6=3)),COUNTA(t_プラシャツ[[#This Row],[列8]]),0) + IF(AND($U32=1,OR($AA$6=1,$AA$6=3)),COUNTA(t_プラシャツ[[#This Row],[列9]]),0) + IF(AND($U32=1,OR($AD$6=1,$AD$6=3)),COUNTA(t_プラシャツ[[#This Row],[列12]]),0) + IF(AND($U32=1,OR($AE$6=1,$AE$6=3)),COUNTA(t_プラシャツ[[#This Row],[列13]]),0) -> 0 | AM32: =IF(AND($U32>1,OR($V$6=1,$V$6=3)),COUNTA(t_プラシャツ[[#This Row],[列4]]),0) + IF(AND($U32>1,OR($W$6=1,$W$6=3)),COUNTA(t_プラシャツ[[#This Row],[列5]]),0) + IF(AND($U32>1,OR($Z$6=1,$Z$6=3)),COUNTA(t_プラシャツ[[#This Row],[列8]]),0) + IF(AND($U32>1,OR($AA$6=1,$AA$6=3)),COUNTA(t_プラシャツ[[#This Row],[列9]]),0) + IF(AND($U32>1,OR($AD$6=1,$AD$6=3)),COUNTA(t_プラシャツ[[#This Row],[列12]]),0) + IF(AND($U32>1,OR($AE$6=1,$AE$6=3)),COUNTA(t_プラシャツ[[#This Row],[列13]]),0) -> 0 | AN32: =IF(AND($U32=1,$X$6=1),COUNTA(t_プラシャツ[[#This Row],[列6]]),0) + IF(AND($U32=1,$AB$6=1),COUNTA(t_プラシャツ[[#This Row],[列10]]),0) + IF(AND($U32=1,$AF$6=1),COUNTA(t_プラシャツ[[#This Row],[列16]]),0) -> 0 | AO32: =IF(AND($U32>1,$X$6=1),COUNTA(t_プラシャツ[[#This Row],[列6]]),0) + IF(AND($U32>1,$AB$6=1),COUNTA(t_プラシャツ[[#This Row],[列10]]),0) + IF(AND($U32>1,$AF$6=1),COUNTA(t_プラシャツ[[#This Row],[列16]]),0) -> 0 | AP32: =IF($V$7>0,COUNTA(t_プラシャツ[[#This Row],[列4]]),0) + IF($W$7>0,COUNTA(t_プラシャツ[[#This Row],[列5]]),0) + IF($X$7>0,COUNTA(t_プラシャツ[[#This Row],[列6]]),0) +IF($Z$7>0,COUNTA(t_プラシャツ[[#This Row],[列8]]),0) + IF($AA$7>0,COUNTA(t_プラシャツ[[#This Row],[列9]]),0) + IF($AB$7>0,COUNTA(t_プラシャツ[[#This Row],[列10]]),0) +IF($AD$7>0,COUNTA(t_プラシャツ[[#This Row],[列12]]),0) + IF($AE$7>0,COUNTA(t_プラシャツ[[#This Row],[列13]]),0) + IF($AF$7>0,COUNTA(t_プラシャツ[[#This Row],[列16]]),0) -> 0 | AQ32: =IF($V$8>0,COUNTA(t_プラシャツ[[#This Row],[列4]]),0) + IF($W$8>0,COUNTA(t_プラシャツ[[#This Row],[列5]]),0) +IF($Z$8>0,COUNTA(t_プラシャツ[[#This Row],[列8]]),0) + IF($AA$8>0,COUNTA(t_プラシャツ[[#This Row],[列9]]),0) +IF($AD$8>0,COUNTA(t_プラシャツ[[#This Row],[列12]]),0) + IF($AE$8>0,COUNTA(t_プラシャツ[[#This Row],[列13]]),0) -> 0 | AR32: =IF($V$9>0,COUNTA(t_プラシャツ[[#This Row],[列4]]),0) + IF($W$9>0,COUNTA(t_プラシャツ[[#This Row],[列5]]),0) +IF($Z$9>0,COUNTA(t_プラシャツ[[#This Row],[列8]]),0) + IF($AA$9>0,COUNTA(t_プラシャツ[[#This Row],[列9]]),0) +IF($AD$9>0,COUNTA(t_プラシャツ[[#This Row],[列12]]),0) + IF($AE$9>0,COUNTA(t_プラシャツ[[#This Row],[列13]]),0) -> 0 | AS32: =IF($V$10>0,COUNTA(t_プラシャツ[[#This Row],[列4]]),0) + IF($W$10>0,COUNTA(t_プラシャツ[[#This Row],[列5]]),0) +IF($Z$10>0,COUNTA(t_プラシャツ[[#This Row],[列8]]),0) + IF($AA$10>0,COUNTA(t_プラシャツ[[#This Row],[列9]]),0) +IF($AD$10>0,COUNTA(t_プラシャツ[[#This Row],[列12]]),0) + IF($AE$10>0,COUNTA(t_プラシャツ[[#This Row],[列13]]),0) -> 0
B33: 20 | R33: =SUM(V33:AG33) -> 0 | U33: =LEN(t_プラシャツ[[#This Row],[列3]]) -> 0 | V33: =IF(LEN(t_プラシャツ[[#This Row],[列4]])>0, $F$59+V$11+ IF(LEN(t_プラシャツ[[#This Row],[列2]])>0,$E$59,0)+ IF(AND(V$6=1,$U33=1),$M$69+$M$71, IF(AND(V$6=1,$U33>1),$M$70+$M$72, IF(AND(V$6=2,$U33=1),$M$69, IF(AND(V$6=2,$U33>1),$M$70, IF(AND(V$6=3,$U33=1),$M$71, IF(AND(V$6=3,$U33>1),$M$72, 0)))))),0) -> 0 | W33: =IF(LEN(t_プラシャツ[[#This Row],[列5]])>0, $G$59+W$11+ IF(LEN(t_プラシャツ[[#This Row],[列2]])>0,$E$59,0)+ IF(AND(W$6=1,$U33=1),$M$69+$M$71, IF(AND(W$6=1,$U33>1),$M$70+$M$72, IF(AND(W$6=2,$U33=1),$M$69, IF(AND(W$6=2,$U33>1),$M$70, IF(AND(W$6=3,$U33=1),$M$71, IF(AND(W$6=3,$U33>1),$M$72, 0)))))),0) -> 0 | X33: =IF(LEN(t_プラシャツ[[#This Row],[列6]])>0, $H$59+X$11+ IF(AND(X$6=1,$U33=1),$M$73, IF(AND(X$6=1,$U33>1),$M$74, 0)),0) -> 0 | Y33: =IF(LEN(t_プラシャツ[[#This Row],[列7]])>0,$I$59,0) -> 0 | Z33: =IF(LEN(t_プラシャツ[[#This Row],[列8]])>0, $F$59+Z$11+ IF(LEN(t_プラシャツ[[#This Row],[列2]])>0,$E$59,0)+ IF(AND(Z$6=1,$U33=1),$M$69+$M$71, IF(AND(Z$6=1,$U33>1),$M$70+$M$72, IF(AND(Z$6=2,$U33=1),$M$69, IF(AND(Z$6=2,$U33>1),$M$70, IF(AND(Z$6=3,$U33=1),$M$71, IF(AND(Z$6=3,$U33>1),$M$72, 0)))))),0) -> 0 | AA33: =IF(LEN(t_プラシャツ[[#This Row],[列9]])>0, $G$59+AA$11+ IF(LEN(t_プラシャツ[[#This Row],[列2]])>0,$E$59,0)+ IF(AND(AA$6=1,$U33=1),$M$69+$M$71, IF(AND(AA$6=1,$U33>1),$M$70+$M$72, IF(AND(AA$6=2,$U33=1),$M$69, IF(AND(AA$6=2,$U33>1),$M$70, IF(AND(AA$6=3,$U33=1),$M$71, IF(AND(AA$6=3,$U33>1),$M$72, 0)))))),0) -> 0 | AB33: =IF(LEN(t_プラシャツ[[#This Row],[列10]])>0, $H$59+AB$11+ IF(AND(AB$6=1,$U33=1),$M$73, IF(AND(AB$6=1,$U33>1),$M$74, 0)),0) -> 0 | AC33: =IF(LEN(t_プラシャツ[[#This Row],[列11]])>0,$I$59,0) -> 0 | AD33: =IF(LEN(t_プラシャツ[[#This Row],[列12]])>0, $F$59+AD$11+ IF(LEN(t_プラシャツ[[#This Row],[列2]])>0,$E$59,0)+ IF(AND(AD$6=1,$U33=1),$M$69+$M$71, IF(AND(AD$6=1,$U33>1),$M$70+$M$72, IF(AND(AD$6=2,$U33=1),$M$69, IF(AND(AD$6=2,$U33>1),$M$70, IF(AND(AD$6=3,$U33=1),$M$71, IF(AND(AD$6=3,$U33>1),$M$72, 0)))))),0) -> 0 | AE33: =IF(LEN(t_プラシャツ[[#This Row],[列13]])>0, $G$59+AE$11+ IF(LEN(t_プラシャツ[[#This Row],[列2]])>0,$E$59,0)+ IF(AND(AE$6=1,$U33=1),$M$69+$M$71, IF(AND(AE$6=1,$U33>1),$M$70+$M$72, IF(AND(AE$6=2,$U33=1),$M$69, IF(AND(AE$6=2,$U33>1),$M$70, IF(AND(AE$6=3,$U33=1),$M$71, IF(AND(AE$6=3,$U33>1),$M$72, 0)))))),0) -> 0 | AF33: =IF(LEN(t_プラシャツ[[#This Row],[列16]])>0, $H$59+AF$11+ IF(AND(AF$6=1,$U33=1),$M$73, IF(AND(AF$6=1,$U33>1),$M$74, 0)),0) -> 0 | AG33: =IF(LEN(t_プラシャツ[[#This Row],[列17]])>0,$I$59,0) -> 0 | AI33: =IF(LEN(t_プラシャツ[[#This Row],[列2]])>0,COUNTA(t_プラシャツ[[#This Row],[列4]:[列5]],t_プラシャツ[[#This Row],[列8]:[列9]],t_プラシャツ[[#This Row],[列12]:[列13]]),0) -> 0 | AJ33: =IF(AND($U33=1,OR($V$6=1,$V$6=2)),COUNTA(t_プラシャツ[[#This Row],[列4]]),0) + IF(AND($U33=1,OR($W$6=1,$W$6=2)),COUNTA(t_プラシャツ[[#This Row],[列5]]),0) + IF(AND($U33=1,OR($Z$6=1,$Z$6=2)),COUNTA(t_プラシャツ[[#This Row],[列8]]),0) + IF(AND($U33=1,OR($AA$6=1,$AA$6=2)),COUNTA(t_プラシャツ[[#This Row],[列9]]),0) + IF(AND($U33=1,OR($AD$6=1,$AD$6=2)),COUNTA(t_プラシャツ[[#This Row],[列12]]),0) + IF(AND($U33=1,OR($AE$6=1,$AE$6=2)),COUNTA(t_プラシャツ[[#This Row],[列13]]),0) -> 0 | AK33: =IF(AND($U33>1,OR($V$6=1,$V$6=2)),COUNTA(t_プラシャツ[[#This Row],[列4]]),0) + IF(AND($U33>1,OR($W$6=1,$W$6=2)),COUNTA(t_プラシャツ[[#This Row],[列5]]),0) + IF(AND($U33>1,OR($Z$6=1,$Z$6=2)),COUNTA(t_プラシャツ[[#This Row],[列8]]),0) + IF(AND($U33>1,OR($AA$6=1,$AA$6=2)),COUNTA(t_プラシャツ[[#This Row],[列9]]),0) + IF(AND($U33>1,OR($AD$6=1,$AD$6=2)),COUNTA(t_プラシャツ[[#This Row],[列12]]),0) + IF(AND($U33>1,OR($AE$6=1,$AE$6=2)),COUNTA(t_プラシャツ[[#This Row],[列13]]),0) -> 0 | AL33: =IF(AND($U33=1,OR($V$6=1,$V$6=3)),COUNTA(t_プラシャツ[[#This Row],[列4]]),0) + IF(AND($U33=1,OR($W$6=1,$W$6=3)),COUNTA(t_プラシャツ[[#This Row],[列5]]),0) + IF(AND($U33=1,OR($Z$6=1,$Z$6=3)),COUNTA(t_プラシャツ[[#This Row],[列8]]),0) + IF(AND($U33=1,OR($AA$6=1,$AA$6=3)),COUNTA(t_プラシャツ[[#This Row],[列9]]),0) + IF(AND($U33=1,OR($AD$6=1,$AD$6=3)),COUNTA(t_プラシャツ[[#This Row],[列12]]),0) + IF(AND($U33=1,OR($AE$6=1,$AE$6=3)),COUNTA(t_プラシャツ[[#This Row],[列13]]),0) -> 0 | AM33: =IF(AND($U33>1,OR($V$6=1,$V$6=3)),COUNTA(t_プラシャツ[[#This Row],[列4]]),0) + IF(AND($U33>1,OR($W$6=1,$W$6=3)),COUNTA(t_プラシャツ[[#This Row],[列5]]),0) + IF(AND($U33>1,OR($Z$6=1,$Z$6=3)),COUNTA(t_プラシャツ[[#This Row],[列8]]),0) + IF(AND($U33>1,OR($AA$6=1,$AA$6=3)),COUNTA(t_プラシャツ[[#This Row],[列9]]),0) + IF(AND($U33>1,OR($AD$6=1,$AD$6=3)),COUNTA(t_プラシャツ[[#This Row],[列12]]),0) + IF(AND($U33>1,OR($AE$6=1,$AE$6=3)),COUNTA(t_プラシャツ[[#This Row],[列13]]),0) -> 0 | AN33: =IF(AND($U33=1,$X$6=1),COUNTA(t_プラシャツ[[#This Row],[列6]]),0) + IF(AND($U33=1,$AB$6=1),COUNTA(t_プラシャツ[[#This Row],[列10]]),0) + IF(AND($U33=1,$AF$6=1),COUNTA(t_プラシャツ[[#This Row],[列16]]),0) -> 0 | AO33: =IF(AND($U33>1,$X$6=1),COUNTA(t_プラシャツ[[#This Row],[列6]]),0) + IF(AND($U33>1,$AB$6=1),COUNTA(t_プラシャツ[[#This Row],[列10]]),0) + IF(AND($U33>1,$AF$6=1),COUNTA(t_プラシャツ[[#This Row],[列16]]),0) -> 0 | AP33: =IF($V$7>0,COUNTA(t_プラシャツ[[#This Row],[列4]]),0) + IF($W$7>0,COUNTA(t_プラシャツ[[#This Row],[列5]]),0) + IF($X$7>0,COUNTA(t_プラシャツ[[#This Row],[列6]]),0) +IF($Z$7>0,COUNTA(t_プラシャツ[[#This Row],[列8]]),0) + IF($AA$7>0,COUNTA(t_プラシャツ[[#This Row],[列9]]),0) + IF($AB$7>0,COUNTA(t_プラシャツ[[#This Row],[列10]]),0) +IF($AD$7>0,COUNTA(t_プラシャツ[[#This Row],[列12]]),0) + IF($AE$7>0,COUNTA(t_プラシャツ[[#This Row],[列13]]),0) + IF($AF$7>0,COUNTA(t_プラシャツ[[#This Row],[列16]]),0) -> 0 | AQ33: =IF($V$8>0,COUNTA(t_プラシャツ[[#This Row],[列4]]),0) + IF($W$8>0,COUNTA(t_プラシャツ[[#This Row],[列5]]),0) +IF($Z$8>0,COUNTA(t_プラシャツ[[#This Row],[列8]]),0) + IF($AA$8>0,COUNTA(t_プラシャツ[[#This Row],[列9]]),0) +IF($AD$8>0,COUNTA(t_プラシャツ[[#This Row],[列12]]),0) + IF($AE$8>0,COUNTA(t_プラシャツ[[#This Row],[列13]]),0) -> 0 | AR33: =IF($V$9>0,COUNTA(t_プラシャツ[[#This Row],[列4]]),0) + IF($W$9>0,COUNTA(t_プラシャツ[[#This Row],[列5]]),0) +IF($Z$9>0,COUNTA(t_プラシャツ[[#This Row],[列8]]),0) + IF($AA$9>0,COUNTA(t_プラシャツ[[#This Row],[列9]]),0) +IF($AD$9>0,COUNTA(t_プラシャツ[[#This Row],[列12]]),0) + IF($AE$9>0,COUNTA(t_プラシャツ[[#This Row],[列13]]),0) -> 0 | AS33: =IF($V$10>0,COUNTA(t_プラシャツ[[#This Row],[列4]]),0) + IF($W$10>0,COUNTA(t_プラシャツ[[#This Row],[列5]]),0) +IF($Z$10>0,COUNTA(t_プラシャツ[[#This Row],[列8]]),0) + IF($AA$10>0,COUNTA(t_プラシャツ[[#This Row],[列9]]),0) +IF($AD$10>0,COUNTA(t_プラシャツ[[#This Row],[列12]]),0) + IF($AE$10>0,COUNTA(t_プラシャツ[[#This Row],[列13]]),0) -> 0
F34: =IF(AND((I57+M57+Q57)>0,(I57+M57+Q57)<5)," ※ソックスは5点以上でご注文をお願いいたします。"&"（最低注文数まであと"& 5-(I57+M57+Q57) & "点）","") & IF(COUNTIF(F61:Q61,"?*")>0," ※マーキングを正しく選択して下さい。","") ->  | R34: ※ 個人別価格に送料は含まれていません。
B35: 注 文 集 計 | E35: 100 | F35: =COUNTIF(F$14:F$33,$E35) -> 0 | G35: 0 | H35: 0 | J35: =COUNTIF(J$14:J$33,$E35) -> 0 | K35: 0 | L35: 0 | N35: =COUNTIF(N$14:N$33,$E35) -> 0 | O35: 0 | P35: 0 | AI35: 個人名 | AJ35: 胸番号 １桁 | AK35: 胸番号 ２桁 | AL35: 背番号 １桁 | AM35: 背番号 ２桁 | AN35: パンツ番号 １桁 | AO35: パンツ番号 ２桁 | AP35: エンブレム | AQ35: チーム名 | AR35: メッセージ | AS35: スポンサーバナー
E36: 110 | F36: 0 | G36: 0 | H36: 0 | J36: 0 | K36: 0 | L36: 0 | N36: 0 | O36: 0 | P36: 0 | AI36: =SUM(AI14:AI33) -> 0 | AJ36: 0 | AK36: 0 | AL36: 0 | AM36: 0 | AN36: 0 | AO36: 0 | AP36: 0 | AQ36: 0 | AR36: 0 | AS36: 0
E37: 120 | F37: 0 | G37: 0 | H37: 0 | J37: 0 | K37: 0 | L37: 0 | N37: 0 | O37: 0 | P37: 0
E38: 130 | F38: 0 | G38: 0 | H38: 0 | J38: 0 | K38: 0 | L38: 0 | N38: 0 | O38: 0 | P38: 0
E39: 140 | F39: 0 | G39: 0 | H39: 0 | J39: 0 | K39: 0 | L39: 0 | N39: 0 | O39: 0 | P39: 0
E40: 150 | F40: 0 | G40: 0 | H40: 0 | J40: 0 | K40: 0 | L40: 0 | N40: 0 | O40: 0 | P40: 0
E41: 160 | F41: 0 | G41: 0 | H41: 0 | J41: 0 | K41: 0 | L41: 0 | N41: 0 | O41: 0 | P41: 0
E42: S | F42: 0 | G42: 0 | H42: 0 | J42: 0 | K42: 0 | L42: 0 | N42: 0 | O42: 0 | P42: 0
E43: M | F43: 0 | G43: 0 | H43: 0 | J43: 0 | K43: 0 | L43: 0 | N43: 0 | O43: 0 | P43: 0
E44: L | F44: 0 | G44: 0 | H44: 0 | J44: 0 | K44: 0 | L44: 0 | N44: 0 | O44: 0 | P44: 0
E45: XL | F45: 0 | G45: 0 | H45: 0 | J45: 0 | K45: 0 | L45: 0 | N45: 0 | O45: 0 | P45: 0
E46: 3L | F46: 0 | G46: 0 | H46: 0 | J46: 0 | K46: 0 | L46: 0 | N46: 0 | O46: 0 | P46: 0
E47: 4L | F47: 0 | G47: 0 | H47: 0 | J47: 0 | K47: 0 | L47: 0 | N47: 0 | O47: 0 | P47: 0
E48: 5L | F48: 0 | G48: 0 | H48: 0 | J48: 0 | K48: 0 | L48: 0 | N48: 0 | O48: 0 | P48: 0
E49: 19x21 | I49: =COUNTIF(I$14:I$33,$E49) -> 0 | M49: =COUNTIF(M$14:M$33,$E49) -> 0 | Q49: =COUNTIF(Q$14:Q$33,$E49) -> 0
E50: 22x24 | I50: =COUNTIF(I$14:I$33,$E50) -> 0 | M50: =COUNTIF(M$14:M$33,$E50) -> 0 | Q50: =COUNTIF(Q$14:Q$33,$E50) -> 0
E51: 25x27 | I51: =COUNTIF(I$14:I$33,$E51) -> 0 | M51: =COUNTIF(M$14:M$33,$E51) -> 0 | Q51: =COUNTIF(Q$14:Q$33,$E51) -> 0
E52: 27x29 | I52: =COUNTIF(I$14:I$33,$E52) -> 0 | M52: =COUNTIF(M$14:M$33,$E52) -> 0 | Q52: =COUNTIF(Q$14:Q$33,$E52) -> 0
B53: マーキング | E53: 個人名 | F53: =COUNTIFS($D$14:$D$33,"<>",F$14:F$33,"<>") -> 0 | G53: =COUNTIFS($D$14:$D$33,"<>",G$14:G$33,"<>") -> 0 | J53: =COUNTIFS($D$14:$D$33,"<>",J$14:J$33,"<>") -> 0 | K53: =COUNTIFS($D$14:$D$33,"<>",K$14:K$33,"<>") -> 0 | N53: =COUNTIFS($D$14:$D$33,"<>",N$14:N$33,"<>") -> 0 | O53: =COUNTIFS($D$14:$D$33,"<>",O$14:O$33,"<>") -> 0
B54: 代表商品コード | E54: =$J$68 -> ag-name1000 | F54: =$J$64 -> ag-cs | G54: =$J$65 -> ag-cl | H54: =$J$66 -> ag-cp | I54: =$J$67 -> ag-st | J54: =$J$64 -> ag-cs | K54: =$J$65 -> ag-cl | L54: =$J$66 -> ag-cp | M54: =$J$67 -> ag-st | N54: =$J$64 -> ag-cs | O54: =$J$65 -> ag-cl | P54: =$J$66 -> ag-cp | Q54: =$J$67 -> ag-st
B55: 追加商品コード
B56: 商 品 名 | E56: 個人名 ﾏｰｷﾝｸﾞ | F56: =$G$64&"("&F2&")" -> セミオーダー昇華シャツ半袖(カラー１) | G56: =$G$65&"("&F2&")" -> セミオーダー昇華シャツ長袖(カラー１) | H56: =$G$66&"("&F2&")" -> セミオーダー昇華パンツ(カラー１) | I56: =$G$67&"("&F2&")" -> セミオーダーソックス(カラー１) | J56: =$G$64&"("&J2&")" -> セミオーダー昇華シャツ半袖(カラー２) | K56: =$G$65&"("&J2&")" -> セミオーダー昇華シャツ長袖(カラー２) | L56: =$G$66&"("&J2&")" -> セミオーダー昇華パンツ(カラー２) | M56: =$G$67&"("&J2&")" -> セミオーダーソックス(カラー２) | N56: =$G$64&"("&N2&")" -> セミオーダー昇華シャツ半袖(カラー３) | O56: =$G$65&"("&N2&")" -> セミオーダー昇華シャツ長袖(カラー３) | P56: =$G$66&"("&N2&")" -> セミオーダー昇華パンツ(カラー３) | Q56: =$G$67&"("&N2&")" -> セミオーダーソックス(カラー３)
B57: 注 文 数 | E57: =SUM(F53:Q53) -> 0 | F57: =SUM(F35:F52) -> 0 | G57: 0 | H57: 0 | I57: 0 | J57: 0 | K57: 0 | L57: 0 | M57: 0 | N57: 0 | O57: 0 | P57: 0 | Q57: 0
B58: 定 価（税込） | E58: =$L$68 -> 1080 | F58: =$L$64 -> 3780 | G58: =$L$65 -> 4860 | H58: =$L$66 -> 3996 | I58: =$L$67 -> 1944 | J58: =$L$64 -> 3780 | K58: =$L$65 -> 4860 | L58: =$L$66 -> 3996 | M58: =$L$67 -> 1944 | N58: =$L$64 -> 3780 | O58: =$L$65 -> 4860 | P58: =$L$66 -> 3996 | Q58: =$L$67 -> 1944
B59: 販売価格（税込） | E59: =$M$68 -> 1080 | F59: =$M$64 -> 3780 | G59: =$M$65 -> 4860 | H59: =$M$66 -> 3996 | I59: =$M$67 -> 1944 | J59: =$M$64 -> 3780 | K59: =$M$65 -> 4860 | L59: =$M$66 -> 3996 | M59: =$M$67 -> 1944 | N59: =$M$64 -> 3780 | O59: =$M$65 -> 4860 | P59: =$M$66 -> 3996 | Q59: =$M$67 -> 1944
B60: 商品金額小計（税込） | E60: =E59*E57 -> 0 | F60: 0 | G60: 0 | H60: 0 | I60: 0 | J60: 0 | K60: 0 | L60: 0 | M60: 0 | N60: 0 | O60: 0 | P60: 0 | Q60: 0
F61: =IF(AND(COUNTIF(F6:F10,"選択して下さい")>0,F57>0),"↑注文エラー","") ->  | G61: =IF(AND(COUNTIF(G6:G10,"選択して下さい")>0,G57>0),"↑注文エラー","") -> 
B62: ■ 簡易見積表 | G62: ■ 料金について（金額は税込定価です）
B63: 商 品 合 計 | D63: =SUM(F57:Q57) -> 0 | E63: =SUM(P64:P67) -> 0 | G63: 商品名 | J63: 代表商品コード | L63: 定価(税込) | M63: 売価(税込) | N63: 掛率(X10%) | O63: 注文数 | P63: 金額
B64: マーキング代合計 | E64: =SUM(P68:P78) -> 0 | G64: セミオーダー昇華シャツ半袖 | J64: ag-cs | L64: 3780 | M64: =ROUND(L64*N64*0.1,0) -> 3780 | N64: 10 | O64: =SUMIF(F$54:Q$54,J64,F$57:Q$57) -> 0 | P64: =M64*O64 -> 0
B65: 送 料 | E65: =P79 -> 0 | G65: セミオーダー昇華シャツ長袖 | J65: ag-cl | L65: 4860 | M65: =ROUND(L65*N65*0.1,0) -> 4860 | N65: =$N$64 -> 10 | O65: =SUMIF(F$54:Q$54,J65,F$57:Q$57) -> 0 | P65: =M65*O65 -> 0
B66: ― | E66: 0 | G66: セミオーダー昇華パンツ | J66: ag-cp | L66: 3996 | M66: 3996 | N66: =$N$64 -> 10 | O66: =SUMIF(F$54:Q$54,J66,F$57:Q$57) -> 0 | P66: 0
B67: 合計金額（税込） | E67: =SUM(E63:E66) -> 0 | G67: セミオーダーソックス | J67: ag-st | L67: 1944 | M67: 1944 | N67: 10 | O67: =SUMIF(F$54:Q$54,J67,F$57:Q$57) -> 0 | P67: 0
B68: 税抜金額 | E68: =E66-E69 -> 0 | G68: マーキング | H68: 個人名 | J68: ag-name1000 | L68: 1080 | M68: 1080 | N68: 10 | O68: =$AI$36 -> 0 | P68: 0
B69: 0.08 | E69: =E66-ROUND(E66/(1+B69),0) -> 0 | G69: マーキング | H69: 胸番号 １桁 | J69: mark-500 | L69: 540 | M69: =ROUND(L69*N69*0.1,0) -> 540 | N69: 10 | O69: =$AJ$36 -> 0 | P69: 0
G70: マーキング | H70: 胸番号 ２桁 | J70: mark-800 | L70: 864 | M70: =ROUND(L70*N70*0.1,0) -> 864 | N70: 10 | O70: =$AK$36 -> 0 | P70: 0
G71: マーキング | H71: 背番号 １桁 | J71: mark-800 | L71: 864 | M71: 864 | N71: 10 | O71: =$AL$36 -> 0 | P71: 0
G72: マーキング | H72: 背番号 ２桁 | J72: mark-1500 | L72: 1620 | M72: =ROUND(L72*N72*0.1,0) -> 1620 | N72: 10 | O72: =$AM$36 -> 0 | P72: 0
G73: マーキング | H73: パンツ番号 １桁 | J73: mark-500 | L73: 540 | M73: =ROUND(L73*N73*0.1,0) -> 540 | N73: 10 | O73: =$AN$36 -> 0 | P73: 0
B74: =IF(F34<>"","ご注意","") ->  | G74: マーキング | H74: パンツ番号 ２桁 | J74: mark-800 | L74: 864 | M74: 864 | N74: 10 | O74: =$AO$36 -> 0 | P74: 0
B75: =IF(F34<>"",F34,"") ->  | G75: マーキング | H75: エンブレム | J75: mark-1500 | L75: 1620 | M75: 1620 | N75: 10 | O75: =$AP$36 -> 0 | P75: 0
G76: マーキング | H76: チーム名 | J76: mark-1500 | L76: 1620 | M76: 1620 | N76: 10 | O76: =$AQ$36 -> 0 | P76: 0
G77: マーキング | H77: スポンサーバナー | J77: mark-2000 | L77: 2400 | M77: =ROUND(L77*N77*0.1,0) -> 2400 | N77: 10 | O77: =$AS$36 -> 0 | P77: 0
G78: マーキング | H78: メッセージ | J78: mark-1500 | L78: 1620 | M78: 1620 | N78: 10 | O78: =$AR$36 -> 0 | P78: 0
G79: 送料（税込10,800円以上で送料無料） | L79: 540 | P79: =IF(AND(E63>0,SUM(E63:E64)<10800),$L$79,0) -> 0

Sheet インナー (hidden)
A2: お客様記入→ | B2: agrina インナー注文書 | E2: 種 別 | F2: カラー１ | K2: カラー２ | P2: メモ欄
E3: 画 像
F4: agrina | G4: agrina | H4: agrina | I4: agrina | J4: agrina | K4: agrina | L4: agrina | M4: agrina | N4: agrina | O4: agrina
B5: =IF(ご注文者様チーム名="","「メインメニュー」のご注文者様情報をご記入ください。",ご注文者様チーム名) -> 「メインメニュー」のご注文者様情報をご記入ください。 | E5: 名 称 | F5: インナートップ 長袖 | G5: インナートップ 半袖 | H5: インナートップ ノースリーブ | I5: インナー ロングパンツ | J5: インナー スパッツ | K5: インナートップ 長袖 | L5: インナートップ 半袖 | M5: インナートップ ノースリーブ | N5: インナー ロングパンツ | O5: インナー スパッツ
A6: 非表示 | E6: 商品コード | F6: =IF(F47>0,IF(F45="","追加商品コード未記入",F44&F45),"") -> 
A7: ➡ | E7: 本体カラー | F7: カラーを選択 | G7: カラーを選択 | H7: カラーを選択 | I7: カラーを選択 | J7: カラーを選択 | K7: カラーを選択 | L7: カラーを選択 | M7: カラーを選択 | N7: カラーを選択 | O7: カラーを選択
A8: ➡ | E8: 文字カラー | F8: カラーを選択 | G8: カラーを選択 | H8: カラーを選択 | I8: カラーを選択 | J8: カラーを選択 | K8: カラーを選択 | L8: カラーを選択 | M8: カラーを選択 | N8: カラーを選択 | O8: カラーを選択
B9: # | C9: 注文者氏名 | D9: ="マーキング名" -> マーキング名 | E9: 背番号 | F9: サイズ | K9: サイズ | P9: 個人別価格 | Q9: 備考(お客様使用)
B10: 例 | C10: 加藤貴行 | D10: T.KATO | E10: 10 | F10: M | G10: L | H10: M | I10: L | J10: L | K10: M | L10: L | M10: M | N10: L | O10: L
A11: ➡ | B11: 1 | P11: =SUMIF(F11:O11,"<>",$F$49:$O$49)+IF($D11<>"",COUNTIFS(F11:O11,"<>",$F$43:$O$43,">0")*$M$59,0) -> 0
B12: 2 | P12: 0
B13: 3 | P13: 0
B14: 4 | P14: 0
B15: 5 | P15: 0
B16: 6 | P16: 0
B17: 7 | P17: 0
B18: 8 | P18: 0
B19: 9 | P19: 0
B20: 10 | P20: 0
B21: 11 | P21: 0
B22: 12 | P22: 0
B23: 13 | P23: 0
B24: 14 | P24: 0
B25: 15 | P25: 0
B26: 16 | P26: 0
B27: 17 | P27: 0
B28: 18 | P28: 0
B29: 19 | P29: 0
B30: 20 | P30: 0
F31: =IF(COUNTIF(F51:O51,"?*")>0," ※カラーを選択して下さい。","") ->  | P31: =IF(E55>0,"※ 個人別価格に送料は含まれていません。","") -> 
B32: 注 文 集 計 | E32: 110 | F32: =COUNTIF(F$11:F$30,$E32) -> 0 | G32: 0 | H32: 0 | I32: 0 | J32: 0 | K32: 0 | L32: 0 | M32: 0 | N32: 0 | O32: 0
E33: 130 | F33: 0 | G33: 0 | H33: 0 | I33: 0 | J33: 0 | K33: 0 | L33: 0 | M33: 0 | N33: 0 | O33: 0
E34: 150 | F34: 0 | G34: 0 | H34: 0 | I34: 0 | J34: 0 | K34: 0 | L34: 0 | M34: 0 | N34: 0 | O34: 0
E35: S | F35: 0 | G35: 0 | H35: 0 | I35: 0 | J35: 0 | K35: 0 | L35: 0 | M35: 0 | N35: 0 | O35: 0
E36: M | F36: 0 | G36: 0 | H36: 0 | I36: 0 | J36: 0 | K36: 0 | L36: 0 | M36: 0 | N36: 0 | O36: 0
E37: L | F37: 0 | G37: 0 | H37: 0 | I37: 0 | J37: 0 | K37: 0 | L37: 0 | M37: 0 | N37: 0 | O37: 0
E38: XL | F38: 0 | G38: 0 | H38: 0 | I38: 0 | J38: 0 | K38: 0 | L38: 0 | M38: 0 | N38: 0 | O38: 0
E39: 3L | F39: 0 | G39: 0 | H39: 0 | I39: 0 | J39: 0 | K39: 0 | L39: 0 | M39: 0 | N39: 0 | O39: 0
E40: 4L | F40: 0 | G40: 0 | H40: 0 | I40: 0 | J40: 0 | K40: 0 | L40: 0 | M40: 0 | N40: 0 | O40: 0
E41: 5L | F41: 0 | G41: 0 | H41: 0 | I41: 0 | J41: 0 | K41: 0 | L41: 0 | M41: 0 | N41: 0 | O41: 0
B42: マーキング | E42: 個人名有無 | F42: 個人名【有】 | G42: 個人名【有】 | H42: 個人名【有】 | I42: 個人名【無】 | J42: 個人名【無】 | K42: 個人名【有】 | L42: 個人名【有】 | M42: 個人名【有】 | N42: 個人名【無】 | O42: 個人名【無】
E43: マーキング数 | F43: =IF(F42="個人名【有】",COUNTIFS($D$11:$D$30,"<>",F$11:F$30,"<>"),0) -> 0 | G43: =IF(G42="個人名【有】",COUNTIFS($D$11:$D$30,"<>",G$11:G$30,"<>"),0) -> 0 | H43: =IF(H42="個人名【有】",COUNTIFS($D$11:$D$30,"<>",H$11:H$30,"<>"),0) -> 0 | I43: =IF(I42="個人名【有】",COUNTIFS($D$11:$D$30,"<>",I$11:I$30,"<>"),0) -> 0 | J43: 0 | K43: =IF(K42="個人名【有】",COUNTIFS($D$11:$D$30,"<>",K$11:K$30,"<>"),0) -> 0 | L43: =IF(L42="個人名【有】",COUNTIFS($D$11:$D$30,"<>",L$11:L$30,"<>"),0) -> 0 | M43: =IF(M42="個人名【有】",COUNTIFS($D$11:$D$30,"<>",M$11:M$30,"<>"),0) -> 0 | N43: =IF(N42="個人名【有】",COUNTIFS($D$11:$D$30,"<>",N$11:N$30,"<>"),0) -> 0 | O43: =IF(O42="個人名【有】",COUNTIFS($D$11:$D$30,"<>",O$11:O$30,"<>"),0) -> 0
B44: 代表商品コード | E44: =$J$59 -> ag-name1000 | F44: =$J$54 -> ag-it | G44: =$J$55 -> ag-is | H44: =$J$54 -> ag-it | I44: =$J$55 -> ag-is | J44: =$J$58 -> ag-ih | K44: =$J$54 -> ag-it | L44: =$J$55 -> ag-is | M44: =$J$54 -> ag-it | N44: =$J$55 -> ag-is | O44: =$J$58 -> ag-ih
B45: 追加商品コード
B46: 商 品 名 | E46: 個人名 ﾏｰｷﾝｸﾞ | F46: =$G$54 & "(" & F7 & "x" & F8 &")" -> 昇華インナートップ長袖(カラーを選択xカラーを選択) | G46: =$G$55 & "(" & G7 & "x" & G8 &")" -> 昇華インナートップ半袖(カラーを選択xカラーを選択) | H46: =$G$56 & "(" & H7 & "x" & H8 &")" -> 昇華インナートップノースリーブ(カラーを選択xカラーを選択) | I46: =$G$57 & "(" & I7 & "x" & I8 &")" -> 昇華インナーロングパンツ(カラーを選択xカラーを選択) | J46: =$G$58 & "(" & J7 & "x" & J8 &")" -> 昇華インナースパッツ(カラーを選択xカラーを選択) | K46: =$G$54 & "(" & K7 & "x" & K8 &")" -> 昇華インナートップ長袖(カラーを選択xカラーを選択) | L46: =$G$54 & "(" & L7 & "x" & L8 &")" -> 昇華インナートップ長袖(カラーを選択xカラーを選択) | M46: =$G$54 & "(" & M7 & "x" & M8 &")" -> 昇華インナートップ長袖(カラーを選択xカラーを選択) | N46: =$G$54 & "(" & N7 & "x" & N8 &")" -> 昇華インナートップ長袖(カラーを選択xカラーを選択) | O46: =$G$54 & "(" & O7 & "x" & O8 &")" -> 昇華インナートップ長袖(カラーを選択xカラーを選択)
B47: 注 文 数 | E47: =SUM(F43:O43) -> 0 | F47: =SUM(F32:F41) -> 0 | G47: 0 | H47: 0 | I47: 0 | J47: 0 | K47: 0 | L47: 0 | M47: 0 | N47: 0 | O47: 0
B48: 定 価（税込） | E48: =$L$59 -> 1080 | F48: =$L$54 -> 6480 | G48: =$L$55 -> 5940 | H48: =$L$54 -> 6480 | I48: =$L$55 -> 5940 | J48: =$L$58 -> 5400 | K48: =$L$54 -> 6480 | L48: =$L$55 -> 5940 | M48: =$L$54 -> 6480 | N48: =$L$55 -> 5940 | O48: =$L$58 -> 5400
B49: 販売価格（税込） | E49: =$M$59 -> 1080 | F49: =$M$54 -> 6480 | G49: =$M$55 -> 5940 | H49: =$M$54 -> 6480 | I49: =$M$55 -> 5940 | J49: =$M$58 -> 5400 | K49: =$M$54 -> 6480 | L49: =$M$55 -> 5940 | M49: =$M$54 -> 6480 | N49: =$M$55 -> 5940 | O49: =$M$58 -> 5400
B50: 商品金額小計（税込） | E50: =E49*E47 -> 0 | F50: 0 | G50: 0 | H50: 0 | I50: 0 | J50: 0 | K50: 0 | L50: 0 | M50: 0 | N50: 0 | O50: 0
F51: =IF(AND(COUNTIF(F7:F8,"カラーを選択")>0,F47>0),"↑注文エラー","") -> 
B52: ■ 簡易見積表 | G52: ■ 料金について（金額は税込定価です）
B53: 商 品 合 計 | D53: =SUM(F47:O47) -> 0 | E53: =SUM(F50:O50) -> 0 | G53: 商品名 | J53: 代表商品コード | L53: 定価(税込) | M53: 売価(税込) | N53: 掛率(X10%) | O53: 注文数
B54: マーキング代合計 | E54: =E50 -> 0 | G54: 昇華インナートップ長袖 | J54: ag-it | L54: 6480 | M54: =ROUND(L54*N54*0.1,0) -> 6480 | N54: 10 | O54: =SUMIF(F$44:O$44,J54,F$47:O$47) -> 0
B55: 送 料 | E55: =IF(AND((E54+E53)>0,(E54+E53)<10800),$L$64,0) -> 0 | G55: 昇華インナートップ半袖 | J55: ag-is | L55: 5940 | M55: =ROUND(L55*N55*0.1,0) -> 5940 | N55: =$N$54 -> 10 | O55: =SUMIF(F$44:O$44,J55,F$47:O$47) -> 0
B56: ― | E56: 0 | G56: 昇華インナートップノースリーブ | J56: ag-in | L56: 5940 | M56: 5940 | N56: 10 | O56: =SUMIF(F$44:O$44,J56,F$47:O$47) -> 0
B57: 合計金額（税込） | E57: =SUM(E53:E56) -> 0 | G57: 昇華インナーロングパンツ | J57: ag-ip | L57: 6480 | M57: =ROUND(L57*N57*0.1,0) -> 6480 | N57: 10 | O57: =SUMIF(F$44:O$44,J57,F$47:O$47) -> 0
B58: 税抜金額 | E58: =E56-E59 -> 0 | G58: 昇華インナースパッツ | J58: ag-ih | L58: 5400 | M58: 5400 | N58: 10 | O58: =SUMIF(F$44:O$44,J58,F$47:O$47) -> 0
B59: 0.08 | E59: =E56-ROUND(E56/(1+B59),0) -> 0 | G59: マーキング | H59: 個人名 | J59: ag-name1000 | L59: 1080 | M59: 1080 | N59: 10 | O59: =E47 -> 0
G60: マーキング | H60: 背/胸/パンツ番号 | J60: 無料サービス | L60: 0 | M60: 0 | N60: 10
G61: マーキング | H61: エンブレム | J61: 無料サービス | L61: 0 | M61: 0 | N61: 10
G62: マーキング | H62: チーム名 | J62: 無料サービス | L62: 0 | M62: 0 | N62: 10
G63: マーキング | H63: スポンサーバナー | J63: 無料サービス | L63: 0 | M63: 0 | N63: 10
B64: =IF(F31<>"","ご注意","") ->  | G64: 送料（税込10,800円以上で送料無料） | L64: 540
B65: =IF(F31<>"",F31,"") -> 

Sheet ビブス (hidden)
A2: お客様記入→ | B2: agrina ビブス注文書 | E2: 種 別 | F2: カラー１ | G2: カラー２ | H2: カラー３ | I2: カラー４ | J2: カラー５ | K2: カラー６ | L2: メモ欄
E3: 画 像
B4: =IF(ご注文者様チーム名="","「メインメニュー」のご注文者様情報をご記入ください。",ご注文者様チーム名) -> 「メインメニュー」のご注文者様情報をご記入ください。
E5: 名 称 | F5: ビブス(10枚 1セット) | G5: ビブス(10枚 1セット) | H5: ビブス(10枚 1セット) | I5: ビブス(10枚 1セット) | J5: ビブス(10枚 1セット) | K5: ビブス(10枚 1セット)
A6: 非表示 | E6: 商品コード | F6: =IF(F19>0,IF(F17="","追加商品コード未記入",F16&F17),"") -> 
A7: ➡ | E7: デザイン URL | F7: 入力してください | G7: 入力してください | H7: 入力してください | I7: 入力してください | J7: 入力してください | K7: 入力してください
B8: # | C8: サイズ | E8: 番号 | F8: 個数 | G8: 個数 | H8: 個数 | I8: 個数 | J8: 個数 | K8: 個数 | L8: 備考(お客様使用)
A9: ➡ | B9: 1 | C9: Junior | E9: 2～11
B10: 2 | C10: Free | E10: 2～11
B11: 3 | C11: 3L | E11: 2～11
F12: =IF(COUNTIF(F23:K23,"?*")>0," ※カラーを正しく選択して下さい。","") -> 
B13: 注 文 集 計 | E13: JR | F13: =F9 -> 0 | G13: 0 | H13: 0 | I13: 0 | J13: 0 | K13: 0
E14: F | F14: =F10 -> 0 | G14: =G10 -> 0 | H14: 0 | I14: 0 | J14: 0 | K14: 0
E15: 3L | F15: =F11 -> 0 | G15: 0 | H15: 0 | I15: 0 | J15: 0 | K15: 0
B16: 代表商品コード | F16: =$I$26 -> ag-bib | G16: ag-bib | H16: ag-bib | I16: ag-bib | J16: ag-bib | K16: ag-bib
B17: 追加商品コード
B18: 商品名 | F18: =$G$26& "("&F2&")" -> セミオーダー昇華ビブス(カラー１) | G18: セミオーダー昇華ビブス(カラー２) | H18: セミオーダー昇華ビブス(カラー３) | I18: セミオーダー昇華ビブス(カラー４) | J18: セミオーダー昇華ビブス(カラー５) | K18: セミオーダー昇華ビブス(カラー６)
B19: 注文数 | F19: =SUM(F13:F15) -> 0 | G19: 0 | H19: 0 | I19: 0 | J19: 0 | K19: 0
B20: 定 価（税込） | F20: =$J$26 -> 27000 | G20: 27000 | H20: 27000 | I20: 27000 | J20: 27000 | K20: 27000
B21: 販売価格（税込） | F21: =$K$26 -> 27000 | G21: 27000 | H21: 27000 | I21: 27000 | J21: 27000 | K21: 27000
B22: 商品金額小計（税込） | F22: =F21*F19 -> 0 | G22: 0 | H22: 0 | I22: 0 | J22: 0 | K22: 0
B24: ■ 簡易見積表 | G24: ■ 料金について（金額は税込定価です）
B25: ="商 品 合 計 " & SUM(F19:K19) & "セット" -> 商 品 合 計 0セット | E25: =SUM(F22:K22) -> 0 | G25: 商品名 | I25: 代表商品コード | J25: 定価(税込) | K25: 売価(税込) | L25: 掛率(X10%) | M25: 注文数
B26: マーキング代合計 | E26: =E22 -> 0 | G26: セミオーダー昇華ビブス | I26: ag-bib | J26: 27000 | K26: =ROUND(J26*L26*0.1,0) -> 27000 | L26: 10 | M26: =SUM(F19:K19) -> 0
B27: 送 料 | E27: =IF(AND((E26+E25)>0,(E26+E25)<10800),$K$31,0) -> 0 | G27: マーキング | H27: 背/胸番号 | I27: 無料サービス | J27: 0 | K27: =ROUND(J27*L27*0.1,0) -> 0 | L27: =$L$26 -> 10
B28: ― | E28: 0 | G28: マーキング | H28: エンブレム | I28: 無料サービス | J28: 0 | K28: =ROUND(J28*L28*0.1,0) -> 0 | L28: =$L$26 -> 10
B29: 合計金額（税込） | E29: =SUM(E25:E28) -> 0 | G29: マーキング | H29: チーム名 | I29: 無料サービス | J29: 0 | K29: =ROUND(J29*L29*0.1,0) -> 0 | L29: =$L$26 -> 10
B30: 税抜金額 | E30: =E28-E31 -> 0 | G30: マーキング | H30: スポンサーバナー | I30: 無料サービス | J30: 0 | K30: =ROUND(J30*L30*0.1,0) -> 0 | L30: =$L$26 -> 10
B31: 0.08 | E31: =E28-ROUND(E28/(1+B31),0) -> 0 | G31: 送料（税込10,800円以上で送料無料） | J31: 540
B36: =IF(F12<>"","ご注意","") -> 
B37: =IF(F12<>"",F12,"") -> 

Sheet ポロシャツ (hidden)
A2: お客様記入→ | B2: agrina ポロシャツ 注文書 | E2: 種 別 | F2: カラー１ | I2: カラー２ | L2: カラー３ | O2: カラー４ | R2: メモ欄
E3: 画 像
B4: =IF(ご注文者様チーム名="","「メインメニュー」のご注文者様情報をご記入ください。",ご注文者様チーム名) -> 「メインメニュー」のご注文者様情報をご記入ください。 | E4: 名 称 | F4: ポロシャツ | G4: スウェット ハーフパンツ | H4: ソックス | I4: ポロシャツ | J4: スウェット ハーフパンツ | K4: ソックス | L4: ポロシャツ | M4: スウェット ハーフパンツ | N4: ソックス | O4: ポロシャツ | P4: スウェット ハーフパンツ | Q4: ソックス | R4: ３Dシミュレーターの「デザインを保存 する」ボタンをクリックして表示される ☜「デザインURL」を貼り付けて下さい。
A5: 非表示 | E5: 商品コード | F5: =IF(F48>0,IF(F43="","追加商品コード未記入",F42&F43),"") ->  | G5: =IF(G48>0,IF(G43="","追加商品コード未記入",G42&G43),"") ->  | H5: =IF(H48>0,IF(H43="","追加商品コード未記入",H42&H43),"") ->  | I5: =IF(I48>0,IF(I43="","追加商品コード未記入",I42&I43),"") ->  | L5: =IF(L48>0,IF(L43="","追加商品コード未記入",L42&L43),"") ->  | O5: =IF(O48>0,IF(O43="","追加商品コード未記入",O42&O43),"") -> 
A6: ➡ | E6: 素材 | F6: 素材を選択 | I6: 素材を選択 | L6: 素材を選択 | O6: 素材を選択
A7: ➡ | E7: デザイン URL | F7: 入力してください | I7: 入力してください | L7: 入力してください | O7: 入力してください
B8: # | C8: 注文者氏名 | D8: ="マーキング名" -> マーキング名 | E8: 背番号 | F8: サイズ | I8: サイズ | L8: サイズ | O8: サイズ | R8: 個人別価格 | S8: 備考(お客様使用)
B9: 例 | C9: 加藤貴行 | D9: T.KATO | E9: 10 | F9: M | G9: L | H9: 25x27 | I9: M | J9: L | K9: 25x27
A10: ➡ | B10: 1 | R10: =SUMIF(F10:Q10,"<>",$F$50:$Q$50) -> 0
B11: 2 | R11: =SUMIF(F11:Q11,"<>",$F$50:$Q$50) -> 0
B12: 3 | R12: 0
B13: 4 | R13: 0
B14: 5 | R14: 0
B15: 6 | R15: 0
B16: 7 | R16: 0
B17: 8 | R17: 0
B18: 9 | R18: 0
B19: 10 | R19: 0
B20: 11 | R20: 0
B21: 12 | R21: 0
B22: 13 | R22: 0
B23: 14 | R23: 0
B24: 15 | R24: 0
B25: 16 | R25: 0
B26: 17 | R26: 0
B27: 18 | R27: 0
B28: 19 | R28: 0
B29: 20 | R29: 0
F30: =IF(O56+O57>0,"※マーキング代が別途かかります。ご注文受付後に金額をご案内いたします。 ","") & IF(COUNTIF(F53:Q53,"?*")>0,"※素材を選択して下さい。 ","") & IF(SUM(F52:Q52)>0,"※少量生産手数料が加算されています。(シャツ[素材別]・パンツ４着以下。ソックス５足以下。)","") ->  | R30: ※ 個人別価格にマーキング代・手数料・送料は含まれていません。
B31: 注 文 集 計 | E31: S | F31: =COUNTIF(F$10:F$29,$E31) -> 0 | G31: 0 | I31: =COUNTIF(I$10:I$29,$E31) -> 0 | J31: 0 | L31: =COUNTIF(L$10:L$29,$E31) -> 0 | M31: 0 | O31: =COUNTIF(O$10:O$29,$E31) -> 0 | P31: 0
E32: M | F32: 0 | G32: 0 | I32: 0 | J32: 0 | L32: 0 | M32: 0 | O32: 0 | P32: 0
E33: L | F33: 0 | G33: 0 | I33: 0 | J33: 0 | L33: 0 | M33: 0 | O33: 0 | P33: 0
E34: XL | F34: 0 | G34: 0 | I34: 0 | J34: 0 | L34: 0 | M34: 0 | O34: 0 | P34: 0
E35: 3L | F35: 0 | G35: 0 | I35: 0 | J35: 0 | L35: 0 | M35: 0 | O35: 0 | P35: 0
E36: 4L | F36: 0 | G36: 0 | I36: 0 | J36: 0 | L36: 0 | M36: 0 | O36: 0 | P36: 0
E37: 19x21 | H37: =COUNTIF(H$10:H$29,$E37) -> 0 | K37: =COUNTIF(K$10:K$29,$E37) -> 0 | N37: =COUNTIF(N$10:N$29,$E37) -> 0 | Q37: =COUNTIF(Q$10:Q$29,$E37) -> 0
E38: 22x24 | H38: =COUNTIF(H$10:H$29,$E38) -> 0 | K38: =COUNTIF(K$10:K$29,$E38) -> 0 | N38: =COUNTIF(N$10:N$29,$E38) -> 0 | Q38: =COUNTIF(Q$10:Q$29,$E38) -> 0
E39: 25x27 | H39: =COUNTIF(H$10:H$29,$E39) -> 0 | K39: =COUNTIF(K$10:K$29,$E39) -> 0 | N39: =COUNTIF(N$10:N$29,$E39) -> 0 | Q39: =COUNTIF(Q$10:Q$29,$E39) -> 0
E40: 27x29 | H40: =COUNTIF(H$10:H$29,$E40) -> 0 | K40: =COUNTIF(K$10:K$29,$E40) -> 0 | N40: =COUNTIF(N$10:N$29,$E40) -> 0 | Q40: =COUNTIF(Q$10:Q$29,$E40) -> 0
B41: マーキング | E41: 個人名 | F41: =COUNTIFS($D$10:$D$29,"<>",F$10:F$29,"<>") -> 0 | I41: =COUNTIFS($D$10:$D$29,"<>",I$10:I$29,"<>") -> 0 | L41: =COUNTIFS($D$10:$D$29,"<>",L$10:L$29,"<>") -> 0 | O41: =COUNTIFS($D$10:$D$29,"<>",O$10:O$29,"<>") -> 0
B42: 代表商品コード | F42: =IF(F6="ドライ",$J$56, IF(F6="スタンダード",$J$57, "")) ->  | G42: =$J$58 -> ag-mp | H42: =$J$59 -> ag-0227 | I42: =IF(I6="ドライ",$J$56, IF(I6="スタンダード",$J$57, "")) ->  | J42: =$J$58 -> ag-mp | K42: =$J$59 -> ag-0227 | L42: =IF(L6="ドライ",$J$56, IF(L6="スタンダード",$J$57, "")) ->  | M42: =$J$58 -> ag-mp | N42: =$J$59 -> ag-0227 | O42: =IF(O6="ドライ",$J$56, IF(O6="スタンダード",$J$57, "")) ->  | P42: =$J$58 -> ag-mp | Q42: =$J$59 -> ag-0227
B43: 追加商品コード
B44: agrinaボディカラー
A45: 非表示 | B45: Tomsボディ品番 | F45: =IF(F6="ドライ","00302-ADP", IF(F6="スタンダード","00223-SDP", "")) ->  | G45: 00187-NHP | I45: =IF(I6="ドライ","00302-ADP", IF(I6="スタンダード","00223-SDP", "")) ->  | J45: 00187-NHP | L45: =IF(L6="ドライ","00302-ADP", IF(L6="スタンダード","00223-SDP", "")) ->  | M45: 00187-NHP | O45: =IF(O6="ドライ","00302-ADP", IF(O6="スタンダード","00223-SDP", "")) ->  | P45: 00187-NHP
A46: 非表示 | B46: Tomsボディカラー | F46: =IFERROR(TEXT(VALUE(LEFT(F44,3))-10,"000") & MID(F44,4,99),"") ->  | G46: =IFERROR(TEXT(VALUE(LEFT(G44,3))-10,"000") & MID(G44,4,99),"") ->  | I46: =IFERROR(TEXT(VALUE(LEFT(I44,3))-10,"000") & MID(I44,4,99),"") ->  | J46: =IFERROR(TEXT(VALUE(LEFT(J44,3))-10,"000") & MID(J44,4,99),"") ->  | L46: =IFERROR(TEXT(VALUE(LEFT(L44,3))-10,"000") & MID(L44,4,99),"") ->  | M46: =IFERROR(TEXT(VALUE(LEFT(M44,3))-10,"000") & MID(M44,4,99),"") ->  | O46: =IFERROR(TEXT(VALUE(LEFT(O44,3))-10,"000") & MID(O44,4,99),"") ->  | P46: =IFERROR(TEXT(VALUE(LEFT(P44,3))-10,"000") & MID(P44,4,99),"") -> 
B47: 商 品 名 | F47: =IF(F6="ドライ",$G$56 & "("&F2&")", IF(F6="スタンダード",$G$57 & "("&F2&")", "")) ->  | G47: =$G$58& "("&F2&")" -> セミオーダースウェットハーフパンツ(カラー１) | H47: =$G$59& "("&F2&")" -> セミオーダーソックス(カラー１) | I47: =IF(I6="ドライ",$G$56 & "("&I2&")", IF(I6="スタンダード",$G$57 & "("&I2&")", "")) ->  | J47: =$G$58& "("&I2&")" -> セミオーダースウェットハーフパンツ(カラー２) | K47: =$G$59& "("&I2&")" -> セミオーダーソックス(カラー２) | L47: =IF(L6="ドライ",$G$56 & "("&L2&")", IF(L6="スタンダード",$G$57 & "("&L2&")", "")) ->  | M47: =$G$58& "("&L2&")" -> セミオーダースウェットハーフパンツ(カラー３) | N47: =$G$59& "("&L2&")" -> セミオーダーソックス(カラー３) | O47: =IF(O6="ドライ",$G$56 & "("&O2&")", IF(O6="スタンダード",$G$57 & "("&O2&")", "")) ->  | P47: =$G$58& "("&O2&")" -> セミオーダースウェットハーフパンツ(カラー４) | Q47: =$G$59& "("&O2&")" -> セミオーダーソックス(カラー４)
B48: 注 文 数 | F48: =SUM(F31:F40) -> 0 | G48: 0 | H48: 0 | I48: 0 | J48: 0 | K48: 0 | L48: 0 | M48: 0 | N48: 0 | O48: 0 | P48: 0 | Q48: 0
B49: 定 価（税込） | F49: =$L$56 -> 4104 | G49: =$L$57 -> 4104 | H49: =$L$59 -> 1296 | I49: =$L$56 -> 4104 | J49: =$L$57 -> 4104 | K49: =$L$59 -> 1296 | L49: =$L$56 -> 4104 | M49: =$L$57 -> 4104 | N49: =$L$59 -> 1296 | O49: =$L$56 -> 4104 | P49: =$L$57 -> 4104 | Q49: =$L$59 -> 1296
B50: 販売価格（税込） | F50: =$M$56 -> 4104 | G50: =$M$57 -> 4104 | H50: =$M$59 -> 1296 | I50: =$M$56 -> 4104 | J50: =$M$57 -> 4104 | K50: =$M$59 -> 1296 | L50: =$M$56 -> 4104 | M50: =$M$57 -> 4104 | N50: =$M$59 -> 1296 | O50: =$M$56 -> 4104 | P50: =$M$57 -> 4104 | Q50: =$M$59 -> 1296
B51: 商品金額小計（税込） | F51: =F50*F48 -> 0 | G51: 0 | H51: 0 | I51: 0 | J51: 0 | K51: 0 | L51: 0 | M51: 0 | N51: 0 | O51: 0 | P51: 0 | Q51: 0
B52: 少量生産手数料（税込） | F52: =IF(AND($O$56>0,$O$56<5),$M$71,0) + IF(AND($O$57>0,$O$57<5),$M$71,0) -> 0 | G52: =IF(AND($O$58>0,$O$58<5),$M$71,0) -> 0 | H52: =IF(AND($O$59>0,$O$59<6),$M$71,0) -> 0
F53: =IF(AND(F47="",F48>0),"↑注文エラー","") ->  | I53: =IF(AND(I47="",I48>0),"↑注文エラー","") ->  | L53: =IF(AND(L47="",L48>0),"↑注文エラー","") ->  | O53: =IF(AND(O47="",O48>0),"↑注文エラー","") -> 
B54: ■ 簡易見積表 | G54: ■ 料金について（金額は税込定価です）
B55: 商 品 合 計 | D55: =SUM(F48:Q48) -> 0 | E55: =SUM(F51:Q51)+SUM(F52:Q52) -> 0 | G55: 商品名 | J55: 代表商品コード | L55: 定価(税込) | M55: 売価(税込) | N55: 掛率(X10%) | O55: 注文数
B56: マーキング代別途 | G56: セミオーダードライポロシャツ | J56: ag-msa | L56: 4104 | M56: =ROUND(L56*N56*0.1,0) -> 4104 | N56: 10 | O56: =SUMIF(F$42:Q$42,J56,F$48:Q$48) -> 0
B57: 送 料 | E57: =IF(AND((E56+E55)>0,(E56+E55)<10800),$L$72,0) -> 0 | G57: セミオーダースタンダードポロシャツ | J57: ag-mss | L57: 4104 | M57: 4104 | N57: =$N$56 -> 10 | O57: =SUMIF(F$42:Q$42,J57,F$48:Q$48) -> 0
B58: ― | E58: 0 | G58: セミオーダースウェットハーフパンツ | J58: ag-mp | L58: 4320 | M58: 4320 | N58: =$N$56 -> 10 | O58: =SUMIF(F$42:Q$42,J58,F$48:Q$48) -> 0
B59: 合計金額（税込） | E59: =SUM(E55:E58) -> 0 | G59: セミオーダーソックス | J59: ag-0227 | L59: 1296 | M59: 1296 | N59: =$N$56 -> 10 | O59: =SUMIF(F$42:Q$42,J59,F$48:Q$48) -> 0
B60: 税抜金額 | E60: =E58-E61 -> 0 | G60: マーキング | H60: 個人名 | J60: ag-name1000 | L60: 1080 | M60: 1080 | N60: =$N$56 -> 10
B61: 0.08 | E61: =E58-ROUND(E58/(1+B61),0) -> 0 | G61: マーキング | H61: 胸番号 １桁 | J61: mark-500 | L61: 540 | M61: 540 | N61: =$N$56 -> 10
G62: マーキング | H62: 胸番号 ２桁 | J62: mark-800 | L62: 864 | M62: 864 | N62: 10
G63: マーキング | H63: 背番号 １桁 | J63: mark-800 | L63: 864 | M63: 864 | N63: 10
G64: マーキング | H64: 背番号 ２桁 | J64: mark-1500 | L64: 1620 | M64: 1620 | N64: 10
B65: =IF(F30<>"","ご注意","") ->  | G65: マーキング | H65: パンツ番号 １桁 | J65: mark-500 | L65: 540 | M65: 540 | N65: 10
B66: =IF(F30<>"",F30,"") ->  | G66: マーキング | H66: パンツ番号 ２桁 | J66: mark-800 | L66: 864 | M66: 864 | N66: 10
G67: マーキング | H67: エンブレム | J67: mark-1500 | L67: 1620 | M67: 1620 | N67: 10
G68: マーキング | H68: チーム名 | J68: mark-1500 | L68: 1620 | M68: 1620 | N68: 10
G69: マーキング | H69: スポンサーバナー | J69: mark-2000 | L69: 2400 | M69: 2400 | N69: 10
G70: マーキング | H70: メッセージ | J70: mark-1500 | L70: 1620 | M70: 1620 | N70: 10
G71: 少量生産手数料 | J71: ag-fee | L71: 2160 | M71: 2160 | N71: 10 | O71: =COUNTIF(F52:H52,">0") -> 0
G72: 送料（税込10,800円以上で送料無料） | L72: 540

Sheet ノースリーブ (hidden)
A2: お客様記入→ | B2: agrina ノースリーブシャツ 注文書 | E2: 種 別 | F2: カラー１ | I2: カラー２ | L2: カラー３ | O2: カラー４ | R2: メモ欄
E3: 画 像
B4: =IF(ご注文者様チーム名="","「メインメニュー」のご注文者様情報をご記入ください。",ご注文者様チーム名) -> 「メインメニュー」のご注文者様情報をご記入ください。 | E4: 名 称 | F4: ノースリーブ シャツ | G4: ハーフパンツ | H4: ソックス | I4: ノースリーブ シャツ | J4: ハーフパンツ | K4: ソックス | L4: ノースリーブ シャツ | M4: ハーフパンツ | N4: ソックス | O4: ノースリーブ シャツ | P4: ハーフパンツ | Q4: ソックス | R4: ３Dシミュレーターの「デザインを保存 する」ボタンをクリックして表示される ☜「デザインURL」を貼り付けて下さい。
A5: 非表示 | E5: 商品コード | F5: =IF(F47>0,IF(F42="","追加商品コード未記入",F41&F42),"") ->  | G5: =IF(G47>0,IF(G42="","追加商品コード未記入",G41&G42),"") ->  | I5: =IF(I47>0,IF(I42="","追加商品コード未記入",I41&I42),"") ->  | L5: =IF(L47>0,IF(L42="","追加商品コード未記入",L41&L42),"") ->  | O5: =IF(O47>0,IF(O42="","追加商品コード未記入",O41&O42),"") -> 
A6: ➡ | E6: デザイン URL | F6: 入力してください | I6: 入力してください | L6: 入力してください | O6: 入力してください
B7: # | C7: 注文者氏名 | D7: ="マーキング名" -> マーキング名 | E7: 背番号 | F7: サイズ | I7: サイズ | L7: サイズ | O7: サイズ | R7: 個人別価格 | S7: 備考(お客様使用)
B8: 例 | C8: 加藤貴行 | D8: T.KATO | E8: 10 | F8: M | G8: L | H8: 25x27 | I8: M | J8: L | K8: 25x27
A9: ➡ | B9: 1 | R9: =SUMIF(F9:Q9,"<>",$F$49:$Q$49) -> 0
B10: 2 | R10: 0
B11: 3 | R11: 0
B12: 4 | R12: 0
B13: 5 | R13: 0
B14: 6 | R14: 0
B15: 7 | R15: 0
B16: 8 | R16: 0
B17: 9 | R17: 0
B18: 10 | R18: 0
B19: 11 | R19: 0
B20: 12 | R20: 0
B21: 13 | R21: 0
B22: 14 | R22: 0
B23: 15 | R23: 0
B24: 16 | R24: 0
B25: 17 | R25: 0
B26: 18 | R26: 0
B27: 19 | R27: 0
B28: 20 | R28: 0
F29: =IF(O55+O56>0,"※マーキング代が別途かかります。ご注文受付後に金額をご案内いたします。 ","") & IF(SUM(F51:Q51)>0," ※少量生産手数料が加算されています。(シャツ・パンツ４着以下。ソックス５足以下。)","") ->  | R29: ※ 個人別価格にマーキング代・手数料・送料は含まれていません。
B30: 注 文 集 計 | E30: S | F30: =COUNTIF(F$9:F$28,$E30) -> 0 | G30: 0 | I30: =COUNTIF(I$9:I$28,$E30) -> 0 | J30: 0 | L30: =COUNTIF(L$9:L$28,$E30) -> 0 | M30: 0 | O30: =COUNTIF(O$9:O$28,$E30) -> 0 | P30: 0
E31: M | F31: 0 | G31: 0 | I31: 0 | J31: 0 | L31: 0 | M31: 0 | O31: 0 | P31: 0
E32: L | F32: 0 | G32: 0 | I32: 0 | J32: 0 | L32: 0 | M32: 0 | O32: 0 | P32: 0
E33: XL | F33: 0 | G33: 0 | I33: 0 | J33: 0 | L33: 0 | M33: 0 | O33: 0 | P33: 0
E34: 3L | F34: 0 | G34: 0 | I34: 0 | J34: 0 | L34: 0 | M34: 0 | O34: 0 | P34: 0
E35: 4L | F35: 0 | G35: 0 | I35: 0 | J35: 0 | L35: 0 | M35: 0 | O35: 0 | P35: 0
E36: 19x21 | H36: =COUNTIF(H$9:H$28,$E36) -> 0 | K36: =COUNTIF(K$9:K$28,$E36) -> 0 | N36: =COUNTIF(N$9:N$28,$E36) -> 0 | Q36: =COUNTIF(Q$9:Q$28,$E36) -> 0
E37: 22x24 | H37: =COUNTIF(H$9:H$28,$E37) -> 0 | K37: =COUNTIF(K$9:K$28,$E37) -> 0 | N37: =COUNTIF(N$9:N$28,$E37) -> 0 | Q37: =COUNTIF(Q$9:Q$28,$E37) -> 0
E38: 25x27 | H38: =COUNTIF(H$9:H$28,$E38) -> 0 | K38: =COUNTIF(K$9:K$28,$E38) -> 0 | N38: =COUNTIF(N$9:N$28,$E38) -> 0 | Q38: =COUNTIF(Q$9:Q$28,$E38) -> 0
E39: 27x29 | H39: =COUNTIF(H$9:H$28,$E39) -> 0 | K39: =COUNTIF(K$9:K$28,$E39) -> 0 | N39: =COUNTIF(N$9:N$28,$E39) -> 0 | Q39: =COUNTIF(Q$9:Q$28,$E39) -> 0
B40: マーキング | E40: 個人名 | F40: =COUNTIFS($D$9:$D$28,"<>",F$9:F$28,"<>") -> 0 | I40: =COUNTIFS($D$9:$D$28,"<>",I$9:I$28,"<>") -> 0 | L40: =COUNTIFS($D$9:$D$28,"<>",L$9:L$28,"<>") -> 0 | O40: =COUNTIFS($D$9:$D$28,"<>",O$9:O$28,"<>") -> 0
B41: 代表商品コード | E41: =$J$58 -> ag-name1000 | F41: =$J$55 -> ag-ns | G41: =$J$56 -> ag-sp | H41: =$J$57 -> ag-st | I41: =$J$55 -> ag-ns | J41: =$J$56 -> ag-sp | K41: =$J$57 -> ag-st | L41: =$J$55 -> ag-ns | M41: =$J$56 -> ag-sp | N41: =$J$57 -> ag-st | O41: =$J$55 -> ag-ns | P41: =$J$56 -> ag-sp | Q41: =$J$57 -> ag-st
B42: 追加商品コード
B43: agrinaボディカラー
A44: 非表示 | B44: Tomsボディ品番 | F44: 00329-LANT | G44: 00325-ACP | I44: 00329-LANT | J44: 00325-ACP | L44: 00329-LANT | M44: 00325-ACP | O44: 00329-LANT | P44: 00325-ACP
A45: 非表示 | B45: Tomsボディカラー | F45: =IFERROR(TEXT(VALUE(LEFT(F43,3))-10,"000") & MID(F43,4,99),"") ->  | G45: =IFERROR(TEXT(VALUE(LEFT(G43,3))-10,"000") & MID(G43,4,99),"") ->  | I45: =IFERROR(TEXT(VALUE(LEFT(I43,3))-10,"000") & MID(I43,4,99),"") ->  | J45: =IFERROR(TEXT(VALUE(LEFT(J43,3))-10,"000") & MID(J43,4,99),"") ->  | L45: =IFERROR(TEXT(VALUE(LEFT(L43,3))-10,"000") & MID(L43,4,99),"") ->  | M45: =IFERROR(TEXT(VALUE(LEFT(M43,3))-10,"000") & MID(M43,4,99),"") ->  | O45: =IFERROR(TEXT(VALUE(LEFT(O43,3))-10,"000") & MID(O43,4,99),"") ->  | P45: =IFERROR(TEXT(VALUE(LEFT(P43,3))-10,"000") & MID(P43,4,99),"") -> 
B46: 商 品 名 | E46: 個人名 ﾏｰｷﾝｸﾞ | F46: =$G$55&"("&F2&")" -> セミオーダーノースリーブシャツ(カラー１) | G46: =$G$56&"("&F2&")" -> セミオーダーハーフパンツ(カラー１) | H46: =$G$57&"("&F2&")" -> セミオーダーソックス(カラー１) | I46: =$G$55&"("&I2&")" -> セミオーダーノースリーブシャツ(カラー２) | J46: =$G$56&"("&I2&")" -> セミオーダーハーフパンツ(カラー２) | K46: =$G$57&"("&I2&")" -> セミオーダーソックス(カラー２) | L46: =$G$55&"("&L2&")" -> セミオーダーノースリーブシャツ(カラー３) | M46: =$G$56&"("&L2&")" -> セミオーダーハーフパンツ(カラー３) | N46: =$G$57&"("&L2&")" -> セミオーダーソックス(カラー３) | O46: =$G$55&"("&O2&")" -> セミオーダーノースリーブシャツ(カラー４) | P46: =$G$56&"("&O2&")" -> セミオーダーハーフパンツ(カラー４) | Q46: =$G$57&"("&O2&")" -> セミオーダーソックス(カラー４)
B47: 注 文 数 | E47: =SUM(F40:Q40) -> 0 | F47: =SUM(F30:F39) -> 0 | G47: 0 | H47: 0 | I47: 0 | J47: 0 | K47: 0 | L47: 0 | M47: 0 | N47: 0 | O47: 0 | P47: 0 | Q47: 0
B48: 定 価（税込） | E48: =$L$58 -> 1080 | F48: =$L$55 -> 3456 | G48: =$L$56 -> 3996 | H48: =$L$57 -> 1944 | I48: =$L$55 -> 3456 | J48: =$L$56 -> 3996 | K48: =$L$57 -> 1944 | L48: =$L$55 -> 3456 | M48: =$L$56 -> 3996 | N48: =$L$57 -> 1944 | O48: =$L$55 -> 3456 | P48: =$L$56 -> 3996 | Q48: =$L$57 -> 1944
B49: 販売価格（税込） | E49: =$M$58 -> 1080 | F49: =$M$55 -> 3456 | G49: =$M$56 -> 3996 | H49: =$M$57 -> 1944 | I49: =$M$55 -> 3456 | J49: =$M$56 -> 3996 | K49: =$M$57 -> 1944 | L49: =$M$55 -> 3456 | M49: =$M$56 -> 3996 | N49: =$M$57 -> 1944 | O49: =$M$55 -> 3456 | P49: =$M$56 -> 3996 | Q49: =$M$57 -> 1944
B50: 商品金額小計（税込） | E50: =E49*E47 -> 0 | F50: 0 | G50: 0 | H50: 0 | I50: 0 | J50: 0 | K50: 0 | L50: 0 | M50: 0 | N50: 0 | O50: 0 | P50: 0 | Q50: 0
B51: 少量生産手数料（税込） | F51: =IF(AND(O55>0,O55<5),$M$63,0) -> 0 | G51: =IF(AND(O56>0,O56<5),$M$63,0) -> 0 | H51: =IF(AND(H47+K47+N47+Q47>0,H47+K47+N47+Q47<6),$M$63,0) -> 0
B53: ■ 簡易見積表 | G53: ■ 料金について（金額は税込定価です）
B54: 商 品 合 計 | D54: =SUM(F47:Q47) -> 0 | E54: =SUM(F50:Q50)+SUM(F51:Q51) -> 0 | G54: 商品名 | J54: 代表商品コード | L54: 定価(税込) | M54: 売価(税込) | N54: 掛率(X10%) | O54: 注文数
B55: マーキング代別途 | G55: セミオーダーノースリーブシャツ | J55: ag-ns | L55: 3456 | M55: =ROUND(L55*N55*0.1,0) -> 3456 | N55: 10 | O55: =SUMIF(F$41:Q$41,J55,F$47:Q$47) -> 0
B56: 送 料 | E56: =IF(AND((E55+E54)>0,(E55+E54)<10800),$L$64,0) -> 0 | G56: セミオーダーハーフパンツ | J56: ag-sp | L56: 3996 | M56: =ROUND(L56*N56*0.1,0) -> 3996 | N56: =$N$55 -> 10 | O56: =SUMIF(F$41:Q$41,J56,F$47:Q$47) -> 0
B57: ― | E57: 0 | G57: セミオーダーソックス | J57: ag-st | L57: 1944 | M57: 1944 | N57: 10 | O57: =SUMIF(F$41:Q$41,J57,F$47:Q$47) -> 0
B58: 合計金額（税込） | E58: =SUM(E54:E57) -> 0 | G58: マーキング | H58: 個人名 | J58: ag-name1000 | L58: 1080 | M58: 1080 | N58: 10 | O58: =SUM(F47:Q47) -> 0
B59: 税抜金額 | E59: =E57-E60 -> 0 | G59: マーキング | H59: 背/胸/パンツ番号 | J59: 無料サービス | L59: 0 | M59: 0 | N59: 10
B60: 0.08 | E60: =E57-ROUND(E57/(1+B60),0) -> 0 | G60: マーキング | H60: エンブレム | J60: 無料サービス | L60: 0 | M60: 0 | N60: 10
G61: マーキング | H61: チーム名 | J61: 無料サービス | L61: 0 | M61: 0 | N61: 10
G62: マーキング | H62: スポンサーバナー | J62: 無料サービス | L62: 0 | M62: 0 | N62: 10
G63: 少量生産手数料 | J63: ag-fee | L63: 2160 | M63: 2160 | N63: 10 | O63: =COUNTIF(F51:H51,">0") -> 0
B64: =IF(F29<>"","ご注意","") ->  | G64: 送料（税込10,800円以上で送料無料） | L64: 540
B65: =IF(F29<>"",F29,"") -> 

Sheet ベンチコート (hidden)
A2: お客様記入→ | B2: agrina ベンチコート注文書 | E2: 種 別 | F2: カラー１ | H2: カラー２ | J2: カラー３ | L2: カラー４ | N2: メモ欄
E3: 画 像
B4: =IF(ご注文者様チーム名="","「メインメニュー」のご注文者様情報をご記入ください。",ご注文者様チーム名) -> 「メインメニュー」のご注文者様情報をご記入ください。 | E4: 名 称 | F4: ハーフコート | G4: ベンチコート | H4: ハーフコート | I4: ベンチコート | J4: ハーフコート | K4: ベンチコート | L4: ハーフコート | M4: ベンチコート | N4: ３Dシミュレーターの「デザインを保存 する」ボタンをクリックして表示される ☜「デザインURL」を貼り付けて下さい。
A5: 非表示 | E5: 商品コード | F5: =IF(F47>0,IF(F42="","追加商品コード未記入",F41&F42),"") ->  | G5: =IF(G47>0,IF(G42="","追加商品コード未記入",G41&G42),"") -> 
A6: ➡ | E6: デザイン URL | F6: 入力してください | G6: 入力してください | H6: 入力してください | I6: 入力してください | J6: 入力してください | K6: 入力してください | L6: 入力してください | M6: 入力してください
B7: # | C7: 注文者氏名 | D7: ="マーキング名" -> マーキング名 | E7: 背番号 | F7: サイズ | G7: サイズ | H7: サイズ | I7: サイズ | J7: サイズ | K7: サイズ | L7: サイズ | M7: サイズ | N7: 個人別価格 | O7: 備考(お客様使用)
B8: 例 | C8: 加藤貴行 | D8: T.KATO | E8: 10 | F8: M | G8: M | H8: M | I8: M
A9: ➡ | B9: 1 | N9: =SUMIF(F9:M9,"<>",$F$46:$M$46)+IF($D9<>"",COUNTIFS(F9:M9,"<>",$F$40:$M$40,">0")*$M$54,0) -> 0
B10: 2 | N10: 0
B11: 3 | N11: 0
B12: 4 | N12: 0
B13: 5 | N13: 0
B14: 6 | N14: 0
B15: 7 | N15: 0
B16: 8 | N16: 0
B17: 9 | N17: 0
B18: 10 | N18: 0
B19: 11 | N19: 0
B20: 12 | N20: 0
B21: 13 | N21: 0
B22: 14 | N22: 0
B23: 15 | N23: 0
B24: 16 | N24: 0
B25: 17 | N25: 0
B26: 18 | N26: 0
B27: 19 | N27: 0
B28: 20 | N28: 0
F29: =IF(SUM(F48:M48)>0," ※少量生産手数料が加算されています。(４着以下)","") ->  | N29: ※ 個人別価格に手数料・送料は含まれていません。
B30: 注 文 集 計 | E30: 110 | F30: =COUNTIF(F$9:F$28,$E30) -> 0 | G30: 0 | H30: =COUNTIF(H$9:H$28,$E30) -> 0 | I30: 0 | J30: 0 | K30: 0 | L30: 0 | M30: 0
E31: 130 | F31: 0 | G31: 0 | H31: 0 | I31: 0 | J31: 0 | K31: 0 | L31: 0 | M31: 0
E32: 150 | F32: 0 | G32: 0 | H32: 0 | I32: 0 | J32: 0 | K32: 0 | L32: 0 | M32: 0
E33: S | F33: 0 | G33: 0 | H33: 0 | I33: 0 | J33: 0 | K33: 0 | L33: 0 | M33: 0
E34: M | F34: 0 | G34: 0 | H34: 0 | I34: 0 | J34: 0 | K34: 0 | L34: 0 | M34: 0
E35: L | F35: 0 | G35: 0 | H35: 0 | I35: 0 | J35: 0 | K35: 0 | L35: 0 | M35: 0
E36: XL | F36: 0 | G36: 0 | H36: 0 | I36: 0 | J36: 0 | K36: 0 | L36: 0 | M36: 0
E37: 3L | F37: 0 | G37: 0 | H37: 0 | I37: 0 | J37: 0 | K37: 0 | L37: 0 | M37: 0
E38: 4L | F38: 0 | G38: 0 | H38: 0 | I38: 0 | J38: 0 | K38: 0 | L38: 0 | M38: 0
E39: 5L | F39: 0 | G39: 0 | H39: 0 | I39: 0 | J39: 0 | K39: 0 | L39: 0 | M39: 0
B40: マーキング | E40: 個人名 | F40: =COUNTIFS($D$9:$D$28,"<>",F$9:F$28,"<>") -> 0 | G40: 0 | H40: 0 | I40: 0 | J40: 0 | K40: 0 | L40: 0 | M40: 0
B41: 代表商品コード | E41: =$J$54 -> ag-name1000 | F41: =$J$52 -> ag-hc | G41: =$J$53 -> ag-bc | H41: =$J$52 -> ag-hc | I41: =$J$53 -> ag-bc | J41: =$J$52 -> ag-hc | K41: =$J$53 -> ag-bc | L41: =$J$52 -> ag-hc | M41: =$J$53 -> ag-bc
B42: 追加商品コード
B43: 商 品 名 | E43: 個人名 ﾏｰｷﾝｸﾞ | F43: =$G$52&"("&F2&")" -> セミオーダー昇華ハーフコート(カラー１) | G43: =$G$53&"("&F2&")" -> セミオーダー昇華ベンチコート(カラー１) | H43: =$G$52&"("&H2&")" -> セミオーダー昇華ハーフコート(カラー２) | I43: =$G$53&"("&H2&")" -> セミオーダー昇華ベンチコート(カラー２) | J43: =$G$52&"("&J2&")" -> セミオーダー昇華ハーフコート(カラー３) | K43: =$G$53&"("&J2&")" -> セミオーダー昇華ベンチコート(カラー３) | L43: =$G$52&"("&L2&")" -> セミオーダー昇華ハーフコート(カラー４) | M43: =$G$53&"("&L2&")" -> セミオーダー昇華ベンチコート(カラー４)
B44: 注 文 数 | E44: =SUM(F40:M40) -> 0 | F44: =SUM(F30:F39) -> 0 | G44: 0 | H44: 0 | I44: 0 | J44: 0 | K44: 0 | L44: 0 | M44: 0
B45: 定 価（税込） | E45: =$L$54 -> 1080 | F45: =$L$52 -> 23760 | G45: =$L$53 -> 24840 | H45: =$L$52 -> 23760 | I45: =$L$53 -> 24840 | J45: =$L$52 -> 23760 | K45: =$L$53 -> 24840 | L45: =$L$52 -> 23760 | M45: =$L$53 -> 24840
B46: 販売価格（税込） | E46: =$M$54 -> 1080 | F46: =$M$52 -> 23760 | G46: =$M$53 -> 24840 | H46: =$M$52 -> 23760 | I46: =$M$53 -> 24840 | J46: =$M$52 -> 23760 | K46: =$M$53 -> 24840 | L46: =$M$52 -> 23760 | M46: =$M$53 -> 24840
B47: 商品金額小計（税込） | E47: =E46*E44 -> 0 | F47: =F46*F44 -> 0 | G47: =G46*G44 -> 0 | H47: =H46*H44 -> 0 | I47: 0 | J47: 0 | K47: 0 | L47: 0 | M47: 0
B48: 少量生産手数料（税込） | F48: =IF(AND(SUM(F44,H44,J44,L44)>0,SUM(F44,H44,J44,L44)<5),$M$59,0) -> 0 | G48: =IF(AND(SUM(G44,I44,K44,M44)>0,SUM(G44,I44,K44,M44)<5),$M$59,0) -> 0
F49: =IF(AND(F41="",F44>0),"↑注文エラー","") ->  | G49: =IF(AND(G41="",G44>0),"↑注文エラー","") -> 
B50: ■ 簡易見積表 | G50: ■ 料金について（金額は税込定価です）
B51: 商 品 合 計 | D51: =SUM(F44:M44) -> 0 | E51: =SUM(F47:M47)+SUM(F48:M48) -> 0 | G51: 商品名 | J51: 代表商品コード | L51: 定価(税込) | M51: 売価(税込) | N51: 掛率(X10%) | O51: 注文数
B52: マーキング代合計 | E52: =E47 -> 0 | G52: セミオーダー昇華ハーフコート | J52: ag-hc | L52: 23760 | M52: =ROUND(L52*N52*0.1,0) -> 23760 | N52: 10 | O52: =SUMIF($F$41:$M$41,J52,$F$44:$M$44) -> 0
B53: 送 料 | E53: =IF(AND((E52+E51)>0,(E52+E51)<10800),$L$60,0) -> 0 | G53: セミオーダー昇華ベンチコート | J53: ag-bc | L53: 24840 | M53: 24840 | N53: =$N$52 -> 10 | O53: =SUMIF($F$41:$M$41,J53,$F$44:$M$44) -> 0
B54: ― | E54: 0 | G54: マーキング | H54: 個人名 | J54: ag-name1000 | L54: 1080 | M54: 1080 | N54: 10 | O54: =E44 -> 0
B55: 合計金額（税込） | E55: =SUM(E51:E54) -> 0 | G55: マーキング | H55: 背/胸/パンツ番号 | J55: 無料サービス | L55: 0 | M55: 0 | N55: 10
B56: 税抜金額 | E56: =E54-E57 -> 0 | G56: マーキング | H56: エンブレム | J56: 無料サービス | L56: 0 | M56: 0 | N56: 10
B57: 0.08 | E57: =E54-ROUND(E54/(1+B57),0) -> 0 | G57: マーキング | H57: チーム名 | J57: 無料サービス | L57: 0 | M57: 0 | N57: 10
G58: マーキング | H58: スポンサーバナー | J58: 無料サービス | L58: 0 | M58: 0 | N58: 10
G59: 少量生産手数料 | J59: ag-fee | L59: 2160 | M59: =ROUND(L59*N59*0.1,0) -> 2160 | N59: 10 | O59: =COUNTIF(F48:G48,">0") -> 0
G60: 送料（税込10,800円以上で送料無料） | L60: 540
B62: =IF(F29<>"","ご注意","") -> 
B63: =IF(F29<>"",F29,"") -> 

Sheet 準備中 (hidden)
B2: agrina 注文書 | D2: 現在、準備中です。申し訳ございませんが、しばらくお待ちください。

Sheet デザインURL説明 (hidden)
B2: ３DシミュレーターのデザインURLのコピー方法
B4: ① | C4: 3Dシミュレーターの右下の[デザインを保存する]をクリックします。
B20: ② | C20: デザインURLの枠内の文字をすべて選択してコピーします。
B36: ③ | C36: 注文書のデザインURLに貼り付けます。

Sheet 読込中 (hidden)
B2: agrina 注文書 | D2: ファイルを開いています。少々お待ちください。

Sheet お願い
B1: 注文書を作成する前のお願い
B2: Excelの自動処理(マクロ)が無効になっています。お手数ですがマクロを有効にしてください。
B4: ■ マクロを有効にする方法
B6: 1.注文書ファイルを開くと、以下のようなメッセージが画面左上に表示されます。
B10: 2.「コンテンツの有効化」ボタンをクリックしてください。
B12: ■ 上記の操作を行なっても、この画面が表示される場合・上記のメッセージが表示されない場合
B14: 1. [ファイル] タブをクリックします。
B16: 2. [オプション] をクリックします。
B18: 3. [セキュリティ センター] をクリックし、[セキュリティ センターの設定] をクリックします。
B20: 4. [セキュリティ センター] の [マクロの設定] をクリックします。
B22: 5. [警告を表示してすべてのマクロを無効にする]をクリックします。
B24: 6. [OK] をクリックします。
B26: 7. ファイルを保存して、開きなおしてください。
